{"text_format":"1","workbook":"xlsx","n_sheets":3,"sheets":["C1 - Vendredi 10 juin 2016","C1 - Samedi 11 juin 2016",","],"not_rendered":{"charts":0,"images":0,"macros":1,"external_links":0,"defined_names":3,"comments":0,"pivot_tables":0},"unopened":[],"bounds":{"document_bytes":16777216,"sheet_cells":100000,"rows_first":2000,"rows_last":500,"rows_between":2000,"halvings":0,"cell_chars":16384,"cell_head_chars":4096},"cells_cut":0,"cells_raw":0,"read":"whole","date_system":"1900"}

{"sheet":"C1 - Vendredi 10 juin 2016","index":0,"n_rows":3604,"n_cols":8,"rows_kept":3604,"cut":false,"hidden":false,"merged":[[3587,6,3590,6],[3587,7,3590,7],[3600,6,3603,6],[3600,7,3603,7],[3517,6,3520,6],[3517,7,3520,7],[3531,6,3534,6],[3531,7,3534,7],[3545,6,3548,6],[3545,7,3548,7],[3559,6,3562,6],[3559,7,3562,7],[3573,6,3576,6],[3573,7,3576,7],[3447,6,3450,6],[3447,7,3450,7],[3461,6,3464,6],[3461,7,3464,7],[3475,6,3478,6],[3475,7,3478,7],[3489,6,3492,6],[3489,7,3492,7],[3503,6,3506,6],[3503,7,3506,7],[3377,6,3380,6],[3377,7,3380,7],[3391,6,3394,6],[3391,7,3394,7],[3405,6,3408,6],[3405,7,3408,7],[3419,6,3422,6],[3419,7,3422,7],[3433,6,3436,6],[3433,7,3436,7],[3307,6,3310,6],[3307,7,3310,7],[3321,6,3324,6],[3321,7,3324,7],[3335,6,3338,6],[3335,7,3338,7],[3349,6,3352,6],[3349,7,3352,7],[3363,6,3366,6],[3363,7,3366,7],[3237,6,3240,6],[3237,7,3240,7],[3251,6,3254,6],[3251,7,3254,7],[3265,6,3268,6],[3265,7,3268,7],[3279,6,3282,6],[3279,7,3282,7],[3293,6,3296,6],[3293,7,3296,7],[3167,6,3170,6],[3167,7,3170,7],[3181,6,3184,6],[3181,7,3184,7],[3195,6,3198,6],[3195,7,3198,7],[3209,6,3212,6],[3209,7,3212,7],[3223,6,3226,6],[3223,7,3226,7],[3097,6,3100,6],[3097,7,3100,7],[3111,6,3114,6],[3111,7,3114,7],[3125,6,3128,6],[3125,7,3128,7],[3139,6,3142,6],[3139,7,3142,7],[3153,6,3156,6],[3153,7,3156,7],[3027,6,3030,6],[3027,7,3030,7],[3041,6,3044,6],[3041,7,3044,7],[3055,6,3058,6],[3055,7,3058,7],[3069,6,3072,6],[3069,7,3072,7],[3083,6,3086,6],[3083,7,3086,7],[2957,6,2960,6],[2957,7,2960,7],[2971,6,2974,6],[2971,7,2974,7],[2985,6,2988,6],[2985,7,2988,7],[2999,6,3002,6],[2999,7,3002,7],[3013,6,3016,6],[3013,7,3016,7],[2887,6,2890,6],[2887,7,2890,7],[2901,6,2904,6],[2901,7,2904,7],[2915,6,2918,6],[2915,7,2918,7],[2929,6,2932,6],[2929,7,2932,7],[2943,6,2946,6],[2943,7,2946,7],[2817,6,2820,6],[2817,7,2820,7],[2831,6,2834,6],[2831,7,2834,7],[2845,6,2848,6],[2845,7,2848,7],[2859,6,2862,6],[2859,7,2862,7],[2873,6,2876,6],[2873,7,2876,7],[2747,6,2750,6],[2747,7,2750,7],[2761,6,2764,6],[2761,7,2764,7],[2775,6,2778,6],[2775,7,2778,7],[2789,6,2792,6],[2789,7,2792,7],[2803,6,2806,6],[2803,7,2806,7],[2677,6,2680,6],[2677,7,2680,7],[2691,6,2694,6],[2691,7,2694,7],[2705,6,2708,6],[2705,7,2708,7],[2719,6,2722,6],[2719,7,2722,7],[2733,6,2736,6],[2733,7,2736,7],[2649,6,2652,6],[2649,7,2652,7],[2653,6,2656,6],[2653,7,2656,7],[2657,6,2658,6],[2657,7,2658,7],[2659,6,2660,6],[2659,7,2660,7],[2663,6,2666,6],[2663,7,2666,7],[2579,6,2582,6],[2579,7,2582,7],[2593,6,2596,6],[2593,7,2596,7],[2607,6,2610,6],[2607,7,2610,7],[2621,6,2624,6],[2621,7,2624,7],[2635,6,2638,6],[2635,7,2638,7],[2509,6,2512,6],[2509,7,2512,7],[2523,6,2526,6],[2523,7,2526,7],[2537,6,2540,6],[2537,7,2540,7],[2551,6,2554,6],[2551,7,2554,7],[2565,6,2568,6],[2565,7,2568,7],[2439,6,2442,6],[2439,7,2442,7],[2453,6,2456,6],[2453,7,2456,7],[2467,6,2470,6],[2467,7,2470,7],[2481,6,2484,6],[2481,7,2484,7],[2495,6,2498,6],[2495,7,2498,7],[2369,6,2372,6],[2369,7,2372,7],[2383,6,2386,6],[2383,7,2386,7],[2397,6,2400,6],[2397,7,2400,7],[2411,6,2414,6],[2411,7,2414,7],[2425,6,2428,6],[2425,7,2428,7],[2299,6,2302,6],[2299,7,2302,7],[2313,6,2316,6],[2313,7,2316,7],[2327,6,2330,6],[2327,7,2330,7],[2341,6,2344,6],[2341,7,2344,7],[2355,6,2358,6],[2355,7,2358,7],[2271,6,2274,6],[2271,7,2274,7],[2275,6,2278,6],[2275,7,2278,7],[2279,6,2280,6],[2279,7,2280,7],[2281,6,2282,6],[2281,7,2282,7],[2285,6,2288,6],[2285,7,2288,7],[2201,6,2204,6],[2201,7,2204,7],[2215,6,2218,6],[2215,7,2218,7],[2229,6,2232,6],[2229,7,2232,7],[2243,6,2246,6],[2243,7,2246,7],[2257,6,2260,6],[2257,7,2260,7],[2131,6,2134,6],[2131,7,2134,7],[2145,6,2148,6],[2145,7,2148,7],[2159,6,2162,6],[2159,7,2162,7],[2173,6,2176,6],[2173,7,2176,7],[2187,6,2190,6],[2187,7,2190,7],[2061,7,2064,7],[2075,6,2078,6],[2075,7,2078,7],[2089,6,2092,6],[2089,7,2092,7],[2103,6,2106,6],[2103,7,2106,7],[2117,6,2120,6],[2117,7,2120,7],[1991,6,1994,6],[1991,7,1994,7],[2005,6,2008,6],[2005,7,2008,7],[2019,6,2022,6],[2019,7,2022,7],[2033,6,2036,6],[2033,7,2036,7],[2047,6,2050,6],[2047,7,2050,7],[2061,6,2064,6],[1921,7,1924,7],[1935,6,1938,6],[1935,7,1938,7],[1949,6,1952,6],[1949,7,1952,7],[1963,6,1966,6],[1963,7,1966,7],[1977,6,1980,6],[1977,7,1980,7],[1893,6,1896,6],[1893,7,1896,7],[1897,6,1900,6],[1897,7,1900,7],[1901,6,1902,6],[1901,7,1902,7],[1903,6,1904,6],[1903,7,1904,7],[1907,6,1910,6],[1907,7,1910,7],[1921,6,1924,6],[1823,7,1826,7],[1837,6,1840,6],[1837,7,1840,7],[1851,6,1854,6],[1851,7,1854,7],[1865,6,1868,6],[1865,7,1868,7],[1879,6,1882,6],[1879,7,1882,7],[1753,6,1756,6],[1753,7,1756,7],[1767,6,1770,6],[1767,7,1770,7],[1781,6,1784,6],[1781,7,1784,7],[1795,6,1798,6],[1795,7,1798,7],[1809,6,1812,6],[1809,7,1812,7],[1823,6,1826,6],[1683,7,1686,7],[1697,6,1700,6],[1697,7,1700,7],[1711,6,1714,6],[1711,7,1714,7],[1725,6,1728,6],[1725,7,1728,7],[1739,6,1742,6],[1739,7,1742,7],[1613,6,1616,6],[1613,7,1616,7],[1627,6,1630,6],[1627,7,1630,7],[1641,6,1644,6],[1641,7,1644,7],[1655,6,1658,6],[1655,7,1658,7],[1669,6,1672,6],[1669,7,1672,7],[1683,6,1686,6],[1543,7,1546,7],[1557,6,1560,6],[1557,7,1560,7],[1571,6,1574,6],[1571,7,1574,7],[1585,6,1588,6],[1585,7,1588,7],[1599,6,1602,6],[1599,7,1602,7],[1515,6,1518,6],[1515,7,1518,7],[1519,6,1522,6],[1519,7,1522,7],[1523,6,1524,6],[1523,7,1524,7],[1525,6,1526,6],[1525,7,1526,7],[1529,6,1532,6],[1529,7,1532,7],[1543,6,1546,6],[1445,7,1448,7],[1459,6,1462,6],[1459,7,1462,7],[1473,6,1476,6],[1473,7,1476,7],[1487,6,1490,6],[1487,7,1490,7],[1501,6,1504,6],[1501,7,1504,7],[1375,6,1378,6],[1375,7,1378,7],[1389,6,1392,6],[1389,7,1392,7],[1403,6,1406,6],[1403,7,1406,7],[1417,6,1420,6],[1417,7,1420,7],[1431,6,1434,6],[1431,7,1434,7],[1445,6,1448,6],[1305,7,1308,7],[1319,6,1322,6],[1319,7,1322,7],[1333,6,1336,6],[1333,7,1336,7],[1347,6,1350,6],[1347,7,1350,7],[1361,6,1364,6],[1361,7,1364,7],[1235,6,1238,6],[1235,7,1238,7],[1249,6,1252,6],[1249,7,1252,7],[1263,6,1266,6],[1263,7,1266,7],[1277,6,1280,6],[1277,7,1280,7],[1291,6,1294,6],[1291,7,1294,7],[1305,6,1308,6],[1165,7,1168,7],[1179,6,1182,6],[1179,7,1182,7],[1193,6,1196,6],[1193,7,1196,7],[1207,6,1210,6],[1207,7,1210,7],[1221,6,1224,6],[1221,7,1224,7],[1137,6,1140,6],[1137,7,1140,7],[1141,6,1144,6],[1141,7,1144,7],[1145,6,1146,6],[1145,7,1146,7],[1147,6,1148,6],[1147,7,1148,7],[1151,6,1154,6],[1151,7,1154,7],[1165,6,1168,6],[1067,7,1070,7],[1081,6,1084,6],[1081,7,1084,7],[1095,6,1098,6],[1095,7,1098,7],[1109,6,1112,6],[1109,7,1112,7],[1123,6,1126,6],[1123,7,1126,7],[997,6,1000,6],[997,7,1000,7],[1011,6,1014,6],[1011,7,1014,7],[1025,6,1028,6],[1025,7,1028,7],[1039,6,1042,6],[1039,7,1042,7],[1053,6,1056,6],[1053,7,1056,7],[1067,6,1070,6],[927,7,930,7],[941,6,944,6],[941,7,944,7],[955,6,958,6],[955,7,958,7],[969,6,972,6],[969,7,972,7],[983,6,986,6],[983,7,986,7],[857,6,860,6],[857,7,860,7],[871,6,874,6],[871,7,874,7],[885,6,888,6],[885,7,888,7],[899,6,902,6],[899,7,902,7],[913,6,916,6],[913,7,916,7],[927,6,930,6],[787,7,790,7],[801,6,804,6],[801,7,804,7],[815,6,818,6],[815,7,818,7],[829,6,832,6],[829,7,832,7],[843,6,846,6],[843,7,846,7],[759,6,762,6],[759,7,762,7],[763,6,766,6],[763,7,766,7],[767,6,768,6],[767,7,768,7],[769,6,770,6],[769,7,770,7],[773,6,776,6],[773,7,776,7],[787,6,790,6],[689,7,692,7],[703,6,706,6],[703,7,706,7],[717,6,720,6],[717,7,720,7],[731,6,734,6],[731,7,734,7],[745,6,748,6],[745,7,748,7],[619,6,622,6],[619,7,622,7],[633,6,636,6],[633,7,636,7],[647,6,650,6],[647,7,650,7],[661,6,664,6],[661,7,664,7],[675,6,678,6],[675,7,678,7],[689,6,692,6],[563,7,566,7],[577,6,580,6],[577,7,580,7],[591,6,594,6],[591,7,594,7],[605,6,608,6],[605,7,608,7],[479,6,482,6],[479,7,482,7],[493,6,496,6],[493,7,496,7],[507,6,510,6],[507,7,510,7],[521,6,524,6],[521,7,524,7],[535,6,538,6],[535,7,538,7],[563,6,566,6],[409,7,412,7],[423,6,426,6],[423,7,426,7],[437,6,440,6],[437,7,440,7],[451,6,454,6],[451,7,454,7],[465,6,468,6],[465,7,468,7],[381,6,384,6],[381,7,384,7],[385,7,388,7],[389,7,390,7],[391,7,392,7],[395,6,398,6],[395,7,398,7],[549,6,552,6],[549,7,552,7],[409,6,412,6],[311,7,314,7],[325,6,328,6],[325,7,328,7],[339,6,342,6],[339,7,342,7],[353,6,356,6],[353,7,356,7],[367,6,370,6],[367,7,370,7],[255,6,258,6],[255,7,258,7],[269,6,272,6],[269,7,272,7],[283,6,286,6],[283,7,286,7],[297,6,300,6],[297,7,300,7],[311,6,314,6],[1,1,1,5],[101,6,104,6],[101,7,104,7],[115,6,118,6],[115,7,118,7],[129,6,132,6],[129,7,132,7],[143,6,146,6],[143,7,146,7],[157,6,160,6],[157,7,160,7],[31,6,34,6],[31,7,34,7],[45,6,48,6],[45,7,48,7],[59,6,62,6],[73,7,76,7],[87,6,90,6],[87,7,90,7],[128,1,141,1],[114,5,127,5],[114,1,127,1],[100,5,113,5],[100,1,113,1],[86,5,99,5],[3,6,6,6],[3,7,6,7],[7,6,10,6],[7,7,10,7],[11,6,12,6],[11,7,12,7],[13,6,14,6],[13,7,14,7],[17,6,20,6],[17,7,20,7],[241,6,244,6],[241,7,244,7],[59,7,62,7],[73,6,76,6],[171,7,174,7],[185,6,188,6],[185,7,188,7],[199,6,202,6],[199,7,202,7],[213,6,216,6],[213,7,216,7],[227,6,230,6],[227,7,230,7],[184,5,197,5],[171,6,174,6],[30,5,43,5],[16,5,29,5],[3320,5,3333,5],[3320,1,3333,1],[3306,5,3319,5],[3306,1,3319,1],[3292,5,3305,5],[3292,1,3305,1],[1640,5,1653,5],[1640,1,1653,1],[1626,5,1639,5],[1626,1,1639,1],[1612,5,1625,5],[1612,1,1625,1],[1598,5,1611,5],[1598,1,1611,1],[1584,5,1597,5],[1584,1,1597,1],[3278,5,3291,5],[3278,1,3291,1],[3264,5,3277,5],[3264,1,3277,1],[3250,5,3263,5],[3250,1,3263,1],[3236,5,3249,5],[3236,1,3249,1],[3222,5,3235,5],[3222,1,3235,1],[3208,5,3221,5],[3208,1,3221,1],[3194,5,3207,5],[3194,1,3207,1],[3180,5,3193,5],[3180,1,3193,1],[3572,5,3585,5],[3572,1,3585,1],[3558,5,3571,5],[3558,1,3571,1],[3544,5,3557,5],[3544,1,3557,1],[3530,5,3543,5],[3530,1,3543,1],[3516,5,3529,5],[3516,1,3529,1],[3502,5,3515,5],[3502,1,3515,1],[3488,5,3501,5],[3488,1,3501,1],[3474,5,3487,5],[3474,1,3487,1],[3460,5,3473,5],[3460,1,3473,1],[3446,5,3459,5],[3446,1,3459,1],[3432,5,3445,5],[3432,1,3445,1],[3418,5,3431,5],[3418,1,3431,1],[3404,5,3417,5],[3404,1,3417,1],[3390,5,3403,5],[3390,1,3403,1],[3376,5,3389,5],[3376,1,3389,1],[3362,5,3375,5],[3362,1,3375,1],[3348,5,3361,5],[3348,1,3361,1],[3334,5,3347,5],[3334,1,3347,1],[3166,5,3179,5],[3166,1,3179,1],[3152,5,3165,5],[3152,1,3165,1],[3138,5,3151,5],[3138,1,3151,1],[3124,5,3137,5],[3124,1,3137,1],[3110,5,3123,5],[3110,1,3123,1],[3096,5,3109,5],[3096,1,3109,1],[3082,5,3095,5],[3082,1,3095,1],[3068,5,3081,5],[3068,1,3081,1],[3054,5,3067,5],[3054,1,3067,1],[3040,5,3053,5],[3040,1,3053,1],[3026,5,3039,5],[3026,1,3039,1],[3012,5,3025,5],[3012,1,3025,1],[2998,5,3011,5],[2998,1,3011,1],[2984,5,2997,5],[2984,1,2997,1],[2970,5,2983,5],[2970,1,2983,1],[2956,5,2969,5],[2956,1,2969,1],[2942,5,2955,5],[2942,1,2955,1],[2928,5,2941,5],[2928,1,2941,1],[2914,5,2927,5],[2914,1,2927,1],[2900,5,2913,5],[2900,1,2913,1],[2886,5,2899,5],[2886,1,2899,1],[2872,5,2885,5],[2872,1,2885,1],[2858,5,2871,5],[2858,1,2871,1],[2844,5,2857,5],[2844,1,2857,1],[2830,5,2843,5],[2830,1,2843,1],[2816,5,2829,5],[2816,1,2829,1],[2802,5,2815,5],[2802,1,2815,1],[2788,5,2801,5],[2788,1,2801,1],[2774,5,2787,5],[2774,1,2787,1],[2760,5,2773,5],[2760,1,2773,1],[2746,5,2759,5],[2746,1,2759,1],[2732,5,2745,5],[2732,1,2745,1],[2718,5,2731,5],[2718,1,2731,1],[2704,5,2717,5],[2704,1,2717,1],[2690,5,2703,5],[2690,1,2703,1],[2676,5,2689,5],[2676,1,2689,1],[2662,5,2675,5],[2662,1,2675,1],[2648,5,2661,5],[2648,1,2661,1],[2634,5,2647,5],[2634,1,2647,1],[2620,5,2633,5],[2620,1,2633,1],[2606,5,2619,5],[2606,1,2619,1],[2592,5,2605,5],[2592,1,2605,1],[2578,5,2591,5],[2578,1,2591,1],[2564,5,2577,5],[2564,1,2577,1],[2550,5,2563,5],[2550,1,2563,1],[2536,5,2549,5],[2536,1,2549,1],[2522,5,2535,5],[2522,1,2535,1],[2508,5,2521,5],[2508,1,2521,1],[2494,5,2507,5],[2494,1,2507,1],[2480,5,2493,5],[2480,1,2493,1],[2466,5,2479,5],[2466,1,2479,1],[2452,5,2465,5],[2452,1,2465,1],[2438,5,2451,5],[2438,1,2451,1],[2424,5,2437,5],[2424,1,2437,1],[2410,5,2423,5],[2410,1,2423,1],[2396,5,2409,5],[2396,1,2409,1],[2382,5,2395,5],[2382,1,2395,1],[2368,5,2381,5],[2368,1,2381,1],[2354,5,2367,5],[2354,1,2367,1],[2340,5,2353,5],[2340,1,2353,1],[2326,5,2339,5],[2326,1,2339,1],[2312,5,2325,5],[2312,1,2325,1],[2298,5,2311,5],[2298,1,2311,1],[2284,5,2297,5],[2284,1,2297,1],[2270,5,2283,5],[2270,1,2283,1],[2256,5,2269,5],[2256,1,2269,1],[2242,5,2255,5],[2242,1,2255,1],[2228,5,2241,5],[2228,1,2241,1],[2214,5,2227,5],[2214,1,2227,1],[2200,5,2213,5],[2200,1,2213,1],[2186,5,2199,5],[2186,1,2199,1],[2172,5,2185,5],[2172,1,2185,1],[2158,5,2171,5],[2158,1,2171,1],[2144,5,2157,5],[2144,1,2157,1],[2130,5,2143,5],[2130,1,2143,1],[2116,5,2129,5],[2116,1,2129,1],[2102,5,2115,5],[2102,1,2115,1],[2088,5,2101,5],[2088,1,2101,1],[2074,5,2087,5],[2074,1,2087,1],[2060,5,2073,5],[2060,1,2073,1],[2046,5,2059,5],[2046,1,2059,1],[2032,5,2045,5],[2032,1,2045,1],[2018,5,2031,5],[2018,1,2031,1],[2004,5,2017,5],[2004,1,2017,1],[1990,5,2003,5],[1990,1,2003,1],[1976,5,1989,5],[1976,1,1989,1],[1962,5,1975,5],[1962,1,1975,1],[1948,5,1961,5],[1948,1,1961,1],[1934,5,1947,5],[1934,1,1947,1],[1920,5,1933,5],[1920,1,1933,1],[1906,5,1919,5],[1906,1,1919,1],[1892,5,1905,5],[1892,1,1905,1],[1878,5,1891,5],[1878,1,1891,1],[1864,5,1877,5],[1864,1,1877,1],[1850,5,1863,5],[1850,1,1863,1],[1836,5,1849,5],[1836,1,1849,1],[1822,5,1835,5],[1822,1,1835,1],[1808,5,1821,5],[1808,1,1821,1],[1794,5,1807,5],[1794,1,1807,1],[1780,5,1793,5],[1780,1,1793,1],[1766,5,1779,5],[1766,1,1779,1],[1752,5,1765,5],[1752,1,1765,1],[1738,5,1751,5],[1738,1,1751,1],[1724,5,1737,5],[1724,1,1737,1],[1710,5,1723,5],[1710,1,1723,1],[1696,5,1709,5],[1696,1,1709,1],[1682,5,1695,5],[1682,1,1695,1],[1668,5,1681,5],[1668,1,1681,1],[1654,5,1667,5],[1654,1,1667,1],[1570,5,1583,5],[1570,1,1583,1],[1556,5,1569,5],[1556,1,1569,1],[1542,5,1555,5],[1542,1,1555,1],[1528,5,1541,5],[1528,1,1541,1],[1514,5,1527,5],[1514,1,1527,1],[1500,5,1513,5],[1500,1,1513,1],[1486,5,1499,5],[1486,1,1499,1],[1472,5,1485,5],[1472,1,1485,1],[1458,5,1471,5],[1458,1,1471,1],[1444,5,1457,5],[1444,1,1457,1],[1430,5,1443,5],[1430,1,1443,1],[1416,5,1429,5],[1416,1,1429,1],[1402,5,1415,5],[1402,1,1415,1],[1388,5,1401,5],[1388,1,1401,1],[1374,5,1387,5],[1374,1,1387,1],[1360,5,1373,5],[1360,1,1373,1],[1346,5,1359,5],[1346,1,1359,1],[1332,5,1345,5],[1332,1,1345,1],[1318,5,1331,5],[1318,1,1331,1],[1304,5,1317,5],[1304,1,1317,1],[1290,5,1303,5],[1290,1,1303,1],[1276,5,1289,5],[1276,1,1289,1],[1262,5,1275,5],[1262,1,1275,1],[1248,5,1261,5],[1248,1,1261,1],[1234,5,1247,5],[1234,1,1247,1],[1220,5,1233,5],[1220,1,1233,1],[1206,5,1219,5],[1206,1,1219,1],[1192,5,1205,5],[1192,1,1205,1],[1178,5,1191,5],[1178,1,1191,1],[1164,5,1177,5],[1164,1,1177,1],[1150,5,1163,5],[1150,1,1163,1],[1136,5,1149,5],[1136,1,1149,1],[1122,5,1135,5],[1122,1,1135,1],[1108,5,1121,5],[1108,1,1121,1],[1094,5,1107,5],[1094,1,1107,1],[1080,5,1093,5],[1080,1,1093,1],[1066,5,1079,5],[1066,1,1079,1],[1052,5,1065,5],[1052,1,1065,1],[1038,5,1051,5],[1038,1,1051,1],[1024,5,1037,5],[1024,1,1037,1],[1010,5,1023,5],[1010,1,1023,1],[996,5,1009,5],[996,1,1009,1],[982,5,995,5],[982,1,995,1],[968,5,981,5],[968,1,981,1],[954,5,967,5],[954,1,967,1],[940,5,953,5],[940,1,953,1],[926,5,939,5],[926,1,939,1],[912,5,925,5],[912,1,925,1],[898,5,911,5],[898,1,911,1],[884,5,897,5],[884,1,897,1],[870,5,883,5],[870,1,883,1],[856,5,869,5],[856,1,869,1],[842,5,855,5],[842,1,855,1],[828,5,841,5],[828,1,841,1],[814,5,827,5],[814,1,827,1],[800,5,813,5],[800,1,813,1],[786,5,799,5],[786,1,799,1],[772,5,785,5],[772,1,785,1],[758,5,771,5],[758,1,771,1],[744,5,757,5],[744,1,757,1],[730,5,743,5],[730,1,743,1],[716,5,729,5],[716,1,729,1],[702,5,715,5],[702,1,715,1],[688,5,701,5],[688,1,701,1],[674,5,687,5],[674,1,687,1],[660,5,673,5],[660,1,673,1],[646,5,659,5],[646,1,659,1],[632,5,645,5],[632,1,645,1],[618,5,631,5],[618,1,631,1],[604,5,617,5],[604,1,617,1],[590,5,603,5],[590,1,603,1],[576,5,589,5]],"merged_total":1074,"flags":["merged_cut"]}
[null,null,"2016-06-10"]
[null,{"$f":"PROPER(TEXT(C1,\"jjjj j mmmm aaaa\")) &\" - Caisse 1\"","v":"Vendredi 10 Juin 2016 - Caisse 1"}]
[null,1,"MINERALES",null,{"$f":"VLOOKUP(C3,Fichier,3,0)*D3","v":0},{"$f":"SUM(E3:E16)","v":0},"Payé","à rendre"]
[null,null,"BIÈRE",null,0,null,0,{"$f":"G4-F3","v":0}]
[null,null,"CAFE / THE",null,0]
[null,null,"VIN AU VERRE",null,0]
[null,null,"BOUTEILLE VIN BLANC",null,0]
[null,null,"BOUTEILLE VIN ROUGE",null,0]
[null,null,"COUPE CHAMPAGNE",null,0]
[null,null,"BOUTEILLE CHAMPAGNE",null,0]
[null,null,"COUPE CLAIRETTE",null,0]
[null,null,"BOUTEILLE CLAIRETTE",null,0]
[null,null,"SANDWICHES",null,0]
[null,null,"GÂTEAUX",null,0]
[null,null,"SAUCISSE SUR ARDOISE ",null,0]
[null,null,"ASSIETTE FROIDE / CRUDITES",null,0]
[null,2,"MINERALES",null,0,{"$f":"SUM(E17:E30)","v":0},"Payé","à rendre"]
[null,null,"BIÈRE",null,0,null,0,{"$f":"G18-F17","v":0}]
[null,null,"CAFE / THE",null,0]
[null,null,"VIN AU VERRE",null,0]
[null,null,"BOUTEILLE VIN BLANC",null,0]
[null,null,"BOUTEILLE VIN ROUGE",null,0]
[null,null,"COUPE CHAMPAGNE",null,0]
[null,null,"BOUTEILLE CHAMPAGNE",null,0]
[null,null,"COUPE CLAIRETTE",null,0]
[null,null,"BOUTEILLE CLAIRETTE",null,0]
[null,null,"SANDWICHES",null,0]
[null,null,"GÂTEAUX",null,0]
[null,null,"SAUCISSE SUR ARDOISE ",null,0]
[null,null,"ASSIETTE FROIDE / CRUDITES",null,{"$f":"VLOOKUP(C30,Fichier,3,0)*D30","v":0}]
[null,3,"MINERALES",null,0,{"$f":"SUM(E31:E44)","v":0},"Payé","à rendre"]
[null,null,"BIÈRE",null,0,null,0,{"$f":"G32-F31","v":0}]
[null,null,"CAFE / THE",null,0]
[null,null,"VIN AU VERRE",null,{"$f":"VLOOKUP(C34,Fichier,3,0)*D34","v":0}]
[null,null,"BOUTEILLE VIN BLANC",null,0]
[null,null,"BOUTEILLE VIN ROUGE",null,0]
[null,null,"COUPE CHAMPAGNE",null,{"$f":"VLOOKUP(C37,Fichier,3,0)*D37","v":0}]
[null,null,"BOUTEILLE CHAMPAGNE",null,0]
[null,null,"COUPE CLAIRETTE",null,0]
[null,null,"BOUTEILLE CLAIRETTE",null,0]
[null,null,"SANDWICHES",null,0]
[null,null,"GÂTEAUX",null,0]
[null,null,"SAUCISSE SUR ARDOISE ",null,0]
[null,null,"ASSIETTE FROIDE / CRUDITES",null,0]
[null,4,"MINERALES",null,0,{"$f":"SUM(E45:E58)","v":0},"Payé","à rendre"]
[null,null,"BIÈRE",null,0,null,0,{"$f":"G46-F45","v":0}]
[null,null,"CAFE / THE",null,0]
[null,null,"VIN AU VERRE",null,0]
[null,null,"BOUTEILLE VIN BLANC",null,0]
[null,null,"BOUTEILLE VIN ROUGE",null,0]
[null,null,"COUPE CHAMPAGNE",null,0]
[null,null,"BOUTEILLE CHAMPAGNE",null,0]
[null,null,"COUPE CLAIRETTE",null,0]
[null,null,"BOUTEILLE CLAIRETTE",null,0]
[null,null,"SANDWICHES",null,0]
[null,null,"GÂTEAUX",null,0]
[null,null,"SAUCISSE SUR ARDOISE ",null,0]
[null,null,"ASSIETTE FROIDE / CRUDITES",null,0]
[null,5,"MINERALES",null,0,{"$f":"SUM(E59:E72)","v":0},"Payé","à rendre"]
[null,null,"BIÈRE",null,0,null,0,{"$f":"G60-F59","v":0}]
[null,null,"CAFE / THE",null,0]
[null,null,"VIN AU VERRE",null,0]
[null,null,"BOUTEILLE VIN BLANC",null,0]
[null,null,"BOUTEILLE VIN ROUGE",null,0]
[null,null,"COUPE CHAMPAGNE",null,0]
[null,null,"BOUTEILLE CHAMPAGNE",null,0]
[null,null,"COUPE CLAIRETTE",null,0]
[null,null,"BOUTEILLE CLAIRETTE",null,0]
[null,null,"SANDWICHES",null,0]
[null,null,"GÂTEAUX",null,0]
[null,null,"SAUCISSE SUR ARDOISE ",null,{"$f":"VLOOKUP(C71,Fichier,3,0)*D71","v":0}]
[null,null,"ASSIETTE FROIDE / CRUDITES",null,0]
[null,6,"MINERALES",null,0,{"$f":"SUM(E73:E86)","v":0},"Payé","à rendre"]
[null,null,"BIÈRE",null,0,null,0,{"$f":"G74-F73","v":0}]
[null,null,"CAFE / THE",null,0]
[null,null,"VIN AU VERRE",null,0]
[null,null,"BOUTEILLE VIN BLANC",null,0]
[null,null,"BOUTEILLE VIN ROUGE",null,0]
[null,null,"COUPE CHAMPAGNE",null,0]
[null,null,"BOUTEILLE CHAMPAGNE",null,0]
[null,null,"COUPE CLAIRETTE",null,0]
[null,null,"BOUTEILLE CLAIRETTE",null,0]
[null,null,"SANDWICHES",null,0]
[null,null,"GÂTEAUX",null,0]
[null,null,"SAUCISSE SUR ARDOISE ",null,0]
[null,null,"ASSIETTE FROIDE / CRUDITES",null,0]
[null,7,"MINERALES",null,0,{"$f":"SUM(E87:E100)","v":0},"Payé","à rendre"]
[null,null,"BIÈRE",null,0,null,0,{"$f":"G88-F87","v":0}]
[null,null,"CAFE / THE",null,0]
[null,null,"VIN AU VERRE",null,0]
[null,null,"BOUTEILLE VIN BLANC",null,0]
[null,null,"BOUTEILLE VIN ROUGE",null,0]
[null,null,"COUPE CHAMPAGNE",null,0]
[null,null,"BOUTEILLE CHAMPAGNE",null,0]
[null,null,"COUPE CLAIRETTE",null,0]
[null,null,"BOUTEILLE CLAIRETTE",null,0]
[null,null,"SANDWICHES",null,0]
[null,null,"GÂTEAUX",null,0]
[null,null,"SAUCISSE SUR ARDOISE ",null,0]
[null,null,"ASSIETTE FROIDE / CRUDITES",null,0]
[null,8,"MINERALES",null,0,{"$f":"SUM(E101:E114)","v":0},"Payé","à rendre"]
[null,null,"BIÈRE",null,0,null,0,{"$f":"G102-F101","v":0}]
[null,null,"CAFE / THE",null,0]
[null,null,"VIN AU VERRE",null,0]
[null,null,"BOUTEILLE VIN BLANC",null,0]
[null,null,"BOUTEILLE VIN ROUGE",null,0]
[null,null,"COUPE CHAMPAGNE",null,0]
[null,null,"BOUTEILLE CHAMPAGNE",null,0]
[null,null,"COUPE CLAIRETTE",null,0]
[null,null,"BOUTEILLE CLAIRETTE",null,0]
[null,null,"SANDWICHES",null,0]
[null,null,"GÂTEAUX",null,0]
[null,null,"SAUCISSE SUR ARDOISE ",null,0]
[null,null,"ASSIETTE FROIDE / CRUDITES",null,0]
[null,9,"MINERALES",null,0,{"$f":"SUM(E115:E128)","v":0},"Payé","à rendre"]
[null,null,"BIÈRE",null,0,null,0,{"$f":"G116-F115","v":0}]
[null,null,"CAFE / THE",null,0]
[null,null,"VIN AU VERRE",null,0]
[null,null,"BOUTEILLE VIN BLANC",null,0]
[null,null,"BOUTEILLE VIN ROUGE",null,0]
[null,null,"COUPE CHAMPAGNE",null,0]
[null,null,"BOUTEILLE CHAMPAGNE",null,0]
[null,null,"COUPE CLAIRETTE",null,0]
[null,null,"BOUTEILLE CLAIRETTE",null,0]
[null,null,"SANDWICHES",null,0]
[null,null,"GÂTEAUX",null,0]
[null,null,"SAUCISSE SUR ARDOISE ",null,0]
[null,null,"ASSIETTE FROIDE / CRUDITES",null,0]
[null,10,"MINERALES",null,0,{"$f":"SUM(E129:E142)","v":0},"Payé","à rendre"]
[null,null,"BIÈRE",null,0,null,0,{"$f":"G130-F129","v":0}]
[null,null,"CAFE / THE",null,0]
[null,null,"VIN AU VERRE",null,0]
[null,null,"BOUTEILLE VIN BLANC",null,0]
[null,null,"BOUTEILLE VIN ROUGE",null,0]
[null,null,"COUPE CHAMPAGNE",null,0]
[null,null,"BOUTEILLE CHAMPAGNE",null,0]
[null,null,"COUPE CLAIRETTE",null,0]
[null,null,"BOUTEILLE CLAIRETTE",null,0]
[null,null,"SANDWICHES",null,0]
[null,null,"GÂTEAUX",null,{"$f":"VLOOKUP(C140,Fichier,3,0)*D140","v":0}]
[null,null,"SAUCISSE SUR ARDOISE ",null,0]
[null,null,"ASSIETTE FROIDE / CRUDITES",null,0]
[null,11,"MINERALES",null,0,{"$f":"SUM(E143:E156)","v":0},"Payé","à rendre"]
[null,null,"BIÈRE",null,0,null,0,{"$f":"G144-F143","v":0}]
[null,null,"CAFE / THE",null,0]
[null,null,"VIN AU VERRE",null,0]
[null,null,"BOUTEILLE VIN BLANC",null,0]
[null,null,"BOUTEILLE VIN ROUGE",null,0]
[null,null,"COUPE CHAMPAGNE",null,0]
[null,null,"BOUTEILLE CHAMPAGNE",null,0]
[null,null,"COUPE CLAIRETTE",null,0]
[null,null,"BOUTEILLE CLAIRETTE",null,0]
[null,null,"SANDWICHES",null,0]
[null,null,"GÂTEAUX",null,0]
[null,null,"SAUCISSE SUR ARDOISE ",null,0]
[null,null,"ASSIETTE FROIDE / CRUDITES",null,0]
[null,12,"MINERALES",null,0,{"$f":"SUM(E157:E170)","v":0},"Payé","à rendre"]
[null,null,"BIÈRE",null,0,null,0,{"$f":"G158-F157","v":0}]
[null,null,"CAFE / THE",null,0]
[null,null,"VIN AU VERRE",null,0]
[null,null,"BOUTEILLE VIN BLANC",null,0]
[null,null,"BOUTEILLE VIN ROUGE",null,0]
[null,null,"COUPE CHAMPAGNE",null,0]
[null,null,"BOUTEILLE CHAMPAGNE",null,0]
[null,null,"COUPE CLAIRETTE",null,0]
[null,null,"BOUTEILLE CLAIRETTE",null,0]
[null,null,"SANDWICHES",null,0]
[null,null,"GÂTEAUX",null,0]
[null,null,"SAUCISSE SUR ARDOISE ",null,0]
[null,null,"ASSIETTE FROIDE / CRUDITES",null,0]
[null,13,"MINERALES",null,0,{"$f":"SUM(E171:E184)","v":0},"Payé","à rendre"]
[null,null,"BIÈRE",null,0,null,0,{"$f":"G172-F171","v":0}]
[null,null,"CAFE / THE",null,0]
[null,null,"VIN AU VERRE",null,0]
[null,null,"BOUTEILLE VIN BLANC",null,0]
[null,null,"BOUTEILLE VIN ROUGE",null,0]
[null,null,"COUPE CHAMPAGNE",null,0]
[null,null,"BOUTEILLE CHAMPAGNE",null,0]
[null,null,"COUPE CLAIRETTE",null,0]
[null,null,"BOUTEILLE CLAIRETTE",null,0]
[null,null,"SANDWICHES",null,0]
[null,null,"GÂTEAUX",null,0]
[null,null,"SAUCISSE SUR ARDOISE ",null,0]
[null,null,"ASSIETTE FROIDE / CRUDITES",null,0]
[null,14,"MINERALES",null,0,{"$f":"SUM(E185:E198)","v":0},"Payé","à rendre"]
[null,null,"BIÈRE",null,0,null,0,{"$f":"G186-F185","v":0}]
[null,null,"CAFE / THE",null,0]
[null,null,"VIN AU VERRE",null,0]
[null,null,"BOUTEILLE VIN BLANC",null,0]
[null,null,"BOUTEILLE VIN ROUGE",null,0]
[null,null,"COUPE CHAMPAGNE",null,0]
[null,null,"BOUTEILLE CHAMPAGNE",null,0]
[null,null,"COUPE CLAIRETTE",null,0]
[null,null,"BOUTEILLE CLAIRETTE",null,0]
[null,null,"SANDWICHES",null,0]
[null,null,"GÂTEAUX",null,0]
[null,null,"SAUCISSE SUR ARDOISE ",null,0]
[null,null,"ASSIETTE FROIDE / CRUDITES",null,0]
[null,15,"MINERALES",null,0,{"$f":"SUM(E199:E212)","v":0},"Payé","à rendre"]
[null,null,"BIÈRE",null,0,null,0,{"$f":"G200-F199","v":0}]
[null,null,"CAFE / THE",null,0]
[null,null,"VIN AU VERRE",null,0]
[null,null,"BOUTEILLE VIN BLANC",null,0]
[null,null,"BOUTEILLE VIN ROUGE",null,0]
[null,null,"COUPE CHAMPAGNE",null,0]
[null,null,"BOUTEILLE CHAMPAGNE",null,0]
[null,null,"COUPE CLAIRETTE",null,0]
[null,null,"BOUTEILLE CLAIRETTE",null,0]
[null,null,"SANDWICHES",null,{"$f":"VLOOKUP(C209,Fichier,3,0)*D209","v":0}]
[null,null,"GÂTEAUX",null,0]
[null,null,"SAUCISSE SUR ARDOISE ",null,0]
[null,null,"ASSIETTE FROIDE / CRUDITES",null,0]
[null,16,"MINERALES",null,0,{"$f":"SUM(E213:E226)","v":0},"Payé","à rendre"]
[null,null,"BIÈRE",null,0,null,0,{"$f":"G214-F213","v":0}]
[null,null,"CAFE / THE",null,0]
[null,null,"VIN AU VERRE",null,0]
[null,null,"BOUTEILLE VIN BLANC",null,0]
[null,null,"BOUTEILLE VIN ROUGE",null,0]
[null,null,"COUPE CHAMPAGNE",null,0]
[null,null,"BOUTEILLE CHAMPAGNE",null,0]
[null,null,"COUPE CLAIRETTE",null,0]
[null,null,"BOUTEILLE CLAIRETTE",null,0]
[null,null,"SANDWICHES",null,0]
[null,null,"GÂTEAUX",null,0]
[null,null,"SAUCISSE SUR ARDOISE ",null,0]
[null,null,"ASSIETTE FROIDE / CRUDITES",null,0]
[null,17,"MINERALES",null,0,{"$f":"SUM(E227:E240)","v":0},"Payé","à rendre"]
[null,null,"BIÈRE",null,0,null,0,{"$f":"G228-F227","v":0}]
[null,null,"CAFE / THE",null,0]
[null,null,"VIN AU VERRE",null,0]
[null,null,"BOUTEILLE VIN BLANC",null,0]
[null,null,"BOUTEILLE VIN ROUGE",null,0]
[null,null,"COUPE CHAMPAGNE",null,0]
[null,null,"BOUTEILLE CHAMPAGNE",null,0]
[null,null,"COUPE CLAIRETTE",null,0]
[null,null,"BOUTEILLE CLAIRETTE",null,0]
[null,null,"SANDWICHES",null,0]
[null,null,"GÂTEAUX",null,0]
[null,null,"SAUCISSE SUR ARDOISE ",null,0]
[null,null,"ASSIETTE FROIDE / CRUDITES",null,0]
[null,18,"MINERALES",null,0,{"$f":"SUM(E241:E254)","v":0},"Payé","à rendre"]
[null,null,"BIÈRE",null,0,null,0,{"$f":"G242-F241","v":0}]
[null,null,"CAFE / THE",null,0]
[null,null,"VIN AU VERRE",null,0]
[null,null,"BOUTEILLE VIN BLANC",null,0]
[null,null,"BOUTEILLE VIN ROUGE",null,0]
[null,null,"COUPE CHAMPAGNE",null,0]
[null,null,"BOUTEILLE CHAMPAGNE",null,0]
[null,null,"COUPE CLAIRETTE",null,0]
[null,null,"BOUTEILLE CLAIRETTE",null,0]
[null,null,"SANDWICHES",null,0]
[null,null,"GÂTEAUX",null,0]
[null,null,"SAUCISSE SUR ARDOISE ",null,0]
[null,null,"ASSIETTE FROIDE / CRUDITES",null,0]
[null,19,"MINERALES",null,0,{"$f":"SUM(E255:E268)","v":0},"Payé","à rendre"]
[null,null,"BIÈRE",null,0,null,0,{"$f":"G256-F255","v":0}]
[null,null,"CAFE / THE",null,0]
[null,null,"VIN AU VERRE",null,0]
[null,null,"BOUTEILLE VIN BLANC",null,0]
[null,null,"BOUTEILLE VIN ROUGE",null,0]
[null,null,"COUPE CHAMPAGNE",null,0]
[null,null,"BOUTEILLE CHAMPAGNE",null,0]
[null,null,"COUPE CLAIRETTE",null,0]
[null,null,"BOUTEILLE CLAIRETTE",null,0]
[null,null,"SANDWICHES",null,0]
[null,null,"GÂTEAUX",null,0]
[null,null,"SAUCISSE SUR ARDOISE ",null,0]
[null,null,"ASSIETTE FROIDE / CRUDITES",null,0]
[null,20,"MINERALES",null,0,{"$f":"SUM(E269:E282)","v":0},"Payé","à rendre"]
[null,null,"BIÈRE",null,0,null,0,{"$f":"G270-F269","v":0}]
[null,null,"CAFE / THE",null,0]
[null,null,"VIN AU VERRE",null,0]
[null,null,"BOUTEILLE VIN BLANC",null,0]
[null,null,"BOUTEILLE VIN ROUGE",null,0]
[null,null,"COUPE CHAMPAGNE",null,0]
[null,null,"BOUTEILLE CHAMPAGNE",null,0]
[null,null,"COUPE CLAIRETTE",null,0]
[null,null,"BOUTEILLE CLAIRETTE",null,{"$f":"VLOOKUP(C278,Fichier,3,0)*D278","v":0}]
[null,null,"SANDWICHES",null,0]
[null,null,"GÂTEAUX",null,0]
[null,null,"SAUCISSE SUR ARDOISE ",null,0]
[null,null,"ASSIETTE FROIDE / CRUDITES",null,0]
[null,21,"MINERALES",null,0,{"$f":"SUM(E283:E296)","v":0},"Payé","à rendre"]
[null,null,"BIÈRE",null,0,null,0,{"$f":"G284-F283","v":0}]
[null,null,"CAFE / THE",null,0]
[null,null,"VIN AU VERRE",null,0]
[null,null,"BOUTEILLE VIN BLANC",null,0]
[null,null,"BOUTEILLE VIN ROUGE",null,0]
[null,null,"COUPE CHAMPAGNE",null,0]
[null,null,"BOUTEILLE CHAMPAGNE",null,0]
[null,null,"COUPE CLAIRETTE",null,0]
[null,null,"BOUTEILLE CLAIRETTE",null,0]
[null,null,"SANDWICHES",null,0]
[null,null,"GÂTEAUX",null,0]
[null,null,"SAUCISSE SUR ARDOISE ",null,0]
[null,null,"ASSIETTE FROIDE / CRUDITES",null,0]
[null,22,"MINERALES",null,0,{"$f":"SUM(E297:E310)","v":0},"Payé","à rendre"]
[null,null,"BIÈRE",null,0,null,0,{"$f":"G298-F297","v":0}]
[null,null,"CAFE / THE",null,0]
[null,null,"VIN AU VERRE",null,0]
[null,null,"BOUTEILLE VIN BLANC",null,0]
[null,null,"BOUTEILLE VIN ROUGE",null,0]
[null,null,"COUPE CHAMPAGNE",null,0]
[null,null,"BOUTEILLE CHAMPAGNE",null,0]
[null,null,"COUPE CLAIRETTE",null,0]
[null,null,"BOUTEILLE CLAIRETTE",null,0]
[null,null,"SANDWICHES",null,0]
[null,null,"GÂTEAUX",null,0]
[null,null,"SAUCISSE SUR ARDOISE ",null,0]
[null,null,"ASSIETTE FROIDE / CRUDITES",null,0]
[null,23,"MINERALES",null,0,{"$f":"SUM(E311:E324)","v":0},"Payé","à rendre"]
[null,null,"BIÈRE",null,0,null,0,{"$f":"G312-F311","v":0}]
[null,null,"CAFE / THE",null,0]
[null,null,"VIN AU VERRE",null,0]
[null,null,"BOUTEILLE VIN BLANC",null,0]
[null,null,"BOUTEILLE VIN ROUGE",null,0]
[null,null,"COUPE CHAMPAGNE",null,0]
[null,null,"BOUTEILLE CHAMPAGNE",null,0]
[null,null,"COUPE CLAIRETTE",null,0]
[null,null,"BOUTEILLE CLAIRETTE",null,0]
[null,null,"SANDWICHES",null,0]
[null,null,"GÂTEAUX",null,0]
[null,null,"SAUCISSE SUR ARDOISE ",null,0]
[null,null,"ASSIETTE FROIDE / CRUDITES",null,0]
[null,24,"MINERALES",null,0,{"$f":"SUM(E325:E338)","v":0},"Payé","à rendre"]
[null,null,"BIÈRE",null,0,null,0,{"$f":"G326-F325","v":0}]
[null,null,"CAFE / THE",null,0]
[null,null,"VIN AU VERRE",null,0]
[null,null,"BOUTEILLE VIN BLANC",null,0]
[null,null,"BOUTEILLE VIN ROUGE",null,0]
[null,null,"COUPE CHAMPAGNE",null,0]
[null,null,"BOUTEILLE CHAMPAGNE",null,0]
[null,null,"COUPE CLAIRETTE",null,0]
[null,null,"BOUTEILLE CLAIRETTE",null,0]
[null,null,"SANDWICHES",null,0]
[null,null,"GÂTEAUX",null,0]
[null,null,"SAUCISSE SUR ARDOISE ",null,0]
[null,null,"ASSIETTE FROIDE / CRUDITES",null,0]
[null,25,"MINERALES",null,0,{"$f":"SUM(E339:E352)","v":0},"Payé","à rendre"]
[null,null,"BIÈRE",null,0,null,0,{"$f":"G340-F339","v":0}]
[null,null,"CAFE / THE",null,0]
[null,null,"VIN AU VERRE",null,0]
[null,null,"BOUTEILLE VIN BLANC",null,0]
[null,null,"BOUTEILLE VIN ROUGE",null,0]
[null,null,"COUPE CHAMPAGNE",null,0]
[null,null,"BOUTEILLE CHAMPAGNE",null,0]
[null,null,"COUPE CLAIRETTE",null,{"$f":"VLOOKUP(C347,Fichier,3,0)*D347","v":0}]
[null,null,"BOUTEILLE CLAIRETTE",null,0]
[null,null,"SANDWICHES",null,0]
[null,null,"GÂTEAUX",null,0]
[null,null,"SAUCISSE SUR ARDOISE ",null,0]
[null,null,"ASSIETTE FROIDE / CRUDITES",null,0]
[null,26,"MINERALES",null,0,{"$f":"SUM(E353:E366)","v":0},"Payé","à rendre"]
[null,null,"BIÈRE",null,0,null,0,{"$f":"G354-F353","v":0}]
[null,null,"CAFE / THE",null,0]
[null,null,"VIN AU VERRE",null,0]
[null,null,"BOUTEILLE VIN BLANC",null,0]
[null,null,"BOUTEILLE VIN ROUGE",null,0]
[null,null,"COUPE CHAMPAGNE",null,0]
[null,null,"BOUTEILLE CHAMPAGNE",null,0]
[null,null,"COUPE CLAIRETTE",null,0]
[null,null,"BOUTEILLE CLAIRETTE",null,0]
[null,null,"SANDWICHES",null,0]
[null,null,"GÂTEAUX",null,0]
[null,null,"SAUCISSE SUR ARDOISE ",null,0]
[null,null,"ASSIETTE FROIDE / CRUDITES",null,0]
[null,27,"MINERALES",null,0,{"$f":"SUM(E367:E380)","v":0},"Payé","à rendre"]
[null,null,"BIÈRE",null,0,null,0,{"$f":"G368-F367","v":0}]
[null,null,"CAFE / THE",null,0]
[null,null,"VIN AU VERRE",null,0]
[null,null,"BOUTEILLE VIN BLANC",null,0]
[null,null,"BOUTEILLE VIN ROUGE",null,0]
[null,null,"COUPE CHAMPAGNE",null,0]
[null,null,"BOUTEILLE CHAMPAGNE",null,0]
[null,null,"COUPE CLAIRETTE",null,0]
[null,null,"BOUTEILLE CLAIRETTE",null,0]
[null,null,"SANDWICHES",null,0]
[null,null,"GÂTEAUX",null,0]
[null,null,"SAUCISSE SUR ARDOISE ",null,0]
[null,null,"ASSIETTE FROIDE / CRUDITES",null,0]
[null,28,"MINERALES",null,0,{"$f":"SUM(E381:E394)","v":0},"Payé","à rendre"]
[null,null,"BIÈRE",null,0,null,0,{"$f":"G382-F381","v":0}]
[null,null,"CAFE / THE",null,0]
[null,null,"VIN AU VERRE",null,0]
[null,null,"BOUTEILLE VIN BLANC",null,0]
[null,null,"BOUTEILLE VIN ROUGE",null,0]
[null,null,"COUPE CHAMPAGNE",null,0]
[null,null,"BOUTEILLE CHAMPAGNE",null,0]
[null,null,"COUPE CLAIRETTE",null,0]
[null,null,"BOUTEILLE CLAIRETTE",null,0]
[null,null,"SANDWICHES",null,0]
[null,null,"GÂTEAUX",null,0]
[null,null,"SAUCISSE SUR ARDOISE ",null,0]
[null,null,"ASSIETTE FROIDE / CRUDITES",null,0]
[null,29,"MINERALES",null,0,{"$f":"SUM(E395:E408)","v":0},"Payé","à rendre"]
[null,null,"BIÈRE",null,0,null,0,{"$f":"G396-F395","v":0}]
[null,null,"CAFE / THE",null,0]
[null,null,"VIN AU VERRE",null,0]
[null,null,"BOUTEILLE VIN BLANC",null,0]
[null,null,"BOUTEILLE VIN ROUGE",null,0]
[null,null,"COUPE CHAMPAGNE",null,0]
[null,null,"BOUTEILLE CHAMPAGNE",null,0]
[null,null,"COUPE CLAIRETTE",null,0]
[null,null,"BOUTEILLE CLAIRETTE",null,0]
[null,null,"SANDWICHES",null,0]
[null,null,"GÂTEAUX",null,0]
[null,null,"SAUCISSE SUR ARDOISE ",null,0]
[null,null,"ASSIETTE FROIDE / CRUDITES",null,0]
[null,30,"MINERALES",null,0,{"$f":"SUM(E409:E422)","v":0},"Payé","à rendre"]
[null,null,"BIÈRE",null,0,null,0,{"$f":"G410-F409","v":0}]
[null,null,"CAFE / THE",null,0]
[null,null,"VIN AU VERRE",null,0]
[null,null,"BOUTEILLE VIN BLANC",null,0]
[null,null,"BOUTEILLE VIN ROUGE",null,0]
[null,null,"COUPE CHAMPAGNE",null,0]
[null,null,"BOUTEILLE CHAMPAGNE",null,{"$f":"VLOOKUP(C416,Fichier,3,0)*D416","v":0}]
[null,null,"COUPE CLAIRETTE",null,0]
[null,null,"BOUTEILLE CLAIRETTE",null,0]
[null,null,"SANDWICHES",null,0]
[null,null,"GÂTEAUX",null,0]
[null,null,"SAUCISSE SUR ARDOISE ",null,0]
[null,null,"ASSIETTE FROIDE / CRUDITES",null,0]
[null,31,"MINERALES",null,0,{"$f":"SUM(E423:E436)","v":0},"Payé","à rendre"]
[null,null,"BIÈRE",null,0,null,0,{"$f":"G424-F423","v":0}]
[null,null,"CAFE / THE",null,0]
[null,null,"VIN AU VERRE",null,0]
[null,null,"BOUTEILLE VIN BLANC",null,0]
[null,null,"BOUTEILLE VIN ROUGE",null,0]
[null,null,"COUPE CHAMPAGNE",null,0]
[null,null,"BOUTEILLE CHAMPAGNE",null,0]
[null,null,"COUPE CLAIRETTE",null,0]
[null,null,"BOUTEILLE CLAIRETTE",null,0]
[null,null,"SANDWICHES",null,0]
[null,null,"GÂTEAUX",null,0]
[null,null,"SAUCISSE SUR ARDOISE ",null,0]
[null,null,"ASSIETTE FROIDE / CRUDITES",null,0]
[null,32,"MINERALES",null,0,{"$f":"SUM(E437:E450)","v":0},"Payé","à rendre"]
[null,null,"BIÈRE",null,0,null,0,{"$f":"G438-F437","v":0}]
[null,null,"CAFE / THE",null,0]
[null,null,"VIN AU VERRE",null,0]
[null,null,"BOUTEILLE VIN BLANC",null,0]
[null,null,"BOUTEILLE VIN ROUGE",null,0]
[null,null,"COUPE CHAMPAGNE",null,0]
[null,null,"BOUTEILLE CHAMPAGNE",null,0]
[null,null,"COUPE CLAIRETTE",null,0]
[null,null,"BOUTEILLE CLAIRETTE",null,0]
[null,null,"SANDWICHES",null,0]
[null,null,"GÂTEAUX",null,0]
[null,null,"SAUCISSE SUR ARDOISE ",null,0]
[null,null,"ASSIETTE FROIDE / CRUDITES",null,0]
[null,33,"MINERALES",null,0,{"$f":"SUM(E451:E464)","v":0},"Payé","à rendre"]
[null,null,"BIÈRE",null,0,null,0,{"$f":"G452-F451","v":0}]
[null,null,"CAFE / THE",null,0]
[null,null,"VIN AU VERRE",null,0]
[null,null,"BOUTEILLE VIN BLANC",null,0]
[null,null,"BOUTEILLE VIN ROUGE",null,0]
[null,null,"COUPE CHAMPAGNE",null,0]
[null,null,"BOUTEILLE CHAMPAGNE",null,0]
[null,null,"COUPE CLAIRETTE",null,0]
[null,null,"BOUTEILLE CLAIRETTE",null,0]
[null,null,"SANDWICHES",null,0]
[null,null,"GÂTEAUX",null,0]
[null,null,"SAUCISSE SUR ARDOISE ",null,0]
[null,null,"ASSIETTE FROIDE / CRUDITES",null,0]
[null,34,"MINERALES",null,0,{"$f":"SUM(E465:E478)","v":0},"Payé","à rendre"]
[null,null,"BIÈRE",null,0,null,0,{"$f":"G466-F465","v":0}]
[null,null,"CAFE / THE",null,0]
[null,null,"VIN AU VERRE",null,0]
[null,null,"BOUTEILLE VIN BLANC",null,0]
[null,null,"BOUTEILLE VIN ROUGE",null,0]
[null,null,"COUPE CHAMPAGNE",null,0]
[null,null,"BOUTEILLE CHAMPAGNE",null,0]
[null,null,"COUPE CLAIRETTE",null,0]
[null,null,"BOUTEILLE CLAIRETTE",null,0]
[null,null,"SANDWICHES",null,0]
[null,null,"GÂTEAUX",null,0]
[null,null,"SAUCISSE SUR ARDOISE ",null,0]
[null,null,"ASSIETTE FROIDE / CRUDITES",null,0]
[null,35,"MINERALES",null,0,{"$f":"SUM(E479:E492)","v":0},"Payé","à rendre"]
[null,null,"BIÈRE",null,0,null,0,{"$f":"G480-F479","v":0}]
[null,null,"CAFE / THE",null,0]
[null,null,"VIN AU VERRE",null,0]
[null,null,"BOUTEILLE VIN BLANC",null,0]
[null,null,"BOUTEILLE VIN ROUGE",null,0]
[null,null,"COUPE CHAMPAGNE",null,{"$f":"VLOOKUP(C485,Fichier,3,0)*D485","v":0}]
[null,null,"BOUTEILLE CHAMPAGNE",null,0]
[null,null,"COUPE CLAIRETTE",null,0]
[null,null,"BOUTEILLE CLAIRETTE",null,0]
[null,null,"SANDWICHES",null,0]
[null,null,"GÂTEAUX",null,0]
[null,null,"SAUCISSE SUR ARDOISE ",null,0]
[null,null,"ASSIETTE FROIDE / CRUDITES",null,0]
[null,36,"MINERALES",null,0,{"$f":"SUM(E493:E506)","v":0},"Payé","à rendre"]
[null,null,"BIÈRE",null,0,null,0,{"$f":"G494-F493","v":0}]
[null,null,"CAFE / THE",null,0]
[null,null,"VIN AU VERRE",null,0]
[null,null,"BOUTEILLE VIN BLANC",null,0]
[null,null,"BOUTEILLE VIN ROUGE",null,0]
[null,null,"COUPE CHAMPAGNE",null,0]
[null,null,"BOUTEILLE CHAMPAGNE",null,0]
[null,null,"COUPE CLAIRETTE",null,0]
[null,null,"BOUTEILLE CLAIRETTE",null,0]
[null,null,"SANDWICHES",null,0]
[null,null,"GÂTEAUX",null,0]
[null,null,"SAUCISSE SUR ARDOISE ",null,0]
[null,null,"ASSIETTE FROIDE / CRUDITES",null,0]
[null,37,"MINERALES",null,0,{"$f":"SUM(E507:E520)","v":0},"Payé","à rendre"]
[null,null,"BIÈRE",null,0,null,0,{"$f":"G508-F507","v":0}]
[null,null,"CAFE / THE",null,0]
[null,null,"VIN AU VERRE",null,0]
[null,null,"BOUTEILLE VIN BLANC",null,0]
[null,null,"BOUTEILLE VIN ROUGE",null,0]
[null,null,"COUPE CHAMPAGNE",null,0]
[null,null,"BOUTEILLE CHAMPAGNE",null,0]
[null,null,"COUPE CLAIRETTE",null,0]
[null,null,"BOUTEILLE CLAIRETTE",null,0]
[null,null,"SANDWICHES",null,0]
[null,null,"GÂTEAUX",null,0]
[null,null,"SAUCISSE SUR ARDOISE ",null,0]
[null,null,"ASSIETTE FROIDE / CRUDITES",null,0]
[null,38,"MINERALES",null,0,{"$f":"SUM(E521:E534)","v":0},"Payé","à rendre"]
[null,null,"BIÈRE",null,0,null,0,{"$f":"G522-F521","v":0}]
[null,null,"CAFE / THE",null,0]
[null,null,"VIN AU VERRE",null,0]
[null,null,"BOUTEILLE VIN BLANC",null,0]
[null,null,"BOUTEILLE VIN ROUGE",null,0]
[null,null,"COUPE CHAMPAGNE",null,0]
[null,null,"BOUTEILLE CHAMPAGNE",null,0]
[null,null,"COUPE CLAIRETTE",null,0]
[null,null,"BOUTEILLE CLAIRETTE",null,0]
[null,null,"SANDWICHES",null,0]
[null,null,"GÂTEAUX",null,0]
[null,null,"SAUCISSE SUR ARDOISE ",null,0]
[null,null,"ASSIETTE FROIDE / CRUDITES",null,0]
[null,39,"MINERALES",null,0,{"$f":"SUM(E535:E548)","v":0},"Payé","à rendre"]
[null,null,"BIÈRE",null,0,null,0,{"$f":"G536-F535","v":0}]
[null,null,"CAFE / THE",null,0]
[null,null,"VIN AU VERRE",null,0]
[null,null,"BOUTEILLE VIN BLANC",null,0]
[null,null,"BOUTEILLE VIN ROUGE",null,0]
[null,null,"COUPE CHAMPAGNE",null,0]
[null,null,"BOUTEILLE CHAMPAGNE",null,0]
[null,null,"COUPE CLAIRETTE",null,0]
[null,null,"BOUTEILLE CLAIRETTE",null,0]
[null,null,"SANDWICHES",null,0]
[null,null,"GÂTEAUX",null,0]
[null,null,"SAUCISSE SUR ARDOISE ",null,0]
[null,null,"ASSIETTE FROIDE / CRUDITES",null,0]
[null,40,"MINERALES",null,0,{"$f":"SUM(E549:E562)","v":0},"Payé","à rendre"]
[null,null,"BIÈRE",null,0,null,0,{"$f":"G550-F549","v":0}]
[null,null,"CAFE / THE",null,0]
[null,null,"VIN AU VERRE",null,0]
[null,null,"BOUTEILLE VIN BLANC",null,0]
[null,null,"BOUTEILLE VIN ROUGE",null,{"$f":"VLOOKUP(C554,Fichier,3,0)*D554","v":0}]
[null,null,"COUPE CHAMPAGNE",null,0]
[null,null,"BOUTEILLE CHAMPAGNE",null,0]
[null,null,"COUPE CLAIRETTE",null,0]
[null,null,"BOUTEILLE CLAIRETTE",null,0]
[null,null,"SANDWICHES",null,0]
[null,null,"GÂTEAUX",null,0]
[null,null,"SAUCISSE SUR ARDOISE ",null,0]
[null,null,"ASSIETTE FROIDE / CRUDITES",null,0]
[null,41,"MINERALES",null,0,{"$f":"SUM(E563:E576)","v":0},"Payé","à rendre"]
[null,null,"BIÈRE",null,0,null,0,{"$f":"G564-F563","v":0}]
[null,null,"CAFE / THE",null,0]
[null,null,"VIN AU VERRE",null,0]
[null,null,"BOUTEILLE VIN BLANC",null,0]
[null,null,"BOUTEILLE VIN ROUGE",null,0]
[null,null,"COUPE CHAMPAGNE",null,0]
[null,null,"BOUTEILLE CHAMPAGNE",null,0]
[null,null,"COUPE CLAIRETTE",null,0]
[null,null,"BOUTEILLE CLAIRETTE",null,0]
[null,null,"SANDWICHES",null,0]
[null,null,"GÂTEAUX",null,0]
[null,null,"SAUCISSE SUR ARDOISE ",null,0]
[null,null,"ASSIETTE FROIDE / CRUDITES",null,0]
[null,42,"MINERALES",null,0,{"$f":"SUM(E577:E590)","v":0},"Payé","à rendre"]
[null,null,"BIÈRE",null,0,null,0,{"$f":"G578-F577","v":0}]
[null,null,"CAFE / THE",null,0]
[null,null,"VIN AU VERRE",null,0]
[null,null,"BOUTEILLE VIN BLANC",null,0]
[null,null,"BOUTEILLE VIN ROUGE",null,0]
[null,null,"COUPE CHAMPAGNE",null,0]
[null,null,"BOUTEILLE CHAMPAGNE",null,0]
[null,null,"COUPE CLAIRETTE",null,0]
[null,null,"BOUTEILLE CLAIRETTE",null,0]
[null,null,"SANDWICHES",null,0]
[null,null,"GÂTEAUX",null,0]
[null,null,"SAUCISSE SUR ARDOISE ",null,0]
[null,null,"ASSIETTE FROIDE / CRUDITES",null,0]
[null,43,"MINERALES",null,0,{"$f":"SUM(E591:E604)","v":0},"Payé","à rendre"]
[null,null,"BIÈRE",null,0,null,0,{"$f":"G592-F591","v":0}]
[null,null,"CAFE / THE",null,0]
[null,null,"VIN AU VERRE",null,0]
[null,null,"BOUTEILLE VIN BLANC",null,0]
[null,null,"BOUTEILLE VIN ROUGE",null,0]
[null,null,"COUPE CHAMPAGNE",null,0]
[null,null,"BOUTEILLE CHAMPAGNE",null,0]
[null,null,"COUPE CLAIRETTE",null,0]
[null,null,"BOUTEILLE CLAIRETTE",null,0]
[null,null,"SANDWICHES",null,0]
[null,null,"GÂTEAUX",null,0]
[null,null,"SAUCISSE SUR ARDOISE ",null,0]
[null,null,"ASSIETTE FROIDE / CRUDITES",null,0]
[null,44,"MINERALES",null,0,{"$f":"SUM(E605:E618)","v":0},"Payé","à rendre"]
[null,null,"BIÈRE",null,0,null,0,{"$f":"G606-F605","v":0}]
[null,null,"CAFE / THE",null,0]
[null,null,"VIN AU VERRE",null,0]
[null,null,"BOUTEILLE VIN BLANC",null,0]
[null,null,"BOUTEILLE VIN ROUGE",null,0]
[null,null,"COUPE CHAMPAGNE",null,0]
[null,null,"BOUTEILLE CHAMPAGNE",null,0]
[null,null,"COUPE CLAIRETTE",null,0]
[null,null,"BOUTEILLE CLAIRETTE",null,0]
[null,null,"SANDWICHES",null,0]
[null,null,"GÂTEAUX",null,0]
[null,null,"SAUCISSE SUR ARDOISE ",null,0]
[null,null,"ASSIETTE FROIDE / CRUDITES",null,0]
[null,45,"MINERALES",null,0,{"$f":"SUM(E619:E632)","v":0},"Payé","à rendre"]
[null,null,"BIÈRE",null,0,null,0,{"$f":"G620-F619","v":0}]
[null,null,"CAFE / THE",null,0]
[null,null,"VIN AU VERRE",null,0]
[null,null,"BOUTEILLE VIN BLANC",null,{"$f":"VLOOKUP(C623,Fichier,3,0)*D623","v":0}]
[null,null,"BOUTEILLE VIN ROUGE",null,0]
[null,null,"COUPE CHAMPAGNE",null,0]
[null,null,"BOUTEILLE CHAMPAGNE",null,0]
[null,null,"COUPE CLAIRETTE",null,0]
[null,null,"BOUTEILLE CLAIRETTE",null,0]
[null,null,"SANDWICHES",null,0]
[null,null,"GÂTEAUX",null,0]
[null,null,"SAUCISSE SUR ARDOISE ",null,0]
[null,null,"ASSIETTE FROIDE / CRUDITES",null,0]
[null,46,"MINERALES",null,0,{"$f":"SUM(E633:E646)","v":0},"Payé","à rendre"]
[null,null,"BIÈRE",null,0,null,0,{"$f":"G634-F633","v":0}]
[null,null,"CAFE / THE",null,0]
[null,null,"VIN AU VERRE",null,0]
[null,null,"BOUTEILLE VIN BLANC",null,0]
[null,null,"BOUTEILLE VIN ROUGE",null,0]
[null,null,"COUPE CHAMPAGNE",null,0]
[null,null,"BOUTEILLE CHAMPAGNE",null,0]
[null,null,"COUPE CLAIRETTE",null,0]
[null,null,"BOUTEILLE CLAIRETTE",null,0]
[null,null,"SANDWICHES",null,0]
[null,null,"GÂTEAUX",null,0]
[null,null,"SAUCISSE SUR ARDOISE ",null,0]
[null,null,"ASSIETTE FROIDE / CRUDITES",null,0]
[null,47,"MINERALES",null,0,{"$f":"SUM(E647:E660)","v":0},"Payé","à rendre"]
[null,null,"BIÈRE",null,0,null,0,{"$f":"G648-F647","v":0}]
[null,null,"CAFE / THE",null,0]
[null,null,"VIN AU VERRE",null,0]
[null,null,"BOUTEILLE VIN BLANC",null,0]
[null,null,"BOUTEILLE VIN ROUGE",null,0]
[null,null,"COUPE CHAMPAGNE",null,0]
[null,null,"BOUTEILLE CHAMPAGNE",null,0]
[null,null,"COUPE CLAIRETTE",null,0]
[null,null,"BOUTEILLE CLAIRETTE",null,0]
[null,null,"SANDWICHES",null,0]
[null,null,"GÂTEAUX",null,0]
[null,null,"SAUCISSE SUR ARDOISE ",null,0]
[null,null,"ASSIETTE FROIDE / CRUDITES",null,0]
[null,48,"MINERALES",null,0,{"$f":"SUM(E661:E674)","v":0},"Payé","à rendre"]
[null,null,"BIÈRE",null,0,null,0,{"$f":"G662-F661","v":0}]
[null,null,"CAFE / THE",null,0]
[null,null,"VIN AU VERRE",null,0]
[null,null,"BOUTEILLE VIN BLANC",null,0]
[null,null,"BOUTEILLE VIN ROUGE",null,0]
[null,null,"COUPE CHAMPAGNE",null,0]
[null,null,"BOUTEILLE CHAMPAGNE",null,0]
[null,null,"COUPE CLAIRETTE",null,0]
[null,null,"BOUTEILLE CLAIRETTE",null,0]
[null,null,"SANDWICHES",null,0]
[null,null,"GÂTEAUX",null,0]
[null,null,"SAUCISSE SUR ARDOISE ",null,0]
[null,null,"ASSIETTE FROIDE / CRUDITES",null,0]
[null,49,"MINERALES",null,0,{"$f":"SUM(E675:E688)","v":0},"Payé","à rendre"]
[null,null,"BIÈRE",null,0,null,0,{"$f":"G676-F675","v":0}]
[null,null,"CAFE / THE",null,0]
[null,null,"VIN AU VERRE",null,0]
[null,null,"BOUTEILLE VIN BLANC",null,0]
[null,null,"BOUTEILLE VIN ROUGE",null,0]
[null,null,"COUPE CHAMPAGNE",null,0]
[null,null,"BOUTEILLE CHAMPAGNE",null,0]
[null,null,"COUPE CLAIRETTE",null,0]
[null,null,"BOUTEILLE CLAIRETTE",null,0]
[null,null,"SANDWICHES",null,0]
[null,null,"GÂTEAUX",null,0]
[null,null,"SAUCISSE SUR ARDOISE ",null,0]
[null,null,"ASSIETTE FROIDE / CRUDITES",null,0]
[null,50,"MINERALES",null,0,{"$f":"SUM(E689:E702)","v":0},"Payé","à rendre"]
[null,null,"BIÈRE",null,0,null,0,{"$f":"G690-F689","v":0}]
[null,null,"CAFE / THE",null,0]
[null,null,"VIN AU VERRE",null,{"$f":"VLOOKUP(C692,Fichier,3,0)*D692","v":0}]
[null,null,"BOUTEILLE VIN BLANC",null,0]
[null,null,"BOUTEILLE VIN ROUGE",null,0]
[null,null,"COUPE CHAMPAGNE",null,0]
[null,null,"BOUTEILLE CHAMPAGNE",null,0]
[null,null,"COUPE CLAIRETTE",null,0]
[null,null,"BOUTEILLE CLAIRETTE",null,0]
[null,null,"SANDWICHES",null,0]
[null,null,"GÂTEAUX",null,0]
[null,null,"SAUCISSE SUR ARDOISE ",null,0]
[null,null,"ASSIETTE FROIDE / CRUDITES",null,0]
[null,51,"MINERALES",null,0,{"$f":"SUM(E703:E716)","v":0},"Payé","à rendre"]
[null,null,"BIÈRE",null,0,null,0,{"$f":"G704-F703","v":0}]
[null,null,"CAFE / THE",null,0]
[null,null,"VIN AU VERRE",null,0]
[null,null,"BOUTEILLE VIN BLANC",null,0]
[null,null,"BOUTEILLE VIN ROUGE",null,0]
[null,null,"COUPE CHAMPAGNE",null,0]
[null,null,"BOUTEILLE CHAMPAGNE",null,0]
[null,null,"COUPE CLAIRETTE",null,0]
[null,null,"BOUTEILLE CLAIRETTE",null,0]
[null,null,"SANDWICHES",null,0]
[null,null,"GÂTEAUX",null,0]
[null,null,"SAUCISSE SUR ARDOISE ",null,0]
[null,null,"ASSIETTE FROIDE / CRUDITES",null,0]
[null,52,"MINERALES",null,0,{"$f":"SUM(E717:E730)","v":0},"Payé","à rendre"]
[null,null,"BIÈRE",null,0,null,0,{"$f":"G718-F717","v":0}]
[null,null,"CAFE / THE",null,0]
[null,null,"VIN AU VERRE",null,0]
[null,null,"BOUTEILLE VIN BLANC",null,0]
[null,null,"BOUTEILLE VIN ROUGE",null,0]
[null,null,"COUPE CHAMPAGNE",null,0]
[null,null,"BOUTEILLE CHAMPAGNE",null,0]
[null,null,"COUPE CLAIRETTE",null,0]
[null,null,"BOUTEILLE CLAIRETTE",null,0]
[null,null,"SANDWICHES",null,0]
[null,null,"GÂTEAUX",null,0]
[null,null,"SAUCISSE SUR ARDOISE ",null,0]
[null,null,"ASSIETTE FROIDE / CRUDITES",null,0]
[null,53,"MINERALES",null,0,{"$f":"SUM(E731:E744)","v":0},"Payé","à rendre"]
[null,null,"BIÈRE",null,0,null,0,{"$f":"G732-F731","v":0}]
[null,null,"CAFE / THE",null,0]
[null,null,"VIN AU VERRE",null,0]
[null,null,"BOUTEILLE VIN BLANC",null,0]
[null,null,"BOUTEILLE VIN ROUGE",null,0]
[null,null,"COUPE CHAMPAGNE",null,0]
[null,null,"BOUTEILLE CHAMPAGNE",null,0]
[null,null,"COUPE CLAIRETTE",null,0]
[null,null,"BOUTEILLE CLAIRETTE",null,0]
[null,null,"SANDWICHES",null,0]
[null,null,"GÂTEAUX",null,0]
[null,null,"SAUCISSE SUR ARDOISE ",null,0]
[null,null,"ASSIETTE FROIDE / CRUDITES",null,0]
[null,54,"MINERALES",null,0,{"$f":"SUM(E745:E758)","v":0},"Payé","à rendre"]
[null,null,"BIÈRE",null,0,null,0,{"$f":"G746-F745","v":0}]
[null,null,"CAFE / THE",null,0]
[null,null,"VIN AU VERRE",null,0]
[null,null,"BOUTEILLE VIN BLANC",null,0]
[null,null,"BOUTEILLE VIN ROUGE",null,0]
[null,null,"COUPE CHAMPAGNE",null,0]
[null,null,"BOUTEILLE CHAMPAGNE",null,0]
[null,null,"COUPE CLAIRETTE",null,0]
[null,null,"BOUTEILLE CLAIRETTE",null,0]
[null,null,"SANDWICHES",null,0]
[null,null,"GÂTEAUX",null,0]
[null,null,"SAUCISSE SUR ARDOISE ",null,0]
[null,null,"ASSIETTE FROIDE / CRUDITES",null,0]
[null,55,"MINERALES",null,0,{"$f":"SUM(E759:E772)","v":0},"Payé","à rendre"]
[null,null,"BIÈRE",null,0,null,0,{"$f":"G760-F759","v":0}]
[null,null,"CAFE / THE",null,{"$f":"VLOOKUP(C761,Fichier,3,0)*D761","v":0}]
[null,null,"VIN AU VERRE",null,0]
[null,null,"BOUTEILLE VIN BLANC",null,0]
[null,null,"BOUTEILLE VIN ROUGE",null,0]
[null,null,"COUPE CHAMPAGNE",null,0]
[null,null,"BOUTEILLE CHAMPAGNE",null,0]
[null,null,"COUPE CLAIRETTE",null,0]
[null,null,"BOUTEILLE CLAIRETTE",null,0]
[null,null,"SANDWICHES",null,0]
[null,null,"GÂTEAUX",null,0]
[null,null,"SAUCISSE SUR ARDOISE ",null,0]
[null,null,"ASSIETTE FROIDE / CRUDITES",null,0]
[null,56,"MINERALES",null,0,{"$f":"SUM(E773:E786)","v":0},"Payé","à rendre"]
[null,null,"BIÈRE",null,0,null,0,{"$f":"G774-F773","v":0}]
[null,null,"CAFE / THE",null,0]
[null,null,"VIN AU VERRE",null,0]
[null,null,"BOUTEILLE VIN BLANC",null,0]
[null,null,"BOUTEILLE VIN ROUGE",null,0]
[null,null,"COUPE CHAMPAGNE",null,0]
[null,null,"BOUTEILLE CHAMPAGNE",null,0]
[null,null,"COUPE CLAIRETTE",null,0]
[null,null,"BOUTEILLE CLAIRETTE",null,0]
[null,null,"SANDWICHES",null,0]
[null,null,"GÂTEAUX",null,0]
[null,null,"SAUCISSE SUR ARDOISE ",null,0]
[null,null,"ASSIETTE FROIDE / CRUDITES",null,0]
[null,57,"MINERALES",null,0,{"$f":"SUM(E787:E800)","v":0},"Payé","à rendre"]
[null,null,"BIÈRE",null,0,null,0,{"$f":"G788-F787","v":0}]
[null,null,"CAFE / THE",null,0]
[null,null,"VIN AU VERRE",null,0]
[null,null,"BOUTEILLE VIN BLANC",null,0]
[null,null,"BOUTEILLE VIN ROUGE",null,0]
[null,null,"COUPE CHAMPAGNE",null,0]
[null,null,"BOUTEILLE CHAMPAGNE",null,0]
[null,null,"COUPE CLAIRETTE",null,0]
[null,null,"BOUTEILLE CLAIRETTE",null,0]
[null,null,"SANDWICHES",null,0]
[null,null,"GÂTEAUX",null,0]
[null,null,"SAUCISSE SUR ARDOISE ",null,0]
[null,null,"ASSIETTE FROIDE / CRUDITES",null,0]
[null,58,"MINERALES",null,0,{"$f":"SUM(E801:E814)","v":0},"Payé","à rendre"]
[null,null,"BIÈRE",null,0,null,0,{"$f":"G802-F801","v":0}]
[null,null,"CAFE / THE",null,0]
[null,null,"VIN AU VERRE",null,0]
[null,null,"BOUTEILLE VIN BLANC",null,0]
[null,null,"BOUTEILLE VIN ROUGE",null,0]
[null,null,"COUPE CHAMPAGNE",null,0]
[null,null,"BOUTEILLE CHAMPAGNE",null,0]
[null,null,"COUPE CLAIRETTE",null,0]
[null,null,"BOUTEILLE CLAIRETTE",null,0]
[null,null,"SANDWICHES",null,0]
[null,null,"GÂTEAUX",null,0]
[null,null,"SAUCISSE SUR ARDOISE ",null,0]
[null,null,"ASSIETTE FROIDE / CRUDITES",null,0]
[null,59,"MINERALES",null,0,{"$f":"SUM(E815:E828)","v":0},"Payé","à rendre"]
[null,null,"BIÈRE",null,0,null,0,{"$f":"G816-F815","v":0}]
[null,null,"CAFE / THE",null,0]
[null,null,"VIN AU VERRE",null,0]
[null,null,"BOUTEILLE VIN BLANC",null,0]
[null,null,"BOUTEILLE VIN ROUGE",null,0]
[null,null,"COUPE CHAMPAGNE",null,0]
[null,null,"BOUTEILLE CHAMPAGNE",null,0]
[null,null,"COUPE CLAIRETTE",null,0]
[null,null,"BOUTEILLE CLAIRETTE",null,0]
[null,null,"SANDWICHES",null,0]
[null,null,"GÂTEAUX",null,0]
[null,null,"SAUCISSE SUR ARDOISE ",null,0]
[null,null,"ASSIETTE FROIDE / CRUDITES",null,0]
[null,60,"MINERALES",null,0,{"$f":"SUM(E829:E842)","v":0},"Payé","à rendre"]
[null,null,"BIÈRE",null,{"$f":"VLOOKUP(C830,Fichier,3,0)*D830","v":0},null,0,{"$f":"G830-F829","v":0}]
[null,null,"CAFE / THE",null,0]
[null,null,"VIN AU VERRE",null,0]
[null,null,"BOUTEILLE VIN BLANC",null,0]
[null,null,"BOUTEILLE VIN ROUGE",null,0]
[null,null,"COUPE CHAMPAGNE",null,0]
[null,null,"BOUTEILLE CHAMPAGNE",null,0]
[null,null,"COUPE CLAIRETTE",null,0]
[null,null,"BOUTEILLE CLAIRETTE",null,0]
[null,null,"SANDWICHES",null,0]
[null,null,"GÂTEAUX",null,0]
[null,null,"SAUCISSE SUR ARDOISE ",null,0]
[null,null,"ASSIETTE FROIDE / CRUDITES",null,0]
[null,61,"MINERALES",null,0,{"$f":"SUM(E843:E856)","v":0},"Payé","à rendre"]
[null,null,"BIÈRE",null,0,null,0,{"$f":"G844-F843","v":0}]
[null,null,"CAFE / THE",null,0]
[null,null,"VIN AU VERRE",null,0]
[null,null,"BOUTEILLE VIN BLANC",null,0]
[null,null,"BOUTEILLE VIN ROUGE",null,0]
[null,null,"COUPE CHAMPAGNE",null,0]
[null,null,"BOUTEILLE CHAMPAGNE",null,0]
[null,null,"COUPE CLAIRETTE",null,0]
[null,null,"BOUTEILLE CLAIRETTE",null,0]
[null,null,"SANDWICHES",null,0]
[null,null,"GÂTEAUX",null,0]
[null,null,"SAUCISSE SUR ARDOISE ",null,0]
[null,null,"ASSIETTE FROIDE / CRUDITES",null,0]
[null,62,"MINERALES",null,0,{"$f":"SUM(E857:E870)","v":0},"Payé","à rendre"]
[null,null,"BIÈRE",null,0,null,0,{"$f":"G858-F857","v":0}]
[null,null,"CAFE / THE",null,0]
[null,null,"VIN AU VERRE",null,0]
[null,null,"BOUTEILLE VIN BLANC",null,0]
[null,null,"BOUTEILLE VIN ROUGE",null,0]
[null,null,"COUPE CHAMPAGNE",null,0]
[null,null,"BOUTEILLE CHAMPAGNE",null,0]
[null,null,"COUPE CLAIRETTE",null,0]
[null,null,"BOUTEILLE CLAIRETTE",null,0]
[null,null,"SANDWICHES",null,0]
[null,null,"GÂTEAUX",null,0]
[null,null,"SAUCISSE SUR ARDOISE ",null,0]
[null,null,"ASSIETTE FROIDE / CRUDITES",null,0]
[null,63,"MINERALES",null,0,{"$f":"SUM(E871:E884)","v":0},"Payé","à rendre"]
[null,null,"BIÈRE",null,0,null,0,{"$f":"G872-F871","v":0}]
[null,null,"CAFE / THE",null,0]
[null,null,"VIN AU VERRE",null,0]
[null,null,"BOUTEILLE VIN BLANC",null,0]
[null,null,"BOUTEILLE VIN ROUGE",null,0]
[null,null,"COUPE CHAMPAGNE",null,0]
[null,null,"BOUTEILLE CHAMPAGNE",null,0]
[null,null,"COUPE CLAIRETTE",null,0]
[null,null,"BOUTEILLE CLAIRETTE",null,0]
[null,null,"SANDWICHES",null,0]
[null,null,"GÂTEAUX",null,0]
[null,null,"SAUCISSE SUR ARDOISE ",null,0]
[null,null,"ASSIETTE FROIDE / CRUDITES",null,0]
[null,64,"MINERALES",null,0,{"$f":"SUM(E885:E898)","v":0},"Payé","à rendre"]
[null,null,"BIÈRE",null,0,null,0,{"$f":"G886-F885","v":0}]
[null,null,"CAFE / THE",null,0]
[null,null,"VIN AU VERRE",null,0]
[null,null,"BOUTEILLE VIN BLANC",null,0]
[null,null,"BOUTEILLE VIN ROUGE",null,0]
[null,null,"COUPE CHAMPAGNE",null,0]
[null,null,"BOUTEILLE CHAMPAGNE",null,0]
[null,null,"COUPE CLAIRETTE",null,0]
[null,null,"BOUTEILLE CLAIRETTE",null,0]
[null,null,"SANDWICHES",null,0]
[null,null,"GÂTEAUX",null,0]
[null,null,"SAUCISSE SUR ARDOISE ",null,0]
[null,null,"ASSIETTE FROIDE / CRUDITES",null,0]
[null,65,"MINERALES",null,{"$f":"VLOOKUP(C899,Fichier,3,0)*D899","v":0},{"$f":"SUM(E899:E912)","v":0},"Payé","à rendre"]
[null,null,"BIÈRE",null,0,null,0,{"$f":"G900-F899","v":0}]
[null,null,"CAFE / THE",null,0]
[null,null,"VIN AU VERRE",null,0]
[null,null,"BOUTEILLE VIN BLANC",null,0]
[null,null,"BOUTEILLE VIN ROUGE",null,0]
[null,null,"COUPE CHAMPAGNE",null,0]
[null,null,"BOUTEILLE CHAMPAGNE",null,0]
[null,null,"COUPE CLAIRETTE",null,0]
[null,null,"BOUTEILLE CLAIRETTE",null,0]
[null,null,"SANDWICHES",null,0]
[null,null,"GÂTEAUX",null,0]
[null,null,"SAUCISSE SUR ARDOISE ",null,0]
[null,null,"ASSIETTE FROIDE / CRUDITES",null,0]
[null,66,"MINERALES",null,0,{"$f":"SUM(E913:E926)","v":0},"Payé","à rendre"]
[null,null,"BIÈRE",null,0,null,0,{"$f":"G914-F913","v":0}]
[null,null,"CAFE / THE",null,0]
[null,null,"VIN AU VERRE",null,0]
[null,null,"BOUTEILLE VIN BLANC",null,0]
[null,null,"BOUTEILLE VIN ROUGE",null,0]
[null,null,"COUPE CHAMPAGNE",null,0]
[null,null,"BOUTEILLE CHAMPAGNE",null,0]
[null,null,"COUPE CLAIRETTE",null,0]
[null,null,"BOUTEILLE CLAIRETTE",null,0]
[null,null,"SANDWICHES",null,0]
[null,null,"GÂTEAUX",null,0]
[null,null,"SAUCISSE SUR ARDOISE ",null,0]
[null,null,"ASSIETTE FROIDE / CRUDITES",null,0]
[null,67,"MINERALES",null,0,{"$f":"SUM(E927:E940)","v":0},"Payé","à rendre"]
[null,null,"BIÈRE",null,0,null,0,{"$f":"G928-F927","v":0}]
[null,null,"CAFE / THE",null,0]
[null,null,"VIN AU VERRE",null,0]
[null,null,"BOUTEILLE VIN BLANC",null,0]
[null,null,"BOUTEILLE VIN ROUGE",null,0]
[null,null,"COUPE CHAMPAGNE",null,0]
[null,null,"BOUTEILLE CHAMPAGNE",null,0]
[null,null,"COUPE CLAIRETTE",null,0]
[null,null,"BOUTEILLE CLAIRETTE",null,0]
[null,null,"SANDWICHES",null,0]
[null,null,"GÂTEAUX",null,0]
[null,null,"SAUCISSE SUR ARDOISE ",null,0]
[null,null,"ASSIETTE FROIDE / CRUDITES",null,0]
[null,68,"MINERALES",null,0,{"$f":"SUM(E941:E954)","v":0},"Payé","à rendre"]
[null,null,"BIÈRE",null,0,null,0,{"$f":"G942-F941","v":0}]
[null,null,"CAFE / THE",null,0]
[null,null,"VIN AU VERRE",null,0]
[null,null,"BOUTEILLE VIN BLANC",null,0]
[null,null,"BOUTEILLE VIN ROUGE",null,0]
[null,null,"COUPE CHAMPAGNE",null,0]
[null,null,"BOUTEILLE CHAMPAGNE",null,0]
[null,null,"COUPE CLAIRETTE",null,0]
[null,null,"BOUTEILLE CLAIRETTE",null,0]
[null,null,"SANDWICHES",null,0]
[null,null,"GÂTEAUX",null,0]
[null,null,"SAUCISSE SUR ARDOISE ",null,0]
[null,null,"ASSIETTE FROIDE / CRUDITES",null,0]
[null,69,"MINERALES",null,0,{"$f":"SUM(E955:E968)","v":0},"Payé","à rendre"]
[null,null,"BIÈRE",null,0,null,0,{"$f":"G956-F955","v":0}]
[null,null,"CAFE / THE",null,0]
[null,null,"VIN AU VERRE",null,0]
[null,null,"BOUTEILLE VIN BLANC",null,0]
[null,null,"BOUTEILLE VIN ROUGE",null,0]
[null,null,"COUPE CHAMPAGNE",null,0]
[null,null,"BOUTEILLE CHAMPAGNE",null,0]
[null,null,"COUPE CLAIRETTE",null,0]
[null,null,"BOUTEILLE CLAIRETTE",null,0]
[null,null,"SANDWICHES",null,0]
[null,null,"GÂTEAUX",null,0]
[null,null,"SAUCISSE SUR ARDOISE ",null,{"$f":"VLOOKUP(C967,Fichier,3,0)*D967","v":0}]
[null,null,"ASSIETTE FROIDE / CRUDITES",null,0]
[null,70,"MINERALES",null,0,{"$f":"SUM(E969:E982)","v":0},"Payé","à rendre"]
[null,null,"BIÈRE",null,0,null,0,{"$f":"G970-F969","v":0}]
[null,null,"CAFE / THE",null,0]
[null,null,"VIN AU VERRE",null,0]
[null,null,"BOUTEILLE VIN BLANC",null,0]
[null,null,"BOUTEILLE VIN ROUGE",null,0]
[null,null,"COUPE CHAMPAGNE",null,0]
[null,null,"BOUTEILLE CHAMPAGNE",null,0]
[null,null,"COUPE CLAIRETTE",null,0]
[null,null,"BOUTEILLE CLAIRETTE",null,0]
[null,null,"SANDWICHES",null,0]
[null,null,"GÂTEAUX",null,0]
[null,null,"SAUCISSE SUR ARDOISE ",null,0]
[null,null,"ASSIETTE FROIDE / CRUDITES",null,0]
[null,71,"MINERALES",null,0,{"$f":"SUM(E983:E996)","v":0},"Payé","à rendre"]
[null,null,"BIÈRE",null,0,null,0,{"$f":"G984-F983","v":0}]
[null,null,"CAFE / THE",null,0]
[null,null,"VIN AU VERRE",null,0]
[null,null,"BOUTEILLE VIN BLANC",null,0]
[null,null,"BOUTEILLE VIN ROUGE",null,0]
[null,null,"COUPE CHAMPAGNE",null,0]
[null,null,"BOUTEILLE CHAMPAGNE",null,0]
[null,null,"COUPE CLAIRETTE",null,0]
[null,null,"BOUTEILLE CLAIRETTE",null,0]
[null,null,"SANDWICHES",null,0]
[null,null,"GÂTEAUX",null,0]
[null,null,"SAUCISSE SUR ARDOISE ",null,0]
[null,null,"ASSIETTE FROIDE / CRUDITES",null,0]
[null,72,"MINERALES",null,0,{"$f":"SUM(E997:E1010)","v":0},"Payé","à rendre"]
[null,null,"BIÈRE",null,0,null,0,{"$f":"G998-F997","v":0}]
[null,null,"CAFE / THE",null,0]
[null,null,"VIN AU VERRE",null,0]
[null,null,"BOUTEILLE VIN BLANC",null,0]
[null,null,"BOUTEILLE VIN ROUGE",null,0]
[null,null,"COUPE CHAMPAGNE",null,0]
[null,null,"BOUTEILLE CHAMPAGNE",null,0]
[null,null,"COUPE CLAIRETTE",null,0]
[null,null,"BOUTEILLE CLAIRETTE",null,0]
[null,null,"SANDWICHES",null,0]
[null,null,"GÂTEAUX",null,0]
[null,null,"SAUCISSE SUR ARDOISE ",null,0]
[null,null,"ASSIETTE FROIDE / CRUDITES",null,0]
[null,73,"MINERALES",null,0,{"$f":"SUM(E1011:E1024)","v":0},"Payé","à rendre"]
[null,null,"BIÈRE",null,0,null,0,{"$f":"G1012-F1011","v":0}]
[null,null,"CAFE / THE",null,0]
[null,null,"VIN AU VERRE",null,0]
[null,null,"BOUTEILLE VIN BLANC",null,0]
[null,null,"BOUTEILLE VIN ROUGE",null,0]
[null,null,"COUPE CHAMPAGNE",null,0]
[null,null,"BOUTEILLE CHAMPAGNE",null,0]
[null,null,"COUPE CLAIRETTE",null,0]
[null,null,"BOUTEILLE CLAIRETTE",null,0]
[null,null,"SANDWICHES",null,0]
[null,null,"GÂTEAUX",null,0]
[null,null,"SAUCISSE SUR ARDOISE ",null,0]
[null,null,"ASSIETTE FROIDE / CRUDITES",null,0]
[null,74,"MINERALES",null,0,{"$f":"SUM(E1025:E1038)","v":0},"Payé","à rendre"]
[null,null,"BIÈRE",null,0,null,0,{"$f":"G1026-F1025","v":0}]
[null,null,"CAFE / THE",null,0]
[null,null,"VIN AU VERRE",null,0]
[null,null,"BOUTEILLE VIN BLANC",null,0]
[null,null,"BOUTEILLE VIN ROUGE",null,0]
[null,null,"COUPE CHAMPAGNE",null,0]
[null,null,"BOUTEILLE CHAMPAGNE",null,0]
[null,null,"COUPE CLAIRETTE",null,0]
[null,null,"BOUTEILLE CLAIRETTE",null,0]
[null,null,"SANDWICHES",null,0]
[null,null,"GÂTEAUX",null,{"$f":"VLOOKUP(C1036,Fichier,3,0)*D1036","v":0}]
[null,null,"SAUCISSE SUR ARDOISE ",null,0]
[null,null,"ASSIETTE FROIDE / CRUDITES",null,0]
[null,75,"MINERALES",null,0,{"$f":"SUM(E1039:E1052)","v":0},"Payé","à rendre"]
[null,null,"BIÈRE",null,0,null,0,{"$f":"G1040-F1039","v":0}]
[null,null,"CAFE / THE",null,0]
[null,null,"VIN AU VERRE",null,0]
[null,null,"BOUTEILLE VIN BLANC",null,0]
[null,null,"BOUTEILLE VIN ROUGE",null,0]
[null,null,"COUPE CHAMPAGNE",null,0]
[null,null,"BOUTEILLE CHAMPAGNE",null,0]
[null,null,"COUPE CLAIRETTE",null,0]
[null,null,"BOUTEILLE CLAIRETTE",null,0]
[null,null,"SANDWICHES",null,0]
[null,null,"GÂTEAUX",null,0]
[null,null,"SAUCISSE SUR ARDOISE ",null,0]
[null,null,"ASSIETTE FROIDE / CRUDITES",null,0]
[null,76,"MINERALES",null,0,{"$f":"SUM(E1053:E1066)","v":0},"Payé","à rendre"]
[null,null,"BIÈRE",null,0,null,0,{"$f":"G1054-F1053","v":0}]
[null,null,"CAFE / THE",null,0]
[null,null,"VIN AU VERRE",null,0]
[null,null,"BOUTEILLE VIN BLANC",null,0]
[null,null,"BOUTEILLE VIN ROUGE",null,0]
[null,null,"COUPE CHAMPAGNE",null,0]
[null,null,"BOUTEILLE CHAMPAGNE",null,0]
[null,null,"COUPE CLAIRETTE",null,0]
[null,null,"BOUTEILLE CLAIRETTE",null,0]
[null,null,"SANDWICHES",null,0]
[null,null,"GÂTEAUX",null,0]
[null,null,"SAUCISSE SUR ARDOISE ",null,0]
[null,null,"ASSIETTE FROIDE / CRUDITES",null,0]
[null,77,"MINERALES",null,0,{"$f":"SUM(E1067:E1080)","v":0},"Payé","à rendre"]
[null,null,"BIÈRE",null,0,null,0,{"$f":"G1068-F1067","v":0}]
[null,null,"CAFE / THE",null,0]
[null,null,"VIN AU VERRE",null,0]
[null,null,"BOUTEILLE VIN BLANC",null,0]
[null,null,"BOUTEILLE VIN ROUGE",null,0]
[null,null,"COUPE CHAMPAGNE",null,0]
[null,null,"BOUTEILLE CHAMPAGNE",null,0]
[null,null,"COUPE CLAIRETTE",null,0]
[null,null,"BOUTEILLE CLAIRETTE",null,0]
[null,null,"SANDWICHES",null,0]
[null,null,"GÂTEAUX",null,0]
[null,null,"SAUCISSE SUR ARDOISE ",null,0]
[null,null,"ASSIETTE FROIDE / CRUDITES",null,0]
[null,78,"MINERALES",null,0,{"$f":"SUM(E1081:E1094)","v":0},"Payé","à rendre"]
[null,null,"BIÈRE",null,0,null,0,{"$f":"G1082-F1081","v":0}]
[null,null,"CAFE / THE",null,0]
[null,null,"VIN AU VERRE",null,0]
[null,null,"BOUTEILLE VIN BLANC",null,0]
[null,null,"BOUTEILLE VIN ROUGE",null,0]
[null,null,"COUPE CHAMPAGNE",null,0]
[null,null,"BOUTEILLE CHAMPAGNE",null,0]
[null,null,"COUPE CLAIRETTE",null,0]
[null,null,"BOUTEILLE CLAIRETTE",null,0]
[null,null,"SANDWICHES",null,0]
[null,null,"GÂTEAUX",null,0]
[null,null,"SAUCISSE SUR ARDOISE ",null,0]
[null,null,"ASSIETTE FROIDE / CRUDITES",null,0]
[null,79,"MINERALES",null,0,{"$f":"SUM(E1095:E1108)","v":0},"Payé","à rendre"]
[null,null,"BIÈRE",null,0,null,0,{"$f":"G1096-F1095","v":0}]
[null,null,"CAFE / THE",null,0]
[null,null,"VIN AU VERRE",null,0]
[null,null,"BOUTEILLE VIN BLANC",null,0]
[null,null,"BOUTEILLE VIN ROUGE",null,0]
[null,null,"COUPE CHAMPAGNE",null,0]
[null,null,"BOUTEILLE CHAMPAGNE",null,0]
[null,null,"COUPE CLAIRETTE",null,0]
[null,null,"BOUTEILLE CLAIRETTE",null,0]
[null,null,"SANDWICHES",null,{"$f":"VLOOKUP(C1105,Fichier,3,0)*D1105","v":0}]
[null,null,"GÂTEAUX",null,0]
[null,null,"SAUCISSE SUR ARDOISE ",null,0]
[null,null,"ASSIETTE FROIDE / CRUDITES",null,0]
[null,80,"MINERALES",null,0,{"$f":"SUM(E1109:E1122)","v":0},"Payé","à rendre"]
[null,null,"BIÈRE",null,0,null,0,{"$f":"G1110-F1109","v":0}]
[null,null,"CAFE / THE",null,0]
[null,null,"VIN AU VERRE",null,0]
[null,null,"BOUTEILLE VIN BLANC",null,0]
[null,null,"BOUTEILLE VIN ROUGE",null,0]
[null,null,"COUPE CHAMPAGNE",null,0]
[null,null,"BOUTEILLE CHAMPAGNE",null,0]
[null,null,"COUPE CLAIRETTE",null,0]
[null,null,"BOUTEILLE CLAIRETTE",null,0]
[null,null,"SANDWICHES",null,0]
[null,null,"GÂTEAUX",null,0]
[null,null,"SAUCISSE SUR ARDOISE ",null,0]
[null,null,"ASSIETTE FROIDE / CRUDITES",null,0]
[null,81,"MINERALES",null,0,{"$f":"SUM(E1123:E1136)","v":0},"Payé","à rendre"]
[null,null,"BIÈRE",null,0,null,0,{"$f":"G1124-F1123","v":0}]
[null,null,"CAFE / THE",null,0]
[null,null,"VIN AU VERRE",null,0]
[null,null,"BOUTEILLE VIN BLANC",null,0]
[null,null,"BOUTEILLE VIN ROUGE",null,0]
[null,null,"COUPE CHAMPAGNE",null,0]
[null,null,"BOUTEILLE CHAMPAGNE",null,0]
[null,null,"COUPE CLAIRETTE",null,0]
[null,null,"BOUTEILLE CLAIRETTE",null,0]
[null,null,"SANDWICHES",null,0]
[null,null,"GÂTEAUX",null,0]
[null,null,"SAUCISSE SUR ARDOISE ",null,0]
[null,null,"ASSIETTE FROIDE / CRUDITES",null,0]
[null,82,"MINERALES",null,0,{"$f":"SUM(E1137:E1150)","v":0},"Payé","à rendre"]
[null,null,"BIÈRE",null,0,null,0,{"$f":"G1138-F1137","v":0}]
[null,null,"CAFE / THE",null,0]
[null,null,"VIN AU VERRE",null,0]
[null,null,"BOUTEILLE VIN BLANC",null,0]
[null,null,"BOUTEILLE VIN ROUGE",null,0]
[null,null,"COUPE CHAMPAGNE",null,0]
[null,null,"BOUTEILLE CHAMPAGNE",null,0]
[null,null,"COUPE CLAIRETTE",null,0]
[null,null,"BOUTEILLE CLAIRETTE",null,0]
[null,null,"SANDWICHES",null,0]
[null,null,"GÂTEAUX",null,0]
[null,null,"SAUCISSE SUR ARDOISE ",null,0]
[null,null,"ASSIETTE FROIDE / CRUDITES",null,0]
[null,83,"MINERALES",null,0,{"$f":"SUM(E1151:E1164)","v":0},"Payé","à rendre"]
[null,null,"BIÈRE",null,0,null,0,{"$f":"G1152-F1151","v":0}]
[null,null,"CAFE / THE",null,0]
[null,null,"VIN AU VERRE",null,0]
[null,null,"BOUTEILLE VIN BLANC",null,0]
[null,null,"BOUTEILLE VIN ROUGE",null,0]
[null,null,"COUPE CHAMPAGNE",null,0]
[null,null,"BOUTEILLE CHAMPAGNE",null,0]
[null,null,"COUPE CLAIRETTE",null,0]
[null,null,"BOUTEILLE CLAIRETTE",null,0]
[null,null,"SANDWICHES",null,0]
[null,null,"GÂTEAUX",null,0]
[null,null,"SAUCISSE SUR ARDOISE ",null,0]
[null,null,"ASSIETTE FROIDE / CRUDITES",null,0]
[null,84,"MINERALES",null,0,{"$f":"SUM(E1165:E1178)","v":0},"Payé","à rendre"]
[null,null,"BIÈRE",null,0,null,0,{"$f":"G1166-F1165","v":0}]
[null,null,"CAFE / THE",null,0]
[null,null,"VIN AU VERRE",null,0]
[null,null,"BOUTEILLE VIN BLANC",null,0]
[null,null,"BOUTEILLE VIN ROUGE",null,0]
[null,null,"COUPE CHAMPAGNE",null,0]
[null,null,"BOUTEILLE CHAMPAGNE",null,0]
[null,null,"COUPE CLAIRETTE",null,0]
[null,null,"BOUTEILLE CLAIRETTE",null,{"$f":"VLOOKUP(C1174,Fichier,3,0)*D1174","v":0}]
[null,null,"SANDWICHES",null,0]
[null,null,"GÂTEAUX",null,0]
[null,null,"SAUCISSE SUR ARDOISE ",null,0]
[null,null,"ASSIETTE FROIDE / CRUDITES",null,0]
[null,85,"MINERALES",null,0,{"$f":"SUM(E1179:E1192)","v":0},"Payé","à rendre"]
[null,null,"BIÈRE",null,0,null,0,{"$f":"G1180-F1179","v":0}]
[null,null,"CAFE / THE",null,0]
[null,null,"VIN AU VERRE",null,0]
[null,null,"BOUTEILLE VIN BLANC",null,0]
[null,null,"BOUTEILLE VIN ROUGE",null,0]
[null,null,"COUPE CHAMPAGNE",null,0]
[null,null,"BOUTEILLE CHAMPAGNE",null,0]
[null,null,"COUPE CLAIRETTE",null,0]
[null,null,"BOUTEILLE CLAIRETTE",null,0]
[null,null,"SANDWICHES",null,0]
[null,null,"GÂTEAUX",null,0]
[null,null,"SAUCISSE SUR ARDOISE ",null,0]
[null,null,"ASSIETTE FROIDE / CRUDITES",null,0]
[null,86,"MINERALES",null,0,{"$f":"SUM(E1193:E1206)","v":0},"Payé","à rendre"]
[null,null,"BIÈRE",null,0,null,0,{"$f":"G1194-F1193","v":0}]
[null,null,"CAFE / THE",null,0]
[null,null,"VIN AU VERRE",null,0]
[null,null,"BOUTEILLE VIN BLANC",null,0]
[null,null,"BOUTEILLE VIN ROUGE",null,0]
[null,null,"COUPE CHAMPAGNE",null,0]
[null,null,"BOUTEILLE CHAMPAGNE",null,0]
[null,null,"COUPE CLAIRETTE",null,0]
[null,null,"BOUTEILLE CLAIRETTE",null,0]
[null,null,"SANDWICHES",null,0]
[null,null,"GÂTEAUX",null,0]
[null,null,"SAUCISSE SUR ARDOISE ",null,0]
[null,null,"ASSIETTE FROIDE / CRUDITES",null,0]
[null,87,"MINERALES",null,0,{"$f":"SUM(E1207:E1220)","v":0},"Payé","à rendre"]
[null,null,"BIÈRE",null,0,null,0,{"$f":"G1208-F1207","v":0}]
[null,null,"CAFE / THE",null,0]
[null,null,"VIN AU VERRE",null,0]
[null,null,"BOUTEILLE VIN BLANC",null,0]
[null,null,"BOUTEILLE VIN ROUGE",null,0]
[null,null,"COUPE CHAMPAGNE",null,0]
[null,null,"BOUTEILLE CHAMPAGNE",null,0]
[null,null,"COUPE CLAIRETTE",null,0]
[null,null,"BOUTEILLE CLAIRETTE",null,0]
[null,null,"SANDWICHES",null,0]
[null,null,"GÂTEAUX",null,0]
[null,null,"SAUCISSE SUR ARDOISE ",null,0]
[null,null,"ASSIETTE FROIDE / CRUDITES",null,0]
[null,88,"MINERALES",null,0,{"$f":"SUM(E1221:E1234)","v":0},"Payé","à rendre"]
[null,null,"BIÈRE",null,0,null,0,{"$f":"G1222-F1221","v":0}]
[null,null,"CAFE / THE",null,0]
[null,null,"VIN AU VERRE",null,0]
[null,null,"BOUTEILLE VIN BLANC",null,0]
[null,null,"BOUTEILLE VIN ROUGE",null,0]
[null,null,"COUPE CHAMPAGNE",null,0]
[null,null,"BOUTEILLE CHAMPAGNE",null,0]
[null,null,"COUPE CLAIRETTE",null,0]
[null,null,"BOUTEILLE CLAIRETTE",null,0]
[null,null,"SANDWICHES",null,0]
[null,null,"GÂTEAUX",null,0]
[null,null,"SAUCISSE SUR ARDOISE ",null,0]
[null,null,"ASSIETTE FROIDE / CRUDITES",null,0]
[null,89,"MINERALES",null,0,{"$f":"SUM(E1235:E1248)","v":0},"Payé","à rendre"]
[null,null,"BIÈRE",null,0,null,0,{"$f":"G1236-F1235","v":0}]
[null,null,"CAFE / THE",null,0]
[null,null,"VIN AU VERRE",null,0]
[null,null,"BOUTEILLE VIN BLANC",null,0]
[null,null,"BOUTEILLE VIN ROUGE",null,0]
[null,null,"COUPE CHAMPAGNE",null,0]
[null,null,"BOUTEILLE CHAMPAGNE",null,0]
[null,null,"COUPE CLAIRETTE",null,{"$f":"VLOOKUP(C1243,Fichier,3,0)*D1243","v":0}]
[null,null,"BOUTEILLE CLAIRETTE",null,0]
[null,null,"SANDWICHES",null,0]
[null,null,"GÂTEAUX",null,0]
[null,null,"SAUCISSE SUR ARDOISE ",null,0]
[null,null,"ASSIETTE FROIDE / CRUDITES",null,0]
[null,90,"MINERALES",null,0,{"$f":"SUM(E1249:E1262)","v":0},"Payé","à rendre"]
[null,null,"BIÈRE",null,0,null,0,{"$f":"G1250-F1249","v":0}]
[null,null,"CAFE / THE",null,0]
[null,null,"VIN AU VERRE",null,0]
[null,null,"BOUTEILLE VIN BLANC",null,0]
[null,null,"BOUTEILLE VIN ROUGE",null,0]
[null,null,"COUPE CHAMPAGNE",null,0]
[null,null,"BOUTEILLE CHAMPAGNE",null,0]
[null,null,"COUPE CLAIRETTE",null,0]
[null,null,"BOUTEILLE CLAIRETTE",null,0]
[null,null,"SANDWICHES",null,0]
[null,null,"GÂTEAUX",null,0]
[null,null,"SAUCISSE SUR ARDOISE ",null,0]
[null,null,"ASSIETTE FROIDE / CRUDITES",null,0]
[null,91,"MINERALES",null,0,{"$f":"SUM(E1263:E1276)","v":0},"Payé","à rendre"]
[null,null,"BIÈRE",null,0,null,0,{"$f":"G1264-F1263","v":0}]
[null,null,"CAFE / THE",null,0]
[null,null,"VIN AU VERRE",null,0]
[null,null,"BOUTEILLE VIN BLANC",null,0]
[null,null,"BOUTEILLE VIN ROUGE",null,0]
[null,null,"COUPE CHAMPAGNE",null,0]
[null,null,"BOUTEILLE CHAMPAGNE",null,0]
[null,null,"COUPE CLAIRETTE",null,0]
[null,null,"BOUTEILLE CLAIRETTE",null,0]
[null,null,"SANDWICHES",null,0]
[null,null,"GÂTEAUX",null,0]
[null,null,"SAUCISSE SUR ARDOISE ",null,0]
[null,null,"ASSIETTE FROIDE / CRUDITES",null,0]
[null,92,"MINERALES",null,0,{"$f":"SUM(E1277:E1290)","v":0},"Payé","à rendre"]
[null,null,"BIÈRE",null,0,null,0,{"$f":"G1278-F1277","v":0}]
[null,null,"CAFE / THE",null,0]
[null,null,"VIN AU VERRE",null,0]
[null,null,"BOUTEILLE VIN BLANC",null,0]
[null,null,"BOUTEILLE VIN ROUGE",null,0]
[null,null,"COUPE CHAMPAGNE",null,0]
[null,null,"BOUTEILLE CHAMPAGNE",null,0]
[null,null,"COUPE CLAIRETTE",null,0]
[null,null,"BOUTEILLE CLAIRETTE",null,0]
[null,null,"SANDWICHES",null,0]
[null,null,"GÂTEAUX",null,0]
[null,null,"SAUCISSE SUR ARDOISE ",null,0]
[null,null,"ASSIETTE FROIDE / CRUDITES",null,0]
[null,93,"MINERALES",null,0,{"$f":"SUM(E1291:E1304)","v":0},"Payé","à rendre"]
[null,null,"BIÈRE",null,0,null,0,{"$f":"G1292-F1291","v":0}]
[null,null,"CAFE / THE",null,0]
[null,null,"VIN AU VERRE",null,0]
[null,null,"BOUTEILLE VIN BLANC",null,0]
[null,null,"BOUTEILLE VIN ROUGE",null,0]
[null,null,"COUPE CHAMPAGNE",null,0]
[null,null,"BOUTEILLE CHAMPAGNE",null,0]
[null,null,"COUPE CLAIRETTE",null,0]
[null,null,"BOUTEILLE CLAIRETTE",null,0]
[null,null,"SANDWICHES",null,0]
[null,null,"GÂTEAUX",null,0]
[null,null,"SAUCISSE SUR ARDOISE ",null,0]
[null,null,"ASSIETTE FROIDE / CRUDITES",null,0]
[null,94,"MINERALES",null,0,{"$f":"SUM(E1305:E1318)","v":0},"Payé","à rendre"]
[null,null,"BIÈRE",null,0,null,0,{"$f":"G1306-F1305","v":0}]
[null,null,"CAFE / THE",null,0]
[null,null,"VIN AU VERRE",null,0]
[null,null,"BOUTEILLE VIN BLANC",null,0]
[null,null,"BOUTEILLE VIN ROUGE",null,0]
[null,null,"COUPE CHAMPAGNE",null,0]
[null,null,"BOUTEILLE CHAMPAGNE",null,{"$f":"VLOOKUP(C1312,Fichier,3,0)*D1312","v":0}]
[null,null,"COUPE CLAIRETTE",null,0]
[null,null,"BOUTEILLE CLAIRETTE",null,0]
[null,null,"SANDWICHES",null,0]
[null,null,"GÂTEAUX",null,0]
[null,null,"SAUCISSE SUR ARDOISE ",null,0]
[null,null,"ASSIETTE FROIDE / CRUDITES",null,0]
[null,95,"MINERALES",null,0,{"$f":"SUM(E1319:E1332)","v":0},"Payé","à rendre"]
[null,null,"BIÈRE",null,0,null,0,{"$f":"G1320-F1319","v":0}]
[null,null,"CAFE / THE",null,0]
[null,null,"VIN AU VERRE",null,0]
[null,null,"BOUTEILLE VIN BLANC",null,0]
[null,null,"BOUTEILLE VIN ROUGE",null,0]
[null,null,"COUPE CHAMPAGNE",null,0]
[null,null,"BOUTEILLE CHAMPAGNE",null,0]
[null,null,"COUPE CLAIRETTE",null,0]
[null,null,"BOUTEILLE CLAIRETTE",null,0]
[null,null,"SANDWICHES",null,0]
[null,null,"GÂTEAUX",null,0]
[null,null,"SAUCISSE SUR ARDOISE ",null,0]
[null,null,"ASSIETTE FROIDE / CRUDITES",null,0]
[null,96,"MINERALES",null,0,{"$f":"SUM(E1333:E1346)","v":0},"Payé","à rendre"]
[null,null,"BIÈRE",null,0,null,0,{"$f":"G1334-F1333","v":0}]
[null,null,"CAFE / THE",null,0]
[null,null,"VIN AU VERRE",null,0]
[null,null,"BOUTEILLE VIN BLANC",null,0]
[null,null,"BOUTEILLE VIN ROUGE",null,0]
[null,null,"COUPE CHAMPAGNE",null,0]
[null,null,"BOUTEILLE CHAMPAGNE",null,0]
[null,null,"COUPE CLAIRETTE",null,0]
[null,null,"BOUTEILLE CLAIRETTE",null,0]
[null,null,"SANDWICHES",null,0]
[null,null,"GÂTEAUX",null,0]
[null,null,"SAUCISSE SUR ARDOISE ",null,0]
[null,null,"ASSIETTE FROIDE / CRUDITES",null,0]
[null,97,"MINERALES",null,0,{"$f":"SUM(E1347:E1360)","v":0},"Payé","à rendre"]
[null,null,"BIÈRE",null,0,null,0,{"$f":"G1348-F1347","v":0}]
[null,null,"CAFE / THE",null,0]
[null,null,"VIN AU VERRE",null,0]
[null,null,"BOUTEILLE VIN BLANC",null,0]
[null,null,"BOUTEILLE VIN ROUGE",null,0]
[null,null,"COUPE CHAMPAGNE",null,0]
[null,null,"BOUTEILLE CHAMPAGNE",null,0]
[null,null,"COUPE CLAIRETTE",null,0]
[null,null,"BOUTEILLE CLAIRETTE",null,0]
[null,null,"SANDWICHES",null,0]
[null,null,"GÂTEAUX",null,0]
[null,null,"SAUCISSE SUR ARDOISE ",null,0]
[null,null,"ASSIETTE FROIDE / CRUDITES",null,0]
[null,98,"MINERALES",null,0,{"$f":"SUM(E1361:E1374)","v":0},"Payé","à rendre"]
[null,null,"BIÈRE",null,0,null,0,{"$f":"G1362-F1361","v":0}]
[null,null,"CAFE / THE",null,0]
[null,null,"VIN AU VERRE",null,0]
[null,null,"BOUTEILLE VIN BLANC",null,0]
[null,null,"BOUTEILLE VIN ROUGE",null,0]
[null,null,"COUPE CHAMPAGNE",null,0]
[null,null,"BOUTEILLE CHAMPAGNE",null,0]
[null,null,"COUPE CLAIRETTE",null,0]
[null,null,"BOUTEILLE CLAIRETTE",null,0]
[null,null,"SANDWICHES",null,0]
[null,null,"GÂTEAUX",null,0]
[null,null,"SAUCISSE SUR ARDOISE ",null,0]
[null,null,"ASSIETTE FROIDE / CRUDITES",null,0]
[null,99,"MINERALES",null,0,{"$f":"SUM(E1375:E1388)","v":0},"Payé","à rendre"]
[null,null,"BIÈRE",null,0,null,0,{"$f":"G1376-F1375","v":0}]
[null,null,"CAFE / THE",null,0]
[null,null,"VIN AU VERRE",null,0]
[null,null,"BOUTEILLE VIN BLANC",null,0]
[null,null,"BOUTEILLE VIN ROUGE",null,0]
[null,null,"COUPE CHAMPAGNE",null,{"$f":"VLOOKUP(C1381,Fichier,3,0)*D1381","v":0}]
[null,null,"BOUTEILLE CHAMPAGNE",null,0]
[null,null,"COUPE CLAIRETTE",null,0]
[null,null,"BOUTEILLE CLAIRETTE",null,0]
[null,null,"SANDWICHES",null,0]
[null,null,"GÂTEAUX",null,0]
[null,null,"SAUCISSE SUR ARDOISE ",null,0]
[null,null,"ASSIETTE FROIDE / CRUDITES",null,0]
[null,100,"MINERALES",null,0,{"$f":"SUM(E1389:E1402)","v":0},"Payé","à rendre"]
[null,null,"BIÈRE",null,0,null,0,{"$f":"G1390-F1389","v":0}]
[null,null,"CAFE / THE",null,0]
[null,null,"VIN AU VERRE",null,0]
[null,null,"BOUTEILLE VIN BLANC",null,0]
[null,null,"BOUTEILLE VIN ROUGE",null,0]
[null,null,"COUPE CHAMPAGNE",null,0]
[null,null,"BOUTEILLE CHAMPAGNE",null,0]
[null,null,"COUPE CLAIRETTE",null,0]
[null,null,"BOUTEILLE CLAIRETTE",null,0]
[null,null,"SANDWICHES",null,0]
[null,null,"GÂTEAUX",null,0]
[null,null,"SAUCISSE SUR ARDOISE ",null,0]
[null,null,"ASSIETTE FROIDE / CRUDITES",null,0]
[null,101,"MINERALES",null,0,{"$f":"SUM(E1403:E1416)","v":0},"Payé","à rendre"]
[null,null,"BIÈRE",null,0,null,0,{"$f":"G1404-F1403","v":0}]
[null,null,"CAFE / THE",null,0]
[null,null,"VIN AU VERRE",null,0]
[null,null,"BOUTEILLE VIN BLANC",null,0]
[null,null,"BOUTEILLE VIN ROUGE",null,0]
[null,null,"COUPE CHAMPAGNE",null,0]
[null,null,"BOUTEILLE CHAMPAGNE",null,0]
[null,null,"COUPE CLAIRETTE",null,0]
[null,null,"BOUTEILLE CLAIRETTE",null,0]
[null,null,"SANDWICHES",null,0]
[null,null,"GÂTEAUX",null,0]
[null,null,"SAUCISSE SUR ARDOISE ",null,0]
[null,null,"ASSIETTE FROIDE / CRUDITES",null,0]
[null,102,"MINERALES",null,0,{"$f":"SUM(E1417:E1430)","v":0},"Payé","à rendre"]
[null,null,"BIÈRE",null,0,null,0,{"$f":"G1418-F1417","v":0}]
[null,null,"CAFE / THE",null,0]
[null,null,"VIN AU VERRE",null,0]
[null,null,"BOUTEILLE VIN BLANC",null,0]
[null,null,"BOUTEILLE VIN ROUGE",null,0]
[null,null,"COUPE CHAMPAGNE",null,0]
[null,null,"BOUTEILLE CHAMPAGNE",null,0]
[null,null,"COUPE CLAIRETTE",null,0]
[null,null,"BOUTEILLE CLAIRETTE",null,0]
[null,null,"SANDWICHES",null,0]
[null,null,"GÂTEAUX",null,0]
[null,null,"SAUCISSE SUR ARDOISE ",null,0]
[null,null,"ASSIETTE FROIDE / CRUDITES",null,0]
[null,103,"MINERALES",null,0,{"$f":"SUM(E1431:E1444)","v":0},"Payé","à rendre"]
[null,null,"BIÈRE",null,0,null,0,{"$f":"G1432-F1431","v":0}]
[null,null,"CAFE / THE",null,0]
[null,null,"VIN AU VERRE",null,0]
[null,null,"BOUTEILLE VIN BLANC",null,0]
[null,null,"BOUTEILLE VIN ROUGE",null,0]
[null,null,"COUPE CHAMPAGNE",null,0]
[null,null,"BOUTEILLE CHAMPAGNE",null,0]
[null,null,"COUPE CLAIRETTE",null,0]
[null,null,"BOUTEILLE CLAIRETTE",null,0]
[null,null,"SANDWICHES",null,0]
[null,null,"GÂTEAUX",null,0]
[null,null,"SAUCISSE SUR ARDOISE ",null,0]
[null,null,"ASSIETTE FROIDE / CRUDITES",null,0]
[null,104,"MINERALES",null,0,{"$f":"SUM(E1445:E1458)","v":0},"Payé","à rendre"]
[null,null,"BIÈRE",null,0,null,0,{"$f":"G1446-F1445","v":0}]
[null,null,"CAFE / THE",null,0]
[null,null,"VIN AU VERRE",null,0]
[null,null,"BOUTEILLE VIN BLANC",null,0]
[null,null,"BOUTEILLE VIN ROUGE",null,{"$f":"VLOOKUP(C1450,Fichier,3,0)*D1450","v":0}]
[null,null,"COUPE CHAMPAGNE",null,0]
[null,null,"BOUTEILLE CHAMPAGNE",null,0]
[null,null,"COUPE CLAIRETTE",null,0]
[null,null,"BOUTEILLE CLAIRETTE",null,0]
[null,null,"SANDWICHES",null,0]
[null,null,"GÂTEAUX",null,0]
[null,null,"SAUCISSE SUR ARDOISE ",null,0]
[null,null,"ASSIETTE FROIDE / CRUDITES",null,0]
[null,105,"MINERALES",null,0,{"$f":"SUM(E1459:E1472)","v":0},"Payé","à rendre"]
[null,null,"BIÈRE",null,0,null,0,{"$f":"G1460-F1459","v":0}]
[null,null,"CAFE / THE",null,0]
[null,null,"VIN AU VERRE",null,0]
[null,null,"BOUTEILLE VIN BLANC",null,0]
[null,null,"BOUTEILLE VIN ROUGE",null,0]
[null,null,"COUPE CHAMPAGNE",null,0]
[null,null,"BOUTEILLE CHAMPAGNE",null,0]
[null,null,"COUPE CLAIRETTE",null,0]
[null,null,"BOUTEILLE CLAIRETTE",null,0]
[null,null,"SANDWICHES",null,0]
[null,null,"GÂTEAUX",null,0]
[null,null,"SAUCISSE SUR ARDOISE ",null,0]
[null,null,"ASSIETTE FROIDE / CRUDITES",null,0]
[null,106,"MINERALES",null,0,{"$f":"SUM(E1473:E1486)","v":0},"Payé","à rendre"]
[null,null,"BIÈRE",null,0,null,0,{"$f":"G1474-F1473","v":0}]
[null,null,"CAFE / THE",null,0]
[null,null,"VIN AU VERRE",null,0]
[null,null,"BOUTEILLE VIN BLANC",null,0]
[null,null,"BOUTEILLE VIN ROUGE",null,0]
[null,null,"COUPE CHAMPAGNE",null,0]
[null,null,"BOUTEILLE CHAMPAGNE",null,0]
[null,null,"COUPE CLAIRETTE",null,0]
[null,null,"BOUTEILLE CLAIRETTE",null,0]
[null,null,"SANDWICHES",null,0]
[null,null,"GÂTEAUX",null,0]
[null,null,"SAUCISSE SUR ARDOISE ",null,0]
[null,null,"ASSIETTE FROIDE / CRUDITES",null,0]
[null,107,"MINERALES",null,0,{"$f":"SUM(E1487:E1500)","v":0},"Payé","à rendre"]
[null,null,"BIÈRE",null,0,null,0,{"$f":"G1488-F1487","v":0}]
[null,null,"CAFE / THE",null,0]
[null,null,"VIN AU VERRE",null,0]
[null,null,"BOUTEILLE VIN BLANC",null,0]
[null,null,"BOUTEILLE VIN ROUGE",null,0]
[null,null,"COUPE CHAMPAGNE",null,0]
[null,null,"BOUTEILLE CHAMPAGNE",null,0]
[null,null,"COUPE CLAIRETTE",null,0]
[null,null,"BOUTEILLE CLAIRETTE",null,0]
[null,null,"SANDWICHES",null,0]
[null,null,"GÂTEAUX",null,0]
[null,null,"SAUCISSE SUR ARDOISE ",null,0]
[null,null,"ASSIETTE FROIDE / CRUDITES",null,0]
[null,108,"MINERALES",null,0,{"$f":"SUM(E1501:E1514)","v":0},"Payé","à rendre"]
[null,null,"BIÈRE",null,0,null,0,{"$f":"G1502-F1501","v":0}]
[null,null,"CAFE / THE",null,0]
[null,null,"VIN AU VERRE",null,0]
[null,null,"BOUTEILLE VIN BLANC",null,0]
[null,null,"BOUTEILLE VIN ROUGE",null,0]
[null,null,"COUPE CHAMPAGNE",null,0]
[null,null,"BOUTEILLE CHAMPAGNE",null,0]
[null,null,"COUPE CLAIRETTE",null,0]
[null,null,"BOUTEILLE CLAIRETTE",null,0]
[null,null,"SANDWICHES",null,0]
[null,null,"GÂTEAUX",null,0]
[null,null,"SAUCISSE SUR ARDOISE ",null,0]
[null,null,"ASSIETTE FROIDE / CRUDITES",null,0]
[null,109,"MINERALES",null,0,{"$f":"SUM(E1515:E1528)","v":0},"Payé","à rendre"]
[null,null,"BIÈRE",null,0,null,0,{"$f":"G1516-F1515","v":0}]
[null,null,"CAFE / THE",null,0]
[null,null,"VIN AU VERRE",null,0]
[null,null,"BOUTEILLE VIN BLANC",null,{"$f":"VLOOKUP(C1519,Fichier,3,0)*D1519","v":0}]
[null,null,"BOUTEILLE VIN ROUGE",null,0]
[null,null,"COUPE CHAMPAGNE",null,0]
[null,null,"BOUTEILLE CHAMPAGNE",null,0]
[null,null,"COUPE CLAIRETTE",null,0]
[null,null,"BOUTEILLE CLAIRETTE",null,0]
[null,null,"SANDWICHES",null,0]
[null,null,"GÂTEAUX",null,0]
[null,null,"SAUCISSE SUR ARDOISE ",null,0]
[null,null,"ASSIETTE FROIDE / CRUDITES",null,0]
[null,110,"MINERALES",null,0,{"$f":"SUM(E1529:E1542)","v":0},"Payé","à rendre"]
[null,null,"BIÈRE",null,0,null,0,{"$f":"G1530-F1529","v":0}]
[null,null,"CAFE / THE",null,0]
[null,null,"VIN AU VERRE",null,0]
[null,null,"BOUTEILLE VIN BLANC",null,0]
[null,null,"BOUTEILLE VIN ROUGE",null,0]
[null,null,"COUPE CHAMPAGNE",null,0]
[null,null,"BOUTEILLE CHAMPAGNE",null,0]
[null,null,"COUPE CLAIRETTE",null,0]
[null,null,"BOUTEILLE CLAIRETTE",null,0]
[null,null,"SANDWICHES",null,0]
[null,null,"GÂTEAUX",null,0]
[null,null,"SAUCISSE SUR ARDOISE ",null,0]
[null,null,"ASSIETTE FROIDE / CRUDITES",null,0]
[null,111,"MINERALES",null,0,{"$f":"SUM(E1543:E1556)","v":0},"Payé","à rendre"]
[null,null,"BIÈRE",null,0,null,0,{"$f":"G1544-F1543","v":0}]
[null,null,"CAFE / THE",null,0]
[null,null,"VIN AU VERRE",null,0]
[null,null,"BOUTEILLE VIN BLANC",null,0]
[null,null,"BOUTEILLE VIN ROUGE",null,0]
[null,null,"COUPE CHAMPAGNE",null,0]
[null,null,"BOUTEILLE CHAMPAGNE",null,0]
[null,null,"COUPE CLAIRETTE",null,0]
[null,null,"BOUTEILLE CLAIRETTE",null,0]
[null,null,"SANDWICHES",null,0]
[null,null,"GÂTEAUX",null,0]
[null,null,"SAUCISSE SUR ARDOISE ",null,0]
[null,null,"ASSIETTE FROIDE / CRUDITES",null,0]
[null,112,"MINERALES",null,0,{"$f":"SUM(E1557:E1570)","v":0},"Payé","à rendre"]
[null,null,"BIÈRE",null,0,null,0,{"$f":"G1558-F1557","v":0}]
[null,null,"CAFE / THE",null,0]
[null,null,"VIN AU VERRE",null,0]
[null,null,"BOUTEILLE VIN BLANC",null,0]
[null,null,"BOUTEILLE VIN ROUGE",null,0]
[null,null,"COUPE CHAMPAGNE",null,0]
[null,null,"BOUTEILLE CHAMPAGNE",null,0]
[null,null,"COUPE CLAIRETTE",null,0]
[null,null,"BOUTEILLE CLAIRETTE",null,0]
[null,null,"SANDWICHES",null,0]
[null,null,"GÂTEAUX",null,0]
[null,null,"SAUCISSE SUR ARDOISE ",null,0]
[null,null,"ASSIETTE FROIDE / CRUDITES",null,0]
[null,113,"MINERALES",null,0,{"$f":"SUM(E1571:E1584)","v":0},"Payé","à rendre"]
[null,null,"BIÈRE",null,0,null,0,{"$f":"G1572-F1571","v":0}]
[null,null,"CAFE / THE",null,0]
[null,null,"VIN AU VERRE",null,0]
[null,null,"BOUTEILLE VIN BLANC",null,0]
[null,null,"BOUTEILLE VIN ROUGE",null,0]
[null,null,"COUPE CHAMPAGNE",null,0]
[null,null,"BOUTEILLE CHAMPAGNE",null,0]
[null,null,"COUPE CLAIRETTE",null,0]
[null,null,"BOUTEILLE CLAIRETTE",null,0]
[null,null,"SANDWICHES",null,0]
[null,null,"GÂTEAUX",null,0]
[null,null,"SAUCISSE SUR ARDOISE ",null,0]
[null,null,"ASSIETTE FROIDE / CRUDITES",null,0]
[null,114,"MINERALES",null,0,{"$f":"SUM(E1585:E1598)","v":0},"Payé","à rendre"]
[null,null,"BIÈRE",null,0,null,0,{"$f":"G1586-F1585","v":0}]
[null,null,"CAFE / THE",null,0]
[null,null,"VIN AU VERRE",null,{"$f":"VLOOKUP(C1588,Fichier,3,0)*D1588","v":0}]
[null,null,"BOUTEILLE VIN BLANC",null,0]
[null,null,"BOUTEILLE VIN ROUGE",null,0]
[null,null,"COUPE CHAMPAGNE",null,0]
[null,null,"BOUTEILLE CHAMPAGNE",null,0]
[null,null,"COUPE CLAIRETTE",null,0]
[null,null,"BOUTEILLE CLAIRETTE",null,0]
[null,null,"SANDWICHES",null,0]
[null,null,"GÂTEAUX",null,0]
[null,null,"SAUCISSE SUR ARDOISE ",null,0]
[null,null,"ASSIETTE FROIDE / CRUDITES",null,0]
[null,115,"MINERALES",null,0,{"$f":"SUM(E1599:E1612)","v":0},"Payé","à rendre"]
[null,null,"BIÈRE",null,0,null,0,{"$f":"G1600-F1599","v":0}]
[null,null,"CAFE / THE",null,0]
[null,null,"VIN AU VERRE",null,0]
[null,null,"BOUTEILLE VIN BLANC",null,0]
[null,null,"BOUTEILLE VIN ROUGE",null,0]
[null,null,"COUPE CHAMPAGNE",null,0]
[null,null,"BOUTEILLE CHAMPAGNE",null,0]
[null,null,"COUPE CLAIRETTE",null,0]
[null,null,"BOUTEILLE CLAIRETTE",null,0]
[null,null,"SANDWICHES",null,0]
[null,null,"GÂTEAUX",null,0]
[null,null,"SAUCISSE SUR ARDOISE ",null,0]
[null,null,"ASSIETTE FROIDE / CRUDITES",null,0]
[null,116,"MINERALES",null,0,{"$f":"SUM(E1613:E1626)","v":0},"Payé","à rendre"]
[null,null,"BIÈRE",null,0,null,0,{"$f":"G1614-F1613","v":0}]
[null,null,"CAFE / THE",null,0]
[null,null,"VIN AU VERRE",null,0]
[null,null,"BOUTEILLE VIN BLANC",null,0]
[null,null,"BOUTEILLE VIN ROUGE",null,0]
[null,null,"COUPE CHAMPAGNE",null,0]
[null,null,"BOUTEILLE CHAMPAGNE",null,0]
[null,null,"COUPE CLAIRETTE",null,0]
[null,null,"BOUTEILLE CLAIRETTE",null,0]
[null,null,"SANDWICHES",null,0]
[null,null,"GÂTEAUX",null,0]
[null,null,"SAUCISSE SUR ARDOISE ",null,0]
[null,null,"ASSIETTE FROIDE / CRUDITES",null,0]
[null,117,"MINERALES",null,0,{"$f":"SUM(E1627:E1640)","v":0},"Payé","à rendre"]
[null,null,"BIÈRE",null,0,null,0,{"$f":"G1628-F1627","v":0}]
[null,null,"CAFE / THE",null,0]
[null,null,"VIN AU VERRE",null,0]
[null,null,"BOUTEILLE VIN BLANC",null,0]
[null,null,"BOUTEILLE VIN ROUGE",null,0]
[null,null,"COUPE CHAMPAGNE",null,0]
[null,null,"BOUTEILLE CHAMPAGNE",null,0]
[null,null,"COUPE CLAIRETTE",null,0]
[null,null,"BOUTEILLE CLAIRETTE",null,0]
[null,null,"SANDWICHES",null,0]
[null,null,"GÂTEAUX",null,0]
[null,null,"SAUCISSE SUR ARDOISE ",null,0]
[null,null,"ASSIETTE FROIDE / CRUDITES",null,0]
[null,118,"MINERALES",null,0,{"$f":"SUM(E1641:E1654)","v":0},"Payé","à rendre"]
[null,null,"BIÈRE",null,0,null,0,{"$f":"G1642-F1641","v":0}]
[null,null,"CAFE / THE",null,0]
[null,null,"VIN AU VERRE",null,0]
[null,null,"BOUTEILLE VIN BLANC",null,0]
[null,null,"BOUTEILLE VIN ROUGE",null,0]
[null,null,"COUPE CHAMPAGNE",null,0]
[null,null,"BOUTEILLE CHAMPAGNE",null,0]
[null,null,"COUPE CLAIRETTE",null,0]
[null,null,"BOUTEILLE CLAIRETTE",null,0]
[null,null,"SANDWICHES",null,0]
[null,null,"GÂTEAUX",null,0]
[null,null,"SAUCISSE SUR ARDOISE ",null,0]
[null,null,"ASSIETTE FROIDE / CRUDITES",null,0]
[null,119,"MINERALES",null,0,{"$f":"SUM(E1655:E1668)","v":0},"Payé","à rendre"]
[null,null,"BIÈRE",null,0,null,0,{"$f":"G1656-F1655","v":0}]
[null,null,"CAFE / THE",null,{"$f":"VLOOKUP(C1657,Fichier,3,0)*D1657","v":0}]
[null,null,"VIN AU VERRE",null,0]
[null,null,"BOUTEILLE VIN BLANC",null,0]
[null,null,"BOUTEILLE VIN ROUGE",null,0]
[null,null,"COUPE CHAMPAGNE",null,0]
[null,null,"BOUTEILLE CHAMPAGNE",null,0]
[null,null,"COUPE CLAIRETTE",null,0]
[null,null,"BOUTEILLE CLAIRETTE",null,0]
[null,null,"SANDWICHES",null,0]
[null,null,"GÂTEAUX",null,0]
[null,null,"SAUCISSE SUR ARDOISE ",null,0]
[null,null,"ASSIETTE FROIDE / CRUDITES",null,0]
[null,120,"MINERALES",null,0,{"$f":"SUM(E1669:E1682)","v":0},"Payé","à rendre"]
[null,null,"BIÈRE",null,0,null,0,{"$f":"G1670-F1669","v":0}]
[null,null,"CAFE / THE",null,0]
[null,null,"VIN AU VERRE",null,0]
[null,null,"BOUTEILLE VIN BLANC",null,0]
[null,null,"BOUTEILLE VIN ROUGE",null,0]
[null,null,"COUPE CHAMPAGNE",null,0]
[null,null,"BOUTEILLE CHAMPAGNE",null,0]
[null,null,"COUPE CLAIRETTE",null,0]
[null,null,"BOUTEILLE CLAIRETTE",null,0]
[null,null,"SANDWICHES",null,0]
[null,null,"GÂTEAUX",null,0]
[null,null,"SAUCISSE SUR ARDOISE ",null,0]
[null,null,"ASSIETTE FROIDE / CRUDITES",null,0]
[null,121,"MINERALES",null,0,{"$f":"SUM(E1683:E1696)","v":0},"Payé","à rendre"]
[null,null,"BIÈRE",null,0,null,0,{"$f":"G1684-F1683","v":0}]
[null,null,"CAFE / THE",null,0]
[null,null,"VIN AU VERRE",null,0]
[null,null,"BOUTEILLE VIN BLANC",null,0]
[null,null,"BOUTEILLE VIN ROUGE",null,0]
[null,null,"COUPE CHAMPAGNE",null,0]
[null,null,"BOUTEILLE CHAMPAGNE",null,0]
[null,null,"COUPE CLAIRETTE",null,0]
[null,null,"BOUTEILLE CLAIRETTE",null,0]
[null,null,"SANDWICHES",null,0]
[null,null,"GÂTEAUX",null,0]
[null,null,"SAUCISSE SUR ARDOISE ",null,0]
[null,null,"ASSIETTE FROIDE / CRUDITES",null,0]
[null,122,"MINERALES",null,0,{"$f":"SUM(E1697:E1710)","v":0},"Payé","à rendre"]
[null,null,"BIÈRE",null,0,null,0,{"$f":"G1698-F1697","v":0}]
[null,null,"CAFE / THE",null,0]
[null,null,"VIN AU VERRE",null,0]
[null,null,"BOUTEILLE VIN BLANC",null,0]
[null,null,"BOUTEILLE VIN ROUGE",null,0]
[null,null,"COUPE CHAMPAGNE",null,0]
[null,null,"BOUTEILLE CHAMPAGNE",null,0]
[null,null,"COUPE CLAIRETTE",null,0]
[null,null,"BOUTEILLE CLAIRETTE",null,0]
[null,null,"SANDWICHES",null,0]
[null,null,"GÂTEAUX",null,0]
[null,null,"SAUCISSE SUR ARDOISE ",null,0]
[null,null,"ASSIETTE FROIDE / CRUDITES",null,0]
[null,123,"MINERALES",null,0,{"$f":"SUM(E1711:E1724)","v":0},"Payé","à rendre"]
[null,null,"BIÈRE",null,0,null,0,{"$f":"G1712-F1711","v":0}]
[null,null,"CAFE / THE",null,0]
[null,null,"VIN AU VERRE",null,0]
[null,null,"BOUTEILLE VIN BLANC",null,0]
[null,null,"BOUTEILLE VIN ROUGE",null,0]
[null,null,"COUPE CHAMPAGNE",null,0]
[null,null,"BOUTEILLE CHAMPAGNE",null,0]
[null,null,"COUPE CLAIRETTE",null,0]
[null,null,"BOUTEILLE CLAIRETTE",null,0]
[null,null,"SANDWICHES",null,0]
[null,null,"GÂTEAUX",null,0]
[null,null,"SAUCISSE SUR ARDOISE ",null,0]
[null,null,"ASSIETTE FROIDE / CRUDITES",null,0]
[null,124,"MINERALES",null,0,{"$f":"SUM(E1725:E1738)","v":0},"Payé","à rendre"]
[null,null,"BIÈRE",null,{"$f":"VLOOKUP(C1726,Fichier,3,0)*D1726","v":0},null,0,{"$f":"G1726-F1725","v":0}]
[null,null,"CAFE / THE",null,0]
[null,null,"VIN AU VERRE",null,0]
[null,null,"BOUTEILLE VIN BLANC",null,0]
[null,null,"BOUTEILLE VIN ROUGE",null,0]
[null,null,"COUPE CHAMPAGNE",null,0]
[null,null,"BOUTEILLE CHAMPAGNE",null,0]
[null,null,"COUPE CLAIRETTE",null,0]
[null,null,"BOUTEILLE CLAIRETTE",null,0]
[null,null,"SANDWICHES",null,0]
[null,null,"GÂTEAUX",null,0]
[null,null,"SAUCISSE SUR ARDOISE ",null,0]
[null,null,"ASSIETTE FROIDE / CRUDITES",null,0]
[null,125,"MINERALES",null,0,{"$f":"SUM(E1739:E1752)","v":0},"Payé","à rendre"]
[null,null,"BIÈRE",null,0,null,0,{"$f":"G1740-F1739","v":0}]
[null,null,"CAFE / THE",null,0]
[null,null,"VIN AU VERRE",null,0]
[null,null,"BOUTEILLE VIN BLANC",null,0]
[null,null,"BOUTEILLE VIN ROUGE",null,0]
[null,null,"COUPE CHAMPAGNE",null,0]
[null,null,"BOUTEILLE CHAMPAGNE",null,0]
[null,null,"COUPE CLAIRETTE",null,0]
[null,null,"BOUTEILLE CLAIRETTE",null,0]
[null,null,"SANDWICHES",null,0]
[null,null,"GÂTEAUX",null,0]
[null,null,"SAUCISSE SUR ARDOISE ",null,0]
[null,null,"ASSIETTE FROIDE / CRUDITES",null,0]
[null,126,"MINERALES",null,0,{"$f":"SUM(E1753:E1766)","v":0},"Payé","à rendre"]
[null,null,"BIÈRE",null,0,null,0,{"$f":"G1754-F1753","v":0}]
[null,null,"CAFE / THE",null,0]
[null,null,"VIN AU VERRE",null,0]
[null,null,"BOUTEILLE VIN BLANC",null,0]
[null,null,"BOUTEILLE VIN ROUGE",null,0]
[null,null,"COUPE CHAMPAGNE",null,0]
[null,null,"BOUTEILLE CHAMPAGNE",null,0]
[null,null,"COUPE CLAIRETTE",null,0]
[null,null,"BOUTEILLE CLAIRETTE",null,0]
[null,null,"SANDWICHES",null,0]
[null,null,"GÂTEAUX",null,0]
[null,null,"SAUCISSE SUR ARDOISE ",null,0]
[null,null,"ASSIETTE FROIDE / CRUDITES",null,0]
[null,127,"MINERALES",null,0,{"$f":"SUM(E1767:E1780)","v":0},"Payé","à rendre"]
[null,null,"BIÈRE",null,0,null,0,{"$f":"G1768-F1767","v":0}]
[null,null,"CAFE / THE",null,0]
[null,null,"VIN AU VERRE",null,0]
[null,null,"BOUTEILLE VIN BLANC",null,0]
[null,null,"BOUTEILLE VIN ROUGE",null,0]
[null,null,"COUPE CHAMPAGNE",null,0]
[null,null,"BOUTEILLE CHAMPAGNE",null,0]
[null,null,"COUPE CLAIRETTE",null,0]
[null,null,"BOUTEILLE CLAIRETTE",null,0]
[null,null,"SANDWICHES",null,0]
[null,null,"GÂTEAUX",null,0]
[null,null,"SAUCISSE SUR ARDOISE ",null,0]
[null,null,"ASSIETTE FROIDE / CRUDITES",null,0]
[null,128,"MINERALES",null,0,{"$f":"SUM(E1781:E1794)","v":0},"Payé","à rendre"]
[null,null,"BIÈRE",null,0,null,0,{"$f":"G1782-F1781","v":0}]
[null,null,"CAFE / THE",null,0]
[null,null,"VIN AU VERRE",null,0]
[null,null,"BOUTEILLE VIN BLANC",null,0]
[null,null,"BOUTEILLE VIN ROUGE",null,0]
[null,null,"COUPE CHAMPAGNE",null,0]
[null,null,"BOUTEILLE CHAMPAGNE",null,0]
[null,null,"COUPE CLAIRETTE",null,0]
[null,null,"BOUTEILLE CLAIRETTE",null,0]
[null,null,"SANDWICHES",null,0]
[null,null,"GÂTEAUX",null,0]
[null,null,"SAUCISSE SUR ARDOISE ",null,0]
[null,null,"ASSIETTE FROIDE / CRUDITES",null,0]
[null,129,"MINERALES",null,{"$f":"VLOOKUP(C1795,Fichier,3,0)*D1795","v":0},{"$f":"SUM(E1795:E1808)","v":0},"Payé","à rendre"]
[null,null,"BIÈRE",null,0,null,0,{"$f":"G1796-F1795","v":0}]
[null,null,"CAFE / THE",null,0]
[null,null,"VIN AU VERRE",null,0]
[null,null,"BOUTEILLE VIN BLANC",null,0]
[null,null,"BOUTEILLE VIN ROUGE",null,0]
[null,null,"COUPE CHAMPAGNE",null,0]
[null,null,"BOUTEILLE CHAMPAGNE",null,0]
[null,null,"COUPE CLAIRETTE",null,0]
[null,null,"BOUTEILLE CLAIRETTE",null,0]
[null,null,"SANDWICHES",null,0]
[null,null,"GÂTEAUX",null,0]
[null,null,"SAUCISSE SUR ARDOISE ",null,0]
[null,null,"ASSIETTE FROIDE / CRUDITES",null,0]
[null,130,"MINERALES",null,0,{"$f":"SUM(E1809:E1822)","v":0},"Payé","à rendre"]
[null,null,"BIÈRE",null,0,null,0,{"$f":"G1810-F1809","v":0}]
[null,null,"CAFE / THE",null,0]
[null,null,"VIN AU VERRE",null,0]
[null,null,"BOUTEILLE VIN BLANC",null,0]
[null,null,"BOUTEILLE VIN ROUGE",null,0]
[null,null,"COUPE CHAMPAGNE",null,0]
[null,null,"BOUTEILLE CHAMPAGNE",null,0]
[null,null,"COUPE CLAIRETTE",null,0]
[null,null,"BOUTEILLE CLAIRETTE",null,0]
[null,null,"SANDWICHES",null,0]
[null,null,"GÂTEAUX",null,0]
[null,null,"SAUCISSE SUR ARDOISE ",null,0]
[null,null,"ASSIETTE FROIDE / CRUDITES",null,0]
[null,131,"MINERALES",null,0,{"$f":"SUM(E1823:E1836)","v":0},"Payé","à rendre"]
[null,null,"BIÈRE",null,0,null,0,{"$f":"G1824-F1823","v":0}]
[null,null,"CAFE / THE",null,0]
[null,null,"VIN AU VERRE",null,0]
[null,null,"BOUTEILLE VIN BLANC",null,0]
[null,null,"BOUTEILLE VIN ROUGE",null,0]
[null,null,"COUPE CHAMPAGNE",null,0]
[null,null,"BOUTEILLE CHAMPAGNE",null,0]
[null,null,"COUPE CLAIRETTE",null,0]
[null,null,"BOUTEILLE CLAIRETTE",null,0]
[null,null,"SANDWICHES",null,0]
[null,null,"GÂTEAUX",null,0]
[null,null,"SAUCISSE SUR ARDOISE ",null,0]
[null,null,"ASSIETTE FROIDE / CRUDITES",null,0]
[null,132,"MINERALES",null,0,{"$f":"SUM(E1837:E1850)","v":0},"Payé","à rendre"]
[null,null,"BIÈRE",null,0,null,0,{"$f":"G1838-F1837","v":0}]
[null,null,"CAFE / THE",null,0]
[null,null,"VIN AU VERRE",null,0]
[null,null,"BOUTEILLE VIN BLANC",null,0]
[null,null,"BOUTEILLE VIN ROUGE",null,0]
[null,null,"COUPE CHAMPAGNE",null,0]
[null,null,"BOUTEILLE CHAMPAGNE",null,0]
[null,null,"COUPE CLAIRETTE",null,0]
[null,null,"BOUTEILLE CLAIRETTE",null,0]
[null,null,"SANDWICHES",null,0]
[null,null,"GÂTEAUX",null,0]
[null,null,"SAUCISSE SUR ARDOISE ",null,0]
[null,null,"ASSIETTE FROIDE / CRUDITES",null,0]
[null,133,"MINERALES",null,0,{"$f":"SUM(E1851:E1864)","v":0},"Payé","à rendre"]
[null,null,"BIÈRE",null,0,null,0,{"$f":"G1852-F1851","v":0}]
[null,null,"CAFE / THE",null,0]
[null,null,"VIN AU VERRE",null,0]
[null,null,"BOUTEILLE VIN BLANC",null,0]
[null,null,"BOUTEILLE VIN ROUGE",null,0]
[null,null,"COUPE CHAMPAGNE",null,0]
[null,null,"BOUTEILLE CHAMPAGNE",null,0]
[null,null,"COUPE CLAIRETTE",null,0]
[null,null,"BOUTEILLE CLAIRETTE",null,0]
[null,null,"SANDWICHES",null,0]
[null,null,"GÂTEAUX",null,0]
[null,null,"SAUCISSE SUR ARDOISE ",null,{"$f":"VLOOKUP(C1863,Fichier,3,0)*D1863","v":0}]
[null,null,"ASSIETTE FROIDE / CRUDITES",null,0]
[null,134,"MINERALES",null,0,{"$f":"SUM(E1865:E1878)","v":0},"Payé","à rendre"]
[null,null,"BIÈRE",null,0,null,0,{"$f":"G1866-F1865","v":0}]
[null,null,"CAFE / THE",null,0]
[null,null,"VIN AU VERRE",null,0]
[null,null,"BOUTEILLE VIN BLANC",null,0]
[null,null,"BOUTEILLE VIN ROUGE",null,0]
[null,null,"COUPE CHAMPAGNE",null,0]
[null,null,"BOUTEILLE CHAMPAGNE",null,0]
[null,null,"COUPE CLAIRETTE",null,0]
[null,null,"BOUTEILLE CLAIRETTE",null,0]
[null,null,"SANDWICHES",null,0]
[null,null,"GÂTEAUX",null,0]
[null,null,"SAUCISSE SUR ARDOISE ",null,0]
[null,null,"ASSIETTE FROIDE / CRUDITES",null,0]
[null,135,"MINERALES",null,0,{"$f":"SUM(E1879:E1892)","v":0},"Payé","à rendre"]
[null,null,"BIÈRE",null,0,null,0,{"$f":"G1880-F1879","v":0}]
[null,null,"CAFE / THE",null,0]
[null,null,"VIN AU VERRE",null,0]
[null,null,"BOUTEILLE VIN BLANC",null,0]
[null,null,"BOUTEILLE VIN ROUGE",null,0]
[null,null,"COUPE CHAMPAGNE",null,0]
[null,null,"BOUTEILLE CHAMPAGNE",null,0]
[null,null,"COUPE CLAIRETTE",null,0]
[null,null,"BOUTEILLE CLAIRETTE",null,0]
[null,null,"SANDWICHES",null,0]
[null,null,"GÂTEAUX",null,0]
[null,null,"SAUCISSE SUR ARDOISE ",null,0]
[null,null,"ASSIETTE FROIDE / CRUDITES",null,0]
[null,136,"MINERALES",null,0,{"$f":"SUM(E1893:E1906)","v":0},"Payé","à rendre"]
[null,null,"BIÈRE",null,0,null,200,{"$f":"G1894-F1893","v":200}]
[null,null,"CAFE / THE",null,0]
[null,null,"VIN AU VERRE",null,0]
[null,null,"BOUTEILLE VIN BLANC",null,0]
[null,null,"BOUTEILLE VIN ROUGE",null,0]
[null,null,"COUPE CHAMPAGNE",null,0]
[null,null,"BOUTEILLE CHAMPAGNE",null,0]
[null,null,"COUPE CLAIRETTE",null,0]
[null,null,"BOUTEILLE CLAIRETTE",null,0]
[null,null,"SANDWICHES",null,0]
[null,null,"GÂTEAUX",null,0]
[null,null,"SAUCISSE SUR ARDOISE ",null,0]
[null,null,"ASSIETTE FROIDE / CRUDITES",null,0]
[null,137,"MINERALES",null,0,{"$f":"SUM(E1907:E1920)","v":0},"Payé","à rendre"]
[null,null,"BIÈRE",null,0,null,200,{"$f":"G1908-F1907","v":200}]
[null,null,"CAFE / THE",null,0]
[null,null,"VIN AU VERRE",null,0]
[null,null,"BOUTEILLE VIN BLANC",null,0]
[null,null,"BOUTEILLE VIN ROUGE",null,0]
[null,null,"COUPE CHAMPAGNE",null,0]
[null,null,"BOUTEILLE CHAMPAGNE",null,0]
[null,null,"COUPE CLAIRETTE",null,0]
[null,null,"BOUTEILLE CLAIRETTE",null,0]
[null,null,"SANDWICHES",null,0]
[null,null,"GÂTEAUX",null,0]
[null,null,"SAUCISSE SUR ARDOISE ",null,0]
[null,null,"ASSIETTE FROIDE / CRUDITES",null,0]
[null,138,"MINERALES",null,0,{"$f":"SUM(E1921:E1934)","v":0},"Payé","à rendre"]
[null,null,"BIÈRE",null,0,null,0,{"$f":"G1922-F1921","v":0}]
[null,null,"CAFE / THE",null,0]
[null,null,"VIN AU VERRE",null,0]
[null,null,"BOUTEILLE VIN BLANC",null,0]
[null,null,"BOUTEILLE VIN ROUGE",null,0]
[null,null,"COUPE CHAMPAGNE",null,0]
[null,null,"BOUTEILLE CHAMPAGNE",null,0]
[null,null,"COUPE CLAIRETTE",null,0]
[null,null,"BOUTEILLE CLAIRETTE",null,0]
[null,null,"SANDWICHES",null,0]
[null,null,"GÂTEAUX",null,{"$f":"VLOOKUP(C1932,Fichier,3,0)*D1932","v":0}]
[null,null,"SAUCISSE SUR ARDOISE ",null,0]
[null,null,"ASSIETTE FROIDE / CRUDITES",null,0]
[null,139,"MINERALES",null,0,{"$f":"SUM(E1935:E1948)","v":0},"Payé","à rendre"]
[null,null,"BIÈRE",null,0,null,0,{"$f":"G1936-F1935","v":0}]
[null,null,"CAFE / THE",null,0]
[null,null,"VIN AU VERRE",null,0]
[null,null,"BOUTEILLE VIN BLANC",null,0]
[null,null,"BOUTEILLE VIN ROUGE",null,0]
[null,null,"COUPE CHAMPAGNE",null,0]
[null,null,"BOUTEILLE CHAMPAGNE",null,0]
[null,null,"COUPE CLAIRETTE",null,0]
[null,null,"BOUTEILLE CLAIRETTE",null,0]
[null,null,"SANDWICHES",null,0]
[null,null,"GÂTEAUX",null,0]
[null,null,"SAUCISSE SUR ARDOISE ",null,0]
[null,null,"ASSIETTE FROIDE / CRUDITES",null,0]
[null,140,"MINERALES",null,0,{"$f":"SUM(E1949:E1962)","v":0},"Payé","à rendre"]
[null,null,"BIÈRE",null,0,null,0,{"$f":"G1950-F1949","v":0}]
[null,null,"CAFE / THE",null,0]
[null,null,"VIN AU VERRE",null,0]
[null,null,"BOUTEILLE VIN BLANC",null,0]
[null,null,"BOUTEILLE VIN ROUGE",null,0]
[null,null,"COUPE CHAMPAGNE",null,0]
[null,null,"BOUTEILLE CHAMPAGNE",null,0]
[null,null,"COUPE CLAIRETTE",null,0]
[null,null,"BOUTEILLE CLAIRETTE",null,0]
[null,null,"SANDWICHES",null,0]
[null,null,"GÂTEAUX",null,0]
[null,null,"SAUCISSE SUR ARDOISE ",null,0]
[null,null,"ASSIETTE FROIDE / CRUDITES",null,0]
[null,141,"MINERALES",null,0,{"$f":"SUM(E1963:E1976)","v":0},"Payé","à rendre"]
[null,null,"BIÈRE",null,0,null,0,{"$f":"G1964-F1963","v":0}]
[null,null,"CAFE / THE",null,0]
[null,null,"VIN AU VERRE",null,0]
[null,null,"BOUTEILLE VIN BLANC",null,0]
[null,null,"BOUTEILLE VIN ROUGE",null,0]
[null,null,"COUPE CHAMPAGNE",null,0]
[null,null,"BOUTEILLE CHAMPAGNE",null,0]
[null,null,"COUPE CLAIRETTE",null,0]
[null,null,"BOUTEILLE CLAIRETTE",null,0]
[null,null,"SANDWICHES",null,0]
[null,null,"GÂTEAUX",null,0]
[null,null,"SAUCISSE SUR ARDOISE ",null,0]
[null,null,"ASSIETTE FROIDE / CRUDITES",null,0]
[null,142,"MINERALES",null,0,{"$f":"SUM(E1977:E1990)","v":0},"Payé","à rendre"]
[null,null,"BIÈRE",null,0,null,0,{"$f":"G1978-F1977","v":0}]
[null,null,"CAFE / THE",null,0]
[null,null,"VIN AU VERRE",null,0]
[null,null,"BOUTEILLE VIN BLANC",null,0]
[null,null,"BOUTEILLE VIN ROUGE",null,0]
[null,null,"COUPE CHAMPAGNE",null,0]
[null,null,"BOUTEILLE CHAMPAGNE",null,0]
[null,null,"COUPE CLAIRETTE",null,0]
[null,null,"BOUTEILLE CLAIRETTE",null,0]
[null,null,"SANDWICHES",null,0]
[null,null,"GÂTEAUX",null,0]
[null,null,"SAUCISSE SUR ARDOISE ",null,0]
[null,null,"ASSIETTE FROIDE / CRUDITES",null,0]
[null,143,"MINERALES",null,0,{"$f":"SUM(E1991:E2004)","v":0},"Payé","à rendre"]
[null,null,"BIÈRE",null,0,null,0,{"$f":"G1992-F1991","v":0}]
[null,null,"CAFE / THE",null,0]
[null,null,"VIN AU VERRE",null,0]
[null,null,"BOUTEILLE VIN BLANC",null,0]
[null,null,"BOUTEILLE VIN ROUGE",null,0]
[null,null,"COUPE CHAMPAGNE",null,0]
[null,null,"BOUTEILLE CHAMPAGNE",null,0]
[null,null,"COUPE CLAIRETTE",null,0]
[null,null,"BOUTEILLE CLAIRETTE",null,0]
[null,null,"SANDWICHES",null,{"$f":"VLOOKUP(C2001,Fichier,3,0)*D2001","v":0}]
[null,null,"GÂTEAUX",null,0]
[null,null,"SAUCISSE SUR ARDOISE ",null,0]
[null,null,"ASSIETTE FROIDE / CRUDITES",null,0]
[null,144,"MINERALES",null,0,{"$f":"SUM(E2005:E2018)","v":0},"Payé","à rendre"]
[null,null,"BIÈRE",null,0,null,0,{"$f":"G2006-F2005","v":0}]
[null,null,"CAFE / THE",null,0]
[null,null,"VIN AU VERRE",null,0]
[null,null,"BOUTEILLE VIN BLANC",null,0]
[null,null,"BOUTEILLE VIN ROUGE",null,0]
[null,null,"COUPE CHAMPAGNE",null,0]
[null,null,"BOUTEILLE CHAMPAGNE",null,0]
[null,null,"COUPE CLAIRETTE",null,0]
[null,null,"BOUTEILLE CLAIRETTE",null,0]
[null,null,"SANDWICHES",null,0]
[null,null,"GÂTEAUX",null,0]
[null,null,"SAUCISSE SUR ARDOISE ",null,0]
[null,null,"ASSIETTE FROIDE / CRUDITES",null,0]
[null,145,"MINERALES",null,0,{"$f":"SUM(E2019:E2032)","v":0},"Payé","à rendre"]
[null,null,"BIÈRE",null,0,null,0,{"$f":"G2020-F2019","v":0}]
[null,null,"CAFE / THE",null,0]
[null,null,"VIN AU VERRE",null,0]
[null,null,"BOUTEILLE VIN BLANC",null,0]
[null,null,"BOUTEILLE VIN ROUGE",null,0]
[null,null,"COUPE CHAMPAGNE",null,0]
[null,null,"BOUTEILLE CHAMPAGNE",null,0]
[null,null,"COUPE CLAIRETTE",null,0]
[null,null,"BOUTEILLE CLAIRETTE",null,0]
[null,null,"SANDWICHES",null,0]
[null,null,"GÂTEAUX",null,0]
[null,null,"SAUCISSE SUR ARDOISE ",null,0]
[null,null,"ASSIETTE FROIDE / CRUDITES",null,0]
[null,146,"MINERALES",null,0,{"$f":"SUM(E2033:E2046)","v":0},"Payé","à rendre"]
[null,null,"BIÈRE",null,0,null,0,{"$f":"G2034-F2033","v":0}]
[null,null,"CAFE / THE",null,0]
[null,null,"VIN AU VERRE",null,0]
[null,null,"BOUTEILLE VIN BLANC",null,0]
[null,null,"BOUTEILLE VIN ROUGE",null,0]
[null,null,"COUPE CHAMPAGNE",null,0]
[null,null,"BOUTEILLE CHAMPAGNE",null,0]
[null,null,"COUPE CLAIRETTE",null,0]
[null,null,"BOUTEILLE CLAIRETTE",null,0]
[null,null,"SANDWICHES",null,0]
[null,null,"GÂTEAUX",null,0]
[null,null,"SAUCISSE SUR ARDOISE ",null,0]
[null,null,"ASSIETTE FROIDE / CRUDITES",null,0]
[null,147,"MINERALES",null,0,{"$f":"SUM(E2047:E2060)","v":0},"Payé","à rendre"]
[null,null,"BIÈRE",null,0,null,0,{"$f":"G2048-F2047","v":0}]
[null,null,"CAFE / THE",null,0]
[null,null,"VIN AU VERRE",null,0]
[null,null,"BOUTEILLE VIN BLANC",null,0]
[null,null,"BOUTEILLE VIN ROUGE",null,0]
[null,null,"COUPE CHAMPAGNE",null,0]
[null,null,"BOUTEILLE CHAMPAGNE",null,0]
[null,null,"COUPE CLAIRETTE",null,0]
[null,null,"BOUTEILLE CLAIRETTE",null,0]
[null,null,"SANDWICHES",null,0]
[null,null,"GÂTEAUX",null,0]
[null,null,"SAUCISSE SUR ARDOISE ",null,0]
[null,null,"ASSIETTE FROIDE / CRUDITES",null,0]
[null,148,"MINERALES",null,0,{"$f":"SUM(E2061:E2074)","v":0},"Payé","à rendre"]
[null,null,"BIÈRE",null,0,null,0,{"$f":"G2062-F2061","v":0}]
[null,null,"CAFE / THE",null,0]
[null,null,"VIN AU VERRE",null,0]
[null,null,"BOUTEILLE VIN BLANC",null,0]
[null,null,"BOUTEILLE VIN ROUGE",null,0]
[null,null,"COUPE CHAMPAGNE",null,0]
[null,null,"BOUTEILLE CHAMPAGNE",null,0]
[null,null,"COUPE CLAIRETTE",null,0]
[null,null,"BOUTEILLE CLAIRETTE",null,{"$f":"VLOOKUP(C2070,Fichier,3,0)*D2070","v":0}]
[null,null,"SANDWICHES",null,0]
[null,null,"GÂTEAUX",null,0]
[null,null,"SAUCISSE SUR ARDOISE ",null,0]
[null,null,"ASSIETTE FROIDE / CRUDITES",null,0]
[null,149,"MINERALES",null,0,{"$f":"SUM(E2075:E2088)","v":0},"Payé","à rendre"]
[null,null,"BIÈRE",null,0,null,0,{"$f":"G2076-F2075","v":0}]
[null,null,"CAFE / THE",null,0]
[null,null,"VIN AU VERRE",null,0]
[null,null,"BOUTEILLE VIN BLANC",null,0]
[null,null,"BOUTEILLE VIN ROUGE",null,0]
[null,null,"COUPE CHAMPAGNE",null,0]
[null,null,"BOUTEILLE CHAMPAGNE",null,0]
[null,null,"COUPE CLAIRETTE",null,0]
[null,null,"BOUTEILLE CLAIRETTE",null,0]
[null,null,"SANDWICHES",null,0]
[null,null,"GÂTEAUX",null,0]
[null,null,"SAUCISSE SUR ARDOISE ",null,0]
[null,null,"ASSIETTE FROIDE / CRUDITES",null,0]
[null,150,"MINERALES",null,0,{"$f":"SUM(E2089:E2102)","v":0},"Payé","à rendre"]
[null,null,"BIÈRE",null,0,null,0,{"$f":"G2090-F2089","v":0}]
[null,null,"CAFE / THE",null,0]
[null,null,"VIN AU VERRE",null,0]
[null,null,"BOUTEILLE VIN BLANC",null,0]
[null,null,"BOUTEILLE VIN ROUGE",null,0]
[null,null,"COUPE CHAMPAGNE",null,0]
[null,null,"BOUTEILLE CHAMPAGNE",null,0]
[null,null,"COUPE CLAIRETTE",null,0]
[null,null,"BOUTEILLE CLAIRETTE",null,0]
[null,null,"SANDWICHES",null,0]
[null,null,"GÂTEAUX",null,0]
[null,null,"SAUCISSE SUR ARDOISE ",null,0]
[null,null,"ASSIETTE FROIDE / CRUDITES",null,0]
[null,151,"MINERALES",null,0,{"$f":"SUM(E2103:E2116)","v":0},"Payé","à rendre"]
[null,null,"BIÈRE",null,0,null,0,{"$f":"G2104-F2103","v":0}]
[null,null,"CAFE / THE",null,0]
[null,null,"VIN AU VERRE",null,0]
[null,null,"BOUTEILLE VIN BLANC",null,0]
[null,null,"BOUTEILLE VIN ROUGE",null,0]
[null,null,"COUPE CHAMPAGNE",null,0]
[null,null,"BOUTEILLE CHAMPAGNE",null,0]
[null,null,"COUPE CLAIRETTE",null,0]
[null,null,"BOUTEILLE CLAIRETTE",null,0]
[null,null,"SANDWICHES",null,0]
[null,null,"GÂTEAUX",null,0]
[null,null,"SAUCISSE SUR ARDOISE ",null,0]
[null,null,"ASSIETTE FROIDE / CRUDITES",null,0]
[null,152,"MINERALES",null,0,{"$f":"SUM(E2117:E2130)","v":0},"Payé","à rendre"]
[null,null,"BIÈRE",null,0,null,0,{"$f":"G2118-F2117","v":0}]
[null,null,"CAFE / THE",null,0]
[null,null,"VIN AU VERRE",null,0]
[null,null,"BOUTEILLE VIN BLANC",null,0]
[null,null,"BOUTEILLE VIN ROUGE",null,0]
[null,null,"COUPE CHAMPAGNE",null,0]
[null,null,"BOUTEILLE CHAMPAGNE",null,0]
[null,null,"COUPE CLAIRETTE",null,0]
[null,null,"BOUTEILLE CLAIRETTE",null,0]
[null,null,"SANDWICHES",null,0]
[null,null,"GÂTEAUX",null,0]
[null,null,"SAUCISSE SUR ARDOISE ",null,0]
[null,null,"ASSIETTE FROIDE / CRUDITES",null,0]
[null,153,"MINERALES",null,0,{"$f":"SUM(E2131:E2144)","v":0},"Payé","à rendre"]
[null,null,"BIÈRE",null,0,null,0,{"$f":"G2132-F2131","v":0}]
[null,null,"CAFE / THE",null,0]
[null,null,"VIN AU VERRE",null,0]
[null,null,"BOUTEILLE VIN BLANC",null,0]
[null,null,"BOUTEILLE VIN ROUGE",null,0]
[null,null,"COUPE CHAMPAGNE",null,0]
[null,null,"BOUTEILLE CHAMPAGNE",null,0]
[null,null,"COUPE CLAIRETTE",null,{"$f":"VLOOKUP(C2139,Fichier,3,0)*D2139","v":0}]
[null,null,"BOUTEILLE CLAIRETTE",null,0]
[null,null,"SANDWICHES",null,0]
[null,null,"GÂTEAUX",null,0]
[null,null,"SAUCISSE SUR ARDOISE ",null,0]
[null,null,"ASSIETTE FROIDE / CRUDITES",null,0]
[null,154,"MINERALES",null,0,{"$f":"SUM(E2145:E2158)","v":0},"Payé","à rendre"]
[null,null,"BIÈRE",null,0,null,0,{"$f":"G2146-F2145","v":0}]
[null,null,"CAFE / THE",null,0]
[null,null,"VIN AU VERRE",null,0]
[null,null,"BOUTEILLE VIN BLANC",null,0]
[null,null,"BOUTEILLE VIN ROUGE",null,0]
[null,null,"COUPE CHAMPAGNE",null,0]
[null,null,"BOUTEILLE CHAMPAGNE",null,0]
[null,null,"COUPE CLAIRETTE",null,0]
[null,null,"BOUTEILLE CLAIRETTE",null,0]
[null,null,"SANDWICHES",null,0]
[null,null,"GÂTEAUX",null,0]
[null,null,"SAUCISSE SUR ARDOISE ",null,0]
[null,null,"ASSIETTE FROIDE / CRUDITES",null,0]
[null,155,"MINERALES",null,0,{"$f":"SUM(E2159:E2172)","v":0},"Payé","à rendre"]
[null,null,"BIÈRE",null,0,null,0,{"$f":"G2160-F2159","v":0}]
[null,null,"CAFE / THE",null,0]
[null,null,"VIN AU VERRE",null,0]
[null,null,"BOUTEILLE VIN BLANC",null,0]
[null,null,"BOUTEILLE VIN ROUGE",null,0]
[null,null,"COUPE CHAMPAGNE",null,0]
[null,null,"BOUTEILLE CHAMPAGNE",null,0]
[null,null,"COUPE CLAIRETTE",null,0]
[null,null,"BOUTEILLE CLAIRETTE",null,0]
[null,null,"SANDWICHES",null,0]
[null,null,"GÂTEAUX",null,0]
[null,null,"SAUCISSE SUR ARDOISE ",null,0]
[null,null,"ASSIETTE FROIDE / CRUDITES",null,0]
[null,156,"MINERALES",null,0,{"$f":"SUM(E2173:E2186)","v":0},"Payé","à rendre"]
[null,null,"BIÈRE",null,0,null,0,{"$f":"G2174-F2173","v":0}]
[null,null,"CAFE / THE",null,0]
[null,null,"VIN AU VERRE",null,0]
[null,null,"BOUTEILLE VIN BLANC",null,0]
[null,null,"BOUTEILLE VIN ROUGE",null,0]
[null,null,"COUPE CHAMPAGNE",null,0]
[null,null,"BOUTEILLE CHAMPAGNE",null,0]
[null,null,"COUPE CLAIRETTE",null,0]
[null,null,"BOUTEILLE CLAIRETTE",null,0]
[null,null,"SANDWICHES",null,0]
[null,null,"GÂTEAUX",null,0]
[null,null,"SAUCISSE SUR ARDOISE ",null,0]
[null,null,"ASSIETTE FROIDE / CRUDITES",null,0]
[null,157,"MINERALES",null,0,{"$f":"SUM(E2187:E2200)","v":0},"Payé","à rendre"]
[null,null,"BIÈRE",null,0,null,0,{"$f":"G2188-F2187","v":0}]
[null,null,"CAFE / THE",null,0]
[null,null,"VIN AU VERRE",null,0]
[null,null,"BOUTEILLE VIN BLANC",null,0]
[null,null,"BOUTEILLE VIN ROUGE",null,0]
[null,null,"COUPE CHAMPAGNE",null,0]
[null,null,"BOUTEILLE CHAMPAGNE",null,0]
[null,null,"COUPE CLAIRETTE",null,0]
[null,null,"BOUTEILLE CLAIRETTE",null,0]
[null,null,"SANDWICHES",null,0]
[null,null,"GÂTEAUX",null,0]
[null,null,"SAUCISSE SUR ARDOISE ",null,0]
[null,null,"ASSIETTE FROIDE / CRUDITES",null,0]
[null,158,"MINERALES",null,0,{"$f":"SUM(E2201:E2214)","v":0},"Payé","à rendre"]
[null,null,"BIÈRE",null,0,null,0,{"$f":"G2202-F2201","v":0}]
[null,null,"CAFE / THE",null,0]
[null,null,"VIN AU VERRE",null,0]
[null,null,"BOUTEILLE VIN BLANC",null,0]
[null,null,"BOUTEILLE VIN ROUGE",null,0]
[null,null,"COUPE CHAMPAGNE",null,0]
[null,null,"BOUTEILLE CHAMPAGNE",null,{"$f":"VLOOKUP(C2208,Fichier,3,0)*D2208","v":0}]
[null,null,"COUPE CLAIRETTE",null,0]
[null,null,"BOUTEILLE CLAIRETTE",null,0]
[null,null,"SANDWICHES",null,0]
[null,null,"GÂTEAUX",null,0]
[null,null,"SAUCISSE SUR ARDOISE ",null,0]
[null,null,"ASSIETTE FROIDE / CRUDITES",null,0]
[null,159,"MINERALES",null,0,{"$f":"SUM(E2215:E2228)","v":0},"Payé","à rendre"]
[null,null,"BIÈRE",null,0,null,0,{"$f":"G2216-F2215","v":0}]
[null,null,"CAFE / THE",null,0]
[null,null,"VIN AU VERRE",null,0]
[null,null,"BOUTEILLE VIN BLANC",null,0]
[null,null,"BOUTEILLE VIN ROUGE",null,0]
[null,null,"COUPE CHAMPAGNE",null,0]
[null,null,"BOUTEILLE CHAMPAGNE",null,0]
[null,null,"COUPE CLAIRETTE",null,0]
[null,null,"BOUTEILLE CLAIRETTE",null,0]
[null,null,"SANDWICHES",null,0]
[null,null,"GÂTEAUX",null,0]
[null,null,"SAUCISSE SUR ARDOISE ",null,0]
[null,null,"ASSIETTE FROIDE / CRUDITES",null,0]
[null,160,"MINERALES",null,0,{"$f":"SUM(E2229:E2242)","v":0},"Payé","à rendre"]
[null,null,"BIÈRE",null,0,null,0,{"$f":"G2230-F2229","v":0}]
[null,null,"CAFE / THE",null,0]
[null,null,"VIN AU VERRE",null,0]
[null,null,"BOUTEILLE VIN BLANC",null,0]
[null,null,"BOUTEILLE VIN ROUGE",null,0]
[null,null,"COUPE CHAMPAGNE",null,0]
[null,null,"BOUTEILLE CHAMPAGNE",null,0]
[null,null,"COUPE CLAIRETTE",null,0]
[null,null,"BOUTEILLE CLAIRETTE",null,0]
[null,null,"SANDWICHES",null,0]
[null,null,"GÂTEAUX",null,0]
[null,null,"SAUCISSE SUR ARDOISE ",null,0]
[null,null,"ASSIETTE FROIDE / CRUDITES",null,0]
[null,161,"MINERALES",null,0,{"$f":"SUM(E2243:E2256)","v":0},"Payé","à rendre"]
[null,null,"BIÈRE",null,0,null,0,{"$f":"G2244-F2243","v":0}]
[null,null,"CAFE / THE",null,0]
[null,null,"VIN AU VERRE",null,0]
[null,null,"BOUTEILLE VIN BLANC",null,0]
[null,null,"BOUTEILLE VIN ROUGE",null,0]
[null,null,"COUPE CHAMPAGNE",null,0]
[null,null,"BOUTEILLE CHAMPAGNE",null,0]
[null,null,"COUPE CLAIRETTE",null,0]
[null,null,"BOUTEILLE CLAIRETTE",null,0]
[null,null,"SANDWICHES",null,0]
[null,null,"GÂTEAUX",null,0]
[null,null,"SAUCISSE SUR ARDOISE ",null,0]
[null,null,"ASSIETTE FROIDE / CRUDITES",null,0]
[null,162,"MINERALES",null,0,{"$f":"SUM(E2257:E2270)","v":0},"Payé","à rendre"]
[null,null,"BIÈRE",null,0,null,0,{"$f":"G2258-F2257","v":0}]
[null,null,"CAFE / THE",null,0]
[null,null,"VIN AU VERRE",null,0]
[null,null,"BOUTEILLE VIN BLANC",null,0]
[null,null,"BOUTEILLE VIN ROUGE",null,0]
[null,null,"COUPE CHAMPAGNE",null,0]
[null,null,"BOUTEILLE CHAMPAGNE",null,0]
[null,null,"COUPE CLAIRETTE",null,0]
[null,null,"BOUTEILLE CLAIRETTE",null,0]
[null,null,"SANDWICHES",null,0]
[null,null,"GÂTEAUX",null,0]
[null,null,"SAUCISSE SUR ARDOISE ",null,0]
[null,null,"ASSIETTE FROIDE / CRUDITES",null,0]
[null,163,"MINERALES",null,0,{"$f":"SUM(E2271:E2284)","v":0},"Payé","à rendre"]
[null,null,"BIÈRE",null,0,null,0,{"$f":"G2272-F2271","v":0}]
[null,null,"CAFE / THE",null,0]
[null,null,"VIN AU VERRE",null,0]
[null,null,"BOUTEILLE VIN BLANC",null,0]
[null,null,"BOUTEILLE VIN ROUGE",null,0]
[null,null,"COUPE CHAMPAGNE",null,{"$f":"VLOOKUP(C2277,Fichier,3,0)*D2277","v":0}]
[null,null,"BOUTEILLE CHAMPAGNE",null,0]
[null,null,"COUPE CLAIRETTE",null,0]
[null,null,"BOUTEILLE CLAIRETTE",null,0]
[null,null,"SANDWICHES",null,0]
[null,null,"GÂTEAUX",null,0]
[null,null,"SAUCISSE SUR ARDOISE ",null,0]
[null,null,"ASSIETTE FROIDE / CRUDITES",null,0]
[null,164,"MINERALES",null,0,{"$f":"SUM(E2285:E2298)","v":0},"Payé","à rendre"]
[null,null,"BIÈRE",null,0,null,0,{"$f":"G2286-F2285","v":0}]
[null,null,"CAFE / THE",null,0]
[null,null,"VIN AU VERRE",null,0]
[null,null,"BOUTEILLE VIN BLANC",null,0]
[null,null,"BOUTEILLE VIN ROUGE",null,0]
[null,null,"COUPE CHAMPAGNE",null,0]
[null,null,"BOUTEILLE CHAMPAGNE",null,0]
[null,null,"COUPE CLAIRETTE",null,0]
[null,null,"BOUTEILLE CLAIRETTE",null,0]
[null,null,"SANDWICHES",null,0]
[null,null,"GÂTEAUX",null,0]
[null,null,"SAUCISSE SUR ARDOISE ",null,0]
[null,null,"ASSIETTE FROIDE / CRUDITES",null,0]
[null,165,"MINERALES",null,0,{"$f":"SUM(E2299:E2312)","v":0},"Payé","à rendre"]
[null,null,"BIÈRE",null,0,null,0,{"$f":"G2300-F2299","v":0}]
[null,null,"CAFE / THE",null,0]
[null,null,"VIN AU VERRE",null,0]
[null,null,"BOUTEILLE VIN BLANC",null,0]
[null,null,"BOUTEILLE VIN ROUGE",null,0]
[null,null,"COUPE CHAMPAGNE",null,0]
[null,null,"BOUTEILLE CHAMPAGNE",null,0]
[null,null,"COUPE CLAIRETTE",null,0]
[null,null,"BOUTEILLE CLAIRETTE",null,0]
[null,null,"SANDWICHES",null,0]
[null,null,"GÂTEAUX",null,0]
[null,null,"SAUCISSE SUR ARDOISE ",null,0]
[null,null,"ASSIETTE FROIDE / CRUDITES",null,0]
[null,166,"MINERALES",null,0,{"$f":"SUM(E2313:E2326)","v":0},"Payé","à rendre"]
[null,null,"BIÈRE",null,0,null,0,{"$f":"G2314-F2313","v":0}]
[null,null,"CAFE / THE",null,0]
[null,null,"VIN AU VERRE",null,0]
[null,null,"BOUTEILLE VIN BLANC",null,0]
[null,null,"BOUTEILLE VIN ROUGE",null,0]
[null,null,"COUPE CHAMPAGNE",null,0]
[null,null,"BOUTEILLE CHAMPAGNE",null,0]
[null,null,"COUPE CLAIRETTE",null,0]
[null,null,"BOUTEILLE CLAIRETTE",null,0]
[null,null,"SANDWICHES",null,0]
[null,null,"GÂTEAUX",null,0]
[null,null,"SAUCISSE SUR ARDOISE ",null,0]
[null,null,"ASSIETTE FROIDE / CRUDITES",null,0]
[null,167,"MINERALES",null,0,{"$f":"SUM(E2327:E2340)","v":0},"Payé","à rendre"]
[null,null,"BIÈRE",null,0,null,0,{"$f":"G2328-F2327","v":0}]
[null,null,"CAFE / THE",null,0]
[null,null,"VIN AU VERRE",null,0]
[null,null,"BOUTEILLE VIN BLANC",null,0]
[null,null,"BOUTEILLE VIN ROUGE",null,0]
[null,null,"COUPE CHAMPAGNE",null,0]
[null,null,"BOUTEILLE CHAMPAGNE",null,0]
[null,null,"COUPE CLAIRETTE",null,0]
[null,null,"BOUTEILLE CLAIRETTE",null,0]
[null,null,"SANDWICHES",null,0]
[null,null,"GÂTEAUX",null,0]
[null,null,"SAUCISSE SUR ARDOISE ",null,0]
[null,null,"ASSIETTE FROIDE / CRUDITES",null,0]
[null,168,"MINERALES",null,0,{"$f":"SUM(E2341:E2354)","v":0},"Payé","à rendre"]
[null,null,"BIÈRE",null,0,null,0,{"$f":"G2342-F2341","v":0}]
[null,null,"CAFE / THE",null,0]
[null,null,"VIN AU VERRE",null,0]
[null,null,"BOUTEILLE VIN BLANC",null,0]
[null,null,"BOUTEILLE VIN ROUGE",null,{"$f":"VLOOKUP(C2346,Fichier,3,0)*D2346","v":0}]
[null,null,"COUPE CHAMPAGNE",null,0]
[null,null,"BOUTEILLE CHAMPAGNE",null,0]
[null,null,"COUPE CLAIRETTE",null,0]
[null,null,"BOUTEILLE CLAIRETTE",null,0]
[null,null,"SANDWICHES",null,0]
[null,null,"GÂTEAUX",null,0]
[null,null,"SAUCISSE SUR ARDOISE ",null,0]
[null,null,"ASSIETTE FROIDE / CRUDITES",null,0]
[null,169,"MINERALES",null,0,{"$f":"SUM(E2355:E2368)","v":0},"Payé","à rendre"]
[null,null,"BIÈRE",null,0,null,0,{"$f":"G2356-F2355","v":0}]
[null,null,"CAFE / THE",null,0]
[null,null,"VIN AU VERRE",null,0]
[null,null,"BOUTEILLE VIN BLANC",null,0]
[null,null,"BOUTEILLE VIN ROUGE",null,0]
[null,null,"COUPE CHAMPAGNE",null,0]
[null,null,"BOUTEILLE CHAMPAGNE",null,0]
[null,null,"COUPE CLAIRETTE",null,0]
[null,null,"BOUTEILLE CLAIRETTE",null,0]
[null,null,"SANDWICHES",null,0]
[null,null,"GÂTEAUX",null,0]
[null,null,"SAUCISSE SUR ARDOISE ",null,0]
[null,null,"ASSIETTE FROIDE / CRUDITES",null,0]
[null,170,"MINERALES",null,0,{"$f":"SUM(E2369:E2382)","v":0},"Payé","à rendre"]
[null,null,"BIÈRE",null,0,null,0,{"$f":"G2370-F2369","v":0}]
[null,null,"CAFE / THE",null,0]
[null,null,"VIN AU VERRE",null,0]
[null,null,"BOUTEILLE VIN BLANC",null,0]
[null,null,"BOUTEILLE VIN ROUGE",null,0]
[null,null,"COUPE CHAMPAGNE",null,0]
[null,null,"BOUTEILLE CHAMPAGNE",null,0]
[null,null,"COUPE CLAIRETTE",null,0]
[null,null,"BOUTEILLE CLAIRETTE",null,0]
[null,null,"SANDWICHES",null,0]
[null,null,"GÂTEAUX",null,0]
[null,null,"SAUCISSE SUR ARDOISE ",null,0]
[null,null,"ASSIETTE FROIDE / CRUDITES",null,0]
[null,171,"MINERALES",null,0,{"$f":"SUM(E2383:E2396)","v":0},"Payé","à rendre"]
[null,null,"BIÈRE",null,0,null,0,{"$f":"G2384-F2383","v":0}]
[null,null,"CAFE / THE",null,0]
[null,null,"VIN AU VERRE",null,0]
[null,null,"BOUTEILLE VIN BLANC",null,0]
[null,null,"BOUTEILLE VIN ROUGE",null,0]
[null,null,"COUPE CHAMPAGNE",null,0]
[null,null,"BOUTEILLE CHAMPAGNE",null,0]
[null,null,"COUPE CLAIRETTE",null,0]
[null,null,"BOUTEILLE CLAIRETTE",null,0]
[null,null,"SANDWICHES",null,0]
[null,null,"GÂTEAUX",null,0]
[null,null,"SAUCISSE SUR ARDOISE ",null,0]
[null,null,"ASSIETTE FROIDE / CRUDITES",null,0]
[null,172,"MINERALES",null,0,{"$f":"SUM(E2397:E2410)","v":0},"Payé","à rendre"]
[null,null,"BIÈRE",null,0,null,0,{"$f":"G2398-F2397","v":0}]
[null,null,"CAFE / THE",null,0]
[null,null,"VIN AU VERRE",null,0]
[null,null,"BOUTEILLE VIN BLANC",null,0]
[null,null,"BOUTEILLE VIN ROUGE",null,0]
[null,null,"COUPE CHAMPAGNE",null,0]
[null,null,"BOUTEILLE CHAMPAGNE",null,0]
[null,null,"COUPE CLAIRETTE",null,0]
[null,null,"BOUTEILLE CLAIRETTE",null,0]
[null,null,"SANDWICHES",null,0]
[null,null,"GÂTEAUX",null,0]
[null,null,"SAUCISSE SUR ARDOISE ",null,0]
[null,null,"ASSIETTE FROIDE / CRUDITES",null,0]
[null,173,"MINERALES",null,0,{"$f":"SUM(E2411:E2424)","v":0},"Payé","à rendre"]
[null,null,"BIÈRE",null,0,null,0,{"$f":"G2412-F2411","v":0}]
[null,null,"CAFE / THE",null,0]
[null,null,"VIN AU VERRE",null,0]
[null,null,"BOUTEILLE VIN BLANC",null,{"$f":"VLOOKUP(C2415,Fichier,3,0)*D2415","v":0}]
[null,null,"BOUTEILLE VIN ROUGE",null,0]
[null,null,"COUPE CHAMPAGNE",null,0]
[null,null,"BOUTEILLE CHAMPAGNE",null,0]
[null,null,"COUPE CLAIRETTE",null,0]
[null,null,"BOUTEILLE CLAIRETTE",null,0]
[null,null,"SANDWICHES",null,0]
[null,null,"GÂTEAUX",null,0]
[null,null,"SAUCISSE SUR ARDOISE ",null,0]
[null,null,"ASSIETTE FROIDE / CRUDITES",null,0]
[null,174,"MINERALES",null,0,{"$f":"SUM(E2425:E2438)","v":0},"Payé","à rendre"]
[null,null,"BIÈRE",null,0,null,0,{"$f":"G2426-F2425","v":0}]
[null,null,"CAFE / THE",null,0]
[null,null,"VIN AU VERRE",null,0]
[null,null,"BOUTEILLE VIN BLANC",null,0]
[null,null,"BOUTEILLE VIN ROUGE",null,0]
[null,null,"COUPE CHAMPAGNE",null,0]
[null,null,"BOUTEILLE CHAMPAGNE",null,0]
[null,null,"COUPE CLAIRETTE",null,0]
[null,null,"BOUTEILLE CLAIRETTE",null,0]
[null,null,"SANDWICHES",null,0]
[null,null,"GÂTEAUX",null,0]
[null,null,"SAUCISSE SUR ARDOISE ",null,0]
[null,null,"ASSIETTE FROIDE / CRUDITES",null,0]
[null,175,"MINERALES",null,0,{"$f":"SUM(E2439:E2452)","v":0},"Payé","à rendre"]
[null,null,"BIÈRE",null,0,null,0,{"$f":"G2440-F2439","v":0}]
[null,null,"CAFE / THE",null,0]
[null,null,"VIN AU VERRE",null,0]
[null,null,"BOUTEILLE VIN BLANC",null,0]
[null,null,"BOUTEILLE VIN ROUGE",null,0]
[null,null,"COUPE CHAMPAGNE",null,0]
[null,null,"BOUTEILLE CHAMPAGNE",null,0]
[null,null,"COUPE CLAIRETTE",null,0]
[null,null,"BOUTEILLE CLAIRETTE",null,0]
[null,null,"SANDWICHES",null,0]
[null,null,"GÂTEAUX",null,0]
[null,null,"SAUCISSE SUR ARDOISE ",null,0]
[null,null,"ASSIETTE FROIDE / CRUDITES",null,0]
[null,176,"MINERALES",null,0,{"$f":"SUM(E2453:E2466)","v":0},"Payé","à rendre"]
[null,null,"BIÈRE",null,0,null,0,{"$f":"G2454-F2453","v":0}]
[null,null,"CAFE / THE",null,0]
[null,null,"VIN AU VERRE",null,0]
[null,null,"BOUTEILLE VIN BLANC",null,0]
[null,null,"BOUTEILLE VIN ROUGE",null,0]
[null,null,"COUPE CHAMPAGNE",null,0]
[null,null,"BOUTEILLE CHAMPAGNE",null,0]
[null,null,"COUPE CLAIRETTE",null,0]
[null,null,"BOUTEILLE CLAIRETTE",null,0]
[null,null,"SANDWICHES",null,0]
[null,null,"GÂTEAUX",null,0]
[null,null,"SAUCISSE SUR ARDOISE ",null,0]
[null,null,"ASSIETTE FROIDE / CRUDITES",null,0]
[null,177,"MINERALES",null,0,{"$f":"SUM(E2467:E2480)","v":0},"Payé","à rendre"]
[null,null,"BIÈRE",null,0,null,0,{"$f":"G2468-F2467","v":0}]
[null,null,"CAFE / THE",null,0]
[null,null,"VIN AU VERRE",null,0]
[null,null,"BOUTEILLE VIN BLANC",null,0]
[null,null,"BOUTEILLE VIN ROUGE",null,0]
[null,null,"COUPE CHAMPAGNE",null,0]
[null,null,"BOUTEILLE CHAMPAGNE",null,0]
[null,null,"COUPE CLAIRETTE",null,0]
[null,null,"BOUTEILLE CLAIRETTE",null,0]
[null,null,"SANDWICHES",null,0]
[null,null,"GÂTEAUX",null,0]
[null,null,"SAUCISSE SUR ARDOISE ",null,0]
[null,null,"ASSIETTE FROIDE / CRUDITES",null,0]
[null,178,"MINERALES",null,0,{"$f":"SUM(E2481:E2494)","v":0},"Payé","à rendre"]
[null,null,"BIÈRE",null,0,null,0,{"$f":"G2482-F2481","v":0}]
[null,null,"CAFE / THE",null,0]
[null,null,"VIN AU VERRE",null,{"$f":"VLOOKUP(C2484,Fichier,3,0)*D2484","v":0}]
[null,null,"BOUTEILLE VIN BLANC",null,0]
[null,null,"BOUTEILLE VIN ROUGE",null,0]
[null,null,"COUPE CHAMPAGNE",null,0]
[null,null,"BOUTEILLE CHAMPAGNE",null,0]
[null,null,"COUPE CLAIRETTE",null,0]
[null,null,"BOUTEILLE CLAIRETTE",null,0]
[null,null,"SANDWICHES",null,0]
[null,null,"GÂTEAUX",null,0]
[null,null,"SAUCISSE SUR ARDOISE ",null,0]
[null,null,"ASSIETTE FROIDE / CRUDITES",null,0]
[null,179,"MINERALES",null,0,{"$f":"SUM(E2495:E2508)","v":0},"Payé","à rendre"]
[null,null,"BIÈRE",null,0,null,0,{"$f":"G2496-F2495","v":0}]
[null,null,"CAFE / THE",null,0]
[null,null,"VIN AU VERRE",null,0]
[null,null,"BOUTEILLE VIN BLANC",null,0]
[null,null,"BOUTEILLE VIN ROUGE",null,0]
[null,null,"COUPE CHAMPAGNE",null,0]
[null,null,"BOUTEILLE CHAMPAGNE",null,0]
[null,null,"COUPE CLAIRETTE",null,0]
[null,null,"BOUTEILLE CLAIRETTE",null,0]
[null,null,"SANDWICHES",null,0]
[null,null,"GÂTEAUX",null,0]
[null,null,"SAUCISSE SUR ARDOISE ",null,0]
[null,null,"ASSIETTE FROIDE / CRUDITES",null,0]
[null,180,"MINERALES",null,0,{"$f":"SUM(E2509:E2522)","v":0},"Payé","à rendre"]
[null,null,"BIÈRE",null,0,null,0,{"$f":"G2510-F2509","v":0}]
[null,null,"CAFE / THE",null,0]
[null,null,"VIN AU VERRE",null,0]
[null,null,"BOUTEILLE VIN BLANC",null,0]
[null,null,"BOUTEILLE VIN ROUGE",null,0]
[null,null,"COUPE CHAMPAGNE",null,0]
[null,null,"BOUTEILLE CHAMPAGNE",null,0]
[null,null,"COUPE CLAIRETTE",null,0]
[null,null,"BOUTEILLE CLAIRETTE",null,0]
[null,null,"SANDWICHES",null,0]
[null,null,"GÂTEAUX",null,0]
[null,null,"SAUCISSE SUR ARDOISE ",null,0]
[null,null,"ASSIETTE FROIDE / CRUDITES",null,0]
[null,181,"MINERALES",null,0,{"$f":"SUM(E2523:E2536)","v":0},"Payé","à rendre"]
[null,null,"BIÈRE",null,0,null,0,{"$f":"G2524-F2523","v":0}]
[null,null,"CAFE / THE",null,0]
[null,null,"VIN AU VERRE",null,0]
[null,null,"BOUTEILLE VIN BLANC",null,0]
[null,null,"BOUTEILLE VIN ROUGE",null,0]
[null,null,"COUPE CHAMPAGNE",null,0]
[null,null,"BOUTEILLE CHAMPAGNE",null,0]
[null,null,"COUPE CLAIRETTE",null,0]
[null,null,"BOUTEILLE CLAIRETTE",null,0]
[null,null,"SANDWICHES",null,0]
[null,null,"GÂTEAUX",null,0]
[null,null,"SAUCISSE SUR ARDOISE ",null,0]
[null,null,"ASSIETTE FROIDE / CRUDITES",null,0]
[null,182,"MINERALES",null,0,{"$f":"SUM(E2537:E2550)","v":0},"Payé","à rendre"]
[null,null,"BIÈRE",null,0,null,0,{"$f":"G2538-F2537","v":0}]
[null,null,"CAFE / THE",null,0]
[null,null,"VIN AU VERRE",null,0]
[null,null,"BOUTEILLE VIN BLANC",null,0]
[null,null,"BOUTEILLE VIN ROUGE",null,0]
[null,null,"COUPE CHAMPAGNE",null,0]
[null,null,"BOUTEILLE CHAMPAGNE",null,0]
[null,null,"COUPE CLAIRETTE",null,0]
[null,null,"BOUTEILLE CLAIRETTE",null,0]
[null,null,"SANDWICHES",null,0]
[null,null,"GÂTEAUX",null,0]
[null,null,"SAUCISSE SUR ARDOISE ",null,0]
[null,null,"ASSIETTE FROIDE / CRUDITES",null,0]
[null,183,"MINERALES",null,0,{"$f":"SUM(E2551:E2564)","v":0},"Payé","à rendre"]
[null,null,"BIÈRE",null,0,null,0,{"$f":"G2552-F2551","v":0}]
[null,null,"CAFE / THE",null,{"$f":"VLOOKUP(C2553,Fichier,3,0)*D2553","v":0}]
[null,null,"VIN AU VERRE",null,0]
[null,null,"BOUTEILLE VIN BLANC",null,0]
[null,null,"BOUTEILLE VIN ROUGE",null,0]
[null,null,"COUPE CHAMPAGNE",null,0]
[null,null,"BOUTEILLE CHAMPAGNE",null,0]
[null,null,"COUPE CLAIRETTE",null,0]
[null,null,"BOUTEILLE CLAIRETTE",null,0]
[null,null,"SANDWICHES",null,0]
[null,null,"GÂTEAUX",null,0]
[null,null,"SAUCISSE SUR ARDOISE ",null,0]
[null,null,"ASSIETTE FROIDE / CRUDITES",null,0]
[null,184,"MINERALES",null,0,{"$f":"SUM(E2565:E2578)","v":0},"Payé","à rendre"]
[null,null,"BIÈRE",null,0,null,0,{"$f":"G2566-F2565","v":0}]
[null,null,"CAFE / THE",null,0]
[null,null,"VIN AU VERRE",null,0]
[null,null,"BOUTEILLE VIN BLANC",null,0]
[null,null,"BOUTEILLE VIN ROUGE",null,0]
[null,null,"COUPE CHAMPAGNE",null,0]
[null,null,"BOUTEILLE CHAMPAGNE",null,0]
[null,null,"COUPE CLAIRETTE",null,0]
[null,null,"BOUTEILLE CLAIRETTE",null,0]
[null,null,"SANDWICHES",null,0]
[null,null,"GÂTEAUX",null,0]
[null,null,"SAUCISSE SUR ARDOISE ",null,0]
[null,null,"ASSIETTE FROIDE / CRUDITES",null,0]
[null,185,"MINERALES",null,0,{"$f":"SUM(E2579:E2592)","v":0},"Payé","à rendre"]
[null,null,"BIÈRE",null,0,null,0,{"$f":"G2580-F2579","v":0}]
[null,null,"CAFE / THE",null,0]
[null,null,"VIN AU VERRE",null,0]
[null,null,"BOUTEILLE VIN BLANC",null,0]
[null,null,"BOUTEILLE VIN ROUGE",null,0]
[null,null,"COUPE CHAMPAGNE",null,0]
[null,null,"BOUTEILLE CHAMPAGNE",null,0]
[null,null,"COUPE CLAIRETTE",null,0]
[null,null,"BOUTEILLE CLAIRETTE",null,0]
[null,null,"SANDWICHES",null,0]
[null,null,"GÂTEAUX",null,0]
[null,null,"SAUCISSE SUR ARDOISE ",null,0]
[null,null,"ASSIETTE FROIDE / CRUDITES",null,0]
[null,186,"MINERALES",null,0,{"$f":"SUM(E2593:E2606)","v":0},"Payé","à rendre"]
[null,null,"BIÈRE",null,0,null,0,{"$f":"G2594-F2593","v":0}]
[null,null,"CAFE / THE",null,0]
[null,null,"VIN AU VERRE",null,0]
[null,null,"BOUTEILLE VIN BLANC",null,0]
[null,null,"BOUTEILLE VIN ROUGE",null,0]
[null,null,"COUPE CHAMPAGNE",null,0]
[null,null,"BOUTEILLE CHAMPAGNE",null,0]
[null,null,"COUPE CLAIRETTE",null,0]
[null,null,"BOUTEILLE CLAIRETTE",null,0]
[null,null,"SANDWICHES",null,0]
[null,null,"GÂTEAUX",null,0]
[null,null,"SAUCISSE SUR ARDOISE ",null,0]
[null,null,"ASSIETTE FROIDE / CRUDITES",null,0]
[null,187,"MINERALES",null,0,{"$f":"SUM(E2607:E2620)","v":0},"Payé","à rendre"]
[null,null,"BIÈRE",null,0,null,0,{"$f":"G2608-F2607","v":0}]
[null,null,"CAFE / THE",null,0]
[null,null,"VIN AU VERRE",null,0]
[null,null,"BOUTEILLE VIN BLANC",null,0]
[null,null,"BOUTEILLE VIN ROUGE",null,0]
[null,null,"COUPE CHAMPAGNE",null,0]
[null,null,"BOUTEILLE CHAMPAGNE",null,0]
[null,null,"COUPE CLAIRETTE",null,0]
[null,null,"BOUTEILLE CLAIRETTE",null,0]
[null,null,"SANDWICHES",null,0]
[null,null,"GÂTEAUX",null,0]
[null,null,"SAUCISSE SUR ARDOISE ",null,0]
[null,null,"ASSIETTE FROIDE / CRUDITES",null,0]
[null,188,"MINERALES",null,0,{"$f":"SUM(E2621:E2634)","v":0},"Payé","à rendre"]
[null,null,"BIÈRE",null,{"$f":"VLOOKUP(C2622,Fichier,3,0)*D2622","v":0},null,0,{"$f":"G2622-F2621","v":0}]
[null,null,"CAFE / THE",null,0]
[null,null,"VIN AU VERRE",null,0]
[null,null,"BOUTEILLE VIN BLANC",null,0]
[null,null,"BOUTEILLE VIN ROUGE",null,0]
[null,null,"COUPE CHAMPAGNE",null,0]
[null,null,"BOUTEILLE CHAMPAGNE",null,0]
[null,null,"COUPE CLAIRETTE",null,0]
[null,null,"BOUTEILLE CLAIRETTE",null,0]
[null,null,"SANDWICHES",null,0]
[null,null,"GÂTEAUX",null,0]
[null,null,"SAUCISSE SUR ARDOISE ",null,0]
[null,null,"ASSIETTE FROIDE / CRUDITES",null,0]
[null,189,"MINERALES",null,0,{"$f":"SUM(E2635:E2648)","v":0},"Payé","à rendre"]
[null,null,"BIÈRE",null,0,null,0,{"$f":"G2636-F2635","v":0}]
[null,null,"CAFE / THE",null,0]
[null,null,"VIN AU VERRE",null,0]
[null,null,"BOUTEILLE VIN BLANC",null,0]
[null,null,"BOUTEILLE VIN ROUGE",null,0]
[null,null,"COUPE CHAMPAGNE",null,0]
[null,null,"BOUTEILLE CHAMPAGNE",null,0]
[null,null,"COUPE CLAIRETTE",null,0]
[null,null,"BOUTEILLE CLAIRETTE",null,0]
[null,null,"SANDWICHES",null,0]
[null,null,"GÂTEAUX",null,0]
[null,null,"SAUCISSE SUR ARDOISE ",null,0]
[null,null,"ASSIETTE FROIDE / CRUDITES",null,0]
[null,190,"MINERALES",null,0,{"$f":"SUM(E2649:E2662)","v":0},"Payé","à rendre"]
[null,null,"BIÈRE",null,0,null,0,{"$f":"G2650-F2649","v":0}]
[null,null,"CAFE / THE",null,0]
[null,null,"VIN AU VERRE",null,0]
[null,null,"BOUTEILLE VIN BLANC",null,0]
[null,null,"BOUTEILLE VIN ROUGE",null,0]
[null,null,"COUPE CHAMPAGNE",null,0]
[null,null,"BOUTEILLE CHAMPAGNE",null,0]
[null,null,"COUPE CLAIRETTE",null,0]
[null,null,"BOUTEILLE CLAIRETTE",null,0]
[null,null,"SANDWICHES",null,0]
[null,null,"GÂTEAUX",null,0]
[null,null,"SAUCISSE SUR ARDOISE ",null,0]
[null,null,"ASSIETTE FROIDE / CRUDITES",null,0]
[null,191,"MINERALES",null,0,{"$f":"SUM(E2663:E2676)","v":0},"Payé","à rendre"]
[null,null,"BIÈRE",null,0,null,0,{"$f":"G2664-F2663","v":0}]
[null,null,"CAFE / THE",null,0]
[null,null,"VIN AU VERRE",null,0]
[null,null,"BOUTEILLE VIN BLANC",null,0]
[null,null,"BOUTEILLE VIN ROUGE",null,0]
[null,null,"COUPE CHAMPAGNE",null,0]
[null,null,"BOUTEILLE CHAMPAGNE",null,0]
[null,null,"COUPE CLAIRETTE",null,0]
[null,null,"BOUTEILLE CLAIRETTE",null,0]
[null,null,"SANDWICHES",null,0]
[null,null,"GÂTEAUX",null,0]
[null,null,"SAUCISSE SUR ARDOISE ",null,0]
[null,null,"ASSIETTE FROIDE / CRUDITES",null,0]
[null,192,"MINERALES",null,0,{"$f":"SUM(E2677:E2690)","v":0},"Payé","à rendre"]
[null,null,"BIÈRE",null,0,null,0,{"$f":"G2678-F2677","v":0}]
[null,null,"CAFE / THE",null,0]
[null,null,"VIN AU VERRE",null,0]
[null,null,"BOUTEILLE VIN BLANC",null,0]
[null,null,"BOUTEILLE VIN ROUGE",null,0]
[null,null,"COUPE CHAMPAGNE",null,0]
[null,null,"BOUTEILLE CHAMPAGNE",null,0]
[null,null,"COUPE CLAIRETTE",null,0]
[null,null,"BOUTEILLE CLAIRETTE",null,0]
[null,null,"SANDWICHES",null,0]
[null,null,"GÂTEAUX",null,0]
[null,null,"SAUCISSE SUR ARDOISE ",null,0]
[null,null,"ASSIETTE FROIDE / CRUDITES",null,0]
[null,193,"MINERALES",null,{"$f":"VLOOKUP(C2691,Fichier,3,0)*D2691","v":0},{"$f":"SUM(E2691:E2704)","v":0},"Payé","à rendre"]
[null,null,"BIÈRE",null,0,null,0,{"$f":"G2692-F2691","v":0}]
[null,null,"CAFE / THE",null,0]
[null,null,"VIN AU VERRE",null,0]
[null,null,"BOUTEILLE VIN BLANC",null,0]
[null,null,"BOUTEILLE VIN ROUGE",null,0]
[null,null,"COUPE CHAMPAGNE",null,0]
[null,null,"BOUTEILLE CHAMPAGNE",null,0]
[null,null,"COUPE CLAIRETTE",null,0]
[null,null,"BOUTEILLE CLAIRETTE",null,0]
[null,null,"SANDWICHES",null,0]
[null,null,"GÂTEAUX",null,0]
[null,null,"SAUCISSE SUR ARDOISE ",null,0]
[null,null,"ASSIETTE FROIDE / CRUDITES",null,0]
[null,194,"MINERALES",null,0,{"$f":"SUM(E2705:E2718)","v":0},"Payé","à rendre"]
[null,null,"BIÈRE",null,0,null,0,{"$f":"G2706-F2705","v":0}]
[null,null,"CAFE / THE",null,0]
[null,null,"VIN AU VERRE",null,0]
[null,null,"BOUTEILLE VIN BLANC",null,0]
[null,null,"BOUTEILLE VIN ROUGE",null,0]
[null,null,"COUPE CHAMPAGNE",null,0]
[null,null,"BOUTEILLE CHAMPAGNE",null,0]
[null,null,"COUPE CLAIRETTE",null,0]
[null,null,"BOUTEILLE CLAIRETTE",null,0]
[null,null,"SANDWICHES",null,0]
[null,null,"GÂTEAUX",null,0]
[null,null,"SAUCISSE SUR ARDOISE ",null,0]
[null,null,"ASSIETTE FROIDE / CRUDITES",null,0]
[null,195,"MINERALES",null,0,{"$f":"SUM(E2719:E2732)","v":0},"Payé","à rendre"]
[null,null,"BIÈRE",null,0,null,0,{"$f":"G2720-F2719","v":0}]
[null,null,"CAFE / THE",null,0]
[null,null,"VIN AU VERRE",null,0]
[null,null,"BOUTEILLE VIN BLANC",null,0]
[null,null,"BOUTEILLE VIN ROUGE",null,0]
[null,null,"COUPE CHAMPAGNE",null,0]
[null,null,"BOUTEILLE CHAMPAGNE",null,0]
[null,null,"COUPE CLAIRETTE",null,0]
[null,null,"BOUTEILLE CLAIRETTE",null,0]
[null,null,"SANDWICHES",null,0]
[null,null,"GÂTEAUX",null,0]
[null,null,"SAUCISSE SUR ARDOISE ",null,0]
[null,null,"ASSIETTE FROIDE / CRUDITES",null,0]
[null,196,"MINERALES",null,0,{"$f":"SUM(E2733:E2746)","v":0},"Payé","à rendre"]
[null,null,"BIÈRE",null,0,null,0,{"$f":"G2734-F2733","v":0}]
[null,null,"CAFE / THE",null,0]
[null,null,"VIN AU VERRE",null,0]
[null,null,"BOUTEILLE VIN BLANC",null,0]
[null,null,"BOUTEILLE VIN ROUGE",null,0]
[null,null,"COUPE CHAMPAGNE",null,0]
[null,null,"BOUTEILLE CHAMPAGNE",null,0]
[null,null,"COUPE CLAIRETTE",null,0]
[null,null,"BOUTEILLE CLAIRETTE",null,0]
[null,null,"SANDWICHES",null,0]
[null,null,"GÂTEAUX",null,0]
[null,null,"SAUCISSE SUR ARDOISE ",null,0]
[null,null,"ASSIETTE FROIDE / CRUDITES",null,0]
[null,197,"MINERALES",null,0,{"$f":"SUM(E2747:E2760)","v":0},"Payé","à rendre"]
[null,null,"BIÈRE",null,0,null,0,{"$f":"G2748-F2747","v":0}]
[null,null,"CAFE / THE",null,0]
[null,null,"VIN AU VERRE",null,0]
[null,null,"BOUTEILLE VIN BLANC",null,0]
[null,null,"BOUTEILLE VIN ROUGE",null,0]
[null,null,"COUPE CHAMPAGNE",null,0]
[null,null,"BOUTEILLE CHAMPAGNE",null,0]
[null,null,"COUPE CLAIRETTE",null,0]
[null,null,"BOUTEILLE CLAIRETTE",null,0]
[null,null,"SANDWICHES",null,0]
[null,null,"GÂTEAUX",null,0]
[null,null,"SAUCISSE SUR ARDOISE ",null,{"$f":"VLOOKUP(C2759,Fichier,3,0)*D2759","v":0}]
[null,null,"ASSIETTE FROIDE / CRUDITES",null,0]
[null,198,"MINERALES",null,0,{"$f":"SUM(E2761:E2774)","v":0},"Payé","à rendre"]
[null,null,"BIÈRE",null,0,null,0,{"$f":"G2762-F2761","v":0}]
[null,null,"CAFE / THE",null,0]
[null,null,"VIN AU VERRE",null,0]
[null,null,"BOUTEILLE VIN BLANC",null,0]
[null,null,"BOUTEILLE VIN ROUGE",null,0]
[null,null,"COUPE CHAMPAGNE",null,0]
[null,null,"BOUTEILLE CHAMPAGNE",null,0]
[null,null,"COUPE CLAIRETTE",null,0]
[null,null,"BOUTEILLE CLAIRETTE",null,0]
[null,null,"SANDWICHES",null,0]
[null,null,"GÂTEAUX",null,0]
[null,null,"SAUCISSE SUR ARDOISE ",null,0]
[null,null,"ASSIETTE FROIDE / CRUDITES",null,0]
[null,199,"MINERALES",null,0,{"$f":"SUM(E2775:E2788)","v":0},"Payé","à rendre"]
[null,null,"BIÈRE",null,0,null,0,{"$f":"G2776-F2775","v":0}]
[null,null,"CAFE / THE",null,0]
[null,null,"VIN AU VERRE",null,0]
[null,null,"BOUTEILLE VIN BLANC",null,0]
[null,null,"BOUTEILLE VIN ROUGE",null,0]
[null,null,"COUPE CHAMPAGNE",null,0]
[null,null,"BOUTEILLE CHAMPAGNE",null,0]
[null,null,"COUPE CLAIRETTE",null,0]
[null,null,"BOUTEILLE CLAIRETTE",null,0]
[null,null,"SANDWICHES",null,0]
[null,null,"GÂTEAUX",null,0]
[null,null,"SAUCISSE SUR ARDOISE ",null,0]
[null,null,"ASSIETTE FROIDE / CRUDITES",null,0]
[null,200,"MINERALES",null,0,{"$f":"SUM(E2789:E2802)","v":0},"Payé","à rendre"]
[null,null,"BIÈRE",null,0,null,0,{"$f":"G2790-F2789","v":0}]
[null,null,"CAFE / THE",null,0]
[null,null,"VIN AU VERRE",null,0]
[null,null,"BOUTEILLE VIN BLANC",null,0]
[null,null,"BOUTEILLE VIN ROUGE",null,0]
[null,null,"COUPE CHAMPAGNE",null,0]
[null,null,"BOUTEILLE CHAMPAGNE",null,0]
[null,null,"COUPE CLAIRETTE",null,0]
[null,null,"BOUTEILLE CLAIRETTE",null,0]
[null,null,"SANDWICHES",null,0]
[null,null,"GÂTEAUX",null,0]
[null,null,"SAUCISSE SUR ARDOISE ",null,0]
[null,null,"ASSIETTE FROIDE / CRUDITES",null,0]
[null,201,"MINERALES",null,0,{"$f":"SUM(E2803:E2816)","v":0},"Payé","à rendre"]
[null,null,"BIÈRE",null,0,null,0,{"$f":"G2804-F2803","v":0}]
[null,null,"CAFE / THE",null,0]
[null,null,"VIN AU VERRE",null,0]
[null,null,"BOUTEILLE VIN BLANC",null,0]
[null,null,"BOUTEILLE VIN ROUGE",null,0]
[null,null,"COUPE CHAMPAGNE",null,0]
[null,null,"BOUTEILLE CHAMPAGNE",null,0]
[null,null,"COUPE CLAIRETTE",null,0]
[null,null,"BOUTEILLE CLAIRETTE",null,0]
[null,null,"SANDWICHES",null,0]
[null,null,"GÂTEAUX",null,0]
[null,null,"SAUCISSE SUR ARDOISE ",null,0]
[null,null,"ASSIETTE FROIDE / CRUDITES",null,0]
[null,202,"MINERALES",null,0,{"$f":"SUM(E2817:E2830)","v":0},"Payé","à rendre"]
[null,null,"BIÈRE",null,0,null,0,{"$f":"G2818-F2817","v":0}]
[null,null,"CAFE / THE",null,0]
[null,null,"VIN AU VERRE",null,0]
[null,null,"BOUTEILLE VIN BLANC",null,0]
[null,null,"BOUTEILLE VIN ROUGE",null,0]
[null,null,"COUPE CHAMPAGNE",null,0]
[null,null,"BOUTEILLE CHAMPAGNE",null,0]
[null,null,"COUPE CLAIRETTE",null,0]
[null,null,"BOUTEILLE CLAIRETTE",null,0]
[null,null,"SANDWICHES",null,0]
[null,null,"GÂTEAUX",null,{"$f":"VLOOKUP(C2828,Fichier,3,0)*D2828","v":0}]
[null,null,"SAUCISSE SUR ARDOISE ",null,0]
[null,null,"ASSIETTE FROIDE / CRUDITES",null,0]
[null,203,"MINERALES",null,0,{"$f":"SUM(E2831:E2844)","v":0},"Payé","à rendre"]
[null,null,"BIÈRE",null,0,null,0,{"$f":"G2832-F2831","v":0}]
[null,null,"CAFE / THE",null,0]
[null,null,"VIN AU VERRE",null,0]
[null,null,"BOUTEILLE VIN BLANC",null,0]
[null,null,"BOUTEILLE VIN ROUGE",null,0]
[null,null,"COUPE CHAMPAGNE",null,0]
[null,null,"BOUTEILLE CHAMPAGNE",null,0]
[null,null,"COUPE CLAIRETTE",null,0]
[null,null,"BOUTEILLE CLAIRETTE",null,0]
[null,null,"SANDWICHES",null,0]
[null,null,"GÂTEAUX",null,0]
[null,null,"SAUCISSE SUR ARDOISE ",null,0]
[null,null,"ASSIETTE FROIDE / CRUDITES",null,0]
[null,204,"MINERALES",null,0,{"$f":"SUM(E2845:E2858)","v":0},"Payé","à rendre"]
[null,null,"BIÈRE",null,0,null,0,{"$f":"G2846-F2845","v":0}]
[null,null,"CAFE / THE",null,0]
[null,null,"VIN AU VERRE",null,0]
[null,null,"BOUTEILLE VIN BLANC",null,0]
[null,null,"BOUTEILLE VIN ROUGE",null,0]
[null,null,"COUPE CHAMPAGNE",null,0]
[null,null,"BOUTEILLE CHAMPAGNE",null,0]
[null,null,"COUPE CLAIRETTE",null,0]
[null,null,"BOUTEILLE CLAIRETTE",null,0]
[null,null,"SANDWICHES",null,0]
[null,null,"GÂTEAUX",null,0]
[null,null,"SAUCISSE SUR ARDOISE ",null,0]
[null,null,"ASSIETTE FROIDE / CRUDITES",null,0]
[null,205,"MINERALES",null,0,{"$f":"SUM(E2859:E2872)","v":0},"Payé","à rendre"]
[null,null,"BIÈRE",null,0,null,0,{"$f":"G2860-F2859","v":0}]
[null,null,"CAFE / THE",null,0]
[null,null,"VIN AU VERRE",null,0]
[null,null,"BOUTEILLE VIN BLANC",null,0]
[null,null,"BOUTEILLE VIN ROUGE",null,0]
[null,null,"COUPE CHAMPAGNE",null,0]
[null,null,"BOUTEILLE CHAMPAGNE",null,0]
[null,null,"COUPE CLAIRETTE",null,0]
[null,null,"BOUTEILLE CLAIRETTE",null,0]
[null,null,"SANDWICHES",null,0]
[null,null,"GÂTEAUX",null,0]
[null,null,"SAUCISSE SUR ARDOISE ",null,0]
[null,null,"ASSIETTE FROIDE / CRUDITES",null,0]
[null,206,"MINERALES",null,0,{"$f":"SUM(E2873:E2886)","v":0},"Payé","à rendre"]
[null,null,"BIÈRE",null,0,null,0,{"$f":"G2874-F2873","v":0}]
[null,null,"CAFE / THE",null,0]
[null,null,"VIN AU VERRE",null,0]
[null,null,"BOUTEILLE VIN BLANC",null,0]
[null,null,"BOUTEILLE VIN ROUGE",null,0]
[null,null,"COUPE CHAMPAGNE",null,0]
[null,null,"BOUTEILLE CHAMPAGNE",null,0]
[null,null,"COUPE CLAIRETTE",null,0]
[null,null,"BOUTEILLE CLAIRETTE",null,0]
[null,null,"SANDWICHES",null,0]
[null,null,"GÂTEAUX",null,0]
[null,null,"SAUCISSE SUR ARDOISE ",null,0]
[null,null,"ASSIETTE FROIDE / CRUDITES",null,0]
[null,207,"MINERALES",null,0,{"$f":"SUM(E2887:E2900)","v":0},"Payé","à rendre"]
[null,null,"BIÈRE",null,0,null,0,{"$f":"G2888-F2887","v":0}]
[null,null,"CAFE / THE",null,0]
[null,null,"VIN AU VERRE",null,0]
[null,null,"BOUTEILLE VIN BLANC",null,0]
[null,null,"BOUTEILLE VIN ROUGE",null,0]
[null,null,"COUPE CHAMPAGNE",null,0]
[null,null,"BOUTEILLE CHAMPAGNE",null,0]
[null,null,"COUPE CLAIRETTE",null,0]
[null,null,"BOUTEILLE CLAIRETTE",null,0]
[null,null,"SANDWICHES",null,{"$f":"VLOOKUP(C2897,Fichier,3,0)*D2897","v":0}]
[null,null,"GÂTEAUX",null,0]
[null,null,"SAUCISSE SUR ARDOISE ",null,0]
[null,null,"ASSIETTE FROIDE / CRUDITES",null,0]
[null,208,"MINERALES",null,0,{"$f":"SUM(E2901:E2914)","v":0},"Payé","à rendre"]
[null,null,"BIÈRE",null,0,null,0,{"$f":"G2902-F2901","v":0}]
[null,null,"CAFE / THE",null,0]
[null,null,"VIN AU VERRE",null,0]
[null,null,"BOUTEILLE VIN BLANC",null,0]
[null,null,"BOUTEILLE VIN ROUGE",null,0]
[null,null,"COUPE CHAMPAGNE",null,0]
[null,null,"BOUTEILLE CHAMPAGNE",null,0]
[null,null,"COUPE CLAIRETTE",null,0]
[null,null,"BOUTEILLE CLAIRETTE",null,0]
[null,null,"SANDWICHES",null,0]
[null,null,"GÂTEAUX",null,0]
[null,null,"SAUCISSE SUR ARDOISE ",null,0]
[null,null,"ASSIETTE FROIDE / CRUDITES",null,0]
[null,209,"MINERALES",null,0,{"$f":"SUM(E2915:E2928)","v":0},"Payé","à rendre"]
[null,null,"BIÈRE",null,0,null,0,{"$f":"G2916-F2915","v":0}]
[null,null,"CAFE / THE",null,0]
[null,null,"VIN AU VERRE",null,0]
[null,null,"BOUTEILLE VIN BLANC",null,0]
[null,null,"BOUTEILLE VIN ROUGE",null,0]
[null,null,"COUPE CHAMPAGNE",null,0]
[null,null,"BOUTEILLE CHAMPAGNE",null,0]
[null,null,"COUPE CLAIRETTE",null,0]
[null,null,"BOUTEILLE CLAIRETTE",null,0]
[null,null,"SANDWICHES",null,0]
[null,null,"GÂTEAUX",null,0]
[null,null,"SAUCISSE SUR ARDOISE ",null,0]
[null,null,"ASSIETTE FROIDE / CRUDITES",null,0]
[null,210,"MINERALES",null,0,{"$f":"SUM(E2929:E2942)","v":0},"Payé","à rendre"]
[null,null,"BIÈRE",null,0,null,0,{"$f":"G2930-F2929","v":0}]
[null,null,"CAFE / THE",null,0]
[null,null,"VIN AU VERRE",null,0]
[null,null,"BOUTEILLE VIN BLANC",null,0]
[null,null,"BOUTEILLE VIN ROUGE",null,0]
[null,null,"COUPE CHAMPAGNE",null,0]
[null,null,"BOUTEILLE CHAMPAGNE",null,0]
[null,null,"COUPE CLAIRETTE",null,0]
[null,null,"BOUTEILLE CLAIRETTE",null,0]
[null,null,"SANDWICHES",null,0]
[null,null,"GÂTEAUX",null,0]
[null,null,"SAUCISSE SUR ARDOISE ",null,0]
[null,null,"ASSIETTE FROIDE / CRUDITES",null,0]
[null,211,"MINERALES",null,0,{"$f":"SUM(E2943:E2956)","v":0},"Payé","à rendre"]
[null,null,"BIÈRE",null,0,null,0,{"$f":"G2944-F2943","v":0}]
[null,null,"CAFE / THE",null,0]
[null,null,"VIN AU VERRE",null,0]
[null,null,"BOUTEILLE VIN BLANC",null,0]
[null,null,"BOUTEILLE VIN ROUGE",null,0]
[null,null,"COUPE CHAMPAGNE",null,0]
[null,null,"BOUTEILLE CHAMPAGNE",null,0]
[null,null,"COUPE CLAIRETTE",null,0]
[null,null,"BOUTEILLE CLAIRETTE",null,0]
[null,null,"SANDWICHES",null,0]
[null,null,"GÂTEAUX",null,0]
[null,null,"SAUCISSE SUR ARDOISE ",null,0]
[null,null,"ASSIETTE FROIDE / CRUDITES",null,0]
[null,212,"MINERALES",null,0,{"$f":"SUM(E2957:E2970)","v":0},"Payé","à rendre"]
[null,null,"BIÈRE",null,0,null,0,{"$f":"G2958-F2957","v":0}]
[null,null,"CAFE / THE",null,0]
[null,null,"VIN AU VERRE",null,0]
[null,null,"BOUTEILLE VIN BLANC",null,0]
[null,null,"BOUTEILLE VIN ROUGE",null,0]
[null,null,"COUPE CHAMPAGNE",null,0]
[null,null,"BOUTEILLE CHAMPAGNE",null,0]
[null,null,"COUPE CLAIRETTE",null,0]
[null,null,"BOUTEILLE CLAIRETTE",null,{"$f":"VLOOKUP(C2966,Fichier,3,0)*D2966","v":0}]
[null,null,"SANDWICHES",null,0]
[null,null,"GÂTEAUX",null,0]
[null,null,"SAUCISSE SUR ARDOISE ",null,0]
[null,null,"ASSIETTE FROIDE / CRUDITES",null,0]
[null,213,"MINERALES",null,0,{"$f":"SUM(E2971:E2984)","v":0},"Payé","à rendre"]
[null,null,"BIÈRE",null,0,null,0,{"$f":"G2972-F2971","v":0}]
[null,null,"CAFE / THE",null,0]
[null,null,"VIN AU VERRE",null,0]
[null,null,"BOUTEILLE VIN BLANC",null,0]
[null,null,"BOUTEILLE VIN ROUGE",null,0]
[null,null,"COUPE CHAMPAGNE",null,0]
[null,null,"BOUTEILLE CHAMPAGNE",null,0]
[null,null,"COUPE CLAIRETTE",null,0]
[null,null,"BOUTEILLE CLAIRETTE",null,0]
[null,null,"SANDWICHES",null,0]
[null,null,"GÂTEAUX",null,0]
[null,null,"SAUCISSE SUR ARDOISE ",null,0]
[null,null,"ASSIETTE FROIDE / CRUDITES",null,0]
[null,214,"MINERALES",null,0,{"$f":"SUM(E2985:E2998)","v":0},"Payé","à rendre"]
[null,null,"BIÈRE",null,0,null,0,{"$f":"G2986-F2985","v":0}]
[null,null,"CAFE / THE",null,0]
[null,null,"VIN AU VERRE",null,0]
[null,null,"BOUTEILLE VIN BLANC",null,0]
[null,null,"BOUTEILLE VIN ROUGE",null,0]
[null,null,"COUPE CHAMPAGNE",null,0]
[null,null,"BOUTEILLE CHAMPAGNE",null,0]
[null,null,"COUPE CLAIRETTE",null,0]
[null,null,"BOUTEILLE CLAIRETTE",null,0]
[null,null,"SANDWICHES",null,0]
[null,null,"GÂTEAUX",null,0]
[null,null,"SAUCISSE SUR ARDOISE ",null,0]
[null,null,"ASSIETTE FROIDE / CRUDITES",null,0]
[null,215,"MINERALES",null,0,{"$f":"SUM(E2999:E3012)","v":0},"Payé","à rendre"]
[null,null,"BIÈRE",null,0,null,0,{"$f":"G3000-F2999","v":0}]
[null,null,"CAFE / THE",null,0]
[null,null,"VIN AU VERRE",null,0]
[null,null,"BOUTEILLE VIN BLANC",null,0]
[null,null,"BOUTEILLE VIN ROUGE",null,0]
[null,null,"COUPE CHAMPAGNE",null,0]
[null,null,"BOUTEILLE CHAMPAGNE",null,0]
[null,null,"COUPE CLAIRETTE",null,0]
[null,null,"BOUTEILLE CLAIRETTE",null,0]
[null,null,"SANDWICHES",null,0]
[null,null,"GÂTEAUX",null,0]
[null,null,"SAUCISSE SUR ARDOISE ",null,0]
[null,null,"ASSIETTE FROIDE / CRUDITES",null,0]
[null,216,"MINERALES",null,0,{"$f":"SUM(E3013:E3026)","v":0},"Payé","à rendre"]
[null,null,"BIÈRE",null,0,null,0,{"$f":"G3014-F3013","v":0}]
[null,null,"CAFE / THE",null,0]
[null,null,"VIN AU VERRE",null,0]
[null,null,"BOUTEILLE VIN BLANC",null,0]
[null,null,"BOUTEILLE VIN ROUGE",null,0]
[null,null,"COUPE CHAMPAGNE",null,0]
[null,null,"BOUTEILLE CHAMPAGNE",null,0]
[null,null,"COUPE CLAIRETTE",null,0]
[null,null,"BOUTEILLE CLAIRETTE",null,0]
[null,null,"SANDWICHES",null,0]
[null,null,"GÂTEAUX",null,0]
[null,null,"SAUCISSE SUR ARDOISE ",null,0]
[null,null,"ASSIETTE FROIDE / CRUDITES",null,0]
[null,217,"MINERALES",null,0,{"$f":"SUM(E3027:E3040)","v":0},"Payé","à rendre"]
[null,null,"BIÈRE",null,0,null,0,{"$f":"G3028-F3027","v":0}]
[null,null,"CAFE / THE",null,0]
[null,null,"VIN AU VERRE",null,0]
[null,null,"BOUTEILLE VIN BLANC",null,0]
[null,null,"BOUTEILLE VIN ROUGE",null,0]
[null,null,"COUPE CHAMPAGNE",null,0]
[null,null,"BOUTEILLE CHAMPAGNE",null,0]
[null,null,"COUPE CLAIRETTE",null,{"$f":"VLOOKUP(C3035,Fichier,3,0)*D3035","v":0}]
[null,null,"BOUTEILLE CLAIRETTE",null,0]
[null,null,"SANDWICHES",null,0]
[null,null,"GÂTEAUX",null,0]
[null,null,"SAUCISSE SUR ARDOISE ",null,0]
[null,null,"ASSIETTE FROIDE / CRUDITES",null,0]
[null,218,"MINERALES",null,0,{"$f":"SUM(E3041:E3054)","v":0},"Payé","à rendre"]
[null,null,"BIÈRE",null,0,null,0,{"$f":"G3042-F3041","v":0}]
[null,null,"CAFE / THE",null,0]
[null,null,"VIN AU VERRE",null,0]
[null,null,"BOUTEILLE VIN BLANC",null,0]
[null,null,"BOUTEILLE VIN ROUGE",null,0]
[null,null,"COUPE CHAMPAGNE",null,0]
[null,null,"BOUTEILLE CHAMPAGNE",null,0]
[null,null,"COUPE CLAIRETTE",null,0]
[null,null,"BOUTEILLE CLAIRETTE",null,0]
[null,null,"SANDWICHES",null,0]
[null,null,"GÂTEAUX",null,0]
[null,null,"SAUCISSE SUR ARDOISE ",null,0]
[null,null,"ASSIETTE FROIDE / CRUDITES",null,0]
[null,219,"MINERALES",null,0,{"$f":"SUM(E3055:E3068)","v":0},"Payé","à rendre"]
[null,null,"BIÈRE",null,0,null,0,{"$f":"G3056-F3055","v":0}]
[null,null,"CAFE / THE",null,0]
[null,null,"VIN AU VERRE",null,0]
[null,null,"BOUTEILLE VIN BLANC",null,0]
[null,null,"BOUTEILLE VIN ROUGE",null,0]
[null,null,"COUPE CHAMPAGNE",null,0]
[null,null,"BOUTEILLE CHAMPAGNE",null,0]
[null,null,"COUPE CLAIRETTE",null,0]
[null,null,"BOUTEILLE CLAIRETTE",null,0]
[null,null,"SANDWICHES",null,0]
[null,null,"GÂTEAUX",null,0]
[null,null,"SAUCISSE SUR ARDOISE ",null,0]
[null,null,"ASSIETTE FROIDE / CRUDITES",null,0]
[null,220,"MINERALES",null,0,{"$f":"SUM(E3069:E3082)","v":0},"Payé","à rendre"]
[null,null,"BIÈRE",null,0,null,0,{"$f":"G3070-F3069","v":0}]
[null,null,"CAFE / THE",null,0]
[null,null,"VIN AU VERRE",null,0]
[null,null,"BOUTEILLE VIN BLANC",null,0]
[null,null,"BOUTEILLE VIN ROUGE",null,0]
[null,null,"COUPE CHAMPAGNE",null,0]
[null,null,"BOUTEILLE CHAMPAGNE",null,0]
[null,null,"COUPE CLAIRETTE",null,0]
[null,null,"BOUTEILLE CLAIRETTE",null,0]
[null,null,"SANDWICHES",null,0]
[null,null,"GÂTEAUX",null,0]
[null,null,"SAUCISSE SUR ARDOISE ",null,0]
[null,null,"ASSIETTE FROIDE / CRUDITES",null,0]
[null,221,"MINERALES",null,0,{"$f":"SUM(E3083:E3096)","v":0},"Payé","à rendre"]
[null,null,"BIÈRE",null,0,null,0,{"$f":"G3084-F3083","v":0}]
[null,null,"CAFE / THE",null,0]
[null,null,"VIN AU VERRE",null,0]
[null,null,"BOUTEILLE VIN BLANC",null,0]
[null,null,"BOUTEILLE VIN ROUGE",null,0]
[null,null,"COUPE CHAMPAGNE",null,0]
[null,null,"BOUTEILLE CHAMPAGNE",null,0]
[null,null,"COUPE CLAIRETTE",null,0]
[null,null,"BOUTEILLE CLAIRETTE",null,0]
[null,null,"SANDWICHES",null,0]
[null,null,"GÂTEAUX",null,0]
[null,null,"SAUCISSE SUR ARDOISE ",null,0]
[null,null,"ASSIETTE FROIDE / CRUDITES",null,0]
[null,222,"MINERALES",null,0,{"$f":"SUM(E3097:E3110)","v":0},"Payé","à rendre"]
[null,null,"BIÈRE",null,0,null,0,{"$f":"G3098-F3097","v":0}]
[null,null,"CAFE / THE",null,0]
[null,null,"VIN AU VERRE",null,0]
[null,null,"BOUTEILLE VIN BLANC",null,0]
[null,null,"BOUTEILLE VIN ROUGE",null,0]
[null,null,"COUPE CHAMPAGNE",null,0]
[null,null,"BOUTEILLE CHAMPAGNE",null,{"$f":"VLOOKUP(C3104,Fichier,3,0)*D3104","v":0}]
[null,null,"COUPE CLAIRETTE",null,0]
[null,null,"BOUTEILLE CLAIRETTE",null,0]
[null,null,"SANDWICHES",null,0]
[null,null,"GÂTEAUX",null,0]
[null,null,"SAUCISSE SUR ARDOISE ",null,0]
[null,null,"ASSIETTE FROIDE / CRUDITES",null,0]
[null,223,"MINERALES",null,0,{"$f":"SUM(E3111:E3124)","v":0},"Payé","à rendre"]
[null,null,"BIÈRE",null,0,null,0,{"$f":"G3112-F3111","v":0}]
[null,null,"CAFE / THE",null,0]
[null,null,"VIN AU VERRE",null,0]
[null,null,"BOUTEILLE VIN BLANC",null,0]
[null,null,"BOUTEILLE VIN ROUGE",null,0]
[null,null,"COUPE CHAMPAGNE",null,0]
[null,null,"BOUTEILLE CHAMPAGNE",null,0]
[null,null,"COUPE CLAIRETTE",null,0]
[null,null,"BOUTEILLE CLAIRETTE",null,0]
[null,null,"SANDWICHES",null,0]
[null,null,"GÂTEAUX",null,0]
[null,null,"SAUCISSE SUR ARDOISE ",null,0]
[null,null,"ASSIETTE FROIDE / CRUDITES",null,0]
[null,224,"MINERALES",null,0,{"$f":"SUM(E3125:E3138)","v":0},"Payé","à rendre"]
[null,null,"BIÈRE",null,0,null,0,{"$f":"G3126-F3125","v":0}]
[null,null,"CAFE / THE",null,0]
[null,null,"VIN AU VERRE",null,0]
[null,null,"BOUTEILLE VIN BLANC",null,0]
[null,null,"BOUTEILLE VIN ROUGE",null,0]
[null,null,"COUPE CHAMPAGNE",null,0]
[null,null,"BOUTEILLE CHAMPAGNE",null,0]
[null,null,"COUPE CLAIRETTE",null,0]
[null,null,"BOUTEILLE CLAIRETTE",null,0]
[null,null,"SANDWICHES",null,0]
[null,null,"GÂTEAUX",null,0]
[null,null,"SAUCISSE SUR ARDOISE ",null,0]
[null,null,"ASSIETTE FROIDE / CRUDITES",null,0]
[null,225,"MINERALES",null,0,{"$f":"SUM(E3139:E3152)","v":0},"Payé","à rendre"]
[null,null,"BIÈRE",null,0,null,0,{"$f":"G3140-F3139","v":0}]
[null,null,"CAFE / THE",null,0]
[null,null,"VIN AU VERRE",null,0]
[null,null,"BOUTEILLE VIN BLANC",null,0]
[null,null,"BOUTEILLE VIN ROUGE",null,0]
[null,null,"COUPE CHAMPAGNE",null,0]
[null,null,"BOUTEILLE CHAMPAGNE",null,0]
[null,null,"COUPE CLAIRETTE",null,0]
[null,null,"BOUTEILLE CLAIRETTE",null,0]
[null,null,"SANDWICHES",null,0]
[null,null,"GÂTEAUX",null,0]
[null,null,"SAUCISSE SUR ARDOISE ",null,0]
[null,null,"ASSIETTE FROIDE / CRUDITES",null,0]
[null,226,"MINERALES",null,0,{"$f":"SUM(E3153:E3166)","v":0},"Payé","à rendre"]
[null,null,"BIÈRE",null,0,null,0,{"$f":"G3154-F3153","v":0}]
[null,null,"CAFE / THE",null,0]
[null,null,"VIN AU VERRE",null,0]
[null,null,"BOUTEILLE VIN BLANC",null,0]
[null,null,"BOUTEILLE VIN ROUGE",null,0]
[null,null,"COUPE CHAMPAGNE",null,0]
[null,null,"BOUTEILLE CHAMPAGNE",null,0]
[null,null,"COUPE CLAIRETTE",null,0]
[null,null,"BOUTEILLE CLAIRETTE",null,0]
[null,null,"SANDWICHES",null,0]
[null,null,"GÂTEAUX",null,0]
[null,null,"SAUCISSE SUR ARDOISE ",null,0]
[null,null,"ASSIETTE FROIDE / CRUDITES",null,0]
[null,227,"MINERALES",null,0,{"$f":"SUM(E3167:E3180)","v":0},"Payé","à rendre"]
[null,null,"BIÈRE",null,0,null,0,{"$f":"G3168-F3167","v":0}]
[null,null,"CAFE / THE",null,0]
[null,null,"VIN AU VERRE",null,0]
[null,null,"BOUTEILLE VIN BLANC",null,0]
[null,null,"BOUTEILLE VIN ROUGE",null,0]
[null,null,"COUPE CHAMPAGNE",null,{"$f":"VLOOKUP(C3173,Fichier,3,0)*D3173","v":0}]
[null,null,"BOUTEILLE CHAMPAGNE",null,0]
[null,null,"COUPE CLAIRETTE",null,0]
[null,null,"BOUTEILLE CLAIRETTE",null,0]
[null,null,"SANDWICHES",null,0]
[null,null,"GÂTEAUX",null,0]
[null,null,"SAUCISSE SUR ARDOISE ",null,0]
[null,null,"ASSIETTE FROIDE / CRUDITES",null,0]
[null,228,"MINERALES",null,0,{"$f":"SUM(E3181:E3194)","v":0},"Payé","à rendre"]
[null,null,"BIÈRE",null,0,null,0,{"$f":"G3182-F3181","v":0}]
[null,null,"CAFE / THE",null,0]
[null,null,"VIN AU VERRE",null,0]
[null,null,"BOUTEILLE VIN BLANC",null,0]
[null,null,"BOUTEILLE VIN ROUGE",null,0]
[null,null,"COUPE CHAMPAGNE",null,0]
[null,null,"BOUTEILLE CHAMPAGNE",null,0]
[null,null,"COUPE CLAIRETTE",null,0]
[null,null,"BOUTEILLE CLAIRETTE",null,0]
[null,null,"SANDWICHES",null,0]
[null,null,"GÂTEAUX",null,0]
[null,null,"SAUCISSE SUR ARDOISE ",null,0]
[null,null,"ASSIETTE FROIDE / CRUDITES",null,0]
[null,229,"MINERALES",null,0,{"$f":"SUM(E3195:E3208)","v":0},"Payé","à rendre"]
[null,null,"BIÈRE",null,0,null,0,{"$f":"G3196-F3195","v":0}]
[null,null,"CAFE / THE",null,0]
[null,null,"VIN AU VERRE",null,0]
[null,null,"BOUTEILLE VIN BLANC",null,0]
[null,null,"BOUTEILLE VIN ROUGE",null,0]
[null,null,"COUPE CHAMPAGNE",null,0]
[null,null,"BOUTEILLE CHAMPAGNE",null,0]
[null,null,"COUPE CLAIRETTE",null,0]
[null,null,"BOUTEILLE CLAIRETTE",null,0]
[null,null,"SANDWICHES",null,0]
[null,null,"GÂTEAUX",null,0]
[null,null,"SAUCISSE SUR ARDOISE ",null,0]
[null,null,"ASSIETTE FROIDE / CRUDITES",null,0]
[null,230,"MINERALES",null,0,{"$f":"SUM(E3209:E3222)","v":0},"Payé","à rendre"]
[null,null,"BIÈRE",null,0,null,0,{"$f":"G3210-F3209","v":0}]
[null,null,"CAFE / THE",null,0]
[null,null,"VIN AU VERRE",null,0]
[null,null,"BOUTEILLE VIN BLANC",null,0]
[null,null,"BOUTEILLE VIN ROUGE",null,0]
[null,null,"COUPE CHAMPAGNE",null,0]
[null,null,"BOUTEILLE CHAMPAGNE",null,0]
[null,null,"COUPE CLAIRETTE",null,0]
[null,null,"BOUTEILLE CLAIRETTE",null,0]
[null,null,"SANDWICHES",null,0]
[null,null,"GÂTEAUX",null,0]
[null,null,"SAUCISSE SUR ARDOISE ",null,0]
[null,null,"ASSIETTE FROIDE / CRUDITES",null,0]
[null,231,"MINERALES",null,0,{"$f":"SUM(E3223:E3236)","v":0},"Payé","à rendre"]
[null,null,"BIÈRE",null,0,null,0,{"$f":"G3224-F3223","v":0}]
[null,null,"CAFE / THE",null,0]
[null,null,"VIN AU VERRE",null,0]
[null,null,"BOUTEILLE VIN BLANC",null,0]
[null,null,"BOUTEILLE VIN ROUGE",null,0]
[null,null,"COUPE CHAMPAGNE",null,0]
[null,null,"BOUTEILLE CHAMPAGNE",null,0]
[null,null,"COUPE CLAIRETTE",null,0]
[null,null,"BOUTEILLE CLAIRETTE",null,0]
[null,null,"SANDWICHES",null,0]
[null,null,"GÂTEAUX",null,0]
[null,null,"SAUCISSE SUR ARDOISE ",null,0]
[null,null,"ASSIETTE FROIDE / CRUDITES",null,0]
[null,232,"MINERALES",null,0,{"$f":"SUM(E3237:E3250)","v":0},"Payé","à rendre"]
[null,null,"BIÈRE",null,0,null,0,{"$f":"G3238-F3237","v":0}]
[null,null,"CAFE / THE",null,0]
[null,null,"VIN AU VERRE",null,0]
[null,null,"BOUTEILLE VIN BLANC",null,0]
[null,null,"BOUTEILLE VIN ROUGE",null,{"$f":"VLOOKUP(C3242,Fichier,3,0)*D3242","v":0}]
[null,null,"COUPE CHAMPAGNE",null,0]
[null,null,"BOUTEILLE CHAMPAGNE",null,0]
[null,null,"COUPE CLAIRETTE",null,0]
[null,null,"BOUTEILLE CLAIRETTE",null,0]
[null,null,"SANDWICHES",null,0]
[null,null,"GÂTEAUX",null,0]
[null,null,"SAUCISSE SUR ARDOISE ",null,0]
[null,null,"ASSIETTE FROIDE / CRUDITES",null,0]
[null,233,"MINERALES",null,0,{"$f":"SUM(E3251:E3264)","v":0},"Payé","à rendre"]
[null,null,"BIÈRE",null,0,null,0,{"$f":"G3252-F3251","v":0}]
[null,null,"CAFE / THE",null,0]
[null,null,"VIN AU VERRE",null,0]
[null,null,"BOUTEILLE VIN BLANC",null,0]
[null,null,"BOUTEILLE VIN ROUGE",null,0]
[null,null,"COUPE CHAMPAGNE",null,0]
[null,null,"BOUTEILLE CHAMPAGNE",null,0]
[null,null,"COUPE CLAIRETTE",null,0]
[null,null,"BOUTEILLE CLAIRETTE",null,0]
[null,null,"SANDWICHES",null,0]
[null,null,"GÂTEAUX",null,0]
[null,null,"SAUCISSE SUR ARDOISE ",null,0]
[null,null,"ASSIETTE FROIDE / CRUDITES",null,0]
[null,234,"MINERALES",null,0,{"$f":"SUM(E3265:E3278)","v":0},"Payé","à rendre"]
[null,null,"BIÈRE",null,0,null,0,{"$f":"G3266-F3265","v":0}]
[null,null,"CAFE / THE",null,0]
[null,null,"VIN AU VERRE",null,0]
[null,null,"BOUTEILLE VIN BLANC",null,0]
[null,null,"BOUTEILLE VIN ROUGE",null,0]
[null,null,"COUPE CHAMPAGNE",null,0]
[null,null,"BOUTEILLE CHAMPAGNE",null,0]
[null,null,"COUPE CLAIRETTE",null,0]
[null,null,"BOUTEILLE CLAIRETTE",null,0]
[null,null,"SANDWICHES",null,0]
[null,null,"GÂTEAUX",null,0]
[null,null,"SAUCISSE SUR ARDOISE ",null,0]
[null,null,"ASSIETTE FROIDE / CRUDITES",null,0]
[null,235,"MINERALES",null,0,{"$f":"SUM(E3279:E3292)","v":0},"Payé","à rendre"]
[null,null,"BIÈRE",null,0,null,0,{"$f":"G3280-F3279","v":0}]
[null,null,"CAFE / THE",null,0]
[null,null,"VIN AU VERRE",null,0]
[null,null,"BOUTEILLE VIN BLANC",null,0]
[null,null,"BOUTEILLE VIN ROUGE",null,0]
[null,null,"COUPE CHAMPAGNE",null,0]
[null,null,"BOUTEILLE CHAMPAGNE",null,0]
[null,null,"COUPE CLAIRETTE",null,0]
[null,null,"BOUTEILLE CLAIRETTE",null,0]
[null,null,"SANDWICHES",null,0]
[null,null,"GÂTEAUX",null,0]
[null,null,"SAUCISSE SUR ARDOISE ",null,0]
[null,null,"ASSIETTE FROIDE / CRUDITES",null,0]
[null,236,"MINERALES",null,0,{"$f":"SUM(E3293:E3306)","v":0},"Payé","à rendre"]
[null,null,"BIÈRE",null,0,null,0,{"$f":"G3294-F3293","v":0}]
[null,null,"CAFE / THE",null,0]
[null,null,"VIN AU VERRE",null,0]
[null,null,"BOUTEILLE VIN BLANC",null,0]
[null,null,"BOUTEILLE VIN ROUGE",null,0]
[null,null,"COUPE CHAMPAGNE",null,0]
[null,null,"BOUTEILLE CHAMPAGNE",null,0]
[null,null,"COUPE CLAIRETTE",null,0]
[null,null,"BOUTEILLE CLAIRETTE",null,0]
[null,null,"SANDWICHES",null,0]
[null,null,"GÂTEAUX",null,0]
[null,null,"SAUCISSE SUR ARDOISE ",null,0]
[null,null,"ASSIETTE FROIDE / CRUDITES",null,0]
[null,237,"MINERALES",null,0,{"$f":"SUM(E3307:E3320)","v":0},"Payé","à rendre"]
[null,null,"BIÈRE",null,0,null,0,{"$f":"G3308-F3307","v":0}]
[null,null,"CAFE / THE",null,0]
[null,null,"VIN AU VERRE",null,0]
[null,null,"BOUTEILLE VIN BLANC",null,{"$f":"VLOOKUP(C3311,Fichier,3,0)*D3311","v":0}]
[null,null,"BOUTEILLE VIN ROUGE",null,0]
[null,null,"COUPE CHAMPAGNE",null,0]
[null,null,"BOUTEILLE CHAMPAGNE",null,0]
[null,null,"COUPE CLAIRETTE",null,0]
[null,null,"BOUTEILLE CLAIRETTE",null,0]
[null,null,"SANDWICHES",null,0]
[null,null,"GÂTEAUX",null,0]
[null,null,"SAUCISSE SUR ARDOISE ",null,0]
[null,null,"ASSIETTE FROIDE / CRUDITES",null,0]
[null,238,"MINERALES",null,0,{"$f":"SUM(E3321:E3334)","v":0},"Payé","à rendre"]
[null,null,"BIÈRE",null,0,null,0,{"$f":"G3322-F3321","v":0}]
[null,null,"CAFE / THE",null,0]
[null,null,"VIN AU VERRE",null,0]
[null,null,"BOUTEILLE VIN BLANC",null,0]
[null,null,"BOUTEILLE VIN ROUGE",null,0]
[null,null,"COUPE CHAMPAGNE",null,0]
[null,null,"BOUTEILLE CHAMPAGNE",null,0]
[null,null,"COUPE CLAIRETTE",null,0]
[null,null,"BOUTEILLE CLAIRETTE",null,0]
[null,null,"SANDWICHES",null,0]
[null,null,"GÂTEAUX",null,0]
[null,null,"SAUCISSE SUR ARDOISE ",null,0]
[null,null,"ASSIETTE FROIDE / CRUDITES",null,0]
[null,239,"MINERALES",null,0,{"$f":"SUM(E3335:E3348)","v":0},"Payé","à rendre"]
[null,null,"BIÈRE",null,0,null,0,{"$f":"G3336-F3335","v":0}]
[null,null,"CAFE / THE",null,0]
[null,null,"VIN AU VERRE",null,0]
[null,null,"BOUTEILLE VIN BLANC",null,0]
[null,null,"BOUTEILLE VIN ROUGE",null,0]
[null,null,"COUPE CHAMPAGNE",null,0]
[null,null,"BOUTEILLE CHAMPAGNE",null,0]
[null,null,"COUPE CLAIRETTE",null,0]
[null,null,"BOUTEILLE CLAIRETTE",null,0]
[null,null,"SANDWICHES",null,0]
[null,null,"GÂTEAUX",null,0]
[null,null,"SAUCISSE SUR ARDOISE ",null,0]
[null,null,"ASSIETTE FROIDE / CRUDITES",null,0]
[null,240,"MINERALES",null,0,{"$f":"SUM(E3349:E3362)","v":0},"Payé","à rendre"]
[null,null,"BIÈRE",null,0,null,0,{"$f":"G3350-F3349","v":0}]
[null,null,"CAFE / THE",null,0]
[null,null,"VIN AU VERRE",null,0]
[null,null,"BOUTEILLE VIN BLANC",null,0]
[null,null,"BOUTEILLE VIN ROUGE",null,0]
[null,null,"COUPE CHAMPAGNE",null,0]
[null,null,"BOUTEILLE CHAMPAGNE",null,0]
[null,null,"COUPE CLAIRETTE",null,0]
[null,null,"BOUTEILLE CLAIRETTE",null,0]
[null,null,"SANDWICHES",null,0]
[null,null,"GÂTEAUX",null,0]
[null,null,"SAUCISSE SUR ARDOISE ",null,0]
[null,null,"ASSIETTE FROIDE / CRUDITES",null,0]
[null,241,"MINERALES",null,0,{"$f":"SUM(E3363:E3376)","v":0},"Payé","à rendre"]
[null,null,"BIÈRE",null,0,null,0,{"$f":"G3364-F3363","v":0}]
[null,null,"CAFE / THE",null,0]
[null,null,"VIN AU VERRE",null,0]
[null,null,"BOUTEILLE VIN BLANC",null,0]
[null,null,"BOUTEILLE VIN ROUGE",null,0]
[null,null,"COUPE CHAMPAGNE",null,0]
[null,null,"BOUTEILLE CHAMPAGNE",null,0]
[null,null,"COUPE CLAIRETTE",null,0]
[null,null,"BOUTEILLE CLAIRETTE",null,0]
[null,null,"SANDWICHES",null,0]
[null,null,"GÂTEAUX",null,0]
[null,null,"SAUCISSE SUR ARDOISE ",null,0]
[null,null,"ASSIETTE FROIDE / CRUDITES",null,0]
[null,242,"MINERALES",null,0,{"$f":"SUM(E3377:E3390)","v":0},"Payé","à rendre"]
[null,null,"BIÈRE",null,0,null,0,{"$f":"G3378-F3377","v":0}]
[null,null,"CAFE / THE",null,0]
[null,null,"VIN AU VERRE",null,{"$f":"VLOOKUP(C3380,Fichier,3,0)*D3380","v":0}]
[null,null,"BOUTEILLE VIN BLANC",null,0]
[null,null,"BOUTEILLE VIN ROUGE",null,0]
[null,null,"COUPE CHAMPAGNE",null,0]
[null,null,"BOUTEILLE CHAMPAGNE",null,0]
[null,null,"COUPE CLAIRETTE",null,0]
[null,null,"BOUTEILLE CLAIRETTE",null,0]
[null,null,"SANDWICHES",null,0]
[null,null,"GÂTEAUX",null,0]
[null,null,"SAUCISSE SUR ARDOISE ",null,0]
[null,null,"ASSIETTE FROIDE / CRUDITES",null,0]
[null,243,"MINERALES",null,0,{"$f":"SUM(E3391:E3404)","v":0},"Payé","à rendre"]
[null,null,"BIÈRE",null,0,null,0,{"$f":"G3392-F3391","v":0}]
[null,null,"CAFE / THE",null,0]
[null,null,"VIN AU VERRE",null,0]
[null,null,"BOUTEILLE VIN BLANC",null,0]
[null,null,"BOUTEILLE VIN ROUGE",null,0]
[null,null,"COUPE CHAMPAGNE",null,0]
[null,null,"BOUTEILLE CHAMPAGNE",null,0]
[null,null,"COUPE CLAIRETTE",null,0]
[null,null,"BOUTEILLE CLAIRETTE",null,0]
[null,null,"SANDWICHES",null,0]
[null,null,"GÂTEAUX",null,0]
[null,null,"SAUCISSE SUR ARDOISE ",null,0]
[null,null,"ASSIETTE FROIDE / CRUDITES",null,0]
[null,244,"MINERALES",null,0,{"$f":"SUM(E3405:E3418)","v":0},"Payé","à rendre"]
[null,null,"BIÈRE",null,0,null,0,{"$f":"G3406-F3405","v":0}]
[null,null,"CAFE / THE",null,0]
[null,null,"VIN AU VERRE",null,0]
[null,null,"BOUTEILLE VIN BLANC",null,0]
[null,null,"BOUTEILLE VIN ROUGE",null,0]
[null,null,"COUPE CHAMPAGNE",null,0]
[null,null,"BOUTEILLE CHAMPAGNE",null,0]
[null,null,"COUPE CLAIRETTE",null,0]
[null,null,"BOUTEILLE CLAIRETTE",null,0]
[null,null,"SANDWICHES",null,0]
[null,null,"GÂTEAUX",null,0]
[null,null,"SAUCISSE SUR ARDOISE ",null,0]
[null,null,"ASSIETTE FROIDE / CRUDITES",null,0]
[null,245,"MINERALES",null,0,{"$f":"SUM(E3419:E3432)","v":0},"Payé","à rendre"]
[null,null,"BIÈRE",null,0,null,0,{"$f":"G3420-F3419","v":0}]
[null,null,"CAFE / THE",null,0]
[null,null,"VIN AU VERRE",null,0]
[null,null,"BOUTEILLE VIN BLANC",null,0]
[null,null,"BOUTEILLE VIN ROUGE",null,0]
[null,null,"COUPE CHAMPAGNE",null,0]
[null,null,"BOUTEILLE CHAMPAGNE",null,0]
[null,null,"COUPE CLAIRETTE",null,0]
[null,null,"BOUTEILLE CLAIRETTE",null,0]
[null,null,"SANDWICHES",null,0]
[null,null,"GÂTEAUX",null,0]
[null,null,"SAUCISSE SUR ARDOISE ",null,0]
[null,null,"ASSIETTE FROIDE / CRUDITES",null,0]
[null,246,"MINERALES",null,0,{"$f":"SUM(E3433:E3446)","v":0},"Payé","à rendre"]
[null,null,"BIÈRE",null,0,null,0,{"$f":"G3434-F3433","v":0}]
[null,null,"CAFE / THE",null,0]
[null,null,"VIN AU VERRE",null,0]
[null,null,"BOUTEILLE VIN BLANC",null,0]
[null,null,"BOUTEILLE VIN ROUGE",null,0]
[null,null,"COUPE CHAMPAGNE",null,0]
[null,null,"BOUTEILLE CHAMPAGNE",null,0]
[null,null,"COUPE CLAIRETTE",null,0]
[null,null,"BOUTEILLE CLAIRETTE",null,0]
[null,null,"SANDWICHES",null,0]
[null,null,"GÂTEAUX",null,0]
[null,null,"SAUCISSE SUR ARDOISE ",null,0]
[null,null,"ASSIETTE FROIDE / CRUDITES",null,0]
[null,247,"MINERALES",null,0,{"$f":"SUM(E3447:E3460)","v":0},"Payé","à rendre"]
[null,null,"BIÈRE",null,0,null,0,{"$f":"G3448-F3447","v":0}]
[null,null,"CAFE / THE",null,{"$f":"VLOOKUP(C3449,Fichier,3,0)*D3449","v":0}]
[null,null,"VIN AU VERRE",null,0]
[null,null,"BOUTEILLE VIN BLANC",null,0]
[null,null,"BOUTEILLE VIN ROUGE",null,0]
[null,null,"COUPE CHAMPAGNE",null,0]
[null,null,"BOUTEILLE CHAMPAGNE",null,0]
[null,null,"COUPE CLAIRETTE",null,0]
[null,null,"BOUTEILLE CLAIRETTE",null,0]
[null,null,"SANDWICHES",null,0]
[null,null,"GÂTEAUX",null,0]
[null,null,"SAUCISSE SUR ARDOISE ",null,0]
[null,null,"ASSIETTE FROIDE / CRUDITES",null,0]
[null,248,"MINERALES",null,0,{"$f":"SUM(E3461:E3474)","v":0},"Payé","à rendre"]
[null,null,"BIÈRE",null,0,null,0,{"$f":"G3462-F3461","v":0}]
[null,null,"CAFE / THE",null,0]
[null,null,"VIN AU VERRE",null,0]
[null,null,"BOUTEILLE VIN BLANC",null,0]
[null,null,"BOUTEILLE VIN ROUGE",null,0]
[null,null,"COUPE CHAMPAGNE",null,0]
[null,null,"BOUTEILLE CHAMPAGNE",null,0]
[null,null,"COUPE CLAIRETTE",null,0]
[null,null,"BOUTEILLE CLAIRETTE",null,0]
[null,null,"SANDWICHES",null,0]
[null,null,"GÂTEAUX",null,0]
[null,null,"SAUCISSE SUR ARDOISE ",null,0]
[null,null,"ASSIETTE FROIDE / CRUDITES",null,0]
[null,249,"MINERALES",null,0,{"$f":"SUM(E3475:E3488)","v":0},"Payé","à rendre"]
[null,null,"BIÈRE",null,0,null,0,{"$f":"G3476-F3475","v":0}]
[null,null,"CAFE / THE",null,0]
[null,null,"VIN AU VERRE",null,0]
[null,null,"BOUTEILLE VIN BLANC",null,0]
[null,null,"BOUTEILLE VIN ROUGE",null,0]
[null,null,"COUPE CHAMPAGNE",null,0]
[null,null,"BOUTEILLE CHAMPAGNE",null,0]
[null,null,"COUPE CLAIRETTE",null,0]
[null,null,"BOUTEILLE CLAIRETTE",null,0]
[null,null,"SANDWICHES",null,0]
[null,null,"GÂTEAUX",null,0]
[null,null,"SAUCISSE SUR ARDOISE ",null,0]
[null,null,"ASSIETTE FROIDE / CRUDITES",null,0]
[null,250,"MINERALES",null,0,{"$f":"SUM(E3489:E3502)","v":0},"Payé","à rendre"]
[null,null,"BIÈRE",null,0,null,0,{"$f":"G3490-F3489","v":0}]
[null,null,"CAFE / THE",null,0]
[null,null,"VIN AU VERRE",null,0]
[null,null,"BOUTEILLE VIN BLANC",null,0]
[null,null,"BOUTEILLE VIN ROUGE",null,0]
[null,null,"COUPE CHAMPAGNE",null,0]
[null,null,"BOUTEILLE CHAMPAGNE",null,0]
[null,null,"COUPE CLAIRETTE",null,0]
[null,null,"BOUTEILLE CLAIRETTE",null,0]
[null,null,"SANDWICHES",null,0]
[null,null,"GÂTEAUX",null,0]
[null,null,"SAUCISSE SUR ARDOISE ",null,0]
[null,null,"ASSIETTE FROIDE / CRUDITES",null,0]
[null,251,"MINERALES",null,0,{"$f":"SUM(E3503:E3516)","v":0},"Payé","à rendre"]
[null,null,"BIÈRE",null,0,null,0,{"$f":"G3504-F3503","v":0}]
[null,null,"CAFE / THE",null,0]
[null,null,"VIN AU VERRE",null,0]
[null,null,"BOUTEILLE VIN BLANC",null,0]
[null,null,"BOUTEILLE VIN ROUGE",null,0]
[null,null,"COUPE CHAMPAGNE",null,0]
[null,null,"BOUTEILLE CHAMPAGNE",null,0]
[null,null,"COUPE CLAIRETTE",null,0]
[null,null,"BOUTEILLE CLAIRETTE",null,0]
[null,null,"SANDWICHES",null,0]
[null,null,"GÂTEAUX",null,0]
[null,null,"SAUCISSE SUR ARDOISE ",null,0]
[null,null,"ASSIETTE FROIDE / CRUDITES",null,0]
[null,252,"MINERALES",null,0,{"$f":"SUM(E3517:E3530)","v":0},"Payé","à rendre"]
[null,null,"BIÈRE",null,{"$f":"VLOOKUP(C3518,Fichier,3,0)*D3518","v":0},null,0,{"$f":"G3518-F3517","v":0}]
[null,null,"CAFE / THE",null,0]
[null,null,"VIN AU VERRE",null,0]
[null,null,"BOUTEILLE VIN BLANC",null,0]
[null,null,"BOUTEILLE VIN ROUGE",null,0]
[null,null,"COUPE CHAMPAGNE",null,0]
[null,null,"BOUTEILLE CHAMPAGNE",null,0]
[null,null,"COUPE CLAIRETTE",null,0]
[null,null,"BOUTEILLE CLAIRETTE",null,0]
[null,null,"SANDWICHES",null,0]
[null,null,"GÂTEAUX",null,0]
[null,null,"SAUCISSE SUR ARDOISE ",null,0]
[null,null,"ASSIETTE FROIDE / CRUDITES",null,0]
[null,253,"MINERALES",null,0,{"$f":"SUM(E3531:E3544)","v":0},"Payé","à rendre"]
[null,null,"BIÈRE",null,0,null,0,{"$f":"G3532-F3531","v":0}]
[null,null,"CAFE / THE",null,0]
[null,null,"VIN AU VERRE",null,0]
[null,null,"BOUTEILLE VIN BLANC",null,0]
[null,null,"BOUTEILLE VIN ROUGE",null,0]
[null,null,"COUPE CHAMPAGNE",null,0]
[null,null,"BOUTEILLE CHAMPAGNE",null,0]
[null,null,"COUPE CLAIRETTE",null,0]
[null,null,"BOUTEILLE CLAIRETTE",null,0]
[null,null,"SANDWICHES",null,0]
[null,null,"GÂTEAUX",null,0]
[null,null,"SAUCISSE SUR ARDOISE ",null,0]
[null,null,"ASSIETTE FROIDE / CRUDITES",null,0]
[null,254,"MINERALES",null,0,{"$f":"SUM(E3545:E3558)","v":0},"Payé","à rendre"]
[null,null,"BIÈRE",null,0,null,0,{"$f":"G3546-F3545","v":0}]
[null,null,"CAFE / THE",null,0]
[null,null,"VIN AU VERRE",null,0]
[null,null,"BOUTEILLE VIN BLANC",null,0]
[null,null,"BOUTEILLE VIN ROUGE",null,0]
[null,null,"COUPE CHAMPAGNE",null,0]
[null,null,"BOUTEILLE CHAMPAGNE",null,0]
[null,null,"COUPE CLAIRETTE",null,0]
[null,null,"BOUTEILLE CLAIRETTE",null,0]
[null,null,"SANDWICHES",null,0]
[null,null,"GÂTEAUX",null,0]
[null,null,"SAUCISSE SUR ARDOISE ",null,0]
[null,null,"ASSIETTE FROIDE / CRUDITES",null,0]
[null,255,"MINERALES",null,0,{"$f":"SUM(E3559:E3572)","v":0},"Payé","à rendre"]
[null,null,"BIÈRE",null,0,null,0,{"$f":"G3560-F3559","v":0}]
[null,null,"CAFE / THE",null,0]
[null,null,"VIN AU VERRE",null,0]
[null,null,"BOUTEILLE VIN BLANC",null,0]
[null,null,"BOUTEILLE VIN ROUGE",null,0]
[null,null,"COUPE CHAMPAGNE",null,0]
[null,null,"BOUTEILLE CHAMPAGNE",null,0]
[null,null,"COUPE CLAIRETTE",null,0]
[null,null,"BOUTEILLE CLAIRETTE",null,0]
[null,null,"SANDWICHES",null,0]
[null,null,"GÂTEAUX",null,0]
[null,null,"SAUCISSE SUR ARDOISE ",null,0]
[null,null,"ASSIETTE FROIDE / CRUDITES",null,0]
[null,256,"MINERALES",null,0,{"$f":"SUM(E3573:E3586)","v":0},"Payé","à rendre"]
[null,null,"BIÈRE",null,0,null,0,{"$f":"G3574-F3573","v":0}]
[null,null,"CAFE / THE",null,0]
[null,null,"VIN AU VERRE",null,0]
[null,null,"BOUTEILLE VIN BLANC",null,0]
[null,null,"BOUTEILLE VIN ROUGE",null,0]
[null,null,"COUPE CHAMPAGNE",null,0]
[null,null,"BOUTEILLE CHAMPAGNE",null,0]
[null,null,"COUPE CLAIRETTE",null,0]
[null,null,"BOUTEILLE CLAIRETTE",null,0]
[null,null,"SANDWICHES",null,0]
[null,null,"GÂTEAUX",null,0]
[null,null,"SAUCISSE SUR ARDOISE ",null,0]
[null,null,"ASSIETTE FROIDE / CRUDITES",null,{"$f":"VLOOKUP(C3586,Fichier,3,0)*D3586","v":0}]
[]
[]
[]
[null,null,"MINERALES :",{"$f":"SUMIF($C$3:$C$3585,\"*MINERALES*\",$E$3:$E$3585)","v":0}]
[null,null,"BIÈRE :",{"$f":"SUMIF($C$3:$C$3585,\"*BIÈRE*\",$E$3:$E$3585)","v":0}]
[null,null,"CAFE / THE :",{"$f":"SUMIF($C$3:$C$3585,\"*CAFE / THE*\",$E$3:$E$3585)","v":0}]
[null,null,"VIN AU VERRE :",{"$f":"SUMIF($C$3:$C$3585,\"*VIN AU VERRE*\",$E$3:$E$3585)","v":0}]
[null,null,"BOUTEILLE VIN BLANC :",{"$f":"SUMIF($C$3:$C$3585,\"*BOUTEILLE VIN BLANC*\",$E$3:$E$3585)","v":0}]
[null,null,"BOUTEILLE VIN ROUGE :",{"$f":"SUMIF($C$3:$C$3585,\"*BOUTEILLE VIN ROUGE*\",$E$3:$E$3585)","v":0}]
[null,null,"COUPE CHAMPAGNE :",{"$f":"SUMIF($C$3:$C$3585,\"*COUPE CHAMPAGNE*\",$E$3:$E$3585)","v":0}]
[null,null,"BOUTEILLE CHAMPAGNE :",{"$f":"SUMIF($C$3:$C$3585,\"*BOUTEILLE CHAMPAGNE*\",$E$3:$E$3585)","v":0}]
[null,null,"COUPE CLAIRETTE :",{"$f":"SUMIF($C$3:$C$3585,\"*COUPE CLAIRETTE*\",$E$3:$E$3585)","v":0}]
[null,null,"BOUTEILLE CLAIRETTE :",{"$f":"SUMIF($C$3:$C$3585,\"*BOUTEILLE CLAIRETTE*\",$E$3:$E$3585)","v":0}]
[null,null,"SANDWICHES :",{"$f":"SUMIF($C$3:$C$3585,\"*SANDWICHES*\",$E$3:$E$3585)","v":0}]
[null,null,"GÂTEAUX :",{"$f":"SUMIF($C$3:$C$3585,\"*GÂTEAUX*\",$E$3:$E$3585)","v":0}]
[null,null,"SAUCISSE SUR ARDOISE :",{"$f":"SUMIF($C$3:$C$3585,\"*SAUCISSE SUR ARDOISE *\",$E$3:$E$3585)","v":0}]
[null,null,"ASSIETTE FROIDE / CRUDITES :",{"$f":"SUMIF($C$3:$C$3585,\"*ASSIETTE FROIDE / CRUDITES*\",$E$3:$E$3585)","v":0}]
[null,null,"Total",{"$f":"SUM(D3590:D3602)","v":0},null,{"$f":"SUM(F3:F3585)","v":0}]

{"sheet":"C1 - Samedi 11 juin 2016","index":1,"n_rows":3604,"n_cols":8,"rows_kept":3604,"cut":false,"hidden":false,"merged":[[16,5,29,5],[16,1,29,1],[2,5,15,5],[2,1,15,1],[13,6,14,6],[13,7,14,7],[17,6,20,6],[17,7,20,7],[1,1,1,5],[3,6,6,6],[3,7,6,7],[7,6,10,6],[7,7,10,7],[11,6,12,6],[11,7,12,7],[87,6,90,6],[87,7,90,7],[115,6,118,6],[115,7,118,7],[129,6,132,6],[129,7,132,7],[101,6,104,6],[101,7,104,7],[59,6,62,6],[59,7,62,7],[73,6,76,6],[73,7,76,7],[31,6,34,6],[31,7,34,7],[45,6,48,6],[45,7,48,7],[72,5,85,5],[72,1,85,1],[58,5,71,5],[58,1,71,1],[44,5,57,5],[44,1,57,1],[30,5,43,5],[30,1,43,1],[114,5,127,5],[114,1,127,1],[100,5,113,5],[100,1,113,1],[86,5,99,5],[86,1,99,1],[199,6,202,6],[199,7,202,7],[213,6,216,6],[213,7,216,7],[254,5,267,5],[254,1,267,1],[240,5,253,5],[240,1,253,1],[226,5,239,5],[226,1,239,1],[212,5,225,5],[212,1,225,1],[171,6,174,6],[171,7,174,7],[185,6,188,6],[185,7,188,7],[143,6,146,6],[143,7,146,7],[157,6,160,6],[157,7,160,7],[283,6,286,6],[283,7,286,7],[297,6,300,6],[297,7,300,7],[310,5,323,5],[310,1,323,1],[296,5,309,5],[296,1,309,1],[282,5,295,5],[282,1,295,1],[268,5,281,5],[268,1,281,1],[255,6,258,6],[255,7,258,7],[269,6,272,6],[269,7,272,7],[227,6,230,6],[227,7,230,7],[241,6,244,6],[241,7,244,7],[391,7,392,7],[395,6,398,6],[395,7,398,7],[409,6,412,6],[409,7,412,7],[367,6,370,6],[367,7,370,7],[381,6,384,6],[381,7,384,7],[385,7,388,7],[389,7,390,7],[339,6,342,6],[339,7,342,7],[353,6,356,6],[353,7,356,7],[311,6,314,6],[311,7,314,7],[325,6,328,6],[325,7,328,7],[479,6,482,6],[479,7,482,7],[493,6,496,6],[493,7,496,7],[451,6,454,6],[451,7,454,7],[465,6,468,6],[465,7,468,7],[423,6,426,6],[423,7,426,7],[437,6,440,6],[437,7,440,7],[492,5,505,5],[492,1,505,1],[478,5,491,5],[478,1,491,1],[464,5,477,5],[464,1,477,1],[450,5,463,5],[450,1,463,1],[576,5,589,5],[576,1,589,1],[562,5,575,5],[562,1,575,1],[563,6,566,6],[563,7,566,7],[577,6,580,6],[577,7,580,7],[535,6,538,6],[535,7,538,7],[549,6,552,6],[549,7,552,7],[507,6,510,6],[507,7,510,7],[521,6,524,6],[521,7,524,7],[548,5,561,5],[548,1,561,1],[534,5,547,5],[534,1,547,1],[520,5,533,5],[520,1,533,1],[506,5,519,5],[506,1,519,1],[618,5,631,5],[618,1,631,1],[647,6,650,6],[647,7,650,7],[661,6,664,6],[661,7,664,7],[619,6,622,6],[619,7,622,7],[633,6,636,6],[633,7,636,7],[591,6,594,6],[591,7,594,7],[605,6,608,6],[605,7,608,7],[604,5,617,5],[604,1,617,1],[590,5,603,5],[590,1,603,1],[731,6,734,6],[731,7,734,7],[745,6,748,6],[745,7,748,7],[703,6,706,6],[703,7,706,7],[717,6,720,6],[717,7,720,7],[675,6,678,6],[675,7,678,7],[689,6,692,6],[689,7,692,7],[660,5,673,5],[660,1,673,1],[646,5,659,5],[646,1,659,1],[632,5,645,5],[632,1,645,1],[829,6,832,6],[829,7,832,7],[843,6,846,6],[843,7,846,7],[801,6,804,6],[801,7,804,7],[815,6,818,6],[815,7,818,7],[773,6,776,6],[773,7,776,7],[787,6,790,6],[787,7,790,7],[759,6,762,6],[759,7,762,7],[763,6,766,6],[763,7,766,7],[767,6,768,6],[767,7,768,7],[769,6,770,6],[769,7,770,7],[913,6,916,6],[913,7,916,7],[927,6,930,6],[927,7,930,7],[885,6,888,6],[885,7,888,7],[899,6,902,6],[899,7,902,7],[940,5,953,5],[940,1,953,1],[926,5,939,5],[926,1,939,1],[912,5,925,5],[912,1,925,1],[898,5,911,5],[898,1,911,1],[857,6,860,6],[857,7,860,7],[871,6,874,6],[871,7,874,7],[997,6,1000,6],[997,7,1000,7],[1011,6,1014,6],[1011,7,1014,7],[969,6,972,6],[969,7,972,7],[983,6,986,6],[983,7,986,7],[996,5,1009,5],[996,1,1009,1],[982,5,995,5],[982,1,995,1],[968,5,981,5],[968,1,981,1],[954,5,967,5],[954,1,967,1],[941,6,944,6],[941,7,944,7],[955,6,958,6],[955,7,958,7],[1109,6,1112,6],[1109,7,1112,7],[1123,6,1126,6],[1123,7,1126,7],[1081,6,1084,6],[1081,7,1084,7],[1095,6,1098,6],[1095,7,1098,7],[1053,6,1056,6],[1053,7,1056,7],[1067,6,1070,6],[1067,7,1070,7],[1052,5,1065,5],[1052,1,1065,1],[1038,5,1051,5],[1038,1,1051,1],[1024,5,1037,5],[1024,1,1037,1],[1025,6,1028,6],[1025,7,1028,7],[1039,6,1042,6],[1039,7,1042,7],[1179,6,1182,6],[1179,7,1182,7],[1193,6,1196,6],[1193,7,1196,7],[1151,6,1154,6],[1151,7,1154,7],[1165,6,1168,6],[1165,7,1168,7],[1137,6,1140,6],[1137,7,1140,7],[1141,6,1144,6],[1141,7,1144,7],[1145,6,1146,6],[1145,7,1146,7],[1147,6,1148,6],[1147,7,1148,7],[1150,5,1163,5],[1192,5,1205,5],[1136,5,1149,5],[1263,6,1266,6],[1263,7,1266,7],[1277,6,1280,6],[1277,7,1280,7],[1332,5,1345,5],[1332,1,1345,1],[1318,5,1331,5],[1318,1,1331,1],[1304,5,1317,5],[1304,1,1317,1],[1290,5,1303,5],[1290,1,1303,1],[1235,6,1238,6],[1235,7,1238,7],[1249,6,1252,6],[1249,7,1252,7],[1207,6,1210,6],[1207,7,1210,7],[1221,6,1224,6],[1221,7,1224,7],[1206,5,1219,5],[1206,1,1219,1],[1347,6,1350,6],[1347,7,1350,7],[1361,6,1364,6],[1361,7,1364,7],[1388,5,1401,5],[1388,1,1401,1],[1374,5,1387,5],[1374,1,1387,1],[1360,5,1373,5],[1360,1,1373,1],[1346,5,1359,5],[1346,1,1359,1],[1319,6,1322,6],[1319,7,1322,7],[1333,6,1336,6],[1333,7,1336,7],[1291,6,1294,6],[1291,7,1294,7],[1305,6,1308,6],[1305,7,1308,7],[1431,6,1434,6],[1431,7,1434,7],[1445,6,1448,6],[1445,7,1448,7],[1444,5,1457,5],[1444,1,1457,1],[1430,5,1443,5],[1430,1,1443,1],[1416,5,1429,5],[1416,1,1429,1],[1402,5,1415,5],[1402,1,1415,1],[1403,6,1406,6],[1403,7,1406,7],[1417,6,1420,6],[1417,7,1420,7],[1375,6,1378,6],[1375,7,1378,7],[1389,6,1392,6],[1389,7,1392,7],[1529,6,1532,6],[1529,7,1532,7],[1543,6,1546,6],[1543,7,1546,7],[1515,6,1518,6],[1515,7,1518,7],[1519,6,1522,6],[1519,7,1522,7],[1523,6,1524,6],[1523,7,1524,7],[1525,6,1526,6],[1525,7,1526,7],[1487,6,1490,6],[1487,7,1490,7],[1501,6,1504,6],[1501,7,1504,7],[1459,6,1462,6],[1459,7,1462,7],[1473,6,1476,6],[1473,7,1476,7],[1613,6,1616,6],[1613,7,1616,7],[1627,6,1630,6],[1627,7,1630,7],[1585,6,1588,6],[1585,7,1588,7],[1599,6,1602,6],[1599,7,1602,7],[1557,6,1560,6],[1557,7,1560,7],[1571,6,1574,6],[1571,7,1574,7],[1626,5,1639,5],[1626,1,1639,1],[1612,5,1625,5],[1612,1,1625,1],[1598,5,1611,5],[1598,1,1611,1],[1584,5,1597,5],[1584,1,1597,1],[1710,5,1723,5],[1710,1,1723,1],[1696,5,1709,5],[1696,1,1709,1],[1697,6,1700,6],[1697,7,1700,7],[1711,6,1714,6],[1711,7,1714,7],[1669,6,1672,6],[1669,7,1672,7],[1683,6,1686,6],[1683,7,1686,7],[1641,6,1644,6],[1641,7,1644,7],[1655,6,1658,6],[1655,7,1658,7],[1682,5,1695,5],[1682,1,1695,1],[1668,5,1681,5],[1668,1,1681,1],[1654,5,1667,5],[1654,1,1667,1],[1640,5,1653,5],[1640,1,1653,1],[1752,5,1765,5],[1752,1,1765,1],[1781,6,1784,6],[1781,7,1784,7],[1795,6,1798,6],[1795,7,1798,7],[1753,6,1756,6],[1753,7,1756,7],[1767,6,1770,6],[1767,7,1770,7],[1725,6,1728,6],[1725,7,1728,7],[1739,6,1742,6],[1739,7,1742,7],[1738,5,1751,5],[1738,1,1751,1],[1724,5,1737,5],[1724,1,1737,1],[1865,6,1868,6],[1865,7,1868,7],[1879,6,1882,6],[1879,7,1882,7],[1837,6,1840,6],[1837,7,1840,7],[1851,6,1854,6],[1851,7,1854,7],[1809,6,1812,6],[1809,7,1812,7],[1823,6,1826,6],[1823,7,1826,7],[1794,5,1807,5],[1794,1,1807,1],[1780,5,1793,5],[1780,1,1793,1],[1766,5,1779,5],[1766,1,1779,1],[1991,6,1994,6],[1991,7,1994,7],[2005,6,2008,6],[2005,7,2008,7],[1963,6,1966,6],[1963,7,1966,7],[1977,6,1980,6],[1977,7,1980,7],[1935,6,1938,6],[1935,7,1938,7],[1949,6,1952,6],[1949,7,1952,7],[1907,6,1910,6],[1907,7,1910,7],[1921,6,1924,6],[1921,7,1924,7],[1893,6,1896,6],[1893,7,1896,7],[1897,6,1900,6],[1897,7,1900,7],[1901,6,1902,6],[1901,7,1902,7],[1903,6,1904,6],[1903,7,1904,7],[2088,5,2101,5],[2088,1,2101,1],[2075,6,2078,6],[2075,7,2078,7],[2089,6,2092,6],[2089,7,2092,7],[2047,6,2050,6],[2047,7,2050,7],[2061,6,2064,6],[2061,7,2064,7],[2019,6,2022,6],[2019,7,2022,7],[2033,6,2036,6],[2033,7,2036,7],[2074,5,2087,5],[2074,1,2087,1],[2060,5,2073,5],[2060,1,2073,1],[2046,5,2059,5],[2046,1,2059,1],[2032,5,2045,5],[2032,1,2045,1],[2144,5,2157,5],[2144,1,2157,1],[2159,6,2162,6],[2159,7,2162,7],[2173,6,2176,6],[2173,7,2176,7],[2131,6,2134,6],[2131,7,2134,7],[2145,6,2148,6],[2145,7,2148,7],[2103,6,2106,6],[2103,7,2106,7],[2117,6,2120,6],[2117,7,2120,7],[2130,5,2143,5],[2130,1,2143,1],[2116,5,2129,5],[2116,1,2129,1],[2102,5,2115,5],[2102,1,2115,1],[2243,6,2246,6],[2243,7,2246,7],[2257,6,2260,6],[2257,7,2260,7],[2215,6,2218,6],[2215,7,2218,7],[2229,6,2232,6],[2229,7,2232,7],[2187,6,2190,6],[2187,7,2190,7],[2201,6,2204,6],[2201,7,2204,7],[2186,5,2199,5],[2186,1,2199,1],[2172,5,2185,5],[2172,1,2185,1],[2158,5,2171,5],[2158,1,2171,1],[2369,6,2372,6],[2369,7,2372,7],[2383,6,2386,6],[2383,7,2386,7],[2341,6,2344,6],[2341,7,2344,7],[2355,6,2358,6],[2355,7,2358,7],[2313,6,2316,6],[2313,7,2316,7],[2327,6,2330,6],[2327,7,2330,7],[2285,6,2288,6],[2285,7,2288,7],[2299,6,2302,6],[2299,7,2302,7],[2271,6,2274,6],[2271,7,2274,7],[2275,6,2278,6],[2275,7,2278,7],[2279,6,2280,6],[2279,7,2280,7],[2281,6,2282,6],[2281,7,2282,7],[2453,6,2456,6],[2453,7,2456,7],[2467,6,2470,6],[2467,7,2470,7],[2425,6,2428,6],[2425,7,2428,7],[2439,6,2442,6],[2439,7,2442,7],[2397,6,2400,6],[2397,7,2400,7],[2411,6,2414,6],[2411,7,2414,7],[2466,5,2479,5],[2466,1,2479,1],[2452,5,2465,5],[2452,1,2465,1],[2438,5,2451,5],[2438,1,2451,1],[2424,5,2437,5],[2424,1,2437,1],[2537,6,2540,6],[2537,7,2540,7],[2551,6,2554,6],[2551,7,2554,7],[2509,6,2512,6],[2509,7,2512,7],[2523,6,2526,6],[2523,7,2526,7],[2481,6,2484,6],[2481,7,2484,7],[2495,6,2498,6],[2495,7,2498,7],[2522,5,2535,5],[2522,1,2535,1],[2508,5,2521,5],[2508,1,2521,1],[2494,5,2507,5],[2494,1,2507,1],[2480,5,2493,5],[2480,1,2493,1],[2621,6,2624,6],[2621,7,2624,7],[2635,6,2638,6],[2635,7,2638,7],[2593,6,2596,6],[2593,7,2596,7],[2607,6,2610,6],[2607,7,2610,7],[2565,6,2568,6],[2565,7,2568,7],[2579,6,2582,6],[2579,7,2582,7],[2578,5,2591,5],[2578,1,2591,1],[2564,5,2577,5],[2564,1,2577,1],[2550,5,2563,5],[2550,1,2563,1],[2663,6,2666,6],[2663,7,2666,7],[2677,6,2680,6],[2677,7,2680,7],[2649,6,2652,6],[2649,7,2652,7],[2653,6,2656,6],[2653,7,2656,7],[2657,6,2658,6],[2657,7,2658,7],[2659,6,2660,6],[2659,7,2660,7],[2676,5,2689,5],[2676,1,2689,1],[2662,5,2675,5],[2662,1,2675,1],[2648,5,2661,5],[2648,1,2661,1],[2775,6,2778,6],[2775,7,2778,7],[2789,6,2792,6],[2789,7,2792,7],[2747,6,2750,6],[2747,7,2750,7],[2761,6,2764,6],[2761,7,2764,7],[2719,6,2722,6],[2719,7,2722,7],[2733,6,2736,6],[2733,7,2736,7],[2691,6,2694,6],[2691,7,2694,7],[2705,6,2708,6],[2705,7,2708,7],[2732,5,2745,5],[2788,5,2801,5],[2718,5,2731,5],[2704,5,2717,5],[2690,5,2703,5],[2859,6,2862,6],[2859,7,2862,7],[2873,6,2876,6],[2873,7,2876,7],[2914,5,2927,5],[2914,1,2927,1],[2900,5,2913,5],[2900,1,2913,1],[2886,5,2899,5],[2886,1,2899,1],[2872,5,2885,5],[2872,1,2885,1],[2831,6,2834,6],[2831,7,2834,7],[2845,6,2848,6],[2845,7,2848,7],[2803,6,2806,6],[2803,7,2806,7],[2817,6,2820,6],[2817,7,2820,7],[2999,6,3002,6],[2999,7,3002,7],[3013,6,3016,6],[3013,7,3016,7],[2971,6,2974,6],[2971,7,2974,7],[2985,6,2988,6],[2985,7,2988,7],[2943,6,2946,6],[2943,7,2946,7],[2957,6,2960,6],[2957,7,2960,7],[2915,6,2918,6],[2915,7,2918,7],[2929,6,2932,6],[2929,7,2932,7],[2887,6,2890,6],[2887,7,2890,7],[2901,6,2904,6],[2901,7,2904,7],[3083,6,3086,6],[3083,7,3086,7],[3097,6,3100,6],[3097,7,3100,7],[3055,6,3058,6],[3055,7,3058,7],[3069,6,3072,6],[3069,7,3072,7],[3027,6,3030,6],[3027,7,3030,7],[3041,6,3044,6],[3041,7,3044,7],[3096,5,3109,5],[3096,1,3109,1],[3082,5,3095,5],[3082,1,3095,1],[3068,5,3081,5],[3068,1,3081,1],[3054,5,3067,5],[3054,1,3067,1],[3195,6,3198,6],[3195,7,3198,7],[3209,6,3212,6],[3209,7,3212,7],[3167,6,3170,6],[3167,7,3170,7],[3181,6,3184,6],[3181,7,3184,7],[3139,6,3142,6],[3139,7,3142,7],[3153,6,3156,6],[3153,7,3156,7],[3111,6,3114,6],[3111,7,3114,7],[3125,6,3128,6],[3125,7,3128,7],[3152,5,3165,5],[3208,5,3221,5],[3138,5,3151,5],[3124,5,3137,5],[3110,5,3123,5],[3279,6,3282,6],[3279,7,3282,7],[3293,6,3296,6],[3293,7,3296,7],[3334,5,3347,5],[3334,1,3347,1],[3320,5,3333,5],[3320,1,3333,1],[3306,5,3319,5],[3306,1,3319,1],[3292,5,3305,5],[3292,1,3305,1],[3251,6,3254,6],[3251,7,3254,7],[3265,6,3268,6],[3265,7,3268,7],[3223,6,3226,6],[3223,7,3226,7],[3237,6,3240,6],[3237,7,3240,7],[3250,5,3263,5],[3250,1,3263,1],[3236,5,3249,5],[3236,1,3249,1],[3222,5,3235,5],[3222,1,3235,1],[3419,6,3422,6],[3419,7,3422,7],[3433,6,3436,6],[3433,7,3436,7],[3391,6,3394,6],[3391,7,3394,7],[3405,6,3408,6],[3405,7,3408,7],[3363,6,3366,6],[3363,7,3366,7],[3377,6,3380,6],[3377,7,3380,7],[3335,6,3338,6],[3335,7,3338,7],[3349,6,3352,6],[3349,7,3352,7],[3307,6,3310,6],[3307,7,3310,7],[3321,6,3324,6],[3321,7,3324,7],[3503,6,3506,6],[3503,7,3506,7],[3517,6,3520,6],[3517,7,3520,7],[3475,6,3478,6],[3475,7,3478,7],[3489,6,3492,6],[3489,7,3492,7],[3447,6,3450,6],[3447,7,3450,7],[3461,6,3464,6],[3461,7,3464,7],[3516,5,3529,5],[3516,1,3529,1],[3502,5,3515,5],[3502,1,3515,1],[3488,5,3501,5],[3488,1,3501,1],[3474,5,3487,5],[3474,1,3487,1],[3460,5,3473,5],[3460,1,3473,1],[3446,5,3459,5],[3446,1,3459,1],[3587,6,3590,6],[3587,7,3590,7],[3600,6,3603,6],[3600,7,3603,7],[3559,6,3562,6],[3559,7,3562,7],[3573,6,3576,6],[3573,7,3576,7],[3531,6,3534,6],[3531,7,3534,7],[3545,6,3548,6],[3545,7,3548,7],[3572,5,3585,5],[3572,1,3585,1],[3558,5,3571,5],[3558,1,3571,1],[3544,5,3557,5],[3544,1,3557,1],[3530,5,3543,5],[3530,1,3543,1],[3432,5,3445,5],[3432,1,3445,1],[3418,5,3431,5],[3418,1,3431,1],[3404,5,3417,5],[3404,1,3417,1],[3390,5,3403,5],[3390,1,3403,1],[3376,5,3389,5],[3376,1,3389,1],[3362,5,3375,5],[3362,1,3375,1],[3348,5,3361,5],[3348,1,3361,1],[3278,5,3291,5],[3278,1,3291,1],[3264,5,3277,5],[3264,1,3277,1],[3208,1,3221,1],[3194,5,3207,5],[3194,1,3207,1],[3180,5,3193,5],[3180,1,3193,1],[3166,5,3179,5],[3166,1,3179,1],[3040,5,3053,5],[3040,1,3053,1],[3026,5,3039,5],[3026,1,3039,1],[3012,5,3025,5],[3012,1,3025,1],[2998,5,3011,5],[2998,1,3011,1],[2984,5,2997,5],[2984,1,2997,1],[3152,1,3165,1],[3138,1,3151,1],[3124,1,3137,1],[3110,1,3123,1],[2970,5,2983,5],[2970,1,2983,1],[2956,5,2969,5],[2956,1,2969,1],[2942,5,2955,5],[2942,1,2955,1],[2928,5,2941,5],[2928,1,2941,1],[2858,5,2871,5],[2858,1,2871,1],[2844,5,2857,5],[2844,1,2857,1],[2830,5,2843,5],[2830,1,2843,1],[2816,5,2829,5],[2816,1,2829,1],[2802,5,2815,5],[2802,1,2815,1],[2788,1,2801,1],[2774,5,2787,5],[2774,1,2787,1],[2760,5,2773,5],[2760,1,2773,1],[2746,5,2759,5],[2746,1,2759,1],[2410,5,2423,5],[2410,1,2423,1],[2396,5,2409,5],[2396,1,2409,1],[2382,5,2395,5],[2382,1,2395,1],[2368,5,2381,5],[2368,1,2381,1],[2354,5,2367,5],[2354,1,2367,1],[2732,1,2745,1],[2718,1,2731,1],[2704,1,2717,1],[2690,1,2703,1],[2634,5,2647,5],[2634,1,2647,1],[2620,5,2633,5],[2620,1,2633,1],[2606,5,2619,5],[2606,1,2619,1],[2592,5,2605,5],[2592,1,2605,1],[2536,5,2549,5],[2536,1,2549,1],[2340,5,2353,5],[2340,1,2353,1],[2326,5,2339,5],[2326,1,2339,1],[2312,5,2325,5],[2312,1,2325,1],[2298,5,2311,5],[2298,1,2311,1],[2018,5,2031,5],[2018,1,2031,1],[2004,5,2017,5],[2004,1,2017,1],[1990,5,2003,5],[1990,1,2003,1],[1976,5,1989,5],[1976,1,1989,1],[1962,5,1975,5],[1962,1,1975,1],[2284,5,2297,5],[2284,1,2297,1],[2270,5,2283,5],[2270,1,2283,1],[2256,5,2269,5],[2256,1,2269,1],[2242,5,2255,5],[2242,1,2255,1],[2228,5,2241,5],[2228,1,2241,1],[2214,5,2227,5],[2214,1,2227,1],[2200,5,2213,5],[2200,1,2213,1],[1948,1,1961,1],[1934,5,1947,5],[1934,1,1947,1],[1920,5,1933,5],[1920,1,1933,1],[1906,5,1919,5],[1906,1,1919,1],[1570,5,1583,5],[1570,1,1583,1],[1556,5,1569,5],[1556,1,1569,1],[1542,5,1555,5],[1542,1,1555,1],[1528,5,1541,5],[1528,1,1541,1],[1514,5,1527,5],[1514,1,1527,1],[1892,5,1905,5],[1948,5,1961,5],[1892,1,1905,1],[1878,5,1891,5],[1878,1,1891,1],[1864,5,1877,5],[1864,1,1877,1],[1850,5,1863,5],[1850,1,1863,1],[1836,5,1849,5],[1836,1,1849,1],[1822,5,1835,5],[1822,1,1835,1],[1808,5,1821,5],[1808,1,1821,1],[1500,5,1513,5],[1500,1,1513,1],[1486,5,1499,5],[1486,1,1499,1],[1472,5,1485,5],[1472,1,1485,1],[1458,5,1471,5],[1458,1,1471,1],[1276,5,1289,5],[1276,1,1289,1],[1262,5,1275,5],[1262,1,1275,1],[1248,5,1261,5],[1248,1,1261,1],[1234,5,1247,5],[1234,1,1247,1],[1220,5,1233,5],[1220,1,1233,1],[1192,1,1205,1],[1178,5,1191,5],[1178,1,1191,1],[1164,5,1177,5],[1164,1,1177,1],[884,5,897,5],[884,1,897,1]],"merged_total":1074,"flags":["merged_cut"]}
[null,null,"2016-06-11"]
[null,{"$f":"PROPER(TEXT(C1,\"jjjj j mmmm aaaa\")) &\" - Caisse 1\"","v":"Samedi 11 Juin 2016 - Caisse 1"}]
[null,1,"MINERALES",null,{"$f":"VLOOKUP(C3,Fichier,3,0)*D3","v":0},{"$f":"SUM(E3:E16)","v":0},"Payé","à rendre"]
[null,null,"BIÈRE",null,0,null,0,{"$f":"G4-F3","v":0}]
[null,null,"CAFE / THE",null,0]
[null,null,"VIN AU VERRE",null,0]
[null,null,"BOUTEILLE VIN BLANC",null,0]
[null,null,"BOUTEILLE VIN ROUGE",null,0]
[null,null,"COUPE CHAMPAGNE",null,0]
[null,null,"BOUTEILLE CHAMPAGNE",null,0]
[null,null,"COUPE CLAIRETTE",null,0]
[null,null,"BOUTEILLE CLAIRETTE",null,0]
[null,null,"SANDWICHES",null,0]
[null,null,"GÂTEAUX",null,0]
[null,null,"SAUCISSE SUR ARDOISE ",null,0]
[null,null,"ASSIETTE FROIDE / CRUDITES",null,0]
[null,2,"MINERALES",null,0,{"$f":"SUM(E17:E30)","v":0},"Payé","à rendre"]
[null,null,"BIÈRE",null,0,null,0,{"$f":"G18-F17","v":0}]
[null,null,"CAFE / THE",null,0]
[null,null,"VIN AU VERRE",null,0]
[null,null,"BOUTEILLE VIN BLANC",null,0]
[null,null,"BOUTEILLE VIN ROUGE",null,0]
[null,null,"COUPE CHAMPAGNE",null,0]
[null,null,"BOUTEILLE CHAMPAGNE",null,0]
[null,null,"COUPE CLAIRETTE",null,0]
[null,null,"BOUTEILLE CLAIRETTE",null,0]
[null,null,"SANDWICHES",null,0]
[null,null,"GÂTEAUX",null,0]
[null,null,"SAUCISSE SUR ARDOISE ",null,0]
[null,null,"ASSIETTE FROIDE / CRUDITES",null,0]
[null,3,"MINERALES",null,0,{"$f":"SUM(E31:E44)","v":0},"Payé","à rendre"]
[null,null,"BIÈRE",null,0,null,0,{"$f":"G32-F31","v":0}]
[null,null,"CAFE / THE",null,0]
[null,null,"VIN AU VERRE",null,0]
[null,null,"BOUTEILLE VIN BLANC",null,0]
[null,null,"BOUTEILLE VIN ROUGE",null,0]
[null,null,"COUPE CHAMPAGNE",null,0]
[null,null,"BOUTEILLE CHAMPAGNE",null,0]
[null,null,"COUPE CLAIRETTE",null,0]
[null,null,"BOUTEILLE CLAIRETTE",null,0]
[null,null,"SANDWICHES",null,0]
[null,null,"GÂTEAUX",null,0]
[null,null,"SAUCISSE SUR ARDOISE ",null,0]
[null,null,"ASSIETTE FROIDE / CRUDITES",null,0]
[null,4,"MINERALES",null,0,{"$f":"SUM(E45:E58)","v":0},"Payé","à rendre"]
[null,null,"BIÈRE",null,0,null,0,{"$f":"G46-F45","v":0}]
[null,null,"CAFE / THE",null,0]
[null,null,"VIN AU VERRE",null,0]
[null,null,"BOUTEILLE VIN BLANC",null,0]
[null,null,"BOUTEILLE VIN ROUGE",null,0]
[null,null,"COUPE CHAMPAGNE",null,0]
[null,null,"BOUTEILLE CHAMPAGNE",null,0]
[null,null,"COUPE CLAIRETTE",null,0]
[null,null,"BOUTEILLE CLAIRETTE",null,0]
[null,null,"SANDWICHES",null,0]
[null,null,"GÂTEAUX",null,0]
[null,null,"SAUCISSE SUR ARDOISE ",null,0]
[null,null,"ASSIETTE FROIDE / CRUDITES",null,0]
[null,5,"MINERALES",null,0,{"$f":"SUM(E59:E72)","v":0},"Payé","à rendre"]
[null,null,"BIÈRE",null,0,null,0,{"$f":"G60-F59","v":0}]
[null,null,"CAFE / THE",null,0]
[null,null,"VIN AU VERRE",null,0]
[null,null,"BOUTEILLE VIN BLANC",null,0]
[null,null,"BOUTEILLE VIN ROUGE",null,0]
[null,null,"COUPE CHAMPAGNE",null,0]
[null,null,"BOUTEILLE CHAMPAGNE",null,0]
[null,null,"COUPE CLAIRETTE",null,{"$f":"VLOOKUP(C67,Fichier,3,0)*D67","v":0}]
[null,null,"BOUTEILLE CLAIRETTE",null,0]
[null,null,"SANDWICHES",null,0]
[null,null,"GÂTEAUX",null,0]
[null,null,"SAUCISSE SUR ARDOISE ",null,0]
[null,null,"ASSIETTE FROIDE / CRUDITES",null,0]
[null,6,"MINERALES",null,0,{"$f":"SUM(E73:E86)","v":0},"Payé","à rendre"]
[null,null,"BIÈRE",null,0,null,0,{"$f":"G74-F73","v":0}]
[null,null,"CAFE / THE",null,0]
[null,null,"VIN AU VERRE",null,0]
[null,null,"BOUTEILLE VIN BLANC",null,0]
[null,null,"BOUTEILLE VIN ROUGE",null,0]
[null,null,"COUPE CHAMPAGNE",null,0]
[null,null,"BOUTEILLE CHAMPAGNE",null,0]
[null,null,"COUPE CLAIRETTE",null,0]
[null,null,"BOUTEILLE CLAIRETTE",null,0]
[null,null,"SANDWICHES",null,0]
[null,null,"GÂTEAUX",null,0]
[null,null,"SAUCISSE SUR ARDOISE ",null,0]
[null,null,"ASSIETTE FROIDE / CRUDITES",null,0]
[null,7,"MINERALES",null,0,{"$f":"SUM(E87:E100)","v":0},"Payé","à rendre"]
[null,null,"BIÈRE",null,0,null,0,{"$f":"G88-F87","v":0}]
[null,null,"CAFE / THE",null,0]
[null,null,"VIN AU VERRE",null,0]
[null,null,"BOUTEILLE VIN BLANC",null,0]
[null,null,"BOUTEILLE VIN ROUGE",null,0]
[null,null,"COUPE CHAMPAGNE",null,0]
[null,null,"BOUTEILLE CHAMPAGNE",null,0]
[null,null,"COUPE CLAIRETTE",null,0]
[null,null,"BOUTEILLE CLAIRETTE",null,0]
[null,null,"SANDWICHES",null,0]
[null,null,"GÂTEAUX",null,0]
[null,null,"SAUCISSE SUR ARDOISE ",null,0]
[null,null,"ASSIETTE FROIDE / CRUDITES",null,0]
[null,8,"MINERALES",null,0,{"$f":"SUM(E101:E114)","v":0},"Payé","à rendre"]
[null,null,"BIÈRE",null,0,null,0,{"$f":"G102-F101","v":0}]
[null,null,"CAFE / THE",null,0]
[null,null,"VIN AU VERRE",null,0]
[null,null,"BOUTEILLE VIN BLANC",null,0]
[null,null,"BOUTEILLE VIN ROUGE",null,0]
[null,null,"COUPE CHAMPAGNE",null,0]
[null,null,"BOUTEILLE CHAMPAGNE",null,0]
[null,null,"COUPE CLAIRETTE",null,0]
[null,null,"BOUTEILLE CLAIRETTE",null,0]
[null,null,"SANDWICHES",null,0]
[null,null,"GÂTEAUX",null,0]
[null,null,"SAUCISSE SUR ARDOISE ",null,0]
[null,null,"ASSIETTE FROIDE / CRUDITES",null,0]
[null,9,"MINERALES",null,0,{"$f":"SUM(E115:E128)","v":0},"Payé","à rendre"]
[null,null,"BIÈRE",null,0,null,0,{"$f":"G116-F115","v":0}]
[null,null,"CAFE / THE",null,0]
[null,null,"VIN AU VERRE",null,0]
[null,null,"BOUTEILLE VIN BLANC",null,0]
[null,null,"BOUTEILLE VIN ROUGE",null,0]
[null,null,"COUPE CHAMPAGNE",null,0]
[null,null,"BOUTEILLE CHAMPAGNE",null,0]
[null,null,"COUPE CLAIRETTE",null,0]
[null,null,"BOUTEILLE CLAIRETTE",null,0]
[null,null,"SANDWICHES",null,0]
[null,null,"GÂTEAUX",null,0]
[null,null,"SAUCISSE SUR ARDOISE ",null,0]
[null,null,"ASSIETTE FROIDE / CRUDITES",null,0]
[null,10,"MINERALES",null,0,{"$f":"SUM(E129:E142)","v":0},"Payé","à rendre"]
[null,null,"BIÈRE",null,0,null,0,{"$f":"G130-F129","v":0}]
[null,null,"CAFE / THE",null,{"$f":"VLOOKUP(C131,Fichier,3,0)*D131","v":0}]
[null,null,"VIN AU VERRE",null,0]
[null,null,"BOUTEILLE VIN BLANC",null,0]
[null,null,"BOUTEILLE VIN ROUGE",null,0]
[null,null,"COUPE CHAMPAGNE",null,0]
[null,null,"BOUTEILLE CHAMPAGNE",null,0]
[null,null,"COUPE CLAIRETTE",null,0]
[null,null,"BOUTEILLE CLAIRETTE",null,0]
[null,null,"SANDWICHES",null,0]
[null,null,"GÂTEAUX",null,0]
[null,null,"SAUCISSE SUR ARDOISE ",null,0]
[null,null,"ASSIETTE FROIDE / CRUDITES",null,0]
[null,11,"MINERALES",null,0,{"$f":"SUM(E143:E156)","v":0},"Payé","à rendre"]
[null,null,"BIÈRE",null,0,null,50,{"$f":"G144-F143","v":50}]
[null,null,"CAFE / THE",null,0]
[null,null,"VIN AU VERRE",null,0]
[null,null,"BOUTEILLE VIN BLANC",null,0]
[null,null,"BOUTEILLE VIN ROUGE",null,0]
[null,null,"COUPE CHAMPAGNE",null,0]
[null,null,"BOUTEILLE CHAMPAGNE",null,0]
[null,null,"COUPE CLAIRETTE",null,0]
[null,null,"BOUTEILLE CLAIRETTE",null,0]
[null,null,"SANDWICHES",null,0]
[null,null,"GÂTEAUX",null,0]
[null,null,"SAUCISSE SUR ARDOISE ",null,0]
[null,null,"ASSIETTE FROIDE / CRUDITES",null,0]
[null,12,"MINERALES",null,0,{"$f":"SUM(E157:E170)","v":0},"Payé","à rendre"]
[null,null,"BIÈRE",null,0,null,0,{"$f":"G158-F157","v":0}]
[null,null,"CAFE / THE",null,0]
[null,null,"VIN AU VERRE",null,0]
[null,null,"BOUTEILLE VIN BLANC",null,0]
[null,null,"BOUTEILLE VIN ROUGE",null,0]
[null,null,"COUPE CHAMPAGNE",null,0]
[null,null,"BOUTEILLE CHAMPAGNE",null,0]
[null,null,"COUPE CLAIRETTE",null,0]
[null,null,"BOUTEILLE CLAIRETTE",null,0]
[null,null,"SANDWICHES",null,0]
[null,null,"GÂTEAUX",null,0]
[null,null,"SAUCISSE SUR ARDOISE ",null,0]
[null,null,"ASSIETTE FROIDE / CRUDITES",null,0]
[null,13,"MINERALES",null,0,{"$f":"SUM(E171:E184)","v":0},"Payé","à rendre"]
[null,null,"BIÈRE",null,0,null,0,{"$f":"G172-F171","v":0}]
[null,null,"CAFE / THE",null,0]
[null,null,"VIN AU VERRE",null,0]
[null,null,"BOUTEILLE VIN BLANC",null,0]
[null,null,"BOUTEILLE VIN ROUGE",null,0]
[null,null,"COUPE CHAMPAGNE",null,0]
[null,null,"BOUTEILLE CHAMPAGNE",null,0]
[null,null,"COUPE CLAIRETTE",null,0]
[null,null,"BOUTEILLE CLAIRETTE",null,0]
[null,null,"SANDWICHES",null,0]
[null,null,"GÂTEAUX",null,0]
[null,null,"SAUCISSE SUR ARDOISE ",null,0]
[null,null,"ASSIETTE FROIDE / CRUDITES",null,0]
[null,14,"MINERALES",null,0,{"$f":"SUM(E185:E198)","v":0},"Payé","à rendre"]
[null,null,"BIÈRE",null,0,null,0,{"$f":"G186-F185","v":0}]
[null,null,"CAFE / THE",null,0]
[null,null,"VIN AU VERRE",null,0]
[null,null,"BOUTEILLE VIN BLANC",null,0]
[null,null,"BOUTEILLE VIN ROUGE",null,0]
[null,null,"COUPE CHAMPAGNE",null,0]
[null,null,"BOUTEILLE CHAMPAGNE",null,0]
[null,null,"COUPE CLAIRETTE",null,0]
[null,null,"BOUTEILLE CLAIRETTE",null,0]
[null,null,"SANDWICHES",null,0]
[null,null,"GÂTEAUX",null,0]
[null,null,"SAUCISSE SUR ARDOISE ",null,0]
[null,null,"ASSIETTE FROIDE / CRUDITES",null,0]
[null,15,"MINERALES",null,0,{"$f":"SUM(E199:E212)","v":0},"Payé","à rendre"]
[null,null,"BIÈRE",null,{"$f":"VLOOKUP(C200,Fichier,3,0)*D200","v":0},null,0,{"$f":"G200-F199","v":0}]
[null,null,"CAFE / THE",null,0]
[null,null,"VIN AU VERRE",null,0]
[null,null,"BOUTEILLE VIN BLANC",null,0]
[null,null,"BOUTEILLE VIN ROUGE",null,0]
[null,null,"COUPE CHAMPAGNE",null,0]
[null,null,"BOUTEILLE CHAMPAGNE",null,0]
[null,null,"COUPE CLAIRETTE",null,0]
[null,null,"BOUTEILLE CLAIRETTE",null,0]
[null,null,"SANDWICHES",null,0]
[null,null,"GÂTEAUX",null,0]
[null,null,"SAUCISSE SUR ARDOISE ",null,0]
[null,null,"ASSIETTE FROIDE / CRUDITES",null,0]
[null,16,"MINERALES",null,0,{"$f":"SUM(E213:E226)","v":0},"Payé","à rendre"]
[null,null,"BIÈRE",null,0,null,0,{"$f":"G214-F213","v":0}]
[null,null,"CAFE / THE",null,0]
[null,null,"VIN AU VERRE",null,0]
[null,null,"BOUTEILLE VIN BLANC",null,0]
[null,null,"BOUTEILLE VIN ROUGE",null,0]
[null,null,"COUPE CHAMPAGNE",null,0]
[null,null,"BOUTEILLE CHAMPAGNE",null,0]
[null,null,"COUPE CLAIRETTE",null,0]
[null,null,"BOUTEILLE CLAIRETTE",null,0]
[null,null,"SANDWICHES",null,0]
[null,null,"GÂTEAUX",null,0]
[null,null,"SAUCISSE SUR ARDOISE ",null,0]
[null,null,"ASSIETTE FROIDE / CRUDITES",null,0]
[null,17,"MINERALES",null,0,{"$f":"SUM(E227:E240)","v":0},"Payé","à rendre"]
[null,null,"BIÈRE",null,0,null,0,{"$f":"G228-F227","v":0}]
[null,null,"CAFE / THE",null,0]
[null,null,"VIN AU VERRE",null,0]
[null,null,"BOUTEILLE VIN BLANC",null,0]
[null,null,"BOUTEILLE VIN ROUGE",null,0]
[null,null,"COUPE CHAMPAGNE",null,0]
[null,null,"BOUTEILLE CHAMPAGNE",null,0]
[null,null,"COUPE CLAIRETTE",null,0]
[null,null,"BOUTEILLE CLAIRETTE",null,0]
[null,null,"SANDWICHES",null,0]
[null,null,"GÂTEAUX",null,0]
[null,null,"SAUCISSE SUR ARDOISE ",null,0]
[null,null,"ASSIETTE FROIDE / CRUDITES",null,0]
[null,18,"MINERALES",null,0,{"$f":"SUM(E241:E254)","v":0},"Payé","à rendre"]
[null,null,"BIÈRE",null,0,null,0,{"$f":"G242-F241","v":0}]
[null,null,"CAFE / THE",null,0]
[null,null,"VIN AU VERRE",null,0]
[null,null,"BOUTEILLE VIN BLANC",null,0]
[null,null,"BOUTEILLE VIN ROUGE",null,0]
[null,null,"COUPE CHAMPAGNE",null,0]
[null,null,"BOUTEILLE CHAMPAGNE",null,0]
[null,null,"COUPE CLAIRETTE",null,0]
[null,null,"BOUTEILLE CLAIRETTE",null,0]
[null,null,"SANDWICHES",null,0]
[null,null,"GÂTEAUX",null,0]
[null,null,"SAUCISSE SUR ARDOISE ",null,0]
[null,null,"ASSIETTE FROIDE / CRUDITES",null,0]
[null,19,"MINERALES",null,0,{"$f":"SUM(E255:E268)","v":0},"Payé","à rendre"]
[null,null,"BIÈRE",null,0,null,0,{"$f":"G256-F255","v":0}]
[null,null,"CAFE / THE",null,0]
[null,null,"VIN AU VERRE",null,0]
[null,null,"BOUTEILLE VIN BLANC",null,0]
[null,null,"BOUTEILLE VIN ROUGE",null,0]
[null,null,"COUPE CHAMPAGNE",null,0]
[null,null,"BOUTEILLE CHAMPAGNE",null,0]
[null,null,"COUPE CLAIRETTE",null,0]
[null,null,"BOUTEILLE CLAIRETTE",null,0]
[null,null,"SANDWICHES",null,0]
[null,null,"GÂTEAUX",null,0]
[null,null,"SAUCISSE SUR ARDOISE ",null,0]
[null,null,"ASSIETTE FROIDE / CRUDITES",null,0]
[null,20,"MINERALES",null,{"$f":"VLOOKUP(C269,Fichier,3,0)*D269","v":0},{"$f":"SUM(E269:E282)","v":0},"Payé","à rendre"]
[null,null,"BIÈRE",null,0,null,0,{"$f":"G270-F269","v":0}]
[null,null,"CAFE / THE",null,0]
[null,null,"VIN AU VERRE",null,0]
[null,null,"BOUTEILLE VIN BLANC",null,0]
[null,null,"BOUTEILLE VIN ROUGE",null,0]
[null,null,"COUPE CHAMPAGNE",null,0]
[null,null,"BOUTEILLE CHAMPAGNE",null,0]
[null,null,"COUPE CLAIRETTE",null,0]
[null,null,"BOUTEILLE CLAIRETTE",null,0]
[null,null,"SANDWICHES",null,0]
[null,null,"GÂTEAUX",null,0]
[null,null,"SAUCISSE SUR ARDOISE ",null,0]
[null,null,"ASSIETTE FROIDE / CRUDITES",null,0]
[null,21,"MINERALES",null,0,{"$f":"SUM(E283:E296)","v":0},"Payé","à rendre"]
[null,null,"BIÈRE",null,0,null,0,{"$f":"G284-F283","v":0}]
[null,null,"CAFE / THE",null,0]
[null,null,"VIN AU VERRE",null,0]
[null,null,"BOUTEILLE VIN BLANC",null,0]
[null,null,"BOUTEILLE VIN ROUGE",null,0]
[null,null,"COUPE CHAMPAGNE",null,0]
[null,null,"BOUTEILLE CHAMPAGNE",null,0]
[null,null,"COUPE CLAIRETTE",null,0]
[null,null,"BOUTEILLE CLAIRETTE",null,0]
[null,null,"SANDWICHES",null,0]
[null,null,"GÂTEAUX",null,0]
[null,null,"SAUCISSE SUR ARDOISE ",null,0]
[null,null,"ASSIETTE FROIDE / CRUDITES",null,0]
[null,22,"MINERALES",null,0,{"$f":"SUM(E297:E310)","v":0},"Payé","à rendre"]
[null,null,"BIÈRE",null,0,null,0,{"$f":"G298-F297","v":0}]
[null,null,"CAFE / THE",null,0]
[null,null,"VIN AU VERRE",null,0]
[null,null,"BOUTEILLE VIN BLANC",null,0]
[null,null,"BOUTEILLE VIN ROUGE",null,0]
[null,null,"COUPE CHAMPAGNE",null,0]
[null,null,"BOUTEILLE CHAMPAGNE",null,0]
[null,null,"COUPE CLAIRETTE",null,0]
[null,null,"BOUTEILLE CLAIRETTE",null,0]
[null,null,"SANDWICHES",null,0]
[null,null,"GÂTEAUX",null,0]
[null,null,"SAUCISSE SUR ARDOISE ",null,0]
[null,null,"ASSIETTE FROIDE / CRUDITES",null,0]
[null,23,"MINERALES",null,0,{"$f":"SUM(E311:E324)","v":0},"Payé","à rendre"]
[null,null,"BIÈRE",null,0,null,0,{"$f":"G312-F311","v":0}]
[null,null,"CAFE / THE",null,0]
[null,null,"VIN AU VERRE",null,0]
[null,null,"BOUTEILLE VIN BLANC",null,0]
[null,null,"BOUTEILLE VIN ROUGE",null,0]
[null,null,"COUPE CHAMPAGNE",null,0]
[null,null,"BOUTEILLE CHAMPAGNE",null,0]
[null,null,"COUPE CLAIRETTE",null,0]
[null,null,"BOUTEILLE CLAIRETTE",null,0]
[null,null,"SANDWICHES",null,0]
[null,null,"GÂTEAUX",null,0]
[null,null,"SAUCISSE SUR ARDOISE ",null,0]
[null,null,"ASSIETTE FROIDE / CRUDITES",null,0]
[null,24,"MINERALES",null,0,{"$f":"SUM(E325:E338)","v":0},"Payé","à rendre"]
[null,null,"BIÈRE",null,0,null,0,{"$f":"G326-F325","v":0}]
[null,null,"CAFE / THE",null,0]
[null,null,"VIN AU VERRE",null,0]
[null,null,"BOUTEILLE VIN BLANC",null,0]
[null,null,"BOUTEILLE VIN ROUGE",null,0]
[null,null,"COUPE CHAMPAGNE",null,0]
[null,null,"BOUTEILLE CHAMPAGNE",null,0]
[null,null,"COUPE CLAIRETTE",null,0]
[null,null,"BOUTEILLE CLAIRETTE",null,0]
[null,null,"SANDWICHES",null,0]
[null,null,"GÂTEAUX",null,0]
[null,null,"SAUCISSE SUR ARDOISE ",null,0]
[null,null,"ASSIETTE FROIDE / CRUDITES",null,{"$f":"VLOOKUP(C338,Fichier,3,0)*D338","v":0}]
[null,25,"MINERALES",null,0,{"$f":"SUM(E339:E352)","v":0},"Payé","à rendre"]
[null,null,"BIÈRE",null,0,null,0,{"$f":"G340-F339","v":0}]
[null,null,"CAFE / THE",null,0]
[null,null,"VIN AU VERRE",null,0]
[null,null,"BOUTEILLE VIN BLANC",null,0]
[null,null,"BOUTEILLE VIN ROUGE",null,0]
[null,null,"COUPE CHAMPAGNE",null,0]
[null,null,"BOUTEILLE CHAMPAGNE",null,0]
[null,null,"COUPE CLAIRETTE",null,0]
[null,null,"BOUTEILLE CLAIRETTE",null,0]
[null,null,"SANDWICHES",null,0]
[null,null,"GÂTEAUX",null,0]
[null,null,"SAUCISSE SUR ARDOISE ",null,0]
[null,null,"ASSIETTE FROIDE / CRUDITES",null,0]
[null,26,"MINERALES",null,0,{"$f":"SUM(E353:E366)","v":0},"Payé","à rendre"]
[null,null,"BIÈRE",null,0,null,0,{"$f":"G354-F353","v":0}]
[null,null,"CAFE / THE",null,0]
[null,null,"VIN AU VERRE",null,0]
[null,null,"BOUTEILLE VIN BLANC",null,0]
[null,null,"BOUTEILLE VIN ROUGE",null,0]
[null,null,"COUPE CHAMPAGNE",null,0]
[null,null,"BOUTEILLE CHAMPAGNE",null,0]
[null,null,"COUPE CLAIRETTE",null,0]
[null,null,"BOUTEILLE CLAIRETTE",null,0]
[null,null,"SANDWICHES",null,0]
[null,null,"GÂTEAUX",null,0]
[null,null,"SAUCISSE SUR ARDOISE ",null,0]
[null,null,"ASSIETTE FROIDE / CRUDITES",null,0]
[null,27,"MINERALES",null,0,{"$f":"SUM(E367:E380)","v":0},"Payé","à rendre"]
[null,null,"BIÈRE",null,0,null,0,{"$f":"G368-F367","v":0}]
[null,null,"CAFE / THE",null,0]
[null,null,"VIN AU VERRE",null,0]
[null,null,"BOUTEILLE VIN BLANC",null,0]
[null,null,"BOUTEILLE VIN ROUGE",null,0]
[null,null,"COUPE CHAMPAGNE",null,0]
[null,null,"BOUTEILLE CHAMPAGNE",null,0]
[null,null,"COUPE CLAIRETTE",null,0]
[null,null,"BOUTEILLE CLAIRETTE",null,0]
[null,null,"SANDWICHES",null,0]
[null,null,"GÂTEAUX",null,0]
[null,null,"SAUCISSE SUR ARDOISE ",null,0]
[null,null,"ASSIETTE FROIDE / CRUDITES",null,0]
[null,28,"MINERALES",null,0,{"$f":"SUM(E381:E394)","v":0},"Payé","à rendre"]
[null,null,"BIÈRE",null,0,null,0,{"$f":"G382-F381","v":0}]
[null,null,"CAFE / THE",null,0]
[null,null,"VIN AU VERRE",null,0]
[null,null,"BOUTEILLE VIN BLANC",null,0]
[null,null,"BOUTEILLE VIN ROUGE",null,0]
[null,null,"COUPE CHAMPAGNE",null,0]
[null,null,"BOUTEILLE CHAMPAGNE",null,0]
[null,null,"COUPE CLAIRETTE",null,0]
[null,null,"BOUTEILLE CLAIRETTE",null,0]
[null,null,"SANDWICHES",null,0]
[null,null,"GÂTEAUX",null,0]
[null,null,"SAUCISSE SUR ARDOISE ",null,0]
[null,null,"ASSIETTE FROIDE / CRUDITES",null,0]
[null,29,"MINERALES",null,0,{"$f":"SUM(E395:E408)","v":0},"Payé","à rendre"]
[null,null,"BIÈRE",null,0,null,0,{"$f":"G396-F395","v":0}]
[null,null,"CAFE / THE",null,0]
[null,null,"VIN AU VERRE",null,0]
[null,null,"BOUTEILLE VIN BLANC",null,0]
[null,null,"BOUTEILLE VIN ROUGE",null,0]
[null,null,"COUPE CHAMPAGNE",null,0]
[null,null,"BOUTEILLE CHAMPAGNE",null,0]
[null,null,"COUPE CLAIRETTE",null,0]
[null,null,"BOUTEILLE CLAIRETTE",null,0]
[null,null,"SANDWICHES",null,0]
[null,null,"GÂTEAUX",null,0]
[null,null,"SAUCISSE SUR ARDOISE ",null,{"$f":"VLOOKUP(C407,Fichier,3,0)*D407","v":0}]
[null,null,"ASSIETTE FROIDE / CRUDITES",null,0]
[null,30,"MINERALES",null,0,{"$f":"SUM(E409:E422)","v":0},"Payé","à rendre"]
[null,null,"BIÈRE",null,0,null,0,{"$f":"G410-F409","v":0}]
[null,null,"CAFE / THE",null,0]
[null,null,"VIN AU VERRE",null,0]
[null,null,"BOUTEILLE VIN BLANC",null,0]
[null,null,"BOUTEILLE VIN ROUGE",null,0]
[null,null,"COUPE CHAMPAGNE",null,0]
[null,null,"BOUTEILLE CHAMPAGNE",null,0]
[null,null,"COUPE CLAIRETTE",null,0]
[null,null,"BOUTEILLE CLAIRETTE",null,0]
[null,null,"SANDWICHES",null,0]
[null,null,"GÂTEAUX",null,0]
[null,null,"SAUCISSE SUR ARDOISE ",null,0]
[null,null,"ASSIETTE FROIDE / CRUDITES",null,0]
[null,31,"MINERALES",null,0,{"$f":"SUM(E423:E436)","v":0},"Payé","à rendre"]
[null,null,"BIÈRE",null,0,null,0,{"$f":"G424-F423","v":0}]
[null,null,"CAFE / THE",null,0]
[null,null,"VIN AU VERRE",null,0]
[null,null,"BOUTEILLE VIN BLANC",null,0]
[null,null,"BOUTEILLE VIN ROUGE",null,0]
[null,null,"COUPE CHAMPAGNE",null,0]
[null,null,"BOUTEILLE CHAMPAGNE",null,0]
[null,null,"COUPE CLAIRETTE",null,0]
[null,null,"BOUTEILLE CLAIRETTE",null,0]
[null,null,"SANDWICHES",null,0]
[null,null,"GÂTEAUX",null,0]
[null,null,"SAUCISSE SUR ARDOISE ",null,0]
[null,null,"ASSIETTE FROIDE / CRUDITES",null,0]
[null,32,"MINERALES",null,0,{"$f":"SUM(E437:E450)","v":0},"Payé","à rendre"]
[null,null,"BIÈRE",null,0,null,0,{"$f":"G438-F437","v":0}]
[null,null,"CAFE / THE",null,0]
[null,null,"VIN AU VERRE",null,0]
[null,null,"BOUTEILLE VIN BLANC",null,0]
[null,null,"BOUTEILLE VIN ROUGE",null,0]
[null,null,"COUPE CHAMPAGNE",null,0]
[null,null,"BOUTEILLE CHAMPAGNE",null,0]
[null,null,"COUPE CLAIRETTE",null,0]
[null,null,"BOUTEILLE CLAIRETTE",null,0]
[null,null,"SANDWICHES",null,0]
[null,null,"GÂTEAUX",null,0]
[null,null,"SAUCISSE SUR ARDOISE ",null,0]
[null,null,"ASSIETTE FROIDE / CRUDITES",null,0]
[null,33,"MINERALES",null,0,{"$f":"SUM(E451:E464)","v":0},"Payé","à rendre"]
[null,null,"BIÈRE",null,0,null,0,{"$f":"G452-F451","v":0}]
[null,null,"CAFE / THE",null,0]
[null,null,"VIN AU VERRE",null,0]
[null,null,"BOUTEILLE VIN BLANC",null,0]
[null,null,"BOUTEILLE VIN ROUGE",null,0]
[null,null,"COUPE CHAMPAGNE",null,0]
[null,null,"BOUTEILLE CHAMPAGNE",null,0]
[null,null,"COUPE CLAIRETTE",null,0]
[null,null,"BOUTEILLE CLAIRETTE",null,0]
[null,null,"SANDWICHES",null,0]
[null,null,"GÂTEAUX",null,0]
[null,null,"SAUCISSE SUR ARDOISE ",null,0]
[null,null,"ASSIETTE FROIDE / CRUDITES",null,0]
[null,34,"MINERALES",null,0,{"$f":"SUM(E465:E478)","v":0},"Payé","à rendre"]
[null,null,"BIÈRE",null,0,null,0,{"$f":"G466-F465","v":0}]
[null,null,"CAFE / THE",null,0]
[null,null,"VIN AU VERRE",null,0]
[null,null,"BOUTEILLE VIN BLANC",null,0]
[null,null,"BOUTEILLE VIN ROUGE",null,0]
[null,null,"COUPE CHAMPAGNE",null,0]
[null,null,"BOUTEILLE CHAMPAGNE",null,0]
[null,null,"COUPE CLAIRETTE",null,0]
[null,null,"BOUTEILLE CLAIRETTE",null,0]
[null,null,"SANDWICHES",null,0]
[null,null,"GÂTEAUX",null,{"$f":"VLOOKUP(C476,Fichier,3,0)*D476","v":0}]
[null,null,"SAUCISSE SUR ARDOISE ",null,0]
[null,null,"ASSIETTE FROIDE / CRUDITES",null,0]
[null,35,"MINERALES",null,0,{"$f":"SUM(E479:E492)","v":0},"Payé","à rendre"]
[null,null,"BIÈRE",null,0,null,0,{"$f":"G480-F479","v":0}]
[null,null,"CAFE / THE",null,0]
[null,null,"VIN AU VERRE",null,0]
[null,null,"BOUTEILLE VIN BLANC",null,0]
[null,null,"BOUTEILLE VIN ROUGE",null,0]
[null,null,"COUPE CHAMPAGNE",null,0]
[null,null,"BOUTEILLE CHAMPAGNE",null,0]
[null,null,"COUPE CLAIRETTE",null,0]
[null,null,"BOUTEILLE CLAIRETTE",null,0]
[null,null,"SANDWICHES",null,0]
[null,null,"GÂTEAUX",null,0]
[null,null,"SAUCISSE SUR ARDOISE ",null,0]
[null,null,"ASSIETTE FROIDE / CRUDITES",null,0]
[null,36,"MINERALES",null,0,{"$f":"SUM(E493:E506)","v":0},"Payé","à rendre"]
[null,null,"BIÈRE",null,0,null,0,{"$f":"G494-F493","v":0}]
[null,null,"CAFE / THE",null,0]
[null,null,"VIN AU VERRE",null,0]
[null,null,"BOUTEILLE VIN BLANC",null,0]
[null,null,"BOUTEILLE VIN ROUGE",null,0]
[null,null,"COUPE CHAMPAGNE",null,0]
[null,null,"BOUTEILLE CHAMPAGNE",null,0]
[null,null,"COUPE CLAIRETTE",null,0]
[null,null,"BOUTEILLE CLAIRETTE",null,0]
[null,null,"SANDWICHES",null,0]
[null,null,"GÂTEAUX",null,0]
[null,null,"SAUCISSE SUR ARDOISE ",null,0]
[null,null,"ASSIETTE FROIDE / CRUDITES",null,0]
[null,37,"MINERALES",null,0,{"$f":"SUM(E507:E520)","v":0},"Payé","à rendre"]
[null,null,"BIÈRE",null,0,null,0,{"$f":"G508-F507","v":0}]
[null,null,"CAFE / THE",null,0]
[null,null,"VIN AU VERRE",null,0]
[null,null,"BOUTEILLE VIN BLANC",null,0]
[null,null,"BOUTEILLE VIN ROUGE",null,0]
[null,null,"COUPE CHAMPAGNE",null,0]
[null,null,"BOUTEILLE CHAMPAGNE",null,0]
[null,null,"COUPE CLAIRETTE",null,0]
[null,null,"BOUTEILLE CLAIRETTE",null,0]
[null,null,"SANDWICHES",null,0]
[null,null,"GÂTEAUX",null,0]
[null,null,"SAUCISSE SUR ARDOISE ",null,0]
[null,null,"ASSIETTE FROIDE / CRUDITES",null,0]
[null,38,"MINERALES",null,0,{"$f":"SUM(E521:E534)","v":0},"Payé","à rendre"]
[null,null,"BIÈRE",null,0,null,0,{"$f":"G522-F521","v":0}]
[null,null,"CAFE / THE",null,0]
[null,null,"VIN AU VERRE",null,0]
[null,null,"BOUTEILLE VIN BLANC",null,0]
[null,null,"BOUTEILLE VIN ROUGE",null,0]
[null,null,"COUPE CHAMPAGNE",null,0]
[null,null,"BOUTEILLE CHAMPAGNE",null,0]
[null,null,"COUPE CLAIRETTE",null,0]
[null,null,"BOUTEILLE CLAIRETTE",null,0]
[null,null,"SANDWICHES",null,0]
[null,null,"GÂTEAUX",null,0]
[null,null,"SAUCISSE SUR ARDOISE ",null,0]
[null,null,"ASSIETTE FROIDE / CRUDITES",null,0]
[null,39,"MINERALES",null,0,{"$f":"SUM(E535:E548)","v":0},"Payé","à rendre"]
[null,null,"BIÈRE",null,0,null,0,{"$f":"G536-F535","v":0}]
[null,null,"CAFE / THE",null,0]
[null,null,"VIN AU VERRE",null,0]
[null,null,"BOUTEILLE VIN BLANC",null,0]
[null,null,"BOUTEILLE VIN ROUGE",null,0]
[null,null,"COUPE CHAMPAGNE",null,0]
[null,null,"BOUTEILLE CHAMPAGNE",null,0]
[null,null,"COUPE CLAIRETTE",null,0]
[null,null,"BOUTEILLE CLAIRETTE",null,0]
[null,null,"SANDWICHES",null,{"$f":"VLOOKUP(C545,Fichier,3,0)*D545","v":0}]
[null,null,"GÂTEAUX",null,0]
[null,null,"SAUCISSE SUR ARDOISE ",null,0]
[null,null,"ASSIETTE FROIDE / CRUDITES",null,0]
[null,40,"MINERALES",null,0,{"$f":"SUM(E549:E562)","v":0},"Payé","à rendre"]
[null,null,"BIÈRE",null,0,null,0,{"$f":"G550-F549","v":0}]
[null,null,"CAFE / THE",null,0]
[null,null,"VIN AU VERRE",null,0]
[null,null,"BOUTEILLE VIN BLANC",null,0]
[null,null,"BOUTEILLE VIN ROUGE",null,0]
[null,null,"COUPE CHAMPAGNE",null,0]
[null,null,"BOUTEILLE CHAMPAGNE",null,0]
[null,null,"COUPE CLAIRETTE",null,0]
[null,null,"BOUTEILLE CLAIRETTE",null,0]
[null,null,"SANDWICHES",null,0]
[null,null,"GÂTEAUX",null,0]
[null,null,"SAUCISSE SUR ARDOISE ",null,0]
[null,null,"ASSIETTE FROIDE / CRUDITES",null,0]
[null,41,"MINERALES",null,0,{"$f":"SUM(E563:E576)","v":0},"Payé","à rendre"]
[null,null,"BIÈRE",null,0,null,0,{"$f":"G564-F563","v":0}]
[null,null,"CAFE / THE",null,0]
[null,null,"VIN AU VERRE",null,0]
[null,null,"BOUTEILLE VIN BLANC",null,0]
[null,null,"BOUTEILLE VIN ROUGE",null,0]
[null,null,"COUPE CHAMPAGNE",null,0]
[null,null,"BOUTEILLE CHAMPAGNE",null,0]
[null,null,"COUPE CLAIRETTE",null,0]
[null,null,"BOUTEILLE CLAIRETTE",null,0]
[null,null,"SANDWICHES",null,0]
[null,null,"GÂTEAUX",null,0]
[null,null,"SAUCISSE SUR ARDOISE ",null,0]
[null,null,"ASSIETTE FROIDE / CRUDITES",null,0]
[null,42,"MINERALES",null,0,{"$f":"SUM(E577:E590)","v":0},"Payé","à rendre"]
[null,null,"BIÈRE",null,0,null,0,{"$f":"G578-F577","v":0}]
[null,null,"CAFE / THE",null,0]
[null,null,"VIN AU VERRE",null,0]
[null,null,"BOUTEILLE VIN BLANC",null,0]
[null,null,"BOUTEILLE VIN ROUGE",null,0]
[null,null,"COUPE CHAMPAGNE",null,0]
[null,null,"BOUTEILLE CHAMPAGNE",null,0]
[null,null,"COUPE CLAIRETTE",null,0]
[null,null,"BOUTEILLE CLAIRETTE",null,0]
[null,null,"SANDWICHES",null,0]
[null,null,"GÂTEAUX",null,0]
[null,null,"SAUCISSE SUR ARDOISE ",null,0]
[null,null,"ASSIETTE FROIDE / CRUDITES",null,0]
[null,43,"MINERALES",null,0,{"$f":"SUM(E591:E604)","v":0},"Payé","à rendre"]
[null,null,"BIÈRE",null,0,null,0,{"$f":"G592-F591","v":0}]
[null,null,"CAFE / THE",null,0]
[null,null,"VIN AU VERRE",null,0]
[null,null,"BOUTEILLE VIN BLANC",null,0]
[null,null,"BOUTEILLE VIN ROUGE",null,0]
[null,null,"COUPE CHAMPAGNE",null,0]
[null,null,"BOUTEILLE CHAMPAGNE",null,0]
[null,null,"COUPE CLAIRETTE",null,0]
[null,null,"BOUTEILLE CLAIRETTE",null,0]
[null,null,"SANDWICHES",null,0]
[null,null,"GÂTEAUX",null,0]
[null,null,"SAUCISSE SUR ARDOISE ",null,0]
[null,null,"ASSIETTE FROIDE / CRUDITES",null,0]
[null,44,"MINERALES",null,0,{"$f":"SUM(E605:E618)","v":0},"Payé","à rendre"]
[null,null,"BIÈRE",null,0,null,0,{"$f":"G606-F605","v":0}]
[null,null,"CAFE / THE",null,0]
[null,null,"VIN AU VERRE",null,0]
[null,null,"BOUTEILLE VIN BLANC",null,0]
[null,null,"BOUTEILLE VIN ROUGE",null,0]
[null,null,"COUPE CHAMPAGNE",null,0]
[null,null,"BOUTEILLE CHAMPAGNE",null,0]
[null,null,"COUPE CLAIRETTE",null,0]
[null,null,"BOUTEILLE CLAIRETTE",null,{"$f":"VLOOKUP(C614,Fichier,3,0)*D614","v":0}]
[null,null,"SANDWICHES",null,0]
[null,null,"GÂTEAUX",null,0]
[null,null,"SAUCISSE SUR ARDOISE ",null,0]
[null,null,"ASSIETTE FROIDE / CRUDITES",null,0]
[null,45,"MINERALES",null,0,{"$f":"SUM(E619:E632)","v":0},"Payé","à rendre"]
[null,null,"BIÈRE",null,0,null,0,{"$f":"G620-F619","v":0}]
[null,null,"CAFE / THE",null,0]
[null,null,"VIN AU VERRE",null,0]
[null,null,"BOUTEILLE VIN BLANC",null,0]
[null,null,"BOUTEILLE VIN ROUGE",null,0]
[null,null,"COUPE CHAMPAGNE",null,0]
[null,null,"BOUTEILLE CHAMPAGNE",null,0]
[null,null,"COUPE CLAIRETTE",null,0]
[null,null,"BOUTEILLE CLAIRETTE",null,0]
[null,null,"SANDWICHES",null,0]
[null,null,"GÂTEAUX",null,0]
[null,null,"SAUCISSE SUR ARDOISE ",null,0]
[null,null,"ASSIETTE FROIDE / CRUDITES",null,0]
[null,46,"MINERALES",null,0,{"$f":"SUM(E633:E646)","v":0},"Payé","à rendre"]
[null,null,"BIÈRE",null,0,null,0,{"$f":"G634-F633","v":0}]
[null,null,"CAFE / THE",null,0]
[null,null,"VIN AU VERRE",null,0]
[null,null,"BOUTEILLE VIN BLANC",null,0]
[null,null,"BOUTEILLE VIN ROUGE",null,0]
[null,null,"COUPE CHAMPAGNE",null,0]
[null,null,"BOUTEILLE CHAMPAGNE",null,0]
[null,null,"COUPE CLAIRETTE",null,0]
[null,null,"BOUTEILLE CLAIRETTE",null,0]
[null,null,"SANDWICHES",null,0]
[null,null,"GÂTEAUX",null,0]
[null,null,"SAUCISSE SUR ARDOISE ",null,0]
[null,null,"ASSIETTE FROIDE / CRUDITES",null,0]
[null,47,"MINERALES",null,0,{"$f":"SUM(E647:E660)","v":0},"Payé","à rendre"]
[null,null,"BIÈRE",null,0,null,0,{"$f":"G648-F647","v":0}]
[null,null,"CAFE / THE",null,0]
[null,null,"VIN AU VERRE",null,0]
[null,null,"BOUTEILLE VIN BLANC",null,0]
[null,null,"BOUTEILLE VIN ROUGE",null,0]
[null,null,"COUPE CHAMPAGNE",null,0]
[null,null,"BOUTEILLE CHAMPAGNE",null,0]
[null,null,"COUPE CLAIRETTE",null,0]
[null,null,"BOUTEILLE CLAIRETTE",null,0]
[null,null,"SANDWICHES",null,0]
[null,null,"GÂTEAUX",null,0]
[null,null,"SAUCISSE SUR ARDOISE ",null,0]
[null,null,"ASSIETTE FROIDE / CRUDITES",null,0]
[null,48,"MINERALES",null,0,{"$f":"SUM(E661:E674)","v":0},"Payé","à rendre"]
[null,null,"BIÈRE",null,0,null,0,{"$f":"G662-F661","v":0}]
[null,null,"CAFE / THE",null,0]
[null,null,"VIN AU VERRE",null,0]
[null,null,"BOUTEILLE VIN BLANC",null,0]
[null,null,"BOUTEILLE VIN ROUGE",null,0]
[null,null,"COUPE CHAMPAGNE",null,0]
[null,null,"BOUTEILLE CHAMPAGNE",null,0]
[null,null,"COUPE CLAIRETTE",null,0]
[null,null,"BOUTEILLE CLAIRETTE",null,0]
[null,null,"SANDWICHES",null,0]
[null,null,"GÂTEAUX",null,0]
[null,null,"SAUCISSE SUR ARDOISE ",null,0]
[null,null,"ASSIETTE FROIDE / CRUDITES",null,0]
[null,49,"MINERALES",null,0,{"$f":"SUM(E675:E688)","v":0},"Payé","à rendre"]
[null,null,"BIÈRE",null,0,null,0,{"$f":"G676-F675","v":0}]
[null,null,"CAFE / THE",null,0]
[null,null,"VIN AU VERRE",null,0]
[null,null,"BOUTEILLE VIN BLANC",null,0]
[null,null,"BOUTEILLE VIN ROUGE",null,0]
[null,null,"COUPE CHAMPAGNE",null,0]
[null,null,"BOUTEILLE CHAMPAGNE",null,0]
[null,null,"COUPE CLAIRETTE",null,{"$f":"VLOOKUP(C683,Fichier,3,0)*D683","v":0}]
[null,null,"BOUTEILLE CLAIRETTE",null,0]
[null,null,"SANDWICHES",null,0]
[null,null,"GÂTEAUX",null,0]
[null,null,"SAUCISSE SUR ARDOISE ",null,0]
[null,null,"ASSIETTE FROIDE / CRUDITES",null,0]
[null,50,"MINERALES",null,0,{"$f":"SUM(E689:E702)","v":0},"Payé","à rendre"]
[null,null,"BIÈRE",null,0,null,0,{"$f":"G690-F689","v":0}]
[null,null,"CAFE / THE",null,0]
[null,null,"VIN AU VERRE",null,0]
[null,null,"BOUTEILLE VIN BLANC",null,0]
[null,null,"BOUTEILLE VIN ROUGE",null,0]
[null,null,"COUPE CHAMPAGNE",null,0]
[null,null,"BOUTEILLE CHAMPAGNE",null,0]
[null,null,"COUPE CLAIRETTE",null,0]
[null,null,"BOUTEILLE CLAIRETTE",null,0]
[null,null,"SANDWICHES",null,0]
[null,null,"GÂTEAUX",null,0]
[null,null,"SAUCISSE SUR ARDOISE ",null,0]
[null,null,"ASSIETTE FROIDE / CRUDITES",null,0]
[null,51,"MINERALES",null,0,{"$f":"SUM(E703:E716)","v":0},"Payé","à rendre"]
[null,null,"BIÈRE",null,0,null,0,{"$f":"G704-F703","v":0}]
[null,null,"CAFE / THE",null,0]
[null,null,"VIN AU VERRE",null,0]
[null,null,"BOUTEILLE VIN BLANC",null,0]
[null,null,"BOUTEILLE VIN ROUGE",null,0]
[null,null,"COUPE CHAMPAGNE",null,0]
[null,null,"BOUTEILLE CHAMPAGNE",null,0]
[null,null,"COUPE CLAIRETTE",null,0]
[null,null,"BOUTEILLE CLAIRETTE",null,0]
[null,null,"SANDWICHES",null,0]
[null,null,"GÂTEAUX",null,0]
[null,null,"SAUCISSE SUR ARDOISE ",null,0]
[null,null,"ASSIETTE FROIDE / CRUDITES",null,0]
[null,52,"MINERALES",null,0,{"$f":"SUM(E717:E730)","v":0},"Payé","à rendre"]
[null,null,"BIÈRE",null,0,null,0,{"$f":"G718-F717","v":0}]
[null,null,"CAFE / THE",null,0]
[null,null,"VIN AU VERRE",null,0]
[null,null,"BOUTEILLE VIN BLANC",null,0]
[null,null,"BOUTEILLE VIN ROUGE",null,0]
[null,null,"COUPE CHAMPAGNE",null,0]
[null,null,"BOUTEILLE CHAMPAGNE",null,0]
[null,null,"COUPE CLAIRETTE",null,0]
[null,null,"BOUTEILLE CLAIRETTE",null,0]
[null,null,"SANDWICHES",null,0]
[null,null,"GÂTEAUX",null,0]
[null,null,"SAUCISSE SUR ARDOISE ",null,0]
[null,null,"ASSIETTE FROIDE / CRUDITES",null,0]
[null,53,"MINERALES",null,0,{"$f":"SUM(E731:E744)","v":0},"Payé","à rendre"]
[null,null,"BIÈRE",null,0,null,0,{"$f":"G732-F731","v":0}]
[null,null,"CAFE / THE",null,0]
[null,null,"VIN AU VERRE",null,0]
[null,null,"BOUTEILLE VIN BLANC",null,0]
[null,null,"BOUTEILLE VIN ROUGE",null,0]
[null,null,"COUPE CHAMPAGNE",null,0]
[null,null,"BOUTEILLE CHAMPAGNE",null,0]
[null,null,"COUPE CLAIRETTE",null,0]
[null,null,"BOUTEILLE CLAIRETTE",null,0]
[null,null,"SANDWICHES",null,0]
[null,null,"GÂTEAUX",null,0]
[null,null,"SAUCISSE SUR ARDOISE ",null,0]
[null,null,"ASSIETTE FROIDE / CRUDITES",null,0]
[null,54,"MINERALES",null,0,{"$f":"SUM(E745:E758)","v":0},"Payé","à rendre"]
[null,null,"BIÈRE",null,0,null,0,{"$f":"G746-F745","v":0}]
[null,null,"CAFE / THE",null,0]
[null,null,"VIN AU VERRE",null,0]
[null,null,"BOUTEILLE VIN BLANC",null,0]
[null,null,"BOUTEILLE VIN ROUGE",null,0]
[null,null,"COUPE CHAMPAGNE",null,0]
[null,null,"BOUTEILLE CHAMPAGNE",null,{"$f":"VLOOKUP(C752,Fichier,3,0)*D752","v":0}]
[null,null,"COUPE CLAIRETTE",null,0]
[null,null,"BOUTEILLE CLAIRETTE",null,0]
[null,null,"SANDWICHES",null,0]
[null,null,"GÂTEAUX",null,0]
[null,null,"SAUCISSE SUR ARDOISE ",null,0]
[null,null,"ASSIETTE FROIDE / CRUDITES",null,0]
[null,55,"MINERALES",null,0,{"$f":"SUM(E759:E772)","v":0},"Payé","à rendre"]
[null,null,"BIÈRE",null,0,null,0,{"$f":"G760-F759","v":0}]
[null,null,"CAFE / THE",null,0]
[null,null,"VIN AU VERRE",null,0]
[null,null,"BOUTEILLE VIN BLANC",null,0]
[null,null,"BOUTEILLE VIN ROUGE",null,0]
[null,null,"COUPE CHAMPAGNE",null,0]
[null,null,"BOUTEILLE CHAMPAGNE",null,0]
[null,null,"COUPE CLAIRETTE",null,0]
[null,null,"BOUTEILLE CLAIRETTE",null,0]
[null,null,"SANDWICHES",null,0]
[null,null,"GÂTEAUX",null,0]
[null,null,"SAUCISSE SUR ARDOISE ",null,0]
[null,null,"ASSIETTE FROIDE / CRUDITES",null,0]
[null,56,"MINERALES",null,0,{"$f":"SUM(E773:E786)","v":0},"Payé","à rendre"]
[null,null,"BIÈRE",null,0,null,0,{"$f":"G774-F773","v":0}]
[null,null,"CAFE / THE",null,0]
[null,null,"VIN AU VERRE",null,0]
[null,null,"BOUTEILLE VIN BLANC",null,0]
[null,null,"BOUTEILLE VIN ROUGE",null,0]
[null,null,"COUPE CHAMPAGNE",null,0]
[null,null,"BOUTEILLE CHAMPAGNE",null,0]
[null,null,"COUPE CLAIRETTE",null,0]
[null,null,"BOUTEILLE CLAIRETTE",null,0]
[null,null,"SANDWICHES",null,0]
[null,null,"GÂTEAUX",null,0]
[null,null,"SAUCISSE SUR ARDOISE ",null,0]
[null,null,"ASSIETTE FROIDE / CRUDITES",null,0]
[null,57,"MINERALES",null,0,{"$f":"SUM(E787:E800)","v":0},"Payé","à rendre"]
[null,null,"BIÈRE",null,0,null,0,{"$f":"G788-F787","v":0}]
[null,null,"CAFE / THE",null,0]
[null,null,"VIN AU VERRE",null,0]
[null,null,"BOUTEILLE VIN BLANC",null,0]
[null,null,"BOUTEILLE VIN ROUGE",null,0]
[null,null,"COUPE CHAMPAGNE",null,0]
[null,null,"BOUTEILLE CHAMPAGNE",null,0]
[null,null,"COUPE CLAIRETTE",null,0]
[null,null,"BOUTEILLE CLAIRETTE",null,0]
[null,null,"SANDWICHES",null,0]
[null,null,"GÂTEAUX",null,0]
[null,null,"SAUCISSE SUR ARDOISE ",null,0]
[null,null,"ASSIETTE FROIDE / CRUDITES",null,0]
[null,58,"MINERALES",null,0,{"$f":"SUM(E801:E814)","v":0},"Payé","à rendre"]
[null,null,"BIÈRE",null,0,null,0,{"$f":"G802-F801","v":0}]
[null,null,"CAFE / THE",null,0]
[null,null,"VIN AU VERRE",null,0]
[null,null,"BOUTEILLE VIN BLANC",null,0]
[null,null,"BOUTEILLE VIN ROUGE",null,0]
[null,null,"COUPE CHAMPAGNE",null,0]
[null,null,"BOUTEILLE CHAMPAGNE",null,0]
[null,null,"COUPE CLAIRETTE",null,0]
[null,null,"BOUTEILLE CLAIRETTE",null,0]
[null,null,"SANDWICHES",null,0]
[null,null,"GÂTEAUX",null,0]
[null,null,"SAUCISSE SUR ARDOISE ",null,0]
[null,null,"ASSIETTE FROIDE / CRUDITES",null,0]
[null,59,"MINERALES",null,0,{"$f":"SUM(E815:E828)","v":0},"Payé","à rendre"]
[null,null,"BIÈRE",null,0,null,0,{"$f":"G816-F815","v":0}]
[null,null,"CAFE / THE",null,0]
[null,null,"VIN AU VERRE",null,0]
[null,null,"BOUTEILLE VIN BLANC",null,0]
[null,null,"BOUTEILLE VIN ROUGE",null,0]
[null,null,"COUPE CHAMPAGNE",null,{"$f":"VLOOKUP(C821,Fichier,3,0)*D821","v":0}]
[null,null,"BOUTEILLE CHAMPAGNE",null,0]
[null,null,"COUPE CLAIRETTE",null,0]
[null,null,"BOUTEILLE CLAIRETTE",null,0]
[null,null,"SANDWICHES",null,0]
[null,null,"GÂTEAUX",null,0]
[null,null,"SAUCISSE SUR ARDOISE ",null,0]
[null,null,"ASSIETTE FROIDE / CRUDITES",null,0]
[null,60,"MINERALES",null,0,{"$f":"SUM(E829:E842)","v":0},"Payé","à rendre"]
[null,null,"BIÈRE",null,0,null,0,{"$f":"G830-F829","v":0}]
[null,null,"CAFE / THE",null,0]
[null,null,"VIN AU VERRE",null,0]
[null,null,"BOUTEILLE VIN BLANC",null,0]
[null,null,"BOUTEILLE VIN ROUGE",null,0]
[null,null,"COUPE CHAMPAGNE",null,0]
[null,null,"BOUTEILLE CHAMPAGNE",null,0]
[null,null,"COUPE CLAIRETTE",null,0]
[null,null,"BOUTEILLE CLAIRETTE",null,0]
[null,null,"SANDWICHES",null,0]
[null,null,"GÂTEAUX",null,0]
[null,null,"SAUCISSE SUR ARDOISE ",null,0]
[null,null,"ASSIETTE FROIDE / CRUDITES",null,0]
[null,61,"MINERALES",null,0,{"$f":"SUM(E843:E856)","v":0},"Payé","à rendre"]
[null,null,"BIÈRE",null,0,null,0,{"$f":"G844-F843","v":0}]
[null,null,"CAFE / THE",null,0]
[null,null,"VIN AU VERRE",null,0]
[null,null,"BOUTEILLE VIN BLANC",null,0]
[null,null,"BOUTEILLE VIN ROUGE",null,0]
[null,null,"COUPE CHAMPAGNE",null,0]
[null,null,"BOUTEILLE CHAMPAGNE",null,0]
[null,null,"COUPE CLAIRETTE",null,0]
[null,null,"BOUTEILLE CLAIRETTE",null,0]
[null,null,"SANDWICHES",null,0]
[null,null,"GÂTEAUX",null,0]
[null,null,"SAUCISSE SUR ARDOISE ",null,0]
[null,null,"ASSIETTE FROIDE / CRUDITES",null,0]
[null,62,"MINERALES",null,0,{"$f":"SUM(E857:E870)","v":0},"Payé","à rendre"]
[null,null,"BIÈRE",null,0,null,0,{"$f":"G858-F857","v":0}]
[null,null,"CAFE / THE",null,0]
[null,null,"VIN AU VERRE",null,0]
[null,null,"BOUTEILLE VIN BLANC",null,0]
[null,null,"BOUTEILLE VIN ROUGE",null,0]
[null,null,"COUPE CHAMPAGNE",null,0]
[null,null,"BOUTEILLE CHAMPAGNE",null,0]
[null,null,"COUPE CLAIRETTE",null,0]
[null,null,"BOUTEILLE CLAIRETTE",null,0]
[null,null,"SANDWICHES",null,0]
[null,null,"GÂTEAUX",null,0]
[null,null,"SAUCISSE SUR ARDOISE ",null,0]
[null,null,"ASSIETTE FROIDE / CRUDITES",null,0]
[null,63,"MINERALES",null,0,{"$f":"SUM(E871:E884)","v":0},"Payé","à rendre"]
[null,null,"BIÈRE",null,0,null,0,{"$f":"G872-F871","v":0}]
[null,null,"CAFE / THE",null,0]
[null,null,"VIN AU VERRE",null,0]
[null,null,"BOUTEILLE VIN BLANC",null,0]
[null,null,"BOUTEILLE VIN ROUGE",null,0]
[null,null,"COUPE CHAMPAGNE",null,0]
[null,null,"BOUTEILLE CHAMPAGNE",null,0]
[null,null,"COUPE CLAIRETTE",null,0]
[null,null,"BOUTEILLE CLAIRETTE",null,0]
[null,null,"SANDWICHES",null,0]
[null,null,"GÂTEAUX",null,0]
[null,null,"SAUCISSE SUR ARDOISE ",null,0]
[null,null,"ASSIETTE FROIDE / CRUDITES",null,0]
[null,64,"MINERALES",null,0,{"$f":"SUM(E885:E898)","v":0},"Payé","à rendre"]
[null,null,"BIÈRE",null,0,null,0,{"$f":"G886-F885","v":0}]
[null,null,"CAFE / THE",null,0]
[null,null,"VIN AU VERRE",null,0]
[null,null,"BOUTEILLE VIN BLANC",null,0]
[null,null,"BOUTEILLE VIN ROUGE",null,{"$f":"VLOOKUP(C890,Fichier,3,0)*D890","v":0}]
[null,null,"COUPE CHAMPAGNE",null,0]
[null,null,"BOUTEILLE CHAMPAGNE",null,0]
[null,null,"COUPE CLAIRETTE",null,0]
[null,null,"BOUTEILLE CLAIRETTE",null,0]
[null,null,"SANDWICHES",null,0]
[null,null,"GÂTEAUX",null,0]
[null,null,"SAUCISSE SUR ARDOISE ",null,0]
[null,null,"ASSIETTE FROIDE / CRUDITES",null,0]
[null,65,"MINERALES",null,0,{"$f":"SUM(E899:E912)","v":0},"Payé","à rendre"]
[null,null,"BIÈRE",null,0,null,0,{"$f":"G900-F899","v":0}]
[null,null,"CAFE / THE",null,0]
[null,null,"VIN AU VERRE",null,0]
[null,null,"BOUTEILLE VIN BLANC",null,0]
[null,null,"BOUTEILLE VIN ROUGE",null,0]
[null,null,"COUPE CHAMPAGNE",null,0]
[null,null,"BOUTEILLE CHAMPAGNE",null,0]
[null,null,"COUPE CLAIRETTE",null,0]
[null,null,"BOUTEILLE CLAIRETTE",null,0]
[null,null,"SANDWICHES",null,0]
[null,null,"GÂTEAUX",null,0]
[null,null,"SAUCISSE SUR ARDOISE ",null,0]
[null,null,"ASSIETTE FROIDE / CRUDITES",null,0]
[null,66,"MINERALES",null,0,{"$f":"SUM(E913:E926)","v":0},"Payé","à rendre"]
[null,null,"BIÈRE",null,0,null,0,{"$f":"G914-F913","v":0}]
[null,null,"CAFE / THE",null,0]
[null,null,"VIN AU VERRE",null,0]
[null,null,"BOUTEILLE VIN BLANC",null,0]
[null,null,"BOUTEILLE VIN ROUGE",null,0]
[null,null,"COUPE CHAMPAGNE",null,0]
[null,null,"BOUTEILLE CHAMPAGNE",null,0]
[null,null,"COUPE CLAIRETTE",null,0]
[null,null,"BOUTEILLE CLAIRETTE",null,0]
[null,null,"SANDWICHES",null,0,null,"Vs+ 10 "]
[null,null,"GÂTEAUX",null,0]
[null,null,"SAUCISSE SUR ARDOISE ",null,0]
[null,null,"ASSIETTE FROIDE / CRUDITES",null,0]
[null,67,"MINERALES",null,0,{"$f":"SUM(E927:E940)","v":0},"Payé","à rendre"]
[null,null,"BIÈRE",null,0,null,0,{"$f":"G928-F927","v":0}]
[null,null,"CAFE / THE",null,0]
[null,null,"VIN AU VERRE",null,0]
[null,null,"BOUTEILLE VIN BLANC",null,0]
[null,null,"BOUTEILLE VIN ROUGE",null,0]
[null,null,"COUPE CHAMPAGNE",null,0]
[null,null,"BOUTEILLE CHAMPAGNE",null,0]
[null,null,"COUPE CLAIRETTE",null,0]
[null,null,"BOUTEILLE CLAIRETTE",null,0]
[null,null,"SANDWICHES",null,0]
[null,null,"GÂTEAUX",null,0]
[null,null,"SAUCISSE SUR ARDOISE ",null,0]
[null,null,"ASSIETTE FROIDE / CRUDITES",null,0]
[null,68,"MINERALES",null,0,{"$f":"SUM(E941:E954)","v":0},"Payé","à rendre"]
[null,null,"BIÈRE",null,0,null,0,{"$f":"G942-F941","v":0}]
[null,null,"CAFE / THE",null,0]
[null,null,"VIN AU VERRE",null,0]
[null,null,"BOUTEILLE VIN BLANC",null,0]
[null,null,"BOUTEILLE VIN ROUGE",null,0]
[null,null,"COUPE CHAMPAGNE",null,0]
[null,null,"BOUTEILLE CHAMPAGNE",null,0]
[null,null,"COUPE CLAIRETTE",null,0]
[null,null,"BOUTEILLE CLAIRETTE",null,0]
[null,null,"SANDWICHES",null,0]
[null,null,"GÂTEAUX",null,0]
[null,null,"SAUCISSE SUR ARDOISE ",null,0]
[null,null,"ASSIETTE FROIDE / CRUDITES",null,0]
[null,69,"MINERALES",null,0,{"$f":"SUM(E955:E968)","v":0},"Payé","à rendre"]
[null,null,"BIÈRE",null,0,null,0,{"$f":"G956-F955","v":0}]
[null,null,"CAFE / THE",null,0]
[null,null,"VIN AU VERRE",null,0]
[null,null,"BOUTEILLE VIN BLANC",null,{"$f":"VLOOKUP(C959,Fichier,3,0)*D959","v":0}]
[null,null,"BOUTEILLE VIN ROUGE",null,0]
[null,null,"COUPE CHAMPAGNE",null,0]
[null,null,"BOUTEILLE CHAMPAGNE",null,0]
[null,null,"COUPE CLAIRETTE",null,0]
[null,null,"BOUTEILLE CLAIRETTE",null,0]
[null,null,"SANDWICHES",null,0]
[null,null,"GÂTEAUX",null,0]
[null,null,"SAUCISSE SUR ARDOISE ",null,0]
[null,null,"ASSIETTE FROIDE / CRUDITES",null,0]
[null,70,"MINERALES",null,0,{"$f":"SUM(E969:E982)","v":0},"Payé","à rendre"]
[null,null,"BIÈRE",null,0,null,0,{"$f":"G970-F969","v":0}]
[null,null,"CAFE / THE",null,0]
[null,null,"VIN AU VERRE",null,0]
[null,null,"BOUTEILLE VIN BLANC",null,0]
[null,null,"BOUTEILLE VIN ROUGE",null,0]
[null,null,"COUPE CHAMPAGNE",null,0]
[null,null,"BOUTEILLE CHAMPAGNE",null,0]
[null,null,"COUPE CLAIRETTE",null,0]
[null,null,"BOUTEILLE CLAIRETTE",null,0]
[null,null,"SANDWICHES",null,0]
[null,null,"GÂTEAUX",null,0]
[null,null,"SAUCISSE SUR ARDOISE ",null,0]
[null,null,"ASSIETTE FROIDE / CRUDITES",null,0]
[null,71,"MINERALES",null,0,{"$f":"SUM(E983:E996)","v":0},"Payé","à rendre"]
[null,null,"BIÈRE",null,0,null,0,{"$f":"G984-F983","v":0}]
[null,null,"CAFE / THE",null,0]
[null,null,"VIN AU VERRE",null,0]
[null,null,"BOUTEILLE VIN BLANC",null,0]
[null,null,"BOUTEILLE VIN ROUGE",null,0]
[null,null,"COUPE CHAMPAGNE",null,0]
[null,null,"BOUTEILLE CHAMPAGNE",null,0]
[null,null,"COUPE CLAIRETTE",null,0]
[null,null,"BOUTEILLE CLAIRETTE",null,0]
[null,null,"SANDWICHES",null,0]
[null,null,"GÂTEAUX",null,0]
[null,null,"SAUCISSE SUR ARDOISE ",null,0]
[null,null,"ASSIETTE FROIDE / CRUDITES",null,0]
[null,72,"MINERALES",null,0,{"$f":"SUM(E997:E1010)","v":0},"Payé","à rendre"]
[null,null,"BIÈRE",null,0,null,0,{"$f":"G998-F997","v":0}]
[null,null,"CAFE / THE",null,0]
[null,null,"VIN AU VERRE",null,0]
[null,null,"BOUTEILLE VIN BLANC",null,0]
[null,null,"BOUTEILLE VIN ROUGE",null,0]
[null,null,"COUPE CHAMPAGNE",null,0]
[null,null,"BOUTEILLE CHAMPAGNE",null,0]
[null,null,"COUPE CLAIRETTE",null,0]
[null,null,"BOUTEILLE CLAIRETTE",null,0]
[null,null,"SANDWICHES",null,0]
[null,null,"GÂTEAUX",null,0]
[null,null,"SAUCISSE SUR ARDOISE ",null,0]
[null,null,"ASSIETTE FROIDE / CRUDITES",null,0]
[null,73,"MINERALES",null,0,{"$f":"SUM(E1011:E1024)","v":0},"Payé","à rendre"]
[null,null,"BIÈRE",null,0,null,0,{"$f":"G1012-F1011","v":0}]
[null,null,"CAFE / THE",null,0]
[null,null,"VIN AU VERRE",null,0]
[null,null,"BOUTEILLE VIN BLANC",null,0]
[null,null,"BOUTEILLE VIN ROUGE",null,0]
[null,null,"COUPE CHAMPAGNE",null,0]
[null,null,"BOUTEILLE CHAMPAGNE",null,0]
[null,null,"COUPE CLAIRETTE",null,0]
[null,null,"BOUTEILLE CLAIRETTE",null,0]
[null,null,"SANDWICHES",null,0]
[null,null,"GÂTEAUX",null,0]
[null,null,"SAUCISSE SUR ARDOISE ",null,0]
[null,null,"ASSIETTE FROIDE / CRUDITES",null,0]
[null,74,"MINERALES",null,0,{"$f":"SUM(E1025:E1038)","v":0},"Payé","à rendre"]
[null,null,"BIÈRE",null,0,null,0,{"$f":"G1026-F1025","v":0}]
[null,null,"CAFE / THE",null,{"$f":"VLOOKUP(C1027,Fichier,3,0)*D1027","v":0}]
[null,null,"VIN AU VERRE",null,0]
[null,null,"BOUTEILLE VIN BLANC",null,0]
[null,null,"BOUTEILLE VIN ROUGE",null,0]
[null,null,"COUPE CHAMPAGNE",null,0]
[null,null,"BOUTEILLE CHAMPAGNE",null,0]
[null,null,"COUPE CLAIRETTE",null,0]
[null,null,"BOUTEILLE CLAIRETTE",null,0]
[null,null,"SANDWICHES",null,0]
[null,null,"GÂTEAUX",null,0]
[null,null,"SAUCISSE SUR ARDOISE ",null,0]
[null,null,"ASSIETTE FROIDE / CRUDITES",null,0]
[null,75,"MINERALES",null,0,{"$f":"SUM(E1039:E1052)","v":0},"Payé","à rendre"]
[null,null,"BIÈRE",null,0,null,0,{"$f":"G1040-F1039","v":0}]
[null,null,"CAFE / THE",null,0]
[null,null,"VIN AU VERRE",null,0]
[null,null,"BOUTEILLE VIN BLANC",null,0]
[null,null,"BOUTEILLE VIN ROUGE",null,0]
[null,null,"COUPE CHAMPAGNE",null,0]
[null,null,"BOUTEILLE CHAMPAGNE",null,0]
[null,null,"COUPE CLAIRETTE",null,0]
[null,null,"BOUTEILLE CLAIRETTE",null,0]
[null,null,"SANDWICHES",null,0]
[null,null,"GÂTEAUX",null,0]
[null,null,"SAUCISSE SUR ARDOISE ",null,0]
[null,null,"ASSIETTE FROIDE / CRUDITES",null,0]
[null,76,"MINERALES",null,0,{"$f":"SUM(E1053:E1066)","v":0},"Payé","à rendre"]
[null,null,"BIÈRE",null,0,null,0,{"$f":"G1054-F1053","v":0}]
[null,null,"CAFE / THE",null,0]
[null,null,"VIN AU VERRE",null,0]
[null,null,"BOUTEILLE VIN BLANC",null,0]
[null,null,"BOUTEILLE VIN ROUGE",null,0]
[null,null,"COUPE CHAMPAGNE",null,0]
[null,null,"BOUTEILLE CHAMPAGNE",null,0]
[null,null,"COUPE CLAIRETTE",null,0]
[null,null,"BOUTEILLE CLAIRETTE",null,0]
[null,null,"SANDWICHES",null,0]
[null,null,"GÂTEAUX",null,0]
[null,null,"SAUCISSE SUR ARDOISE ",null,0]
[null,null,"ASSIETTE FROIDE / CRUDITES",null,0]
[null,77,"MINERALES",null,0,{"$f":"SUM(E1067:E1080)","v":0},"Payé","à rendre"]
[null,null,"BIÈRE",null,0,null,0,{"$f":"G1068-F1067","v":0}]
[null,null,"CAFE / THE",null,0]
[null,null,"VIN AU VERRE",null,0]
[null,null,"BOUTEILLE VIN BLANC",null,0]
[null,null,"BOUTEILLE VIN ROUGE",null,0]
[null,null,"COUPE CHAMPAGNE",null,0]
[null,null,"BOUTEILLE CHAMPAGNE",null,0]
[null,null,"COUPE CLAIRETTE",null,0]
[null,null,"BOUTEILLE CLAIRETTE",null,0]
[null,null,"SANDWICHES",null,0]
[null,null,"GÂTEAUX",null,0]
[null,null,"SAUCISSE SUR ARDOISE ",null,0]
[null,null,"ASSIETTE FROIDE / CRUDITES",null,0]
[null,78,"MINERALES",null,0,{"$f":"SUM(E1081:E1094)","v":0},"Payé","à rendre"]
[null,null,"BIÈRE",null,0,null,0,{"$f":"G1082-F1081","v":0}]
[null,null,"CAFE / THE",null,0]
[null,null,"VIN AU VERRE",null,0]
[null,null,"BOUTEILLE VIN BLANC",null,0]
[null,null,"BOUTEILLE VIN ROUGE",null,0]
[null,null,"COUPE CHAMPAGNE",null,0]
[null,null,"BOUTEILLE CHAMPAGNE",null,0]
[null,null,"COUPE CLAIRETTE",null,0]
[null,null,"BOUTEILLE CLAIRETTE",null,0]
[null,null,"SANDWICHES",null,0]
[null,null,"GÂTEAUX",null,0]
[null,null,"SAUCISSE SUR ARDOISE ",null,0]
[null,null,"ASSIETTE FROIDE / CRUDITES",null,0]
[null,79,"MINERALES",null,0,{"$f":"SUM(E1095:E1108)","v":0},"Payé","à rendre"]
[null,null,"BIÈRE",null,{"$f":"VLOOKUP(C1096,Fichier,3,0)*D1096","v":0},null,0,{"$f":"G1096-F1095","v":0}]
[null,null,"CAFE / THE",null,0]
[null,null,"VIN AU VERRE",null,0]
[null,null,"BOUTEILLE VIN BLANC",null,0]
[null,null,"BOUTEILLE VIN ROUGE",null,0]
[null,null,"COUPE CHAMPAGNE",null,0]
[null,null,"BOUTEILLE CHAMPAGNE",null,0]
[null,null,"COUPE CLAIRETTE",null,0]
[null,null,"BOUTEILLE CLAIRETTE",null,0]
[null,null,"SANDWICHES",null,0]
[null,null,"GÂTEAUX",null,0]
[null,null,"SAUCISSE SUR ARDOISE ",null,0]
[null,null,"ASSIETTE FROIDE / CRUDITES",null,0]
[null,80,"MINERALES",null,0,{"$f":"SUM(E1109:E1122)","v":0},"Payé","à rendre"]
[null,null,"BIÈRE",null,0,null,0,{"$f":"G1110-F1109","v":0}]
[null,null,"CAFE / THE",null,0]
[null,null,"VIN AU VERRE",null,0]
[null,null,"BOUTEILLE VIN BLANC",null,0]
[null,null,"BOUTEILLE VIN ROUGE",null,0]
[null,null,"COUPE CHAMPAGNE",null,0]
[null,null,"BOUTEILLE CHAMPAGNE",null,0]
[null,null,"COUPE CLAIRETTE",null,0]
[null,null,"BOUTEILLE CLAIRETTE",null,0]
[null,null,"SANDWICHES",null,0]
[null,null,"GÂTEAUX",null,0]
[null,null,"SAUCISSE SUR ARDOISE ",null,0]
[null,null,"ASSIETTE FROIDE / CRUDITES",null,0]
[null,81,"MINERALES",null,0,{"$f":"SUM(E1123:E1136)","v":0},"Payé","à rendre"]
[null,null,"BIÈRE",null,0,null,0,{"$f":"G1124-F1123","v":0}]
[null,null,"CAFE / THE",null,0]
[null,null,"VIN AU VERRE",null,0]
[null,null,"BOUTEILLE VIN BLANC",null,0]
[null,null,"BOUTEILLE VIN ROUGE",null,0]
[null,null,"COUPE CHAMPAGNE",null,0]
[null,null,"BOUTEILLE CHAMPAGNE",null,0]
[null,null,"COUPE CLAIRETTE",null,0]
[null,null,"BOUTEILLE CLAIRETTE",null,0]
[null,null,"SANDWICHES",null,0]
[null,null,"GÂTEAUX",null,0]
[null,null,"SAUCISSE SUR ARDOISE ",null,0]
[null,null,"ASSIETTE FROIDE / CRUDITES",null,0]
[null,82,"MINERALES",null,0,{"$f":"SUM(E1137:E1150)","v":0},"Payé","à rendre"]
[null,null,"BIÈRE",null,0,null,0,{"$f":"G1138-F1137","v":0}]
[null,null,"CAFE / THE",null,0]
[null,null,"VIN AU VERRE",null,0]
[null,null,"BOUTEILLE VIN BLANC",null,0]
[null,null,"BOUTEILLE VIN ROUGE",null,0]
[null,null,"COUPE CHAMPAGNE",null,0]
[null,null,"BOUTEILLE CHAMPAGNE",null,0]
[null,null,"COUPE CLAIRETTE",null,0]
[null,null,"BOUTEILLE CLAIRETTE",null,0]
[null,null,"SANDWICHES",null,0]
[null,null,"GÂTEAUX",null,0]
[null,null,"SAUCISSE SUR ARDOISE ",null,0]
[null,null,"ASSIETTE FROIDE / CRUDITES",null,0]
[null,83,"MINERALES",null,0,{"$f":"SUM(E1151:E1164)","v":0},"Payé","à rendre"]
[null,null,"BIÈRE",null,0,null,0,{"$f":"G1152-F1151","v":0}]
[null,null,"CAFE / THE",null,0]
[null,null,"VIN AU VERRE",null,0]
[null,null,"BOUTEILLE VIN BLANC",null,0]
[null,null,"BOUTEILLE VIN ROUGE",null,0]
[null,null,"COUPE CHAMPAGNE",null,0]
[null,null,"BOUTEILLE CHAMPAGNE",null,0]
[null,null,"COUPE CLAIRETTE",null,0]
[null,null,"BOUTEILLE CLAIRETTE",null,0]
[null,null,"SANDWICHES",null,0]
[null,null,"GÂTEAUX",null,0]
[null,null,"SAUCISSE SUR ARDOISE ",null,0]
[null,null,"ASSIETTE FROIDE / CRUDITES",null,0]
[null,84,"MINERALES",null,{"$f":"VLOOKUP(C1165,Fichier,3,0)*D1165","v":0},{"$f":"SUM(E1165:E1178)","v":0},"Payé","à rendre"]
[null,null,"BIÈRE",null,0,null,0,{"$f":"G1166-F1165","v":0}]
[null,null,"CAFE / THE",null,0]
[null,null,"VIN AU VERRE",null,0]
[null,null,"BOUTEILLE VIN BLANC",null,0]
[null,null,"BOUTEILLE VIN ROUGE",null,0]
[null,null,"COUPE CHAMPAGNE",null,0]
[null,null,"BOUTEILLE CHAMPAGNE",null,0]
[null,null,"COUPE CLAIRETTE",null,0]
[null,null,"BOUTEILLE CLAIRETTE",null,0]
[null,null,"SANDWICHES",null,0]
[null,null,"GÂTEAUX",null,0]
[null,null,"SAUCISSE SUR ARDOISE ",null,0]
[null,null,"ASSIETTE FROIDE / CRUDITES",null,0]
[null,85,"MINERALES",null,0,{"$f":"SUM(E1179:E1192)","v":0},"Payé","à rendre"]
[null,null,"BIÈRE",null,0,null,0,{"$f":"G1180-F1179","v":0}]
[null,null,"CAFE / THE",null,0]
[null,null,"VIN AU VERRE",null,0]
[null,null,"BOUTEILLE VIN BLANC",null,0]
[null,null,"BOUTEILLE VIN ROUGE",null,0]
[null,null,"COUPE CHAMPAGNE",null,0]
[null,null,"BOUTEILLE CHAMPAGNE",null,0]
[null,null,"COUPE CLAIRETTE",null,0]
[null,null,"BOUTEILLE CLAIRETTE",null,0]
[null,null,"SANDWICHES",null,0]
[null,null,"GÂTEAUX",null,0]
[null,null,"SAUCISSE SUR ARDOISE ",null,0]
[null,null,"ASSIETTE FROIDE / CRUDITES",null,0]
[null,86,"MINERALES",null,0,{"$f":"SUM(E1193:E1206)","v":0},"Payé","à rendre"]
[null,null,"BIÈRE",null,0,null,0,{"$f":"G1194-F1193","v":0}]
[null,null,"CAFE / THE",null,0]
[null,null,"VIN AU VERRE",null,0]
[null,null,"BOUTEILLE VIN BLANC",null,0]
[null,null,"BOUTEILLE VIN ROUGE",null,0]
[null,null,"COUPE CHAMPAGNE",null,0]
[null,null,"BOUTEILLE CHAMPAGNE",null,0]
[null,null,"COUPE CLAIRETTE",null,0]
[null,null,"BOUTEILLE CLAIRETTE",null,0]
[null,null,"SANDWICHES",null,0]
[null,null,"GÂTEAUX",null,0]
[null,null,"SAUCISSE SUR ARDOISE ",null,0]
[null,null,"ASSIETTE FROIDE / CRUDITES",null,0]
[null,87,"MINERALES",null,0,{"$f":"SUM(E1207:E1220)","v":0},"Payé","à rendre"]
[null,null,"BIÈRE",null,0,null,0,{"$f":"G1208-F1207","v":0}]
[null,null,"CAFE / THE",null,0]
[null,null,"VIN AU VERRE",null,0]
[null,null,"BOUTEILLE VIN BLANC",null,0]
[null,null,"BOUTEILLE VIN ROUGE",null,0]
[null,null,"COUPE CHAMPAGNE",null,0]
[null,null,"BOUTEILLE CHAMPAGNE",null,0]
[null,null,"COUPE CLAIRETTE",null,0]
[null,null,"BOUTEILLE CLAIRETTE",null,0]
[null,null,"SANDWICHES",null,0]
[null,null,"GÂTEAUX",null,0]
[null,null,"SAUCISSE SUR ARDOISE ",null,0]
[null,null,"ASSIETTE FROIDE / CRUDITES",null,0]
[null,88,"MINERALES",null,0,{"$f":"SUM(E1221:E1234)","v":0},"Payé","à rendre"]
[null,null,"BIÈRE",null,0,null,0,{"$f":"G1222-F1221","v":0}]
[null,null,"CAFE / THE",null,0]
[null,null,"VIN AU VERRE",null,0]
[null,null,"BOUTEILLE VIN BLANC",null,0]
[null,null,"BOUTEILLE VIN ROUGE",null,0]
[null,null,"COUPE CHAMPAGNE",null,0]
[null,null,"BOUTEILLE CHAMPAGNE",null,0]
[null,null,"COUPE CLAIRETTE",null,0]
[null,null,"BOUTEILLE CLAIRETTE",null,0]
[null,null,"SANDWICHES",null,0]
[null,null,"GÂTEAUX",null,0]
[null,null,"SAUCISSE SUR ARDOISE ",null,0]
[null,null,"ASSIETTE FROIDE / CRUDITES",null,{"$f":"VLOOKUP(C1234,Fichier,3,0)*D1234","v":0}]
[null,89,"MINERALES",null,0,{"$f":"SUM(E1235:E1248)","v":0},"Payé","à rendre"]
[null,null,"BIÈRE",null,0,null,0,{"$f":"G1236-F1235","v":0}]
[null,null,"CAFE / THE",null,0]
[null,null,"VIN AU VERRE",null,0]
[null,null,"BOUTEILLE VIN BLANC",null,0]
[null,null,"BOUTEILLE VIN ROUGE",null,0]
[null,null,"COUPE CHAMPAGNE",null,0]
[null,null,"BOUTEILLE CHAMPAGNE",null,0]
[null,null,"COUPE CLAIRETTE",null,0]
[null,null,"BOUTEILLE CLAIRETTE",null,0]
[null,null,"SANDWICHES",null,0]
[null,null,"GÂTEAUX",null,0]
[null,null,"SAUCISSE SUR ARDOISE ",null,0]
[null,null,"ASSIETTE FROIDE / CRUDITES",null,0]
[null,90,"MINERALES",null,0,{"$f":"SUM(E1249:E1262)","v":0},"Payé","à rendre"]
[null,null,"BIÈRE",null,0,null,0,{"$f":"G1250-F1249","v":0}]
[null,null,"CAFE / THE",null,0]
[null,null,"VIN AU VERRE",null,0]
[null,null,"BOUTEILLE VIN BLANC",null,0]
[null,null,"BOUTEILLE VIN ROUGE",null,0]
[null,null,"COUPE CHAMPAGNE",null,0]
[null,null,"BOUTEILLE CHAMPAGNE",null,0]
[null,null,"COUPE CLAIRETTE",null,0]
[null,null,"BOUTEILLE CLAIRETTE",null,0]
[null,null,"SANDWICHES",null,0]
[null,null,"GÂTEAUX",null,0]
[null,null,"SAUCISSE SUR ARDOISE ",null,0]
[null,null,"ASSIETTE FROIDE / CRUDITES",null,0]
[null,91,"MINERALES",null,0,{"$f":"SUM(E1263:E1276)","v":0},"Payé","à rendre"]
[null,null,"BIÈRE",null,0,null,0,{"$f":"G1264-F1263","v":0}]
[null,null,"CAFE / THE",null,0]
[null,null,"VIN AU VERRE",null,0]
[null,null,"BOUTEILLE VIN BLANC",null,0]
[null,null,"BOUTEILLE VIN ROUGE",null,0]
[null,null,"COUPE CHAMPAGNE",null,0]
[null,null,"BOUTEILLE CHAMPAGNE",null,0]
[null,null,"COUPE CLAIRETTE",null,0]
[null,null,"BOUTEILLE CLAIRETTE",null,0]
[null,null,"SANDWICHES",null,0]
[null,null,"GÂTEAUX",null,0]
[null,null,"SAUCISSE SUR ARDOISE ",null,0]
[null,null,"ASSIETTE FROIDE / CRUDITES",null,0]
[null,92,"MINERALES",null,0,{"$f":"SUM(E1277:E1290)","v":0},"Payé","à rendre"]
[null,null,"BIÈRE",null,0,null,0,{"$f":"G1278-F1277","v":0}]
[null,null,"CAFE / THE",null,0]
[null,null,"VIN AU VERRE",null,0]
[null,null,"BOUTEILLE VIN BLANC",null,0]
[null,null,"BOUTEILLE VIN ROUGE",null,0]
[null,null,"COUPE CHAMPAGNE",null,0]
[null,null,"BOUTEILLE CHAMPAGNE",null,0]
[null,null,"COUPE CLAIRETTE",null,0]
[null,null,"BOUTEILLE CLAIRETTE",null,0]
[null,null,"SANDWICHES",null,0]
[null,null,"GÂTEAUX",null,0]
[null,null,"SAUCISSE SUR ARDOISE ",null,0]
[null,null,"ASSIETTE FROIDE / CRUDITES",null,0]
[null,93,"MINERALES",null,0,{"$f":"SUM(E1291:E1304)","v":0},"Payé","à rendre"]
[null,null,"BIÈRE",null,0,null,0,{"$f":"G1292-F1291","v":0}]
[null,null,"CAFE / THE",null,0]
[null,null,"VIN AU VERRE",null,0]
[null,null,"BOUTEILLE VIN BLANC",null,0]
[null,null,"BOUTEILLE VIN ROUGE",null,0]
[null,null,"COUPE CHAMPAGNE",null,0]
[null,null,"BOUTEILLE CHAMPAGNE",null,0]
[null,null,"COUPE CLAIRETTE",null,0]
[null,null,"BOUTEILLE CLAIRETTE",null,0]
[null,null,"SANDWICHES",null,0]
[null,null,"GÂTEAUX",null,0]
[null,null,"SAUCISSE SUR ARDOISE ",null,{"$f":"VLOOKUP(C1303,Fichier,3,0)*D1303","v":0}]
[null,null,"ASSIETTE FROIDE / CRUDITES",null,0]
[null,94,"MINERALES",null,0,{"$f":"SUM(E1305:E1318)","v":0},"Payé","à rendre"]
[null,null,"BIÈRE",null,0,null,0,{"$f":"G1306-F1305","v":0}]
[null,null,"CAFE / THE",null,0]
[null,null,"VIN AU VERRE",null,0]
[null,null,"BOUTEILLE VIN BLANC",null,0]
[null,null,"BOUTEILLE VIN ROUGE",null,0]
[null,null,"COUPE CHAMPAGNE",null,0]
[null,null,"BOUTEILLE CHAMPAGNE",null,0]
[null,null,"COUPE CLAIRETTE",null,0]
[null,null,"BOUTEILLE CLAIRETTE",null,0]
[null,null,"SANDWICHES",null,0]
[null,null,"GÂTEAUX",null,0]
[null,null,"SAUCISSE SUR ARDOISE ",null,0]
[null,null,"ASSIETTE FROIDE / CRUDITES",null,0]
[null,95,"MINERALES",null,0,{"$f":"SUM(E1319:E1332)","v":0},"Payé","à rendre"]
[null,null,"BIÈRE",null,0,null,0,{"$f":"G1320-F1319","v":0}]
[null,null,"CAFE / THE",null,0]
[null,null,"VIN AU VERRE",null,0]
[null,null,"BOUTEILLE VIN BLANC",null,0]
[null,null,"BOUTEILLE VIN ROUGE",null,0]
[null,null,"COUPE CHAMPAGNE",null,0]
[null,null,"BOUTEILLE CHAMPAGNE",null,0]
[null,null,"COUPE CLAIRETTE",null,0]
[null,null,"BOUTEILLE CLAIRETTE",null,0]
[null,null,"SANDWICHES",null,0]
[null,null,"GÂTEAUX",null,0]
[null,null,"SAUCISSE SUR ARDOISE ",null,0]
[null,null,"ASSIETTE FROIDE / CRUDITES",null,0]
[null,96,"MINERALES",null,0,{"$f":"SUM(E1333:E1346)","v":0},"Payé","à rendre"]
[null,null,"BIÈRE",null,0,null,0,{"$f":"G1334-F1333","v":0}]
[null,null,"CAFE / THE",null,0]
[null,null,"VIN AU VERRE",null,0]
[null,null,"BOUTEILLE VIN BLANC",null,0]
[null,null,"BOUTEILLE VIN ROUGE",null,0]
[null,null,"COUPE CHAMPAGNE",null,0]
[null,null,"BOUTEILLE CHAMPAGNE",null,0]
[null,null,"COUPE CLAIRETTE",null,0]
[null,null,"BOUTEILLE CLAIRETTE",null,0]
[null,null,"SANDWICHES",null,0]
[null,null,"GÂTEAUX",null,0]
[null,null,"SAUCISSE SUR ARDOISE ",null,0]
[null,null,"ASSIETTE FROIDE / CRUDITES",null,0]
[null,97,"MINERALES",null,0,{"$f":"SUM(E1347:E1360)","v":0},"Payé","à rendre"]
[null,null,"BIÈRE",null,0,null,0,{"$f":"G1348-F1347","v":0}]
[null,null,"CAFE / THE",null,0]
[null,null,"VIN AU VERRE",null,0]
[null,null,"BOUTEILLE VIN BLANC",null,0]
[null,null,"BOUTEILLE VIN ROUGE",null,0]
[null,null,"COUPE CHAMPAGNE",null,0]
[null,null,"BOUTEILLE CHAMPAGNE",null,0]
[null,null,"COUPE CLAIRETTE",null,0]
[null,null,"BOUTEILLE CLAIRETTE",null,0]
[null,null,"SANDWICHES",null,0]
[null,null,"GÂTEAUX",null,0]
[null,null,"SAUCISSE SUR ARDOISE ",null,0]
[null,null,"ASSIETTE FROIDE / CRUDITES",null,0]
[null,98,"MINERALES",null,0,{"$f":"SUM(E1361:E1374)","v":0},"Payé","à rendre"]
[null,null,"BIÈRE",null,0,null,0,{"$f":"G1362-F1361","v":0}]
[null,null,"CAFE / THE",null,0]
[null,null,"VIN AU VERRE",null,0]
[null,null,"BOUTEILLE VIN BLANC",null,0]
[null,null,"BOUTEILLE VIN ROUGE",null,0]
[null,null,"COUPE CHAMPAGNE",null,0]
[null,null,"BOUTEILLE CHAMPAGNE",null,0]
[null,null,"COUPE CLAIRETTE",null,0]
[null,null,"BOUTEILLE CLAIRETTE",null,0]
[null,null,"SANDWICHES",null,0]
[null,null,"GÂTEAUX",null,{"$f":"VLOOKUP(C1372,Fichier,3,0)*D1372","v":0}]
[null,null,"SAUCISSE SUR ARDOISE ",null,0]
[null,null,"ASSIETTE FROIDE / CRUDITES",null,0]
[null,99,"MINERALES",null,0,{"$f":"SUM(E1375:E1388)","v":0},"Payé","à rendre"]
[null,null,"BIÈRE",null,0,null,0,{"$f":"G1376-F1375","v":0}]
[null,null,"CAFE / THE",null,0]
[null,null,"VIN AU VERRE",null,0]
[null,null,"BOUTEILLE VIN BLANC",null,0]
[null,null,"BOUTEILLE VIN ROUGE",null,0]
[null,null,"COUPE CHAMPAGNE",null,0]
[null,null,"BOUTEILLE CHAMPAGNE",null,0]
[null,null,"COUPE CLAIRETTE",null,0]
[null,null,"BOUTEILLE CLAIRETTE",null,0]
[null,null,"SANDWICHES",null,0]
[null,null,"GÂTEAUX",null,0]
[null,null,"SAUCISSE SUR ARDOISE ",null,0]
[null,null,"ASSIETTE FROIDE / CRUDITES",null,0]
[null,100,"MINERALES",null,0,{"$f":"SUM(E1389:E1402)","v":0},"Payé","à rendre"]
[null,null,"BIÈRE",null,0,null,0,{"$f":"G1390-F1389","v":0}]
[null,null,"CAFE / THE",null,0]
[null,null,"VIN AU VERRE",null,0]
[null,null,"BOUTEILLE VIN BLANC",null,0]
[null,null,"BOUTEILLE VIN ROUGE",null,0]
[null,null,"COUPE CHAMPAGNE",null,0]
[null,null,"BOUTEILLE CHAMPAGNE",null,0]
[null,null,"COUPE CLAIRETTE",null,0]
[null,null,"BOUTEILLE CLAIRETTE",null,0]
[null,null,"SANDWICHES",null,0]
[null,null,"GÂTEAUX",null,0]
[null,null,"SAUCISSE SUR ARDOISE ",null,0]
[null,null,"ASSIETTE FROIDE / CRUDITES",null,0]
[null,101,"MINERALES",null,0,{"$f":"SUM(E1403:E1416)","v":0},"Payé","à rendre"]
[null,null,"BIÈRE",null,0,null,0,{"$f":"G1404-F1403","v":0}]
[null,null,"CAFE / THE",null,0]
[null,null,"VIN AU VERRE",null,0]
[null,null,"BOUTEILLE VIN BLANC",null,0]
[null,null,"BOUTEILLE VIN ROUGE",null,0]
[null,null,"COUPE CHAMPAGNE",null,0]
[null,null,"BOUTEILLE CHAMPAGNE",null,0]
[null,null,"COUPE CLAIRETTE",null,0]
[null,null,"BOUTEILLE CLAIRETTE",null,0]
[null,null,"SANDWICHES",null,0]
[null,null,"GÂTEAUX",null,0]
[null,null,"SAUCISSE SUR ARDOISE ",null,0]
[null,null,"ASSIETTE FROIDE / CRUDITES",null,0]
[null,102,"MINERALES",null,0,{"$f":"SUM(E1417:E1430)","v":0},"Payé","à rendre"]
[null,null,"BIÈRE",null,0,null,0,{"$f":"G1418-F1417","v":0}]
[null,null,"CAFE / THE",null,0]
[null,null,"VIN AU VERRE",null,0]
[null,null,"BOUTEILLE VIN BLANC",null,0]
[null,null,"BOUTEILLE VIN ROUGE",null,0]
[null,null,"COUPE CHAMPAGNE",null,0]
[null,null,"BOUTEILLE CHAMPAGNE",null,0]
[null,null,"COUPE CLAIRETTE",null,0]
[null,null,"BOUTEILLE CLAIRETTE",null,0]
[null,null,"SANDWICHES",null,0]
[null,null,"GÂTEAUX",null,0]
[null,null,"SAUCISSE SUR ARDOISE ",null,0]
[null,null,"ASSIETTE FROIDE / CRUDITES",null,0]
[null,103,"MINERALES",null,0,{"$f":"SUM(E1431:E1444)","v":0},"Payé","à rendre"]
[null,null,"BIÈRE",null,0,null,0,{"$f":"G1432-F1431","v":0}]
[null,null,"CAFE / THE",null,0]
[null,null,"VIN AU VERRE",null,0]
[null,null,"BOUTEILLE VIN BLANC",null,0]
[null,null,"BOUTEILLE VIN ROUGE",null,0]
[null,null,"COUPE CHAMPAGNE",null,0]
[null,null,"BOUTEILLE CHAMPAGNE",null,0]
[null,null,"COUPE CLAIRETTE",null,0]
[null,null,"BOUTEILLE CLAIRETTE",null,0]
[null,null,"SANDWICHES",null,{"$f":"VLOOKUP(C1441,Fichier,3,0)*D1441","v":0}]
[null,null,"GÂTEAUX",null,0]
[null,null,"SAUCISSE SUR ARDOISE ",null,0]
[null,null,"ASSIETTE FROIDE / CRUDITES",null,0]
[null,104,"MINERALES",null,0,{"$f":"SUM(E1445:E1458)","v":0},"Payé","à rendre"]
[null,null,"BIÈRE",null,0,null,0,{"$f":"G1446-F1445","v":0}]
[null,null,"CAFE / THE",null,0]
[null,null,"VIN AU VERRE",null,0]
[null,null,"BOUTEILLE VIN BLANC",null,0]
[null,null,"BOUTEILLE VIN ROUGE",null,0]
[null,null,"COUPE CHAMPAGNE",null,0]
[null,null,"BOUTEILLE CHAMPAGNE",null,0]
[null,null,"COUPE CLAIRETTE",null,0]
[null,null,"BOUTEILLE CLAIRETTE",null,0]
[null,null,"SANDWICHES",null,0]
[null,null,"GÂTEAUX",null,0]
[null,null,"SAUCISSE SUR ARDOISE ",null,0]
[null,null,"ASSIETTE FROIDE / CRUDITES",null,0]
[null,105,"MINERALES",null,0,{"$f":"SUM(E1459:E1472)","v":0},"Payé","à rendre"]
[null,null,"BIÈRE",null,0,null,0,{"$f":"G1460-F1459","v":0}]
[null,null,"CAFE / THE",null,0]
[null,null,"VIN AU VERRE",null,0]
[null,null,"BOUTEILLE VIN BLANC",null,0]
[null,null,"BOUTEILLE VIN ROUGE",null,0]
[null,null,"COUPE CHAMPAGNE",null,0]
[null,null,"BOUTEILLE CHAMPAGNE",null,0]
[null,null,"COUPE CLAIRETTE",null,0]
[null,null,"BOUTEILLE CLAIRETTE",null,0]
[null,null,"SANDWICHES",null,0]
[null,null,"GÂTEAUX",null,0]
[null,null,"SAUCISSE SUR ARDOISE ",null,0]
[null,null,"ASSIETTE FROIDE / CRUDITES",null,0]
[null,106,"MINERALES",null,0,{"$f":"SUM(E1473:E1486)","v":0},"Payé","à rendre"]
[null,null,"BIÈRE",null,0,null,0,{"$f":"G1474-F1473","v":0}]
[null,null,"CAFE / THE",null,0]
[null,null,"VIN AU VERRE",null,0]
[null,null,"BOUTEILLE VIN BLANC",null,0]
[null,null,"BOUTEILLE VIN ROUGE",null,0]
[null,null,"COUPE CHAMPAGNE",null,0]
[null,null,"BOUTEILLE CHAMPAGNE",null,0]
[null,null,"COUPE CLAIRETTE",null,0]
[null,null,"BOUTEILLE CLAIRETTE",null,0]
[null,null,"SANDWICHES",null,0]
[null,null,"GÂTEAUX",null,0]
[null,null,"SAUCISSE SUR ARDOISE ",null,0]
[null,null,"ASSIETTE FROIDE / CRUDITES",null,0]
[null,107,"MINERALES",null,0,{"$f":"SUM(E1487:E1500)","v":0},"Payé","à rendre"]
[null,null,"BIÈRE",null,0,null,0,{"$f":"G1488-F1487","v":0}]
[null,null,"CAFE / THE",null,0]
[null,null,"VIN AU VERRE",null,0]
[null,null,"BOUTEILLE VIN BLANC",null,0]
[null,null,"BOUTEILLE VIN ROUGE",null,0]
[null,null,"COUPE CHAMPAGNE",null,0]
[null,null,"BOUTEILLE CHAMPAGNE",null,0]
[null,null,"COUPE CLAIRETTE",null,0]
[null,null,"BOUTEILLE CLAIRETTE",null,0]
[null,null,"SANDWICHES",null,0]
[null,null,"GÂTEAUX",null,0]
[null,null,"SAUCISSE SUR ARDOISE ",null,0]
[null,null,"ASSIETTE FROIDE / CRUDITES",null,0]
[null,108,"MINERALES",null,0,{"$f":"SUM(E1501:E1514)","v":0},"Payé","à rendre"]
[null,null,"BIÈRE",null,0,null,0,{"$f":"G1502-F1501","v":0}]
[null,null,"CAFE / THE",null,0]
[null,null,"VIN AU VERRE",null,0]
[null,null,"BOUTEILLE VIN BLANC",null,0]
[null,null,"BOUTEILLE VIN ROUGE",null,0]
[null,null,"COUPE CHAMPAGNE",null,0]
[null,null,"BOUTEILLE CHAMPAGNE",null,0]
[null,null,"COUPE CLAIRETTE",null,0]
[null,null,"BOUTEILLE CLAIRETTE",null,{"$f":"VLOOKUP(C1510,Fichier,3,0)*D1510","v":0}]
[null,null,"SANDWICHES",null,0]
[null,null,"GÂTEAUX",null,0]
[null,null,"SAUCISSE SUR ARDOISE ",null,0]
[null,null,"ASSIETTE FROIDE / CRUDITES",null,0]
[null,109,"MINERALES",null,0,{"$f":"SUM(E1515:E1528)","v":0},"Payé","à rendre"]
[null,null,"BIÈRE",null,0,null,0,{"$f":"G1516-F1515","v":0}]
[null,null,"CAFE / THE",null,0]
[null,null,"VIN AU VERRE",null,0]
[null,null,"BOUTEILLE VIN BLANC",null,0]
[null,null,"BOUTEILLE VIN ROUGE",null,0]
[null,null,"COUPE CHAMPAGNE",null,0]
[null,null,"BOUTEILLE CHAMPAGNE",null,0]
[null,null,"COUPE CLAIRETTE",null,0]
[null,null,"BOUTEILLE CLAIRETTE",null,0]
[null,null,"SANDWICHES",null,0]
[null,null,"GÂTEAUX",null,0]
[null,null,"SAUCISSE SUR ARDOISE ",null,0]
[null,null,"ASSIETTE FROIDE / CRUDITES",null,0]
[null,110,"MINERALES",null,0,{"$f":"SUM(E1529:E1542)","v":0},"Payé","à rendre"]
[null,null,"BIÈRE",null,0,null,0,{"$f":"G1530-F1529","v":0}]
[null,null,"CAFE / THE",null,0]
[null,null,"VIN AU VERRE",null,0]
[null,null,"BOUTEILLE VIN BLANC",null,0]
[null,null,"BOUTEILLE VIN ROUGE",null,0]
[null,null,"COUPE CHAMPAGNE",null,0]
[null,null,"BOUTEILLE CHAMPAGNE",null,0]
[null,null,"COUPE CLAIRETTE",null,0]
[null,null,"BOUTEILLE CLAIRETTE",null,0]
[null,null,"SANDWICHES",null,0]
[null,null,"GÂTEAUX",null,0]
[null,null,"SAUCISSE SUR ARDOISE ",null,0]
[null,null,"ASSIETTE FROIDE / CRUDITES",null,0]
[null,111,"MINERALES",null,0,{"$f":"SUM(E1543:E1556)","v":0},"Payé","à rendre"]
[null,null,"BIÈRE",null,0,null,0,{"$f":"G1544-F1543","v":0}]
[null,null,"CAFE / THE",null,0]
[null,null,"VIN AU VERRE",null,0]
[null,null,"BOUTEILLE VIN BLANC",null,0]
[null,null,"BOUTEILLE VIN ROUGE",null,0]
[null,null,"COUPE CHAMPAGNE",null,0]
[null,null,"BOUTEILLE CHAMPAGNE",null,0]
[null,null,"COUPE CLAIRETTE",null,0]
[null,null,"BOUTEILLE CLAIRETTE",null,0]
[null,null,"SANDWICHES",null,0]
[null,null,"GÂTEAUX",null,0]
[null,null,"SAUCISSE SUR ARDOISE ",null,0]
[null,null,"ASSIETTE FROIDE / CRUDITES",null,0]
[null,112,"MINERALES",null,0,{"$f":"SUM(E1557:E1570)","v":0},"Payé","à rendre"]
[null,null,"BIÈRE",null,0,null,0,{"$f":"G1558-F1557","v":0}]
[null,null,"CAFE / THE",null,0]
[null,null,"VIN AU VERRE",null,0]
[null,null,"BOUTEILLE VIN BLANC",null,0]
[null,null,"BOUTEILLE VIN ROUGE",null,0]
[null,null,"COUPE CHAMPAGNE",null,0]
[null,null,"BOUTEILLE CHAMPAGNE",null,0]
[null,null,"COUPE CLAIRETTE",null,0]
[null,null,"BOUTEILLE CLAIRETTE",null,0]
[null,null,"SANDWICHES",null,0]
[null,null,"GÂTEAUX",null,0]
[null,null,"SAUCISSE SUR ARDOISE ",null,0]
[null,null,"ASSIETTE FROIDE / CRUDITES",null,0]
[null,113,"MINERALES",null,0,{"$f":"SUM(E1571:E1584)","v":0},"Payé","à rendre"]
[null,null,"BIÈRE",null,0,null,0,{"$f":"G1572-F1571","v":0}]
[null,null,"CAFE / THE",null,0]
[null,null,"VIN AU VERRE",null,0]
[null,null,"BOUTEILLE VIN BLANC",null,0]
[null,null,"BOUTEILLE VIN ROUGE",null,0]
[null,null,"COUPE CHAMPAGNE",null,0]
[null,null,"BOUTEILLE CHAMPAGNE",null,0]
[null,null,"COUPE CLAIRETTE",null,{"$f":"VLOOKUP(C1579,Fichier,3,0)*D1579","v":0}]
[null,null,"BOUTEILLE CLAIRETTE",null,0]
[null,null,"SANDWICHES",null,0]
[null,null,"GÂTEAUX",null,0]
[null,null,"SAUCISSE SUR ARDOISE ",null,0]
[null,null,"ASSIETTE FROIDE / CRUDITES",null,0]
[null,114,"MINERALES",null,0,{"$f":"SUM(E1585:E1598)","v":0},"Payé","à rendre"]
[null,null,"BIÈRE",null,0,null,0,{"$f":"G1586-F1585","v":0}]
[null,null,"CAFE / THE",null,0]
[null,null,"VIN AU VERRE",null,0]
[null,null,"BOUTEILLE VIN BLANC",null,0]
[null,null,"BOUTEILLE VIN ROUGE",null,0]
[null,null,"COUPE CHAMPAGNE",null,0]
[null,null,"BOUTEILLE CHAMPAGNE",null,0]
[null,null,"COUPE CLAIRETTE",null,0]
[null,null,"BOUTEILLE CLAIRETTE",null,0]
[null,null,"SANDWICHES",null,0]
[null,null,"GÂTEAUX",null,0]
[null,null,"SAUCISSE SUR ARDOISE ",null,0]
[null,null,"ASSIETTE FROIDE / CRUDITES",null,0]
[null,115,"MINERALES",null,0,{"$f":"SUM(E1599:E1612)","v":0},"Payé","à rendre"]
[null,null,"BIÈRE",null,0,null,0,{"$f":"G1600-F1599","v":0}]
[null,null,"CAFE / THE",null,0]
[null,null,"VIN AU VERRE",null,0]
[null,null,"BOUTEILLE VIN BLANC",null,0]
[null,null,"BOUTEILLE VIN ROUGE",null,0]
[null,null,"COUPE CHAMPAGNE",null,0]
[null,null,"BOUTEILLE CHAMPAGNE",null,0]
[null,null,"COUPE CLAIRETTE",null,0]
[null,null,"BOUTEILLE CLAIRETTE",null,0]
[null,null,"SANDWICHES",null,0]
[null,null,"GÂTEAUX",null,0]
[null,null,"SAUCISSE SUR ARDOISE ",null,0]
[null,null,"ASSIETTE FROIDE / CRUDITES",null,0]
[null,116,"MINERALES",null,0,{"$f":"SUM(E1613:E1626)","v":0},"Payé","à rendre"]
[null,null,"BIÈRE",null,0,null,0,{"$f":"G1614-F1613","v":0}]
[null,null,"CAFE / THE",null,0]
[null,null,"VIN AU VERRE",null,0]
[null,null,"BOUTEILLE VIN BLANC",null,0]
[null,null,"BOUTEILLE VIN ROUGE",null,0]
[null,null,"COUPE CHAMPAGNE",null,0]
[null,null,"BOUTEILLE CHAMPAGNE",null,0]
[null,null,"COUPE CLAIRETTE",null,0]
[null,null,"BOUTEILLE CLAIRETTE",null,0]
[null,null,"SANDWICHES",null,0]
[null,null,"GÂTEAUX",null,0]
[null,null,"SAUCISSE SUR ARDOISE ",null,0]
[null,null,"ASSIETTE FROIDE / CRUDITES",null,0]
[null,117,"MINERALES",null,0,{"$f":"SUM(E1627:E1640)","v":0},"Payé","à rendre"]
[null,null,"BIÈRE",null,0,null,0,{"$f":"G1628-F1627","v":0}]
[null,null,"CAFE / THE",null,0]
[null,null,"VIN AU VERRE",null,0]
[null,null,"BOUTEILLE VIN BLANC",null,0]
[null,null,"BOUTEILLE VIN ROUGE",null,0]
[null,null,"COUPE CHAMPAGNE",null,0]
[null,null,"BOUTEILLE CHAMPAGNE",null,0]
[null,null,"COUPE CLAIRETTE",null,0]
[null,null,"BOUTEILLE CLAIRETTE",null,0]
[null,null,"SANDWICHES",null,0]
[null,null,"GÂTEAUX",null,0]
[null,null,"SAUCISSE SUR ARDOISE ",null,0]
[null,null,"ASSIETTE FROIDE / CRUDITES",null,0]
[null,118,"MINERALES",null,0,{"$f":"SUM(E1641:E1654)","v":0},"Payé","à rendre"]
[null,null,"BIÈRE",null,0,null,0,{"$f":"G1642-F1641","v":0}]
[null,null,"CAFE / THE",null,0]
[null,null,"VIN AU VERRE",null,0]
[null,null,"BOUTEILLE VIN BLANC",null,0]
[null,null,"BOUTEILLE VIN ROUGE",null,0]
[null,null,"COUPE CHAMPAGNE",null,0]
[null,null,"BOUTEILLE CHAMPAGNE",null,{"$f":"VLOOKUP(C1648,Fichier,3,0)*D1648","v":0}]
[null,null,"COUPE CLAIRETTE",null,0]
[null,null,"BOUTEILLE CLAIRETTE",null,0]
[null,null,"SANDWICHES",null,0]
[null,null,"GÂTEAUX",null,0]
[null,null,"SAUCISSE SUR ARDOISE ",null,0]
[null,null,"ASSIETTE FROIDE / CRUDITES",null,0]
[null,119,"MINERALES",null,0,{"$f":"SUM(E1655:E1668)","v":0},"Payé","à rendre"]
[null,null,"BIÈRE",null,0,null,0,{"$f":"G1656-F1655","v":0}]
[null,null,"CAFE / THE",null,0]
[null,null,"VIN AU VERRE",null,0]
[null,null,"BOUTEILLE VIN BLANC",null,0]
[null,null,"BOUTEILLE VIN ROUGE",null,0]
[null,null,"COUPE CHAMPAGNE",null,0]
[null,null,"BOUTEILLE CHAMPAGNE",null,0]
[null,null,"COUPE CLAIRETTE",null,0]
[null,null,"BOUTEILLE CLAIRETTE",null,0]
[null,null,"SANDWICHES",null,0]
[null,null,"GÂTEAUX",null,0]
[null,null,"SAUCISSE SUR ARDOISE ",null,0]
[null,null,"ASSIETTE FROIDE / CRUDITES",null,0]
[null,120,"MINERALES",null,0,{"$f":"SUM(E1669:E1682)","v":0},"Payé","à rendre"]
[null,null,"BIÈRE",null,0,null,0,{"$f":"G1670-F1669","v":0}]
[null,null,"CAFE / THE",null,0]
[null,null,"VIN AU VERRE",null,0]
[null,null,"BOUTEILLE VIN BLANC",null,0]
[null,null,"BOUTEILLE VIN ROUGE",null,0]
[null,null,"COUPE CHAMPAGNE",null,0]
[null,null,"BOUTEILLE CHAMPAGNE",null,0]
[null,null,"COUPE CLAIRETTE",null,0]
[null,null,"BOUTEILLE CLAIRETTE",null,0]
[null,null,"SANDWICHES",null,0]
[null,null,"GÂTEAUX",null,0]
[null,null,"SAUCISSE SUR ARDOISE ",null,0]
[null,null,"ASSIETTE FROIDE / CRUDITES",null,0]
[null,121,"MINERALES",null,0,{"$f":"SUM(E1683:E1696)","v":0},"Payé","à rendre"]
[null,null,"BIÈRE",null,0,null,0,{"$f":"G1684-F1683","v":0}]
[null,null,"CAFE / THE",null,0]
[null,null,"VIN AU VERRE",null,0]
[null,null,"BOUTEILLE VIN BLANC",null,0]
[null,null,"BOUTEILLE VIN ROUGE",null,0]
[null,null,"COUPE CHAMPAGNE",null,0]
[null,null,"BOUTEILLE CHAMPAGNE",null,0]
[null,null,"COUPE CLAIRETTE",null,0]
[null,null,"BOUTEILLE CLAIRETTE",null,0]
[null,null,"SANDWICHES",null,0]
[null,null,"GÂTEAUX",null,0]
[null,null,"SAUCISSE SUR ARDOISE ",null,0]
[null,null,"ASSIETTE FROIDE / CRUDITES",null,0]
[null,122,"MINERALES",null,0,{"$f":"SUM(E1697:E1710)","v":0},"Payé","à rendre"]
[null,null,"BIÈRE",null,0,null,0,{"$f":"G1698-F1697","v":0}]
[null,null,"CAFE / THE",null,0]
[null,null,"VIN AU VERRE",null,0]
[null,null,"BOUTEILLE VIN BLANC",null,0]
[null,null,"BOUTEILLE VIN ROUGE",null,0]
[null,null,"COUPE CHAMPAGNE",null,0]
[null,null,"BOUTEILLE CHAMPAGNE",null,0]
[null,null,"COUPE CLAIRETTE",null,0]
[null,null,"BOUTEILLE CLAIRETTE",null,0]
[null,null,"SANDWICHES",null,0]
[null,null,"GÂTEAUX",null,0]
[null,null,"SAUCISSE SUR ARDOISE ",null,0]
[null,null,"ASSIETTE FROIDE / CRUDITES",null,0]
[null,123,"MINERALES",null,0,{"$f":"SUM(E1711:E1724)","v":0},"Payé","à rendre"]
[null,null,"BIÈRE",null,0,null,0,{"$f":"G1712-F1711","v":0}]
[null,null,"CAFE / THE",null,0]
[null,null,"VIN AU VERRE",null,0]
[null,null,"BOUTEILLE VIN BLANC",null,0]
[null,null,"BOUTEILLE VIN ROUGE",null,0]
[null,null,"COUPE CHAMPAGNE",null,{"$f":"VLOOKUP(C1717,Fichier,3,0)*D1717","v":0}]
[null,null,"BOUTEILLE CHAMPAGNE",null,0]
[null,null,"COUPE CLAIRETTE",null,0]
[null,null,"BOUTEILLE CLAIRETTE",null,0]
[null,null,"SANDWICHES",null,0]
[null,null,"GÂTEAUX",null,0]
[null,null,"SAUCISSE SUR ARDOISE ",null,0]
[null,null,"ASSIETTE FROIDE / CRUDITES",null,0]
[null,124,"MINERALES",null,0,{"$f":"SUM(E1725:E1738)","v":0},"Payé","à rendre"]
[null,null,"BIÈRE",null,0,null,0,{"$f":"G1726-F1725","v":0}]
[null,null,"CAFE / THE",null,0]
[null,null,"VIN AU VERRE",null,0]
[null,null,"BOUTEILLE VIN BLANC",null,0]
[null,null,"BOUTEILLE VIN ROUGE",null,0]
[null,null,"COUPE CHAMPAGNE",null,0]
[null,null,"BOUTEILLE CHAMPAGNE",null,0]
[null,null,"COUPE CLAIRETTE",null,0]
[null,null,"BOUTEILLE CLAIRETTE",null,0]
[null,null,"SANDWICHES",null,0]
[null,null,"GÂTEAUX",null,0]
[null,null,"SAUCISSE SUR ARDOISE ",null,0]
[null,null,"ASSIETTE FROIDE / CRUDITES",null,0]
[null,125,"MINERALES",null,0,{"$f":"SUM(E1739:E1752)","v":0},"Payé","à rendre"]
[null,null,"BIÈRE",null,0,null,0,{"$f":"G1740-F1739","v":0}]
[null,null,"CAFE / THE",null,0]
[null,null,"VIN AU VERRE",null,0]
[null,null,"BOUTEILLE VIN BLANC",null,0]
[null,null,"BOUTEILLE VIN ROUGE",null,0]
[null,null,"COUPE CHAMPAGNE",null,0]
[null,null,"BOUTEILLE CHAMPAGNE",null,0]
[null,null,"COUPE CLAIRETTE",null,0]
[null,null,"BOUTEILLE CLAIRETTE",null,0]
[null,null,"SANDWICHES",null,0]
[null,null,"GÂTEAUX",null,0]
[null,null,"SAUCISSE SUR ARDOISE ",null,0]
[null,null,"ASSIETTE FROIDE / CRUDITES",null,0]
[null,126,"MINERALES",null,0,{"$f":"SUM(E1753:E1766)","v":0},"Payé","à rendre"]
[null,null,"BIÈRE",null,0,null,0,{"$f":"G1754-F1753","v":0}]
[null,null,"CAFE / THE",null,0]
[null,null,"VIN AU VERRE",null,0]
[null,null,"BOUTEILLE VIN BLANC",null,0]
[null,null,"BOUTEILLE VIN ROUGE",null,0]
[null,null,"COUPE CHAMPAGNE",null,0]
[null,null,"BOUTEILLE CHAMPAGNE",null,0]
[null,null,"COUPE CLAIRETTE",null,0]
[null,null,"BOUTEILLE CLAIRETTE",null,0]
[null,null,"SANDWICHES",null,0]
[null,null,"GÂTEAUX",null,0]
[null,null,"SAUCISSE SUR ARDOISE ",null,0]
[null,null,"ASSIETTE FROIDE / CRUDITES",null,0]
[null,127,"MINERALES",null,0,{"$f":"SUM(E1767:E1780)","v":0},"Payé","à rendre"]
[null,null,"BIÈRE",null,0,null,0,{"$f":"G1768-F1767","v":0}]
[null,null,"CAFE / THE",null,0]
[null,null,"VIN AU VERRE",null,0]
[null,null,"BOUTEILLE VIN BLANC",null,0]
[null,null,"BOUTEILLE VIN ROUGE",null,0]
[null,null,"COUPE CHAMPAGNE",null,0]
[null,null,"BOUTEILLE CHAMPAGNE",null,0]
[null,null,"COUPE CLAIRETTE",null,0]
[null,null,"BOUTEILLE CLAIRETTE",null,0]
[null,null,"SANDWICHES",null,0]
[null,null,"GÂTEAUX",null,0]
[null,null,"SAUCISSE SUR ARDOISE ",null,0]
[null,null,"ASSIETTE FROIDE / CRUDITES",null,0]
[null,128,"MINERALES",null,0,{"$f":"SUM(E1781:E1794)","v":0},"Payé","à rendre"]
[null,null,"BIÈRE",null,0,null,0,{"$f":"G1782-F1781","v":0}]
[null,null,"CAFE / THE",null,0]
[null,null,"VIN AU VERRE",null,0]
[null,null,"BOUTEILLE VIN BLANC",null,0]
[null,null,"BOUTEILLE VIN ROUGE",null,{"$f":"VLOOKUP(C1786,Fichier,3,0)*D1786","v":0}]
[null,null,"COUPE CHAMPAGNE",null,0]
[null,null,"BOUTEILLE CHAMPAGNE",null,0]
[null,null,"COUPE CLAIRETTE",null,0]
[null,null,"BOUTEILLE CLAIRETTE",null,0]
[null,null,"SANDWICHES",null,0]
[null,null,"GÂTEAUX",null,0]
[null,null,"SAUCISSE SUR ARDOISE ",null,0]
[null,null,"ASSIETTE FROIDE / CRUDITES",null,0]
[null,129,"MINERALES",null,0,{"$f":"SUM(E1795:E1808)","v":0},"Payé","à rendre"]
[null,null,"BIÈRE",null,0,null,0,{"$f":"G1796-F1795","v":0}]
[null,null,"CAFE / THE",null,0]
[null,null,"VIN AU VERRE",null,0]
[null,null,"BOUTEILLE VIN BLANC",null,0]
[null,null,"BOUTEILLE VIN ROUGE",null,0]
[null,null,"COUPE CHAMPAGNE",null,0]
[null,null,"BOUTEILLE CHAMPAGNE",null,0]
[null,null,"COUPE CLAIRETTE",null,0]
[null,null,"BOUTEILLE CLAIRETTE",null,0]
[null,null,"SANDWICHES",null,0]
[null,null,"GÂTEAUX",null,0]
[null,null,"SAUCISSE SUR ARDOISE ",null,0]
[null,null,"ASSIETTE FROIDE / CRUDITES",null,0]
[null,130,"MINERALES",null,0,{"$f":"SUM(E1809:E1822)","v":0},"Payé","à rendre"]
[null,null,"BIÈRE",null,0,null,0,{"$f":"G1810-F1809","v":0}]
[null,null,"CAFE / THE",null,0]
[null,null,"VIN AU VERRE",null,0]
[null,null,"BOUTEILLE VIN BLANC",null,0]
[null,null,"BOUTEILLE VIN ROUGE",null,0]
[null,null,"COUPE CHAMPAGNE",null,0]
[null,null,"BOUTEILLE CHAMPAGNE",null,0]
[null,null,"COUPE CLAIRETTE",null,0]
[null,null,"BOUTEILLE CLAIRETTE",null,0]
[null,null,"SANDWICHES",null,0]
[null,null,"GÂTEAUX",null,0]
[null,null,"SAUCISSE SUR ARDOISE ",null,0]
[null,null,"ASSIETTE FROIDE / CRUDITES",null,0]
[null,131,"MINERALES",null,0,{"$f":"SUM(E1823:E1836)","v":0},"Payé","à rendre"]
[null,null,"BIÈRE",null,0,null,0,{"$f":"G1824-F1823","v":0}]
[null,null,"CAFE / THE",null,0]
[null,null,"VIN AU VERRE",null,0]
[null,null,"BOUTEILLE VIN BLANC",null,0]
[null,null,"BOUTEILLE VIN ROUGE",null,0]
[null,null,"COUPE CHAMPAGNE",null,0]
[null,null,"BOUTEILLE CHAMPAGNE",null,0]
[null,null,"COUPE CLAIRETTE",null,0]
[null,null,"BOUTEILLE CLAIRETTE",null,0]
[null,null,"SANDWICHES",null,0]
[null,null,"GÂTEAUX",null,0]
[null,null,"SAUCISSE SUR ARDOISE ",null,0]
[null,null,"ASSIETTE FROIDE / CRUDITES",null,0]
[null,132,"MINERALES",null,0,{"$f":"SUM(E1837:E1850)","v":0},"Payé","à rendre"]
[null,null,"BIÈRE",null,0,null,0,{"$f":"G1838-F1837","v":0}]
[null,null,"CAFE / THE",null,0]
[null,null,"VIN AU VERRE",null,0]
[null,null,"BOUTEILLE VIN BLANC",null,0]
[null,null,"BOUTEILLE VIN ROUGE",null,0]
[null,null,"COUPE CHAMPAGNE",null,0]
[null,null,"BOUTEILLE CHAMPAGNE",null,0]
[null,null,"COUPE CLAIRETTE",null,0]
[null,null,"BOUTEILLE CLAIRETTE",null,0]
[null,null,"SANDWICHES",null,0]
[null,null,"GÂTEAUX",null,0]
[null,null,"SAUCISSE SUR ARDOISE ",null,0]
[null,null,"ASSIETTE FROIDE / CRUDITES",null,0]
[null,133,"MINERALES",null,0,{"$f":"SUM(E1851:E1864)","v":0},"Payé","à rendre"]
[null,null,"BIÈRE",null,0,null,0,{"$f":"G1852-F1851","v":0}]
[null,null,"CAFE / THE",null,0]
[null,null,"VIN AU VERRE",null,0]
[null,null,"BOUTEILLE VIN BLANC",null,{"$f":"VLOOKUP(C1855,Fichier,3,0)*D1855","v":0}]
[null,null,"BOUTEILLE VIN ROUGE",null,0]
[null,null,"COUPE CHAMPAGNE",null,0]
[null,null,"BOUTEILLE CHAMPAGNE",null,0]
[null,null,"COUPE CLAIRETTE",null,0]
[null,null,"BOUTEILLE CLAIRETTE",null,0]
[null,null,"SANDWICHES",null,0]
[null,null,"GÂTEAUX",null,0]
[null,null,"SAUCISSE SUR ARDOISE ",null,0]
[null,null,"ASSIETTE FROIDE / CRUDITES",null,0]
[null,134,"MINERALES",null,0,{"$f":"SUM(E1865:E1878)","v":0},"Payé","à rendre"]
[null,null,"BIÈRE",null,0,null,0,{"$f":"G1866-F1865","v":0}]
[null,null,"CAFE / THE",null,0]
[null,null,"VIN AU VERRE",null,0]
[null,null,"BOUTEILLE VIN BLANC",null,0]
[null,null,"BOUTEILLE VIN ROUGE",null,0]
[null,null,"COUPE CHAMPAGNE",null,0]
[null,null,"BOUTEILLE CHAMPAGNE",null,0]
[null,null,"COUPE CLAIRETTE",null,0]
[null,null,"BOUTEILLE CLAIRETTE",null,0]
[null,null,"SANDWICHES",null,0]
[null,null,"GÂTEAUX",null,0]
[null,null,"SAUCISSE SUR ARDOISE ",null,0]
[null,null,"ASSIETTE FROIDE / CRUDITES",null,0]
[null,135,"MINERALES",null,0,{"$f":"SUM(E1879:E1892)","v":0},"Payé","à rendre"]
[null,null,"BIÈRE",null,0,null,0,{"$f":"G1880-F1879","v":0}]
[null,null,"CAFE / THE",null,0]
[null,null,"VIN AU VERRE",null,0]
[null,null,"BOUTEILLE VIN BLANC",null,0]
[null,null,"BOUTEILLE VIN ROUGE",null,0]
[null,null,"COUPE CHAMPAGNE",null,0]
[null,null,"BOUTEILLE CHAMPAGNE",null,0]
[null,null,"COUPE CLAIRETTE",null,0]
[null,null,"BOUTEILLE CLAIRETTE",null,0]
[null,null,"SANDWICHES",null,0]
[null,null,"GÂTEAUX",null,0]
[null,null,"SAUCISSE SUR ARDOISE ",null,0]
[null,null,"ASSIETTE FROIDE / CRUDITES",null,0]
[null,136,"MINERALES",null,0,{"$f":"SUM(E1893:E1906)","v":0},"Payé","à rendre"]
[null,null,"BIÈRE",null,0,null,200,{"$f":"G1894-F1893","v":200}]
[null,null,"CAFE / THE",null,0]
[null,null,"VIN AU VERRE",null,0]
[null,null,"BOUTEILLE VIN BLANC",null,0]
[null,null,"BOUTEILLE VIN ROUGE",null,0]
[null,null,"COUPE CHAMPAGNE",null,0]
[null,null,"BOUTEILLE CHAMPAGNE",null,0]
[null,null,"COUPE CLAIRETTE",null,0]
[null,null,"BOUTEILLE CLAIRETTE",null,0]
[null,null,"SANDWICHES",null,0]
[null,null,"GÂTEAUX",null,0]
[null,null,"SAUCISSE SUR ARDOISE ",null,0]
[null,null,"ASSIETTE FROIDE / CRUDITES",null,0]
[null,137,"MINERALES",null,0,{"$f":"SUM(E1907:E1920)","v":0},"Payé","à rendre"]
[null,null,"BIÈRE",null,0,null,200,{"$f":"G1908-F1907","v":200}]
[null,null,"CAFE / THE",null,0]
[null,null,"VIN AU VERRE",null,0]
[null,null,"BOUTEILLE VIN BLANC",null,0]
[null,null,"BOUTEILLE VIN ROUGE",null,0]
[null,null,"COUPE CHAMPAGNE",null,0]
[null,null,"BOUTEILLE CHAMPAGNE",null,0]
[null,null,"COUPE CLAIRETTE",null,0]
[null,null,"BOUTEILLE CLAIRETTE",null,0]
[null,null,"SANDWICHES",null,0]
[null,null,"GÂTEAUX",null,0]
[null,null,"SAUCISSE SUR ARDOISE ",null,0]
[null,null,"ASSIETTE FROIDE / CRUDITES",null,0]
[null,138,"MINERALES",null,0,{"$f":"SUM(E1921:E1934)","v":0},"Payé","à rendre"]
[null,null,"BIÈRE",null,0,null,0,{"$f":"G1922-F1921","v":0}]
[null,null,"CAFE / THE",null,{"$f":"VLOOKUP(C1923,Fichier,3,0)*D1923","v":0}]
[null,null,"VIN AU VERRE",null,0]
[null,null,"BOUTEILLE VIN BLANC",null,0]
[null,null,"BOUTEILLE VIN ROUGE",null,0]
[null,null,"COUPE CHAMPAGNE",null,0]
[null,null,"BOUTEILLE CHAMPAGNE",null,0]
[null,null,"COUPE CLAIRETTE",null,0]
[null,null,"BOUTEILLE CLAIRETTE",null,0]
[null,null,"SANDWICHES",null,0]
[null,null,"GÂTEAUX",null,0]
[null,null,"SAUCISSE SUR ARDOISE ",null,0]
[null,null,"ASSIETTE FROIDE / CRUDITES",null,0]
[null,139,"MINERALES",null,0,{"$f":"SUM(E1935:E1948)","v":0},"Payé","à rendre"]
[null,null,"BIÈRE",null,0,null,0,{"$f":"G1936-F1935","v":0}]
[null,null,"CAFE / THE",null,0]
[null,null,"VIN AU VERRE",null,0]
[null,null,"BOUTEILLE VIN BLANC",null,0]
[null,null,"BOUTEILLE VIN ROUGE",null,0]
[null,null,"COUPE CHAMPAGNE",null,0]
[null,null,"BOUTEILLE CHAMPAGNE",null,0]
[null,null,"COUPE CLAIRETTE",null,0]
[null,null,"BOUTEILLE CLAIRETTE",null,0]
[null,null,"SANDWICHES",null,0]
[null,null,"GÂTEAUX",null,0]
[null,null,"SAUCISSE SUR ARDOISE ",null,0]
[null,null,"ASSIETTE FROIDE / CRUDITES",null,0]
[null,140,"MINERALES",null,0,{"$f":"SUM(E1949:E1962)","v":0},"Payé","à rendre"]
[null,null,"BIÈRE",null,0,null,0,{"$f":"G1950-F1949","v":0}]
[null,null,"CAFE / THE",null,0]
[null,null,"VIN AU VERRE",null,0]
[null,null,"BOUTEILLE VIN BLANC",null,0]
[null,null,"BOUTEILLE VIN ROUGE",null,0]
[null,null,"COUPE CHAMPAGNE",null,0]
[null,null,"BOUTEILLE CHAMPAGNE",null,0]
[null,null,"COUPE CLAIRETTE",null,0]
[null,null,"BOUTEILLE CLAIRETTE",null,0]
[null,null,"SANDWICHES",null,0]
[null,null,"GÂTEAUX",null,0]
[null,null,"SAUCISSE SUR ARDOISE ",null,0]
[null,null,"ASSIETTE FROIDE / CRUDITES",null,0]
[null,141,"MINERALES",null,0,{"$f":"SUM(E1963:E1976)","v":0},"Payé","à rendre"]
[null,null,"BIÈRE",null,0,null,0,{"$f":"G1964-F1963","v":0}]
[null,null,"CAFE / THE",null,0]
[null,null,"VIN AU VERRE",null,0]
[null,null,"BOUTEILLE VIN BLANC",null,0]
[null,null,"BOUTEILLE VIN ROUGE",null,0]
[null,null,"COUPE CHAMPAGNE",null,0]
[null,null,"BOUTEILLE CHAMPAGNE",null,0]
[null,null,"COUPE CLAIRETTE",null,0]
[null,null,"BOUTEILLE CLAIRETTE",null,0]
[null,null,"SANDWICHES",null,0]
[null,null,"GÂTEAUX",null,0]
[null,null,"SAUCISSE SUR ARDOISE ",null,0]
[null,null,"ASSIETTE FROIDE / CRUDITES",null,0]
[null,142,"MINERALES",null,0,{"$f":"SUM(E1977:E1990)","v":0},"Payé","à rendre"]
[null,null,"BIÈRE",null,0,null,0,{"$f":"G1978-F1977","v":0}]
[null,null,"CAFE / THE",null,0]
[null,null,"VIN AU VERRE",null,0]
[null,null,"BOUTEILLE VIN BLANC",null,0]
[null,null,"BOUTEILLE VIN ROUGE",null,0]
[null,null,"COUPE CHAMPAGNE",null,0]
[null,null,"BOUTEILLE CHAMPAGNE",null,0]
[null,null,"COUPE CLAIRETTE",null,0]
[null,null,"BOUTEILLE CLAIRETTE",null,0]
[null,null,"SANDWICHES",null,0]
[null,null,"GÂTEAUX",null,0]
[null,null,"SAUCISSE SUR ARDOISE ",null,0]
[null,null,"ASSIETTE FROIDE / CRUDITES",null,0]
[null,143,"MINERALES",null,0,{"$f":"SUM(E1991:E2004)","v":0},"Payé","à rendre"]
[null,null,"BIÈRE",null,{"$f":"VLOOKUP(C1992,Fichier,3,0)*D1992","v":0},null,0,{"$f":"G1992-F1991","v":0}]
[null,null,"CAFE / THE",null,0]
[null,null,"VIN AU VERRE",null,0]
[null,null,"BOUTEILLE VIN BLANC",null,0]
[null,null,"BOUTEILLE VIN ROUGE",null,0]
[null,null,"COUPE CHAMPAGNE",null,0]
[null,null,"BOUTEILLE CHAMPAGNE",null,0]
[null,null,"COUPE CLAIRETTE",null,0]
[null,null,"BOUTEILLE CLAIRETTE",null,0]
[null,null,"SANDWICHES",null,0]
[null,null,"GÂTEAUX",null,0]
[null,null,"SAUCISSE SUR ARDOISE ",null,0]
[null,null,"ASSIETTE FROIDE / CRUDITES",null,0]
[null,144,"MINERALES",null,0,{"$f":"SUM(E2005:E2018)","v":0},"Payé","à rendre"]
[null,null,"BIÈRE",null,0,null,0,{"$f":"G2006-F2005","v":0}]
[null,null,"CAFE / THE",null,0]
[null,null,"VIN AU VERRE",null,0]
[null,null,"BOUTEILLE VIN BLANC",null,0]
[null,null,"BOUTEILLE VIN ROUGE",null,0]
[null,null,"COUPE CHAMPAGNE",null,0]
[null,null,"BOUTEILLE CHAMPAGNE",null,0]
[null,null,"COUPE CLAIRETTE",null,0]
[null,null,"BOUTEILLE CLAIRETTE",null,0]
[null,null,"SANDWICHES",null,0]
[null,null,"GÂTEAUX",null,0]
[null,null,"SAUCISSE SUR ARDOISE ",null,0]
[null,null,"ASSIETTE FROIDE / CRUDITES",null,0]
[null,145,"MINERALES",null,0,{"$f":"SUM(E2019:E2032)","v":0},"Payé","à rendre"]
[null,null,"BIÈRE",null,0,null,0,{"$f":"G2020-F2019","v":0}]
[null,null,"CAFE / THE",null,0]
[null,null,"VIN AU VERRE",null,0]
[null,null,"BOUTEILLE VIN BLANC",null,0]
[null,null,"BOUTEILLE VIN ROUGE",null,0]
[null,null,"COUPE CHAMPAGNE",null,0]
[null,null,"BOUTEILLE CHAMPAGNE",null,0]
[null,null,"COUPE CLAIRETTE",null,0]
[null,null,"BOUTEILLE CLAIRETTE",null,0]
[null,null,"SANDWICHES",null,0]
[null,null,"GÂTEAUX",null,0]
[null,null,"SAUCISSE SUR ARDOISE ",null,0]
[null,null,"ASSIETTE FROIDE / CRUDITES",null,0]
[null,146,"MINERALES",null,0,{"$f":"SUM(E2033:E2046)","v":0},"Payé","à rendre"]
[null,null,"BIÈRE",null,0,null,0,{"$f":"G2034-F2033","v":0}]
[null,null,"CAFE / THE",null,0]
[null,null,"VIN AU VERRE",null,0]
[null,null,"BOUTEILLE VIN BLANC",null,0]
[null,null,"BOUTEILLE VIN ROUGE",null,0]
[null,null,"COUPE CHAMPAGNE",null,0]
[null,null,"BOUTEILLE CHAMPAGNE",null,0]
[null,null,"COUPE CLAIRETTE",null,0]
[null,null,"BOUTEILLE CLAIRETTE",null,0]
[null,null,"SANDWICHES",null,0]
[null,null,"GÂTEAUX",null,0]
[null,null,"SAUCISSE SUR ARDOISE ",null,0]
[null,null,"ASSIETTE FROIDE / CRUDITES",null,0]
[null,147,"MINERALES",null,0,{"$f":"SUM(E2047:E2060)","v":0},"Payé","à rendre"]
[null,null,"BIÈRE",null,0,null,0,{"$f":"G2048-F2047","v":0}]
[null,null,"CAFE / THE",null,0]
[null,null,"VIN AU VERRE",null,0]
[null,null,"BOUTEILLE VIN BLANC",null,0]
[null,null,"BOUTEILLE VIN ROUGE",null,0]
[null,null,"COUPE CHAMPAGNE",null,0]
[null,null,"BOUTEILLE CHAMPAGNE",null,0]
[null,null,"COUPE CLAIRETTE",null,0]
[null,null,"BOUTEILLE CLAIRETTE",null,0]
[null,null,"SANDWICHES",null,0]
[null,null,"GÂTEAUX",null,0]
[null,null,"SAUCISSE SUR ARDOISE ",null,0]
[null,null,"ASSIETTE FROIDE / CRUDITES",null,0]
[null,148,"MINERALES",null,{"$f":"VLOOKUP(C2061,Fichier,3,0)*D2061","v":0},{"$f":"SUM(E2061:E2074)","v":0},"Payé","à rendre"]
[null,null,"BIÈRE",null,0,null,0,{"$f":"G2062-F2061","v":0}]
[null,null,"CAFE / THE",null,0]
[null,null,"VIN AU VERRE",null,0]
[null,null,"BOUTEILLE VIN BLANC",null,0]
[null,null,"BOUTEILLE VIN ROUGE",null,0]
[null,null,"COUPE CHAMPAGNE",null,0]
[null,null,"BOUTEILLE CHAMPAGNE",null,0]
[null,null,"COUPE CLAIRETTE",null,0]
[null,null,"BOUTEILLE CLAIRETTE",null,0]
[null,null,"SANDWICHES",null,0]
[null,null,"GÂTEAUX",null,0]
[null,null,"SAUCISSE SUR ARDOISE ",null,0]
[null,null,"ASSIETTE FROIDE / CRUDITES",null,0]
[null,149,"MINERALES",null,0,{"$f":"SUM(E2075:E2088)","v":0},"Payé","à rendre"]
[null,null,"BIÈRE",null,0,null,0,{"$f":"G2076-F2075","v":0}]
[null,null,"CAFE / THE",null,0]
[null,null,"VIN AU VERRE",null,0]
[null,null,"BOUTEILLE VIN BLANC",null,0]
[null,null,"BOUTEILLE VIN ROUGE",null,0]
[null,null,"COUPE CHAMPAGNE",null,0]
[null,null,"BOUTEILLE CHAMPAGNE",null,0]
[null,null,"COUPE CLAIRETTE",null,0]
[null,null,"BOUTEILLE CLAIRETTE",null,0]
[null,null,"SANDWICHES",null,0]
[null,null,"GÂTEAUX",null,0]
[null,null,"SAUCISSE SUR ARDOISE ",null,0]
[null,null,"ASSIETTE FROIDE / CRUDITES",null,0]
[null,150,"MINERALES",null,0,{"$f":"SUM(E2089:E2102)","v":0},"Payé","à rendre"]
[null,null,"BIÈRE",null,0,null,0,{"$f":"G2090-F2089","v":0}]
[null,null,"CAFE / THE",null,0]
[null,null,"VIN AU VERRE",null,0]
[null,null,"BOUTEILLE VIN BLANC",null,0]
[null,null,"BOUTEILLE VIN ROUGE",null,0]
[null,null,"COUPE CHAMPAGNE",null,0]
[null,null,"BOUTEILLE CHAMPAGNE",null,0]
[null,null,"COUPE CLAIRETTE",null,0]
[null,null,"BOUTEILLE CLAIRETTE",null,0]
[null,null,"SANDWICHES",null,0]
[null,null,"GÂTEAUX",null,0]
[null,null,"SAUCISSE SUR ARDOISE ",null,0]
[null,null,"ASSIETTE FROIDE / CRUDITES",null,0]
[null,151,"MINERALES",null,0,{"$f":"SUM(E2103:E2116)","v":0},"Payé","à rendre"]
[null,null,"BIÈRE",null,0,null,0,{"$f":"G2104-F2103","v":0}]
[null,null,"CAFE / THE",null,0]
[null,null,"VIN AU VERRE",null,0]
[null,null,"BOUTEILLE VIN BLANC",null,0]
[null,null,"BOUTEILLE VIN ROUGE",null,0]
[null,null,"COUPE CHAMPAGNE",null,0]
[null,null,"BOUTEILLE CHAMPAGNE",null,0]
[null,null,"COUPE CLAIRETTE",null,0]
[null,null,"BOUTEILLE CLAIRETTE",null,0]
[null,null,"SANDWICHES",null,0]
[null,null,"GÂTEAUX",null,0]
[null,null,"SAUCISSE SUR ARDOISE ",null,0]
[null,null,"ASSIETTE FROIDE / CRUDITES",null,0]
[null,152,"MINERALES",null,0,{"$f":"SUM(E2117:E2130)","v":0},"Payé","à rendre"]
[null,null,"BIÈRE",null,0,null,0,{"$f":"G2118-F2117","v":0}]
[null,null,"CAFE / THE",null,0]
[null,null,"VIN AU VERRE",null,0]
[null,null,"BOUTEILLE VIN BLANC",null,0]
[null,null,"BOUTEILLE VIN ROUGE",null,0]
[null,null,"COUPE CHAMPAGNE",null,0]
[null,null,"BOUTEILLE CHAMPAGNE",null,0]
[null,null,"COUPE CLAIRETTE",null,0]
[null,null,"BOUTEILLE CLAIRETTE",null,0]
[null,null,"SANDWICHES",null,0]
[null,null,"GÂTEAUX",null,0]
[null,null,"SAUCISSE SUR ARDOISE ",null,0]
[null,null,"ASSIETTE FROIDE / CRUDITES",null,{"$f":"VLOOKUP(C2130,Fichier,3,0)*D2130","v":0}]
[null,153,"MINERALES",null,0,{"$f":"SUM(E2131:E2144)","v":0},"Payé","à rendre"]
[null,null,"BIÈRE",null,0,null,0,{"$f":"G2132-F2131","v":0}]
[null,null,"CAFE / THE",null,0]
[null,null,"VIN AU VERRE",null,0]
[null,null,"BOUTEILLE VIN BLANC",null,0]
[null,null,"BOUTEILLE VIN ROUGE",null,0]
[null,null,"COUPE CHAMPAGNE",null,0]
[null,null,"BOUTEILLE CHAMPAGNE",null,0]
[null,null,"COUPE CLAIRETTE",null,0]
[null,null,"BOUTEILLE CLAIRETTE",null,0]
[null,null,"SANDWICHES",null,0]
[null,null,"GÂTEAUX",null,0]
[null,null,"SAUCISSE SUR ARDOISE ",null,0]
[null,null,"ASSIETTE FROIDE / CRUDITES",null,0]
[null,154,"MINERALES",null,0,{"$f":"SUM(E2145:E2158)","v":0},"Payé","à rendre"]
[null,null,"BIÈRE",null,0,null,0,{"$f":"G2146-F2145","v":0}]
[null,null,"CAFE / THE",null,0]
[null,null,"VIN AU VERRE",null,0]
[null,null,"BOUTEILLE VIN BLANC",null,0]
[null,null,"BOUTEILLE VIN ROUGE",null,0]
[null,null,"COUPE CHAMPAGNE",null,0]
[null,null,"BOUTEILLE CHAMPAGNE",null,0]
[null,null,"COUPE CLAIRETTE",null,0]
[null,null,"BOUTEILLE CLAIRETTE",null,0]
[null,null,"SANDWICHES",null,0]
[null,null,"GÂTEAUX",null,0]
[null,null,"SAUCISSE SUR ARDOISE ",null,0]
[null,null,"ASSIETTE FROIDE / CRUDITES",null,0]
[null,155,"MINERALES",null,0,{"$f":"SUM(E2159:E2172)","v":0},"Payé","à rendre"]
[null,null,"BIÈRE",null,0,null,0,{"$f":"G2160-F2159","v":0}]
[null,null,"CAFE / THE",null,0]
[null,null,"VIN AU VERRE",null,0]
[null,null,"BOUTEILLE VIN BLANC",null,0]
[null,null,"BOUTEILLE VIN ROUGE",null,0]
[null,null,"COUPE CHAMPAGNE",null,0]
[null,null,"BOUTEILLE CHAMPAGNE",null,0]
[null,null,"COUPE CLAIRETTE",null,0]
[null,null,"BOUTEILLE CLAIRETTE",null,0]
[null,null,"SANDWICHES",null,0]
[null,null,"GÂTEAUX",null,0]
[null,null,"SAUCISSE SUR ARDOISE ",null,0]
[null,null,"ASSIETTE FROIDE / CRUDITES",null,0]
[null,156,"MINERALES",null,0,{"$f":"SUM(E2173:E2186)","v":0},"Payé","à rendre"]
[null,null,"BIÈRE",null,0,null,0,{"$f":"G2174-F2173","v":0}]
[null,null,"CAFE / THE",null,0]
[null,null,"VIN AU VERRE",null,0]
[null,null,"BOUTEILLE VIN BLANC",null,0]
[null,null,"BOUTEILLE VIN ROUGE",null,0]
[null,null,"COUPE CHAMPAGNE",null,0]
[null,null,"BOUTEILLE CHAMPAGNE",null,0]
[null,null,"COUPE CLAIRETTE",null,0]
[null,null,"BOUTEILLE CLAIRETTE",null,0]
[null,null,"SANDWICHES",null,0]
[null,null,"GÂTEAUX",null,0]
[null,null,"SAUCISSE SUR ARDOISE ",null,0]
[null,null,"ASSIETTE FROIDE / CRUDITES",null,0]
[null,157,"MINERALES",null,0,{"$f":"SUM(E2187:E2200)","v":0},"Payé","à rendre"]
[null,null,"BIÈRE",null,0,null,0,{"$f":"G2188-F2187","v":0}]
[null,null,"CAFE / THE",null,0]
[null,null,"VIN AU VERRE",null,0]
[null,null,"BOUTEILLE VIN BLANC",null,0]
[null,null,"BOUTEILLE VIN ROUGE",null,0]
[null,null,"COUPE CHAMPAGNE",null,0]
[null,null,"BOUTEILLE CHAMPAGNE",null,0]
[null,null,"COUPE CLAIRETTE",null,0]
[null,null,"BOUTEILLE CLAIRETTE",null,0]
[null,null,"SANDWICHES",null,0]
[null,null,"GÂTEAUX",null,0]
[null,null,"SAUCISSE SUR ARDOISE ",null,{"$f":"VLOOKUP(C2199,Fichier,3,0)*D2199","v":0}]
[null,null,"ASSIETTE FROIDE / CRUDITES",null,0]
[null,158,"MINERALES",null,0,{"$f":"SUM(E2201:E2214)","v":0},"Payé","à rendre"]
[null,null,"BIÈRE",null,0,null,0,{"$f":"G2202-F2201","v":0}]
[null,null,"CAFE / THE",null,0]
[null,null,"VIN AU VERRE",null,0]
[null,null,"BOUTEILLE VIN BLANC",null,0]
[null,null,"BOUTEILLE VIN ROUGE",null,0]
[null,null,"COUPE CHAMPAGNE",null,0]
[null,null,"BOUTEILLE CHAMPAGNE",null,0]
[null,null,"COUPE CLAIRETTE",null,0]
[null,null,"BOUTEILLE CLAIRETTE",null,0]
[null,null,"SANDWICHES",null,0]
[null,null,"GÂTEAUX",null,0]
[null,null,"SAUCISSE SUR ARDOISE ",null,0]
[null,null,"ASSIETTE FROIDE / CRUDITES",null,0]
[null,159,"MINERALES",null,0,{"$f":"SUM(E2215:E2228)","v":0},"Payé","à rendre"]
[null,null,"BIÈRE",null,0,null,0,{"$f":"G2216-F2215","v":0}]
[null,null,"CAFE / THE",null,0]
[null,null,"VIN AU VERRE",null,0]
[null,null,"BOUTEILLE VIN BLANC",null,0]
[null,null,"BOUTEILLE VIN ROUGE",null,0]
[null,null,"COUPE CHAMPAGNE",null,0]
[null,null,"BOUTEILLE CHAMPAGNE",null,0]
[null,null,"COUPE CLAIRETTE",null,0]
[null,null,"BOUTEILLE CLAIRETTE",null,0]
[null,null,"SANDWICHES",null,0]
[null,null,"GÂTEAUX",null,0]
[null,null,"SAUCISSE SUR ARDOISE ",null,0]
[null,null,"ASSIETTE FROIDE / CRUDITES",null,0]
[null,160,"MINERALES",null,0,{"$f":"SUM(E2229:E2242)","v":0},"Payé","à rendre"]
[null,null,"BIÈRE",null,0,null,0,{"$f":"G2230-F2229","v":0}]
[null,null,"CAFE / THE",null,0]
[null,null,"VIN AU VERRE",null,0]
[null,null,"BOUTEILLE VIN BLANC",null,0]
[null,null,"BOUTEILLE VIN ROUGE",null,0]
[null,null,"COUPE CHAMPAGNE",null,0]
[null,null,"BOUTEILLE CHAMPAGNE",null,0]
[null,null,"COUPE CLAIRETTE",null,0]
[null,null,"BOUTEILLE CLAIRETTE",null,0]
[null,null,"SANDWICHES",null,0]
[null,null,"GÂTEAUX",null,0]
[null,null,"SAUCISSE SUR ARDOISE ",null,0]
[null,null,"ASSIETTE FROIDE / CRUDITES",null,0]
[null,161,"MINERALES",null,0,{"$f":"SUM(E2243:E2256)","v":0},"Payé","à rendre"]
[null,null,"BIÈRE",null,0,null,0,{"$f":"G2244-F2243","v":0}]
[null,null,"CAFE / THE",null,0]
[null,null,"VIN AU VERRE",null,0]
[null,null,"BOUTEILLE VIN BLANC",null,0]
[null,null,"BOUTEILLE VIN ROUGE",null,0]
[null,null,"COUPE CHAMPAGNE",null,0]
[null,null,"BOUTEILLE CHAMPAGNE",null,0]
[null,null,"COUPE CLAIRETTE",null,0]
[null,null,"BOUTEILLE CLAIRETTE",null,0]
[null,null,"SANDWICHES",null,0]
[null,null,"GÂTEAUX",null,0]
[null,null,"SAUCISSE SUR ARDOISE ",null,0]
[null,null,"ASSIETTE FROIDE / CRUDITES",null,0]
[null,162,"MINERALES",null,0,{"$f":"SUM(E2257:E2270)","v":0},"Payé","à rendre"]
[null,null,"BIÈRE",null,0,null,0,{"$f":"G2258-F2257","v":0}]
[null,null,"CAFE / THE",null,0]
[null,null,"VIN AU VERRE",null,0]
[null,null,"BOUTEILLE VIN BLANC",null,0]
[null,null,"BOUTEILLE VIN ROUGE",null,0]
[null,null,"COUPE CHAMPAGNE",null,0]
[null,null,"BOUTEILLE CHAMPAGNE",null,0]
[null,null,"COUPE CLAIRETTE",null,0]
[null,null,"BOUTEILLE CLAIRETTE",null,0]
[null,null,"SANDWICHES",null,0]
[null,null,"GÂTEAUX",null,{"$f":"VLOOKUP(C2268,Fichier,3,0)*D2268","v":0}]
[null,null,"SAUCISSE SUR ARDOISE ",null,0]
[null,null,"ASSIETTE FROIDE / CRUDITES",null,0]
[null,163,"MINERALES",null,0,{"$f":"SUM(E2271:E2284)","v":0},"Payé","à rendre"]
[null,null,"BIÈRE",null,0,null,0,{"$f":"G2272-F2271","v":0}]
[null,null,"CAFE / THE",null,0]
[null,null,"VIN AU VERRE",null,0]
[null,null,"BOUTEILLE VIN BLANC",null,0]
[null,null,"BOUTEILLE VIN ROUGE",null,0]
[null,null,"COUPE CHAMPAGNE",null,0]
[null,null,"BOUTEILLE CHAMPAGNE",null,0]
[null,null,"COUPE CLAIRETTE",null,0]
[null,null,"BOUTEILLE CLAIRETTE",null,0]
[null,null,"SANDWICHES",null,0]
[null,null,"GÂTEAUX",null,0]
[null,null,"SAUCISSE SUR ARDOISE ",null,0]
[null,null,"ASSIETTE FROIDE / CRUDITES",null,0]
[null,164,"MINERALES",null,0,{"$f":"SUM(E2285:E2298)","v":0},"Payé","à rendre"]
[null,null,"BIÈRE",null,0,null,0,{"$f":"G2286-F2285","v":0}]
[null,null,"CAFE / THE",null,0]
[null,null,"VIN AU VERRE",null,0]
[null,null,"BOUTEILLE VIN BLANC",null,0]
[null,null,"BOUTEILLE VIN ROUGE",null,0]
[null,null,"COUPE CHAMPAGNE",null,0]
[null,null,"BOUTEILLE CHAMPAGNE",null,0]
[null,null,"COUPE CLAIRETTE",null,0]
[null,null,"BOUTEILLE CLAIRETTE",null,0]
[null,null,"SANDWICHES",null,0]
[null,null,"GÂTEAUX",null,0]
[null,null,"SAUCISSE SUR ARDOISE ",null,0]
[null,null,"ASSIETTE FROIDE / CRUDITES",null,0]
[null,165,"MINERALES",null,0,{"$f":"SUM(E2299:E2312)","v":0},"Payé","à rendre"]
[null,null,"BIÈRE",null,0,null,0,{"$f":"G2300-F2299","v":0}]
[null,null,"CAFE / THE",null,0]
[null,null,"VIN AU VERRE",null,0]
[null,null,"BOUTEILLE VIN BLANC",null,0]
[null,null,"BOUTEILLE VIN ROUGE",null,0]
[null,null,"COUPE CHAMPAGNE",null,0]
[null,null,"BOUTEILLE CHAMPAGNE",null,0]
[null,null,"COUPE CLAIRETTE",null,0]
[null,null,"BOUTEILLE CLAIRETTE",null,0]
[null,null,"SANDWICHES",null,0]
[null,null,"GÂTEAUX",null,0]
[null,null,"SAUCISSE SUR ARDOISE ",null,0]
[null,null,"ASSIETTE FROIDE / CRUDITES",null,0]
[null,166,"MINERALES",null,0,{"$f":"SUM(E2313:E2326)","v":0},"Payé","à rendre"]
[null,null,"BIÈRE",null,0,null,0,{"$f":"G2314-F2313","v":0}]
[null,null,"CAFE / THE",null,0]
[null,null,"VIN AU VERRE",null,0]
[null,null,"BOUTEILLE VIN BLANC",null,0]
[null,null,"BOUTEILLE VIN ROUGE",null,0]
[null,null,"COUPE CHAMPAGNE",null,0]
[null,null,"BOUTEILLE CHAMPAGNE",null,0]
[null,null,"COUPE CLAIRETTE",null,0]
[null,null,"BOUTEILLE CLAIRETTE",null,0]
[null,null,"SANDWICHES",null,0]
[null,null,"GÂTEAUX",null,0]
[null,null,"SAUCISSE SUR ARDOISE ",null,0]
[null,null,"ASSIETTE FROIDE / CRUDITES",null,0]
[null,167,"MINERALES",null,0,{"$f":"SUM(E2327:E2340)","v":0},"Payé","à rendre"]
[null,null,"BIÈRE",null,0,null,0,{"$f":"G2328-F2327","v":0}]
[null,null,"CAFE / THE",null,0]
[null,null,"VIN AU VERRE",null,0]
[null,null,"BOUTEILLE VIN BLANC",null,0]
[null,null,"BOUTEILLE VIN ROUGE",null,0]
[null,null,"COUPE CHAMPAGNE",null,0]
[null,null,"BOUTEILLE CHAMPAGNE",null,0]
[null,null,"COUPE CLAIRETTE",null,0]
[null,null,"BOUTEILLE CLAIRETTE",null,0]
[null,null,"SANDWICHES",null,{"$f":"VLOOKUP(C2337,Fichier,3,0)*D2337","v":0}]
[null,null,"GÂTEAUX",null,0]
[null,null,"SAUCISSE SUR ARDOISE ",null,0]
[null,null,"ASSIETTE FROIDE / CRUDITES",null,0]
[null,168,"MINERALES",null,0,{"$f":"SUM(E2341:E2354)","v":0},"Payé","à rendre"]
[null,null,"BIÈRE",null,0,null,0,{"$f":"G2342-F2341","v":0}]
[null,null,"CAFE / THE",null,0]
[null,null,"VIN AU VERRE",null,0]
[null,null,"BOUTEILLE VIN BLANC",null,0]
[null,null,"BOUTEILLE VIN ROUGE",null,0]
[null,null,"COUPE CHAMPAGNE",null,0]
[null,null,"BOUTEILLE CHAMPAGNE",null,0]
[null,null,"COUPE CLAIRETTE",null,0]
[null,null,"BOUTEILLE CLAIRETTE",null,0]
[null,null,"SANDWICHES",null,0]
[null,null,"GÂTEAUX",null,0]
[null,null,"SAUCISSE SUR ARDOISE ",null,0]
[null,null,"ASSIETTE FROIDE / CRUDITES",null,0]
[null,169,"MINERALES",null,0,{"$f":"SUM(E2355:E2368)","v":0},"Payé","à rendre"]
[null,null,"BIÈRE",null,0,null,0,{"$f":"G2356-F2355","v":0}]
[null,null,"CAFE / THE",null,0]
[null,null,"VIN AU VERRE",null,0]
[null,null,"BOUTEILLE VIN BLANC",null,0]
[null,null,"BOUTEILLE VIN ROUGE",null,0]
[null,null,"COUPE CHAMPAGNE",null,0]
[null,null,"BOUTEILLE CHAMPAGNE",null,0]
[null,null,"COUPE CLAIRETTE",null,0]
[null,null,"BOUTEILLE CLAIRETTE",null,0]
[null,null,"SANDWICHES",null,0]
[null,null,"GÂTEAUX",null,0]
[null,null,"SAUCISSE SUR ARDOISE ",null,0]
[null,null,"ASSIETTE FROIDE / CRUDITES",null,0]
[null,170,"MINERALES",null,0,{"$f":"SUM(E2369:E2382)","v":0},"Payé","à rendre"]
[null,null,"BIÈRE",null,0,null,0,{"$f":"G2370-F2369","v":0}]
[null,null,"CAFE / THE",null,0]
[null,null,"VIN AU VERRE",null,0]
[null,null,"BOUTEILLE VIN BLANC",null,0]
[null,null,"BOUTEILLE VIN ROUGE",null,0]
[null,null,"COUPE CHAMPAGNE",null,0]
[null,null,"BOUTEILLE CHAMPAGNE",null,0]
[null,null,"COUPE CLAIRETTE",null,0]
[null,null,"BOUTEILLE CLAIRETTE",null,0]
[null,null,"SANDWICHES",null,0]
[null,null,"GÂTEAUX",null,0]
[null,null,"SAUCISSE SUR ARDOISE ",null,0]
[null,null,"ASSIETTE FROIDE / CRUDITES",null,0]
[null,171,"MINERALES",null,0,{"$f":"SUM(E2383:E2396)","v":0},"Payé","à rendre"]
[null,null,"BIÈRE",null,0,null,0,{"$f":"G2384-F2383","v":0}]
[null,null,"CAFE / THE",null,0]
[null,null,"VIN AU VERRE",null,0]
[null,null,"BOUTEILLE VIN BLANC",null,0]
[null,null,"BOUTEILLE VIN ROUGE",null,0]
[null,null,"COUPE CHAMPAGNE",null,0]
[null,null,"BOUTEILLE CHAMPAGNE",null,0]
[null,null,"COUPE CLAIRETTE",null,0]
[null,null,"BOUTEILLE CLAIRETTE",null,0]
[null,null,"SANDWICHES",null,0]
[null,null,"GÂTEAUX",null,0]
[null,null,"SAUCISSE SUR ARDOISE ",null,0]
[null,null,"ASSIETTE FROIDE / CRUDITES",null,0]
[null,172,"MINERALES",null,0,{"$f":"SUM(E2397:E2410)","v":0},"Payé","à rendre"]
[null,null,"BIÈRE",null,0,null,0,{"$f":"G2398-F2397","v":0}]
[null,null,"CAFE / THE",null,0]
[null,null,"VIN AU VERRE",null,0]
[null,null,"BOUTEILLE VIN BLANC",null,0]
[null,null,"BOUTEILLE VIN ROUGE",null,0]
[null,null,"COUPE CHAMPAGNE",null,0]
[null,null,"BOUTEILLE CHAMPAGNE",null,0]
[null,null,"COUPE CLAIRETTE",null,0]
[null,null,"BOUTEILLE CLAIRETTE",null,{"$f":"VLOOKUP(C2406,Fichier,3,0)*D2406","v":0}]
[null,null,"SANDWICHES",null,0]
[null,null,"GÂTEAUX",null,0]
[null,null,"SAUCISSE SUR ARDOISE ",null,0]
[null,null,"ASSIETTE FROIDE / CRUDITES",null,0]
[null,173,"MINERALES",null,0,{"$f":"SUM(E2411:E2424)","v":0},"Payé","à rendre"]
[null,null,"BIÈRE",null,0,null,0,{"$f":"G2412-F2411","v":0}]
[null,null,"CAFE / THE",null,0]
[null,null,"VIN AU VERRE",null,0]
[null,null,"BOUTEILLE VIN BLANC",null,0]
[null,null,"BOUTEILLE VIN ROUGE",null,0]
[null,null,"COUPE CHAMPAGNE",null,0]
[null,null,"BOUTEILLE CHAMPAGNE",null,0]
[null,null,"COUPE CLAIRETTE",null,0]
[null,null,"BOUTEILLE CLAIRETTE",null,0]
[null,null,"SANDWICHES",null,0]
[null,null,"GÂTEAUX",null,0]
[null,null,"SAUCISSE SUR ARDOISE ",null,0]
[null,null,"ASSIETTE FROIDE / CRUDITES",null,0]
[null,174,"MINERALES",null,0,{"$f":"SUM(E2425:E2438)","v":0},"Payé","à rendre"]
[null,null,"BIÈRE",null,0,null,0,{"$f":"G2426-F2425","v":0}]
[null,null,"CAFE / THE",null,0]
[null,null,"VIN AU VERRE",null,0]
[null,null,"BOUTEILLE VIN BLANC",null,0]
[null,null,"BOUTEILLE VIN ROUGE",null,0]
[null,null,"COUPE CHAMPAGNE",null,0]
[null,null,"BOUTEILLE CHAMPAGNE",null,0]
[null,null,"COUPE CLAIRETTE",null,0]
[null,null,"BOUTEILLE CLAIRETTE",null,0]
[null,null,"SANDWICHES",null,0]
[null,null,"GÂTEAUX",null,0]
[null,null,"SAUCISSE SUR ARDOISE ",null,0]
[null,null,"ASSIETTE FROIDE / CRUDITES",null,0]
[null,175,"MINERALES",null,0,{"$f":"SUM(E2439:E2452)","v":0},"Payé","à rendre"]
[null,null,"BIÈRE",null,0,null,0,{"$f":"G2440-F2439","v":0}]
[null,null,"CAFE / THE",null,0]
[null,null,"VIN AU VERRE",null,0]
[null,null,"BOUTEILLE VIN BLANC",null,0]
[null,null,"BOUTEILLE VIN ROUGE",null,0]
[null,null,"COUPE CHAMPAGNE",null,0]
[null,null,"BOUTEILLE CHAMPAGNE",null,0]
[null,null,"COUPE CLAIRETTE",null,0]
[null,null,"BOUTEILLE CLAIRETTE",null,0]
[null,null,"SANDWICHES",null,0]
[null,null,"GÂTEAUX",null,0]
[null,null,"SAUCISSE SUR ARDOISE ",null,0]
[null,null,"ASSIETTE FROIDE / CRUDITES",null,0]
[null,176,"MINERALES",null,0,{"$f":"SUM(E2453:E2466)","v":0},"Payé","à rendre"]
[null,null,"BIÈRE",null,0,null,0,{"$f":"G2454-F2453","v":0}]
[null,null,"CAFE / THE",null,0]
[null,null,"VIN AU VERRE",null,0]
[null,null,"BOUTEILLE VIN BLANC",null,0]
[null,null,"BOUTEILLE VIN ROUGE",null,0]
[null,null,"COUPE CHAMPAGNE",null,0]
[null,null,"BOUTEILLE CHAMPAGNE",null,0]
[null,null,"COUPE CLAIRETTE",null,0]
[null,null,"BOUTEILLE CLAIRETTE",null,0]
[null,null,"SANDWICHES",null,0]
[null,null,"GÂTEAUX",null,0]
[null,null,"SAUCISSE SUR ARDOISE ",null,0]
[null,null,"ASSIETTE FROIDE / CRUDITES",null,0]
[null,177,"MINERALES",null,0,{"$f":"SUM(E2467:E2480)","v":0},"Payé","à rendre"]
[null,null,"BIÈRE",null,0,null,0,{"$f":"G2468-F2467","v":0}]
[null,null,"CAFE / THE",null,0]
[null,null,"VIN AU VERRE",null,0]
[null,null,"BOUTEILLE VIN BLANC",null,0]
[null,null,"BOUTEILLE VIN ROUGE",null,0]
[null,null,"COUPE CHAMPAGNE",null,0]
[null,null,"BOUTEILLE CHAMPAGNE",null,0]
[null,null,"COUPE CLAIRETTE",null,{"$f":"VLOOKUP(C2475,Fichier,3,0)*D2475","v":0}]
[null,null,"BOUTEILLE CLAIRETTE",null,0]
[null,null,"SANDWICHES",null,0]
[null,null,"GÂTEAUX",null,0]
[null,null,"SAUCISSE SUR ARDOISE ",null,0]
[null,null,"ASSIETTE FROIDE / CRUDITES",null,0]
[null,178,"MINERALES",null,0,{"$f":"SUM(E2481:E2494)","v":0},"Payé","à rendre"]
[null,null,"BIÈRE",null,0,null,0,{"$f":"G2482-F2481","v":0}]
[null,null,"CAFE / THE",null,0]
[null,null,"VIN AU VERRE",null,0]
[null,null,"BOUTEILLE VIN BLANC",null,0]
[null,null,"BOUTEILLE VIN ROUGE",null,0]
[null,null,"COUPE CHAMPAGNE",null,0]
[null,null,"BOUTEILLE CHAMPAGNE",null,0]
[null,null,"COUPE CLAIRETTE",null,0]
[null,null,"BOUTEILLE CLAIRETTE",null,0]
[null,null,"SANDWICHES",null,0]
[null,null,"GÂTEAUX",null,0]
[null,null,"SAUCISSE SUR ARDOISE ",null,0]
[null,null,"ASSIETTE FROIDE / CRUDITES",null,0]
[null,179,"MINERALES",null,0,{"$f":"SUM(E2495:E2508)","v":0},"Payé","à rendre"]
[null,null,"BIÈRE",null,0,null,0,{"$f":"G2496-F2495","v":0}]
[null,null,"CAFE / THE",null,0]
[null,null,"VIN AU VERRE",null,0]
[null,null,"BOUTEILLE VIN BLANC",null,0]
[null,null,"BOUTEILLE VIN ROUGE",null,0]
[null,null,"COUPE CHAMPAGNE",null,0]
[null,null,"BOUTEILLE CHAMPAGNE",null,0]
[null,null,"COUPE CLAIRETTE",null,0]
[null,null,"BOUTEILLE CLAIRETTE",null,0]
[null,null,"SANDWICHES",null,0]
[null,null,"GÂTEAUX",null,0]
[null,null,"SAUCISSE SUR ARDOISE ",null,0]
[null,null,"ASSIETTE FROIDE / CRUDITES",null,0]
[null,180,"MINERALES",null,0,{"$f":"SUM(E2509:E2522)","v":0},"Payé","à rendre"]
[null,null,"BIÈRE",null,0,null,0,{"$f":"G2510-F2509","v":0}]
[null,null,"CAFE / THE",null,0]
[null,null,"VIN AU VERRE",null,0]
[null,null,"BOUTEILLE VIN BLANC",null,0]
[null,null,"BOUTEILLE VIN ROUGE",null,0]
[null,null,"COUPE CHAMPAGNE",null,0]
[null,null,"BOUTEILLE CHAMPAGNE",null,0]
[null,null,"COUPE CLAIRETTE",null,0]
[null,null,"BOUTEILLE CLAIRETTE",null,0]
[null,null,"SANDWICHES",null,0]
[null,null,"GÂTEAUX",null,0]
[null,null,"SAUCISSE SUR ARDOISE ",null,0]
[null,null,"ASSIETTE FROIDE / CRUDITES",null,0]
[null,181,"MINERALES",null,0,{"$f":"SUM(E2523:E2536)","v":0},"Payé","à rendre"]
[null,null,"BIÈRE",null,0,null,0,{"$f":"G2524-F2523","v":0}]
[null,null,"CAFE / THE",null,0]
[null,null,"VIN AU VERRE",null,0]
[null,null,"BOUTEILLE VIN BLANC",null,0]
[null,null,"BOUTEILLE VIN ROUGE",null,0]
[null,null,"COUPE CHAMPAGNE",null,0]
[null,null,"BOUTEILLE CHAMPAGNE",null,0]
[null,null,"COUPE CLAIRETTE",null,0]
[null,null,"BOUTEILLE CLAIRETTE",null,0]
[null,null,"SANDWICHES",null,0]
[null,null,"GÂTEAUX",null,0]
[null,null,"SAUCISSE SUR ARDOISE ",null,0]
[null,null,"ASSIETTE FROIDE / CRUDITES",null,0]
[null,182,"MINERALES",null,0,{"$f":"SUM(E2537:E2550)","v":0},"Payé","à rendre"]
[null,null,"BIÈRE",null,0,null,0,{"$f":"G2538-F2537","v":0}]
[null,null,"CAFE / THE",null,0]
[null,null,"VIN AU VERRE",null,0]
[null,null,"BOUTEILLE VIN BLANC",null,0]
[null,null,"BOUTEILLE VIN ROUGE",null,0]
[null,null,"COUPE CHAMPAGNE",null,0]
[null,null,"BOUTEILLE CHAMPAGNE",null,{"$f":"VLOOKUP(C2544,Fichier,3,0)*D2544","v":0}]
[null,null,"COUPE CLAIRETTE",null,0]
[null,null,"BOUTEILLE CLAIRETTE",null,0]
[null,null,"SANDWICHES",null,0]
[null,null,"GÂTEAUX",null,0]
[null,null,"SAUCISSE SUR ARDOISE ",null,0]
[null,null,"ASSIETTE FROIDE / CRUDITES",null,0]
[null,183,"MINERALES",null,0,{"$f":"SUM(E2551:E2564)","v":0},"Payé","à rendre"]
[null,null,"BIÈRE",null,0,null,0,{"$f":"G2552-F2551","v":0}]
[null,null,"CAFE / THE",null,0]
[null,null,"VIN AU VERRE",null,0]
[null,null,"BOUTEILLE VIN BLANC",null,0]
[null,null,"BOUTEILLE VIN ROUGE",null,0]
[null,null,"COUPE CHAMPAGNE",null,0]
[null,null,"BOUTEILLE CHAMPAGNE",null,0]
[null,null,"COUPE CLAIRETTE",null,0]
[null,null,"BOUTEILLE CLAIRETTE",null,0]
[null,null,"SANDWICHES",null,0]
[null,null,"GÂTEAUX",null,0]
[null,null,"SAUCISSE SUR ARDOISE ",null,0]
[null,null,"ASSIETTE FROIDE / CRUDITES",null,0]
[null,184,"MINERALES",null,0,{"$f":"SUM(E2565:E2578)","v":0},"Payé","à rendre"]
[null,null,"BIÈRE",null,0,null,0,{"$f":"G2566-F2565","v":0}]
[null,null,"CAFE / THE",null,0]
[null,null,"VIN AU VERRE",null,0]
[null,null,"BOUTEILLE VIN BLANC",null,0]
[null,null,"BOUTEILLE VIN ROUGE",null,0]
[null,null,"COUPE CHAMPAGNE",null,0]
[null,null,"BOUTEILLE CHAMPAGNE",null,0]
[null,null,"COUPE CLAIRETTE",null,0]
[null,null,"BOUTEILLE CLAIRETTE",null,0]
[null,null,"SANDWICHES",null,0]
[null,null,"GÂTEAUX",null,0]
[null,null,"SAUCISSE SUR ARDOISE ",null,0]
[null,null,"ASSIETTE FROIDE / CRUDITES",null,0]
[null,185,"MINERALES",null,0,{"$f":"SUM(E2579:E2592)","v":0},"Payé","à rendre"]
[null,null,"BIÈRE",null,0,null,0,{"$f":"G2580-F2579","v":0}]
[null,null,"CAFE / THE",null,0]
[null,null,"VIN AU VERRE",null,0]
[null,null,"BOUTEILLE VIN BLANC",null,0]
[null,null,"BOUTEILLE VIN ROUGE",null,0]
[null,null,"COUPE CHAMPAGNE",null,0]
[null,null,"BOUTEILLE CHAMPAGNE",null,0]
[null,null,"COUPE CLAIRETTE",null,0]
[null,null,"BOUTEILLE CLAIRETTE",null,0]
[null,null,"SANDWICHES",null,0]
[null,null,"GÂTEAUX",null,0]
[null,null,"SAUCISSE SUR ARDOISE ",null,0]
[null,null,"ASSIETTE FROIDE / CRUDITES",null,0]
[null,186,"MINERALES",null,0,{"$f":"SUM(E2593:E2606)","v":0},"Payé","à rendre"]
[null,null,"BIÈRE",null,0,null,0,{"$f":"G2594-F2593","v":0}]
[null,null,"CAFE / THE",null,0]
[null,null,"VIN AU VERRE",null,0]
[null,null,"BOUTEILLE VIN BLANC",null,0]
[null,null,"BOUTEILLE VIN ROUGE",null,0]
[null,null,"COUPE CHAMPAGNE",null,0]
[null,null,"BOUTEILLE CHAMPAGNE",null,0]
[null,null,"COUPE CLAIRETTE",null,0]
[null,null,"BOUTEILLE CLAIRETTE",null,0]
[null,null,"SANDWICHES",null,0]
[null,null,"GÂTEAUX",null,0]
[null,null,"SAUCISSE SUR ARDOISE ",null,0]
[null,null,"ASSIETTE FROIDE / CRUDITES",null,0]
[null,187,"MINERALES",null,0,{"$f":"SUM(E2607:E2620)","v":0},"Payé","à rendre"]
[null,null,"BIÈRE",null,0,null,0,{"$f":"G2608-F2607","v":0}]
[null,null,"CAFE / THE",null,0]
[null,null,"VIN AU VERRE",null,0]
[null,null,"BOUTEILLE VIN BLANC",null,0]
[null,null,"BOUTEILLE VIN ROUGE",null,0]
[null,null,"COUPE CHAMPAGNE",null,{"$f":"VLOOKUP(C2613,Fichier,3,0)*D2613","v":0}]
[null,null,"BOUTEILLE CHAMPAGNE",null,0]
[null,null,"COUPE CLAIRETTE",null,0]
[null,null,"BOUTEILLE CLAIRETTE",null,0]
[null,null,"SANDWICHES",null,0]
[null,null,"GÂTEAUX",null,0]
[null,null,"SAUCISSE SUR ARDOISE ",null,0]
[null,null,"ASSIETTE FROIDE / CRUDITES",null,0]
[null,188,"MINERALES",null,0,{"$f":"SUM(E2621:E2634)","v":0},"Payé","à rendre"]
[null,null,"BIÈRE",null,0,null,0,{"$f":"G2622-F2621","v":0}]
[null,null,"CAFE / THE",null,0]
[null,null,"VIN AU VERRE",null,0]
[null,null,"BOUTEILLE VIN BLANC",null,0]
[null,null,"BOUTEILLE VIN ROUGE",null,0]
[null,null,"COUPE CHAMPAGNE",null,0]
[null,null,"BOUTEILLE CHAMPAGNE",null,0]
[null,null,"COUPE CLAIRETTE",null,0]
[null,null,"BOUTEILLE CLAIRETTE",null,0]
[null,null,"SANDWICHES",null,0]
[null,null,"GÂTEAUX",null,0]
[null,null,"SAUCISSE SUR ARDOISE ",null,0]
[null,null,"ASSIETTE FROIDE / CRUDITES",null,0]
[null,189,"MINERALES",null,0,{"$f":"SUM(E2635:E2648)","v":0},"Payé","à rendre"]
[null,null,"BIÈRE",null,0,null,0,{"$f":"G2636-F2635","v":0}]
[null,null,"CAFE / THE",null,0]
[null,null,"VIN AU VERRE",null,0]
[null,null,"BOUTEILLE VIN BLANC",null,0]
[null,null,"BOUTEILLE VIN ROUGE",null,0]
[null,null,"COUPE CHAMPAGNE",null,0]
[null,null,"BOUTEILLE CHAMPAGNE",null,0]
[null,null,"COUPE CLAIRETTE",null,0]
[null,null,"BOUTEILLE CLAIRETTE",null,0]
[null,null,"SANDWICHES",null,0]
[null,null,"GÂTEAUX",null,0]
[null,null,"SAUCISSE SUR ARDOISE ",null,0]
[null,null,"ASSIETTE FROIDE / CRUDITES",null,0]
[null,190,"MINERALES",null,0,{"$f":"SUM(E2649:E2662)","v":0},"Payé","à rendre"]
[null,null,"BIÈRE",null,0,null,0,{"$f":"G2650-F2649","v":0}]
[null,null,"CAFE / THE",null,0]
[null,null,"VIN AU VERRE",null,0]
[null,null,"BOUTEILLE VIN BLANC",null,0]
[null,null,"BOUTEILLE VIN ROUGE",null,0]
[null,null,"COUPE CHAMPAGNE",null,0]
[null,null,"BOUTEILLE CHAMPAGNE",null,0]
[null,null,"COUPE CLAIRETTE",null,0]
[null,null,"BOUTEILLE CLAIRETTE",null,0]
[null,null,"SANDWICHES",null,0]
[null,null,"GÂTEAUX",null,0]
[null,null,"SAUCISSE SUR ARDOISE ",null,0]
[null,null,"ASSIETTE FROIDE / CRUDITES",null,0]
[null,191,"MINERALES",null,0,{"$f":"SUM(E2663:E2676)","v":0},"Payé","à rendre"]
[null,null,"BIÈRE",null,0,null,0,{"$f":"G2664-F2663","v":0}]
[null,null,"CAFE / THE",null,0]
[null,null,"VIN AU VERRE",null,0]
[null,null,"BOUTEILLE VIN BLANC",null,0]
[null,null,"BOUTEILLE VIN ROUGE",null,0]
[null,null,"COUPE CHAMPAGNE",null,0]
[null,null,"BOUTEILLE CHAMPAGNE",null,0]
[null,null,"COUPE CLAIRETTE",null,0]
[null,null,"BOUTEILLE CLAIRETTE",null,0]
[null,null,"SANDWICHES",null,0]
[null,null,"GÂTEAUX",null,0]
[null,null,"SAUCISSE SUR ARDOISE ",null,0]
[null,null,"ASSIETTE FROIDE / CRUDITES",null,0]
[null,192,"MINERALES",null,0,{"$f":"SUM(E2677:E2690)","v":0},"Payé","à rendre"]
[null,null,"BIÈRE",null,0,null,0,{"$f":"G2678-F2677","v":0}]
[null,null,"CAFE / THE",null,0]
[null,null,"VIN AU VERRE",null,0]
[null,null,"BOUTEILLE VIN BLANC",null,0]
[null,null,"BOUTEILLE VIN ROUGE",null,{"$f":"VLOOKUP(C2682,Fichier,3,0)*D2682","v":0}]
[null,null,"COUPE CHAMPAGNE",null,0]
[null,null,"BOUTEILLE CHAMPAGNE",null,0]
[null,null,"COUPE CLAIRETTE",null,0]
[null,null,"BOUTEILLE CLAIRETTE",null,0]
[null,null,"SANDWICHES",null,0]
[null,null,"GÂTEAUX",null,0]
[null,null,"SAUCISSE SUR ARDOISE ",null,0]
[null,null,"ASSIETTE FROIDE / CRUDITES",null,0]
[null,193,"MINERALES",null,0,{"$f":"SUM(E2691:E2704)","v":0},"Payé","à rendre"]
[null,null,"BIÈRE",null,0,null,0,{"$f":"G2692-F2691","v":0}]
[null,null,"CAFE / THE",null,0]
[null,null,"VIN AU VERRE",null,0]
[null,null,"BOUTEILLE VIN BLANC",null,0]
[null,null,"BOUTEILLE VIN ROUGE",null,0]
[null,null,"COUPE CHAMPAGNE",null,0]
[null,null,"BOUTEILLE CHAMPAGNE",null,0]
[null,null,"COUPE CLAIRETTE",null,0]
[null,null,"BOUTEILLE CLAIRETTE",null,0]
[null,null,"SANDWICHES",null,0]
[null,null,"GÂTEAUX",null,0]
[null,null,"SAUCISSE SUR ARDOISE ",null,0]
[null,null,"ASSIETTE FROIDE / CRUDITES",null,0]
[null,194,"MINERALES",null,0,{"$f":"SUM(E2705:E2718)","v":0},"Payé","à rendre"]
[null,null,"BIÈRE",null,0,null,0,{"$f":"G2706-F2705","v":0}]
[null,null,"CAFE / THE",null,0]
[null,null,"VIN AU VERRE",null,0]
[null,null,"BOUTEILLE VIN BLANC",null,0]
[null,null,"BOUTEILLE VIN ROUGE",null,0]
[null,null,"COUPE CHAMPAGNE",null,0]
[null,null,"BOUTEILLE CHAMPAGNE",null,0]
[null,null,"COUPE CLAIRETTE",null,0]
[null,null,"BOUTEILLE CLAIRETTE",null,0]
[null,null,"SANDWICHES",null,0]
[null,null,"GÂTEAUX",null,0]
[null,null,"SAUCISSE SUR ARDOISE ",null,0]
[null,null,"ASSIETTE FROIDE / CRUDITES",null,0]
[null,195,"MINERALES",null,0,{"$f":"SUM(E2719:E2732)","v":0},"Payé","à rendre"]
[null,null,"BIÈRE",null,0,null,0,{"$f":"G2720-F2719","v":0}]
[null,null,"CAFE / THE",null,0]
[null,null,"VIN AU VERRE",null,0]
[null,null,"BOUTEILLE VIN BLANC",null,0]
[null,null,"BOUTEILLE VIN ROUGE",null,0]
[null,null,"COUPE CHAMPAGNE",null,0]
[null,null,"BOUTEILLE CHAMPAGNE",null,0]
[null,null,"COUPE CLAIRETTE",null,0]
[null,null,"BOUTEILLE CLAIRETTE",null,0]
[null,null,"SANDWICHES",null,0]
[null,null,"GÂTEAUX",null,0]
[null,null,"SAUCISSE SUR ARDOISE ",null,0]
[null,null,"ASSIETTE FROIDE / CRUDITES",null,0]
[null,196,"MINERALES",null,0,{"$f":"SUM(E2733:E2746)","v":0},"Payé","à rendre"]
[null,null,"BIÈRE",null,0,null,0,{"$f":"G2734-F2733","v":0}]
[null,null,"CAFE / THE",null,0]
[null,null,"VIN AU VERRE",null,0]
[null,null,"BOUTEILLE VIN BLANC",null,0]
[null,null,"BOUTEILLE VIN ROUGE",null,0]
[null,null,"COUPE CHAMPAGNE",null,0]
[null,null,"BOUTEILLE CHAMPAGNE",null,0]
[null,null,"COUPE CLAIRETTE",null,0]
[null,null,"BOUTEILLE CLAIRETTE",null,0]
[null,null,"SANDWICHES",null,0]
[null,null,"GÂTEAUX",null,0]
[null,null,"SAUCISSE SUR ARDOISE ",null,0]
[null,null,"ASSIETTE FROIDE / CRUDITES",null,0]
[null,197,"MINERALES",null,0,{"$f":"SUM(E2747:E2760)","v":0},"Payé","à rendre"]
[null,null,"BIÈRE",null,0,null,0,{"$f":"G2748-F2747","v":0}]
[null,null,"CAFE / THE",null,0]
[null,null,"VIN AU VERRE",null,0]
[null,null,"BOUTEILLE VIN BLANC",null,{"$f":"VLOOKUP(C2751,Fichier,3,0)*D2751","v":0}]
[null,null,"BOUTEILLE VIN ROUGE",null,0]
[null,null,"COUPE CHAMPAGNE",null,0]
[null,null,"BOUTEILLE CHAMPAGNE",null,0]
[null,null,"COUPE CLAIRETTE",null,0]
[null,null,"BOUTEILLE CLAIRETTE",null,0]
[null,null,"SANDWICHES",null,0]
[null,null,"GÂTEAUX",null,0]
[null,null,"SAUCISSE SUR ARDOISE ",null,0]
[null,null,"ASSIETTE FROIDE / CRUDITES",null,0]
[null,198,"MINERALES",null,0,{"$f":"SUM(E2761:E2774)","v":0},"Payé","à rendre"]
[null,null,"BIÈRE",null,0,null,0,{"$f":"G2762-F2761","v":0}]
[null,null,"CAFE / THE",null,0]
[null,null,"VIN AU VERRE",null,0]
[null,null,"BOUTEILLE VIN BLANC",null,0]
[null,null,"BOUTEILLE VIN ROUGE",null,0]
[null,null,"COUPE CHAMPAGNE",null,0]
[null,null,"BOUTEILLE CHAMPAGNE",null,0]
[null,null,"COUPE CLAIRETTE",null,0]
[null,null,"BOUTEILLE CLAIRETTE",null,0]
[null,null,"SANDWICHES",null,0]
[null,null,"GÂTEAUX",null,0]
[null,null,"SAUCISSE SUR ARDOISE ",null,0]
[null,null,"ASSIETTE FROIDE / CRUDITES",null,0]
[null,199,"MINERALES",null,0,{"$f":"SUM(E2775:E2788)","v":0},"Payé","à rendre"]
[null,null,"BIÈRE",null,0,null,0,{"$f":"G2776-F2775","v":0}]
[null,null,"CAFE / THE",null,0]
[null,null,"VIN AU VERRE",null,0]
[null,null,"BOUTEILLE VIN BLANC",null,0]
[null,null,"BOUTEILLE VIN ROUGE",null,0]
[null,null,"COUPE CHAMPAGNE",null,0]
[null,null,"BOUTEILLE CHAMPAGNE",null,0]
[null,null,"COUPE CLAIRETTE",null,0]
[null,null,"BOUTEILLE CLAIRETTE",null,0]
[null,null,"SANDWICHES",null,0]
[null,null,"GÂTEAUX",null,0]
[null,null,"SAUCISSE SUR ARDOISE ",null,0]
[null,null,"ASSIETTE FROIDE / CRUDITES",null,0]
[null,200,"MINERALES",null,0,{"$f":"SUM(E2789:E2802)","v":0},"Payé","à rendre"]
[null,null,"BIÈRE",null,0,null,0,{"$f":"G2790-F2789","v":0}]
[null,null,"CAFE / THE",null,0]
[null,null,"VIN AU VERRE",null,0]
[null,null,"BOUTEILLE VIN BLANC",null,0]
[null,null,"BOUTEILLE VIN ROUGE",null,0]
[null,null,"COUPE CHAMPAGNE",null,0]
[null,null,"BOUTEILLE CHAMPAGNE",null,0]
[null,null,"COUPE CLAIRETTE",null,0]
[null,null,"BOUTEILLE CLAIRETTE",null,0]
[null,null,"SANDWICHES",null,0]
[null,null,"GÂTEAUX",null,0]
[null,null,"SAUCISSE SUR ARDOISE ",null,0]
[null,null,"ASSIETTE FROIDE / CRUDITES",null,0]
[null,201,"MINERALES",null,0,{"$f":"SUM(E2803:E2816)","v":0},"Payé","à rendre"]
[null,null,"BIÈRE",null,0,null,0,{"$f":"G2804-F2803","v":0}]
[null,null,"CAFE / THE",null,0]
[null,null,"VIN AU VERRE",null,0]
[null,null,"BOUTEILLE VIN BLANC",null,0]
[null,null,"BOUTEILLE VIN ROUGE",null,0]
[null,null,"COUPE CHAMPAGNE",null,0]
[null,null,"BOUTEILLE CHAMPAGNE",null,0]
[null,null,"COUPE CLAIRETTE",null,0]
[null,null,"BOUTEILLE CLAIRETTE",null,0]
[null,null,"SANDWICHES",null,0]
[null,null,"GÂTEAUX",null,0]
[null,null,"SAUCISSE SUR ARDOISE ",null,0]
[null,null,"ASSIETTE FROIDE / CRUDITES",null,0]
[null,202,"MINERALES",null,0,{"$f":"SUM(E2817:E2830)","v":0},"Payé","à rendre"]
[null,null,"BIÈRE",null,0,null,0,{"$f":"G2818-F2817","v":0}]
[null,null,"CAFE / THE",null,{"$f":"VLOOKUP(C2819,Fichier,3,0)*D2819","v":0}]
[null,null,"VIN AU VERRE",null,0]
[null,null,"BOUTEILLE VIN BLANC",null,0]
[null,null,"BOUTEILLE VIN ROUGE",null,0]
[null,null,"COUPE CHAMPAGNE",null,0]
[null,null,"BOUTEILLE CHAMPAGNE",null,0]
[null,null,"COUPE CLAIRETTE",null,0]
[null,null,"BOUTEILLE CLAIRETTE",null,0]
[null,null,"SANDWICHES",null,0]
[null,null,"GÂTEAUX",null,0]
[null,null,"SAUCISSE SUR ARDOISE ",null,0]
[null,null,"ASSIETTE FROIDE / CRUDITES",null,0]
[null,203,"MINERALES",null,0,{"$f":"SUM(E2831:E2844)","v":0},"Payé","à rendre"]
[null,null,"BIÈRE",null,0,null,0,{"$f":"G2832-F2831","v":0}]
[null,null,"CAFE / THE",null,0]
[null,null,"VIN AU VERRE",null,0]
[null,null,"BOUTEILLE VIN BLANC",null,0]
[null,null,"BOUTEILLE VIN ROUGE",null,0]
[null,null,"COUPE CHAMPAGNE",null,0]
[null,null,"BOUTEILLE CHAMPAGNE",null,0]
[null,null,"COUPE CLAIRETTE",null,0]
[null,null,"BOUTEILLE CLAIRETTE",null,0]
[null,null,"SANDWICHES",null,0]
[null,null,"GÂTEAUX",null,0]
[null,null,"SAUCISSE SUR ARDOISE ",null,0]
[null,null,"ASSIETTE FROIDE / CRUDITES",null,0]
[null,204,"MINERALES",null,0,{"$f":"SUM(E2845:E2858)","v":0},"Payé","à rendre"]
[null,null,"BIÈRE",null,0,null,0,{"$f":"G2846-F2845","v":0}]
[null,null,"CAFE / THE",null,0]
[null,null,"VIN AU VERRE",null,0]
[null,null,"BOUTEILLE VIN BLANC",null,0]
[null,null,"BOUTEILLE VIN ROUGE",null,0]
[null,null,"COUPE CHAMPAGNE",null,0]
[null,null,"BOUTEILLE CHAMPAGNE",null,0]
[null,null,"COUPE CLAIRETTE",null,0]
[null,null,"BOUTEILLE CLAIRETTE",null,0]
[null,null,"SANDWICHES",null,0]
[null,null,"GÂTEAUX",null,0]
[null,null,"SAUCISSE SUR ARDOISE ",null,0]
[null,null,"ASSIETTE FROIDE / CRUDITES",null,0]
[null,205,"MINERALES",null,0,{"$f":"SUM(E2859:E2872)","v":0},"Payé","à rendre"]
[null,null,"BIÈRE",null,0,null,0,{"$f":"G2860-F2859","v":0}]
[null,null,"CAFE / THE",null,0]
[null,null,"VIN AU VERRE",null,0]
[null,null,"BOUTEILLE VIN BLANC",null,0]
[null,null,"BOUTEILLE VIN ROUGE",null,0]
[null,null,"COUPE CHAMPAGNE",null,0]
[null,null,"BOUTEILLE CHAMPAGNE",null,0]
[null,null,"COUPE CLAIRETTE",null,0]
[null,null,"BOUTEILLE CLAIRETTE",null,0]
[null,null,"SANDWICHES",null,0]
[null,null,"GÂTEAUX",null,0]
[null,null,"SAUCISSE SUR ARDOISE ",null,0]
[null,null,"ASSIETTE FROIDE / CRUDITES",null,0]
[null,206,"MINERALES",null,0,{"$f":"SUM(E2873:E2886)","v":0},"Payé","à rendre"]
[null,null,"BIÈRE",null,0,null,0,{"$f":"G2874-F2873","v":0}]
[null,null,"CAFE / THE",null,0]
[null,null,"VIN AU VERRE",null,0]
[null,null,"BOUTEILLE VIN BLANC",null,0]
[null,null,"BOUTEILLE VIN ROUGE",null,0]
[null,null,"COUPE CHAMPAGNE",null,0]
[null,null,"BOUTEILLE CHAMPAGNE",null,0]
[null,null,"COUPE CLAIRETTE",null,0]
[null,null,"BOUTEILLE CLAIRETTE",null,0]
[null,null,"SANDWICHES",null,0]
[null,null,"GÂTEAUX",null,0]
[null,null,"SAUCISSE SUR ARDOISE ",null,0]
[null,null,"ASSIETTE FROIDE / CRUDITES",null,0]
[null,207,"MINERALES",null,0,{"$f":"SUM(E2887:E2900)","v":0},"Payé","à rendre"]
[null,null,"BIÈRE",null,{"$f":"VLOOKUP(C2888,Fichier,3,0)*D2888","v":0},null,0,{"$f":"G2888-F2887","v":0}]
[null,null,"CAFE / THE",null,0]
[null,null,"VIN AU VERRE",null,0]
[null,null,"BOUTEILLE VIN BLANC",null,0]
[null,null,"BOUTEILLE VIN ROUGE",null,0]
[null,null,"COUPE CHAMPAGNE",null,0]
[null,null,"BOUTEILLE CHAMPAGNE",null,0]
[null,null,"COUPE CLAIRETTE",null,0]
[null,null,"BOUTEILLE CLAIRETTE",null,0]
[null,null,"SANDWICHES",null,0]
[null,null,"GÂTEAUX",null,0]
[null,null,"SAUCISSE SUR ARDOISE ",null,0]
[null,null,"ASSIETTE FROIDE / CRUDITES",null,0]
[null,208,"MINERALES",null,0,{"$f":"SUM(E2901:E2914)","v":0},"Payé","à rendre"]
[null,null,"BIÈRE",null,0,null,0,{"$f":"G2902-F2901","v":0}]
[null,null,"CAFE / THE",null,0]
[null,null,"VIN AU VERRE",null,0]
[null,null,"BOUTEILLE VIN BLANC",null,0]
[null,null,"BOUTEILLE VIN ROUGE",null,0]
[null,null,"COUPE CHAMPAGNE",null,0]
[null,null,"BOUTEILLE CHAMPAGNE",null,0]
[null,null,"COUPE CLAIRETTE",null,0]
[null,null,"BOUTEILLE CLAIRETTE",null,0]
[null,null,"SANDWICHES",null,0]
[null,null,"GÂTEAUX",null,0]
[null,null,"SAUCISSE SUR ARDOISE ",null,0]
[null,null,"ASSIETTE FROIDE / CRUDITES",null,0]
[null,209,"MINERALES",null,0,{"$f":"SUM(E2915:E2928)","v":0},"Payé","à rendre"]
[null,null,"BIÈRE",null,0,null,0,{"$f":"G2916-F2915","v":0}]
[null,null,"CAFE / THE",null,0]
[null,null,"VIN AU VERRE",null,0]
[null,null,"BOUTEILLE VIN BLANC",null,0]
[null,null,"BOUTEILLE VIN ROUGE",null,0]
[null,null,"COUPE CHAMPAGNE",null,0]
[null,null,"BOUTEILLE CHAMPAGNE",null,0]
[null,null,"COUPE CLAIRETTE",null,0]
[null,null,"BOUTEILLE CLAIRETTE",null,0]
[null,null,"SANDWICHES",null,0]
[null,null,"GÂTEAUX",null,0]
[null,null,"SAUCISSE SUR ARDOISE ",null,0]
[null,null,"ASSIETTE FROIDE / CRUDITES",null,0]
[null,210,"MINERALES",null,0,{"$f":"SUM(E2929:E2942)","v":0},"Payé","à rendre"]
[null,null,"BIÈRE",null,0,null,0,{"$f":"G2930-F2929","v":0}]
[null,null,"CAFE / THE",null,0]
[null,null,"VIN AU VERRE",null,0]
[null,null,"BOUTEILLE VIN BLANC",null,0]
[null,null,"BOUTEILLE VIN ROUGE",null,0]
[null,null,"COUPE CHAMPAGNE",null,0]
[null,null,"BOUTEILLE CHAMPAGNE",null,0]
[null,null,"COUPE CLAIRETTE",null,0]
[null,null,"BOUTEILLE CLAIRETTE",null,0]
[null,null,"SANDWICHES",null,0]
[null,null,"GÂTEAUX",null,0]
[null,null,"SAUCISSE SUR ARDOISE ",null,0]
[null,null,"ASSIETTE FROIDE / CRUDITES",null,0]
[null,211,"MINERALES",null,0,{"$f":"SUM(E2943:E2956)","v":0},"Payé","à rendre"]
[null,null,"BIÈRE",null,0,null,0,{"$f":"G2944-F2943","v":0}]
[null,null,"CAFE / THE",null,0]
[null,null,"VIN AU VERRE",null,0]
[null,null,"BOUTEILLE VIN BLANC",null,0]
[null,null,"BOUTEILLE VIN ROUGE",null,0]
[null,null,"COUPE CHAMPAGNE",null,0]
[null,null,"BOUTEILLE CHAMPAGNE",null,0]
[null,null,"COUPE CLAIRETTE",null,0]
[null,null,"BOUTEILLE CLAIRETTE",null,0]
[null,null,"SANDWICHES",null,0]
[null,null,"GÂTEAUX",null,0]
[null,null,"SAUCISSE SUR ARDOISE ",null,0]
[null,null,"ASSIETTE FROIDE / CRUDITES",null,0]
[null,212,"MINERALES",null,{"$f":"VLOOKUP(C2957,Fichier,3,0)*D2957","v":0},{"$f":"SUM(E2957:E2970)","v":0},"Payé","à rendre"]
[null,null,"BIÈRE",null,0,null,0,{"$f":"G2958-F2957","v":0}]
[null,null,"CAFE / THE",null,0]
[null,null,"VIN AU VERRE",null,0]
[null,null,"BOUTEILLE VIN BLANC",null,0]
[null,null,"BOUTEILLE VIN ROUGE",null,0]
[null,null,"COUPE CHAMPAGNE",null,0]
[null,null,"BOUTEILLE CHAMPAGNE",null,0]
[null,null,"COUPE CLAIRETTE",null,0]
[null,null,"BOUTEILLE CLAIRETTE",null,0]
[null,null,"SANDWICHES",null,0]
[null,null,"GÂTEAUX",null,0]
[null,null,"SAUCISSE SUR ARDOISE ",null,0]
[null,null,"ASSIETTE FROIDE / CRUDITES",null,0]
[null,213,"MINERALES",null,0,{"$f":"SUM(E2971:E2984)","v":0},"Payé","à rendre"]
[null,null,"BIÈRE",null,0,null,0,{"$f":"G2972-F2971","v":0}]
[null,null,"CAFE / THE",null,0]
[null,null,"VIN AU VERRE",null,0]
[null,null,"BOUTEILLE VIN BLANC",null,0]
[null,null,"BOUTEILLE VIN ROUGE",null,0]
[null,null,"COUPE CHAMPAGNE",null,0]
[null,null,"BOUTEILLE CHAMPAGNE",null,0]
[null,null,"COUPE CLAIRETTE",null,0]
[null,null,"BOUTEILLE CLAIRETTE",null,0]
[null,null,"SANDWICHES",null,0]
[null,null,"GÂTEAUX",null,0]
[null,null,"SAUCISSE SUR ARDOISE ",null,0]
[null,null,"ASSIETTE FROIDE / CRUDITES",null,0]
[null,214,"MINERALES",null,0,{"$f":"SUM(E2985:E2998)","v":0},"Payé","à rendre"]
[null,null,"BIÈRE",null,0,null,0,{"$f":"G2986-F2985","v":0}]
[null,null,"CAFE / THE",null,0]
[null,null,"VIN AU VERRE",null,0]
[null,null,"BOUTEILLE VIN BLANC",null,0]
[null,null,"BOUTEILLE VIN ROUGE",null,0]
[null,null,"COUPE CHAMPAGNE",null,0]
[null,null,"BOUTEILLE CHAMPAGNE",null,0]
[null,null,"COUPE CLAIRETTE",null,0]
[null,null,"BOUTEILLE CLAIRETTE",null,0]
[null,null,"SANDWICHES",null,0]
[null,null,"GÂTEAUX",null,0]
[null,null,"SAUCISSE SUR ARDOISE ",null,0]
[null,null,"ASSIETTE FROIDE / CRUDITES",null,0]
[null,215,"MINERALES",null,0,{"$f":"SUM(E2999:E3012)","v":0},"Payé","à rendre"]
[null,null,"BIÈRE",null,0,null,0,{"$f":"G3000-F2999","v":0}]
[null,null,"CAFE / THE",null,0]
[null,null,"VIN AU VERRE",null,0]
[null,null,"BOUTEILLE VIN BLANC",null,0]
[null,null,"BOUTEILLE VIN ROUGE",null,0]
[null,null,"COUPE CHAMPAGNE",null,0]
[null,null,"BOUTEILLE CHAMPAGNE",null,0]
[null,null,"COUPE CLAIRETTE",null,0]
[null,null,"BOUTEILLE CLAIRETTE",null,0]
[null,null,"SANDWICHES",null,0]
[null,null,"GÂTEAUX",null,0]
[null,null,"SAUCISSE SUR ARDOISE ",null,0]
[null,null,"ASSIETTE FROIDE / CRUDITES",null,0]
[null,216,"MINERALES",null,0,{"$f":"SUM(E3013:E3026)","v":0},"Payé","à rendre"]
[null,null,"BIÈRE",null,0,null,0,{"$f":"G3014-F3013","v":0}]
[null,null,"CAFE / THE",null,0]
[null,null,"VIN AU VERRE",null,0]
[null,null,"BOUTEILLE VIN BLANC",null,0]
[null,null,"BOUTEILLE VIN ROUGE",null,0]
[null,null,"COUPE CHAMPAGNE",null,0]
[null,null,"BOUTEILLE CHAMPAGNE",null,0]
[null,null,"COUPE CLAIRETTE",null,0]
[null,null,"BOUTEILLE CLAIRETTE",null,0]
[null,null,"SANDWICHES",null,0]
[null,null,"GÂTEAUX",null,0]
[null,null,"SAUCISSE SUR ARDOISE ",null,0]
[null,null,"ASSIETTE FROIDE / CRUDITES",null,{"$f":"VLOOKUP(C3026,Fichier,3,0)*D3026","v":0}]
[null,217,"MINERALES",null,0,{"$f":"SUM(E3027:E3040)","v":0},"Payé","à rendre"]
[null,null,"BIÈRE",null,0,null,0,{"$f":"G3028-F3027","v":0}]
[null,null,"CAFE / THE",null,0]
[null,null,"VIN AU VERRE",null,0]
[null,null,"BOUTEILLE VIN BLANC",null,0]
[null,null,"BOUTEILLE VIN ROUGE",null,0]
[null,null,"COUPE CHAMPAGNE",null,0]
[null,null,"BOUTEILLE CHAMPAGNE",null,0]
[null,null,"COUPE CLAIRETTE",null,0]
[null,null,"BOUTEILLE CLAIRETTE",null,0]
[null,null,"SANDWICHES",null,0]
[null,null,"GÂTEAUX",null,0]
[null,null,"SAUCISSE SUR ARDOISE ",null,0]
[null,null,"ASSIETTE FROIDE / CRUDITES",null,0]
[null,218,"MINERALES",null,0,{"$f":"SUM(E3041:E3054)","v":0},"Payé","à rendre"]
[null,null,"BIÈRE",null,0,null,0,{"$f":"G3042-F3041","v":0}]
[null,null,"CAFE / THE",null,0]
[null,null,"VIN AU VERRE",null,0]
[null,null,"BOUTEILLE VIN BLANC",null,0]
[null,null,"BOUTEILLE VIN ROUGE",null,0]
[null,null,"COUPE CHAMPAGNE",null,0]
[null,null,"BOUTEILLE CHAMPAGNE",null,0]
[null,null,"COUPE CLAIRETTE",null,0]
[null,null,"BOUTEILLE CLAIRETTE",null,0]
[null,null,"SANDWICHES",null,0]
[null,null,"GÂTEAUX",null,0]
[null,null,"SAUCISSE SUR ARDOISE ",null,0]
[null,null,"ASSIETTE FROIDE / CRUDITES",null,0]
[null,219,"MINERALES",null,0,{"$f":"SUM(E3055:E3068)","v":0},"Payé","à rendre"]
[null,null,"BIÈRE",null,0,null,0,{"$f":"G3056-F3055","v":0}]
[null,null,"CAFE / THE",null,0]
[null,null,"VIN AU VERRE",null,0]
[null,null,"BOUTEILLE VIN BLANC",null,0]
[null,null,"BOUTEILLE VIN ROUGE",null,0]
[null,null,"COUPE CHAMPAGNE",null,0]
[null,null,"BOUTEILLE CHAMPAGNE",null,0]
[null,null,"COUPE CLAIRETTE",null,0]
[null,null,"BOUTEILLE CLAIRETTE",null,0]
[null,null,"SANDWICHES",null,0]
[null,null,"GÂTEAUX",null,0]
[null,null,"SAUCISSE SUR ARDOISE ",null,0]
[null,null,"ASSIETTE FROIDE / CRUDITES",null,0]
[null,220,"MINERALES",null,0,{"$f":"SUM(E3069:E3082)","v":0},"Payé","à rendre"]
[null,null,"BIÈRE",null,0,null,0,{"$f":"G3070-F3069","v":0}]
[null,null,"CAFE / THE",null,0]
[null,null,"VIN AU VERRE",null,0]
[null,null,"BOUTEILLE VIN BLANC",null,0]
[null,null,"BOUTEILLE VIN ROUGE",null,0]
[null,null,"COUPE CHAMPAGNE",null,0]
[null,null,"BOUTEILLE CHAMPAGNE",null,0]
[null,null,"COUPE CLAIRETTE",null,0]
[null,null,"BOUTEILLE CLAIRETTE",null,0]
[null,null,"SANDWICHES",null,0]
[null,null,"GÂTEAUX",null,0]
[null,null,"SAUCISSE SUR ARDOISE ",null,0]
[null,null,"ASSIETTE FROIDE / CRUDITES",null,0]
[null,221,"MINERALES",null,0,{"$f":"SUM(E3083:E3096)","v":0},"Payé","à rendre"]
[null,null,"BIÈRE",null,0,null,0,{"$f":"G3084-F3083","v":0}]
[null,null,"CAFE / THE",null,0]
[null,null,"VIN AU VERRE",null,0]
[null,null,"BOUTEILLE VIN BLANC",null,0]
[null,null,"BOUTEILLE VIN ROUGE",null,0]
[null,null,"COUPE CHAMPAGNE",null,0]
[null,null,"BOUTEILLE CHAMPAGNE",null,0]
[null,null,"COUPE CLAIRETTE",null,0]
[null,null,"BOUTEILLE CLAIRETTE",null,0]
[null,null,"SANDWICHES",null,0]
[null,null,"GÂTEAUX",null,0]
[null,null,"SAUCISSE SUR ARDOISE ",null,{"$f":"VLOOKUP(C3095,Fichier,3,0)*D3095","v":0}]
[null,null,"ASSIETTE FROIDE / CRUDITES",null,0]
[null,222,"MINERALES",null,0,{"$f":"SUM(E3097:E3110)","v":0},"Payé","à rendre"]
[null,null,"BIÈRE",null,0,null,0,{"$f":"G3098-F3097","v":0}]
[null,null,"CAFE / THE",null,0]
[null,null,"VIN AU VERRE",null,0]
[null,null,"BOUTEILLE VIN BLANC",null,0]
[null,null,"BOUTEILLE VIN ROUGE",null,0]
[null,null,"COUPE CHAMPAGNE",null,0]
[null,null,"BOUTEILLE CHAMPAGNE",null,0]
[null,null,"COUPE CLAIRETTE",null,0]
[null,null,"BOUTEILLE CLAIRETTE",null,0]
[null,null,"SANDWICHES",null,0]
[null,null,"GÂTEAUX",null,0]
[null,null,"SAUCISSE SUR ARDOISE ",null,0]
[null,null,"ASSIETTE FROIDE / CRUDITES",null,0]
[null,223,"MINERALES",null,0,{"$f":"SUM(E3111:E3124)","v":0},"Payé","à rendre"]
[null,null,"BIÈRE",null,0,null,0,{"$f":"G3112-F3111","v":0}]
[null,null,"CAFE / THE",null,0]
[null,null,"VIN AU VERRE",null,0]
[null,null,"BOUTEILLE VIN BLANC",null,0]
[null,null,"BOUTEILLE VIN ROUGE",null,0]
[null,null,"COUPE CHAMPAGNE",null,0]
[null,null,"BOUTEILLE CHAMPAGNE",null,0]
[null,null,"COUPE CLAIRETTE",null,0]
[null,null,"BOUTEILLE CLAIRETTE",null,0]
[null,null,"SANDWICHES",null,0]
[null,null,"GÂTEAUX",null,0]
[null,null,"SAUCISSE SUR ARDOISE ",null,0]
[null,null,"ASSIETTE FROIDE / CRUDITES",null,0]
[null,224,"MINERALES",null,0,{"$f":"SUM(E3125:E3138)","v":0},"Payé","à rendre"]
[null,null,"BIÈRE",null,0,null,0,{"$f":"G3126-F3125","v":0}]
[null,null,"CAFE / THE",null,0]
[null,null,"VIN AU VERRE",null,0]
[null,null,"BOUTEILLE VIN BLANC",null,0]
[null,null,"BOUTEILLE VIN ROUGE",null,0]
[null,null,"COUPE CHAMPAGNE",null,0]
[null,null,"BOUTEILLE CHAMPAGNE",null,0]
[null,null,"COUPE CLAIRETTE",null,0]
[null,null,"BOUTEILLE CLAIRETTE",null,0]
[null,null,"SANDWICHES",null,0]
[null,null,"GÂTEAUX",null,0]
[null,null,"SAUCISSE SUR ARDOISE ",null,0]
[null,null,"ASSIETTE FROIDE / CRUDITES",null,0]
[null,225,"MINERALES",null,0,{"$f":"SUM(E3139:E3152)","v":0},"Payé","à rendre"]
[null,null,"BIÈRE",null,0,null,0,{"$f":"G3140-F3139","v":0}]
[null,null,"CAFE / THE",null,0]
[null,null,"VIN AU VERRE",null,0]
[null,null,"BOUTEILLE VIN BLANC",null,0]
[null,null,"BOUTEILLE VIN ROUGE",null,0]
[null,null,"COUPE CHAMPAGNE",null,0]
[null,null,"BOUTEILLE CHAMPAGNE",null,0]
[null,null,"COUPE CLAIRETTE",null,0]
[null,null,"BOUTEILLE CLAIRETTE",null,0]
[null,null,"SANDWICHES",null,0]
[null,null,"GÂTEAUX",null,0]
[null,null,"SAUCISSE SUR ARDOISE ",null,0]
[null,null,"ASSIETTE FROIDE / CRUDITES",null,0]
[null,226,"MINERALES",null,0,{"$f":"SUM(E3153:E3166)","v":0},"Payé","à rendre"]
[null,null,"BIÈRE",null,0,null,0,{"$f":"G3154-F3153","v":0}]
[null,null,"CAFE / THE",null,0]
[null,null,"VIN AU VERRE",null,0]
[null,null,"BOUTEILLE VIN BLANC",null,0]
[null,null,"BOUTEILLE VIN ROUGE",null,0]
[null,null,"COUPE CHAMPAGNE",null,0]
[null,null,"BOUTEILLE CHAMPAGNE",null,0]
[null,null,"COUPE CLAIRETTE",null,0]
[null,null,"BOUTEILLE CLAIRETTE",null,0]
[null,null,"SANDWICHES",null,0]
[null,null,"GÂTEAUX",null,{"$f":"VLOOKUP(C3164,Fichier,3,0)*D3164","v":0}]
[null,null,"SAUCISSE SUR ARDOISE ",null,0]
[null,null,"ASSIETTE FROIDE / CRUDITES",null,0]
[null,227,"MINERALES",null,0,{"$f":"SUM(E3167:E3180)","v":0},"Payé","à rendre"]
[null,null,"BIÈRE",null,0,null,0,{"$f":"G3168-F3167","v":0}]
[null,null,"CAFE / THE",null,0]
[null,null,"VIN AU VERRE",null,0]
[null,null,"BOUTEILLE VIN BLANC",null,0]
[null,null,"BOUTEILLE VIN ROUGE",null,0]
[null,null,"COUPE CHAMPAGNE",null,0]
[null,null,"BOUTEILLE CHAMPAGNE",null,0]
[null,null,"COUPE CLAIRETTE",null,0]
[null,null,"BOUTEILLE CLAIRETTE",null,0]
[null,null,"SANDWICHES",null,0]
[null,null,"GÂTEAUX",null,0]
[null,null,"SAUCISSE SUR ARDOISE ",null,0]
[null,null,"ASSIETTE FROIDE / CRUDITES",null,0]
[null,228,"MINERALES",null,0,{"$f":"SUM(E3181:E3194)","v":0},"Payé","à rendre"]
[null,null,"BIÈRE",null,0,null,0,{"$f":"G3182-F3181","v":0}]
[null,null,"CAFE / THE",null,0]
[null,null,"VIN AU VERRE",null,0]
[null,null,"BOUTEILLE VIN BLANC",null,0]
[null,null,"BOUTEILLE VIN ROUGE",null,0]
[null,null,"COUPE CHAMPAGNE",null,0]
[null,null,"BOUTEILLE CHAMPAGNE",null,0]
[null,null,"COUPE CLAIRETTE",null,0]
[null,null,"BOUTEILLE CLAIRETTE",null,0]
[null,null,"SANDWICHES",null,0]
[null,null,"GÂTEAUX",null,0]
[null,null,"SAUCISSE SUR ARDOISE ",null,0]
[null,null,"ASSIETTE FROIDE / CRUDITES",null,0]
[null,229,"MINERALES",null,0,{"$f":"SUM(E3195:E3208)","v":0},"Payé","à rendre"]
[null,null,"BIÈRE",null,0,null,0,{"$f":"G3196-F3195","v":0}]
[null,null,"CAFE / THE",null,0]
[null,null,"VIN AU VERRE",null,0]
[null,null,"BOUTEILLE VIN BLANC",null,0]
[null,null,"BOUTEILLE VIN ROUGE",null,0]
[null,null,"COUPE CHAMPAGNE",null,0]
[null,null,"BOUTEILLE CHAMPAGNE",null,0]
[null,null,"COUPE CLAIRETTE",null,0]
[null,null,"BOUTEILLE CLAIRETTE",null,0]
[null,null,"SANDWICHES",null,0]
[null,null,"GÂTEAUX",null,0]
[null,null,"SAUCISSE SUR ARDOISE ",null,0]
[null,null,"ASSIETTE FROIDE / CRUDITES",null,0]
[null,230,"MINERALES",null,0,{"$f":"SUM(E3209:E3222)","v":0},"Payé","à rendre"]
[null,null,"BIÈRE",null,0,null,0,{"$f":"G3210-F3209","v":0}]
[null,null,"CAFE / THE",null,0]
[null,null,"VIN AU VERRE",null,0]
[null,null,"BOUTEILLE VIN BLANC",null,0]
[null,null,"BOUTEILLE VIN ROUGE",null,0]
[null,null,"COUPE CHAMPAGNE",null,0]
[null,null,"BOUTEILLE CHAMPAGNE",null,0]
[null,null,"COUPE CLAIRETTE",null,0]
[null,null,"BOUTEILLE CLAIRETTE",null,0]
[null,null,"SANDWICHES",null,0]
[null,null,"GÂTEAUX",null,0]
[null,null,"SAUCISSE SUR ARDOISE ",null,0]
[null,null,"ASSIETTE FROIDE / CRUDITES",null,0]
[null,231,"MINERALES",null,0,{"$f":"SUM(E3223:E3236)","v":0},"Payé","à rendre"]
[null,null,"BIÈRE",null,0,null,0,{"$f":"G3224-F3223","v":0}]
[null,null,"CAFE / THE",null,0]
[null,null,"VIN AU VERRE",null,0]
[null,null,"BOUTEILLE VIN BLANC",null,0]
[null,null,"BOUTEILLE VIN ROUGE",null,0]
[null,null,"COUPE CHAMPAGNE",null,0]
[null,null,"BOUTEILLE CHAMPAGNE",null,0]
[null,null,"COUPE CLAIRETTE",null,0]
[null,null,"BOUTEILLE CLAIRETTE",null,0]
[null,null,"SANDWICHES",null,{"$f":"VLOOKUP(C3233,Fichier,3,0)*D3233","v":0}]
[null,null,"GÂTEAUX",null,0]
[null,null,"SAUCISSE SUR ARDOISE ",null,0]
[null,null,"ASSIETTE FROIDE / CRUDITES",null,0]
[null,232,"MINERALES",null,0,{"$f":"SUM(E3237:E3250)","v":0},"Payé","à rendre"]
[null,null,"BIÈRE",null,0,null,0,{"$f":"G3238-F3237","v":0}]
[null,null,"CAFE / THE",null,0]
[null,null,"VIN AU VERRE",null,0]
[null,null,"BOUTEILLE VIN BLANC",null,0]
[null,null,"BOUTEILLE VIN ROUGE",null,0]
[null,null,"COUPE CHAMPAGNE",null,0]
[null,null,"BOUTEILLE CHAMPAGNE",null,0]
[null,null,"COUPE CLAIRETTE",null,0]
[null,null,"BOUTEILLE CLAIRETTE",null,0]
[null,null,"SANDWICHES",null,0]
[null,null,"GÂTEAUX",null,0]
[null,null,"SAUCISSE SUR ARDOISE ",null,0]
[null,null,"ASSIETTE FROIDE / CRUDITES",null,0]
[null,233,"MINERALES",null,0,{"$f":"SUM(E3251:E3264)","v":0},"Payé","à rendre"]
[null,null,"BIÈRE",null,0,null,0,{"$f":"G3252-F3251","v":0}]
[null,null,"CAFE / THE",null,0]
[null,null,"VIN AU VERRE",null,0]
[null,null,"BOUTEILLE VIN BLANC",null,0]
[null,null,"BOUTEILLE VIN ROUGE",null,0]
[null,null,"COUPE CHAMPAGNE",null,0]
[null,null,"BOUTEILLE CHAMPAGNE",null,0]
[null,null,"COUPE CLAIRETTE",null,0]
[null,null,"BOUTEILLE CLAIRETTE",null,0]
[null,null,"SANDWICHES",null,0]
[null,null,"GÂTEAUX",null,0]
[null,null,"SAUCISSE SUR ARDOISE ",null,0]
[null,null,"ASSIETTE FROIDE / CRUDITES",null,0]
[null,234,"MINERALES",null,0,{"$f":"SUM(E3265:E3278)","v":0},"Payé","à rendre"]
[null,null,"BIÈRE",null,0,null,0,{"$f":"G3266-F3265","v":0}]
[null,null,"CAFE / THE",null,0]
[null,null,"VIN AU VERRE",null,0]
[null,null,"BOUTEILLE VIN BLANC",null,0]
[null,null,"BOUTEILLE VIN ROUGE",null,0]
[null,null,"COUPE CHAMPAGNE",null,0]
[null,null,"BOUTEILLE CHAMPAGNE",null,0]
[null,null,"COUPE CLAIRETTE",null,0]
[null,null,"BOUTEILLE CLAIRETTE",null,0]
[null,null,"SANDWICHES",null,0]
[null,null,"GÂTEAUX",null,0]
[null,null,"SAUCISSE SUR ARDOISE ",null,0]
[null,null,"ASSIETTE FROIDE / CRUDITES",null,0]
[null,235,"MINERALES",null,0,{"$f":"SUM(E3279:E3292)","v":0},"Payé","à rendre"]
[null,null,"BIÈRE",null,0,null,0,{"$f":"G3280-F3279","v":0}]
[null,null,"CAFE / THE",null,0]
[null,null,"VIN AU VERRE",null,0]
[null,null,"BOUTEILLE VIN BLANC",null,0]
[null,null,"BOUTEILLE VIN ROUGE",null,0]
[null,null,"COUPE CHAMPAGNE",null,0]
[null,null,"BOUTEILLE CHAMPAGNE",null,0]
[null,null,"COUPE CLAIRETTE",null,0]
[null,null,"BOUTEILLE CLAIRETTE",null,0]
[null,null,"SANDWICHES",null,0]
[null,null,"GÂTEAUX",null,0]
[null,null,"SAUCISSE SUR ARDOISE ",null,0]
[null,null,"ASSIETTE FROIDE / CRUDITES",null,0]
[null,236,"MINERALES",null,0,{"$f":"SUM(E3293:E3306)","v":0},"Payé","à rendre"]
[null,null,"BIÈRE",null,0,null,0,{"$f":"G3294-F3293","v":0}]
[null,null,"CAFE / THE",null,0]
[null,null,"VIN AU VERRE",null,0]
[null,null,"BOUTEILLE VIN BLANC",null,0]
[null,null,"BOUTEILLE VIN ROUGE",null,0]
[null,null,"COUPE CHAMPAGNE",null,0]
[null,null,"BOUTEILLE CHAMPAGNE",null,0]
[null,null,"COUPE CLAIRETTE",null,0]
[null,null,"BOUTEILLE CLAIRETTE",null,{"$f":"VLOOKUP(C3302,Fichier,3,0)*D3302","v":0}]
[null,null,"SANDWICHES",null,0]
[null,null,"GÂTEAUX",null,0]
[null,null,"SAUCISSE SUR ARDOISE ",null,0]
[null,null,"ASSIETTE FROIDE / CRUDITES",null,0]
[null,237,"MINERALES",null,0,{"$f":"SUM(E3307:E3320)","v":0},"Payé","à rendre"]
[null,null,"BIÈRE",null,0,null,0,{"$f":"G3308-F3307","v":0}]
[null,null,"CAFE / THE",null,0]
[null,null,"VIN AU VERRE",null,0]
[null,null,"BOUTEILLE VIN BLANC",null,0]
[null,null,"BOUTEILLE VIN ROUGE",null,0]
[null,null,"COUPE CHAMPAGNE",null,0]
[null,null,"BOUTEILLE CHAMPAGNE",null,0]
[null,null,"COUPE CLAIRETTE",null,0]
[null,null,"BOUTEILLE CLAIRETTE",null,0]
[null,null,"SANDWICHES",null,0]
[null,null,"GÂTEAUX",null,0]
[null,null,"SAUCISSE SUR ARDOISE ",null,0]
[null,null,"ASSIETTE FROIDE / CRUDITES",null,0]
[null,238,"MINERALES",null,0,{"$f":"SUM(E3321:E3334)","v":0},"Payé","à rendre"]
[null,null,"BIÈRE",null,0,null,0,{"$f":"G3322-F3321","v":0}]
[null,null,"CAFE / THE",null,0]
[null,null,"VIN AU VERRE",null,0]
[null,null,"BOUTEILLE VIN BLANC",null,0]
[null,null,"BOUTEILLE VIN ROUGE",null,0]
[null,null,"COUPE CHAMPAGNE",null,0]
[null,null,"BOUTEILLE CHAMPAGNE",null,0]
[null,null,"COUPE CLAIRETTE",null,0]
[null,null,"BOUTEILLE CLAIRETTE",null,0]
[null,null,"SANDWICHES",null,0]
[null,null,"GÂTEAUX",null,0]
[null,null,"SAUCISSE SUR ARDOISE ",null,0]
[null,null,"ASSIETTE FROIDE / CRUDITES",null,0]
[null,239,"MINERALES",null,0,{"$f":"SUM(E3335:E3348)","v":0},"Payé","à rendre"]
[null,null,"BIÈRE",null,0,null,0,{"$f":"G3336-F3335","v":0}]
[null,null,"CAFE / THE",null,0]
[null,null,"VIN AU VERRE",null,0]
[null,null,"BOUTEILLE VIN BLANC",null,0]
[null,null,"BOUTEILLE VIN ROUGE",null,0]
[null,null,"COUPE CHAMPAGNE",null,0]
[null,null,"BOUTEILLE CHAMPAGNE",null,0]
[null,null,"COUPE CLAIRETTE",null,0]
[null,null,"BOUTEILLE CLAIRETTE",null,0]
[null,null,"SANDWICHES",null,0]
[null,null,"GÂTEAUX",null,0]
[null,null,"SAUCISSE SUR ARDOISE ",null,0]
[null,null,"ASSIETTE FROIDE / CRUDITES",null,0]
[null,240,"MINERALES",null,0,{"$f":"SUM(E3349:E3362)","v":0},"Payé","à rendre"]
[null,null,"BIÈRE",null,0,null,0,{"$f":"G3350-F3349","v":0}]
[null,null,"CAFE / THE",null,0]
[null,null,"VIN AU VERRE",null,0]
[null,null,"BOUTEILLE VIN BLANC",null,0]
[null,null,"BOUTEILLE VIN ROUGE",null,0]
[null,null,"COUPE CHAMPAGNE",null,0]
[null,null,"BOUTEILLE CHAMPAGNE",null,0]
[null,null,"COUPE CLAIRETTE",null,0]
[null,null,"BOUTEILLE CLAIRETTE",null,0]
[null,null,"SANDWICHES",null,0]
[null,null,"GÂTEAUX",null,0]
[null,null,"SAUCISSE SUR ARDOISE ",null,0]
[null,null,"ASSIETTE FROIDE / CRUDITES",null,0]
[null,241,"MINERALES",null,0,{"$f":"SUM(E3363:E3376)","v":0},"Payé","à rendre"]
[null,null,"BIÈRE",null,0,null,0,{"$f":"G3364-F3363","v":0}]
[null,null,"CAFE / THE",null,0]
[null,null,"VIN AU VERRE",null,0]
[null,null,"BOUTEILLE VIN BLANC",null,0]
[null,null,"BOUTEILLE VIN ROUGE",null,0]
[null,null,"COUPE CHAMPAGNE",null,0]
[null,null,"BOUTEILLE CHAMPAGNE",null,0]
[null,null,"COUPE CLAIRETTE",null,{"$f":"VLOOKUP(C3371,Fichier,3,0)*D3371","v":0}]
[null,null,"BOUTEILLE CLAIRETTE",null,0]
[null,null,"SANDWICHES",null,0]
[null,null,"GÂTEAUX",null,0]
[null,null,"SAUCISSE SUR ARDOISE ",null,0]
[null,null,"ASSIETTE FROIDE / CRUDITES",null,0]
[null,242,"MINERALES",null,0,{"$f":"SUM(E3377:E3390)","v":0},"Payé","à rendre"]
[null,null,"BIÈRE",null,0,null,0,{"$f":"G3378-F3377","v":0}]
[null,null,"CAFE / THE",null,0]
[null,null,"VIN AU VERRE",null,0]
[null,null,"BOUTEILLE VIN BLANC",null,0]
[null,null,"BOUTEILLE VIN ROUGE",null,0]
[null,null,"COUPE CHAMPAGNE",null,0]
[null,null,"BOUTEILLE CHAMPAGNE",null,0]
[null,null,"COUPE CLAIRETTE",null,0]
[null,null,"BOUTEILLE CLAIRETTE",null,0]
[null,null,"SANDWICHES",null,0]
[null,null,"GÂTEAUX",null,0]
[null,null,"SAUCISSE SUR ARDOISE ",null,0]
[null,null,"ASSIETTE FROIDE / CRUDITES",null,0]
[null,243,"MINERALES",null,0,{"$f":"SUM(E3391:E3404)","v":0},"Payé","à rendre"]
[null,null,"BIÈRE",null,0,null,0,{"$f":"G3392-F3391","v":0}]
[null,null,"CAFE / THE",null,0]
[null,null,"VIN AU VERRE",null,0]
[null,null,"BOUTEILLE VIN BLANC",null,0]
[null,null,"BOUTEILLE VIN ROUGE",null,0]
[null,null,"COUPE CHAMPAGNE",null,0]
[null,null,"BOUTEILLE CHAMPAGNE",null,0]
[null,null,"COUPE CLAIRETTE",null,0]
[null,null,"BOUTEILLE CLAIRETTE",null,0]
[null,null,"SANDWICHES",null,0]
[null,null,"GÂTEAUX",null,0]
[null,null,"SAUCISSE SUR ARDOISE ",null,0]
[null,null,"ASSIETTE FROIDE / CRUDITES",null,0]
[null,244,"MINERALES",null,0,{"$f":"SUM(E3405:E3418)","v":0},"Payé","à rendre"]
[null,null,"BIÈRE",null,0,null,0,{"$f":"G3406-F3405","v":0}]
[null,null,"CAFE / THE",null,0]
[null,null,"VIN AU VERRE",null,0]
[null,null,"BOUTEILLE VIN BLANC",null,0]
[null,null,"BOUTEILLE VIN ROUGE",null,0]
[null,null,"COUPE CHAMPAGNE",null,0]
[null,null,"BOUTEILLE CHAMPAGNE",null,0]
[null,null,"COUPE CLAIRETTE",null,0]
[null,null,"BOUTEILLE CLAIRETTE",null,0]
[null,null,"SANDWICHES",null,0]
[null,null,"GÂTEAUX",null,0]
[null,null,"SAUCISSE SUR ARDOISE ",null,0]
[null,null,"ASSIETTE FROIDE / CRUDITES",null,0]
[null,245,"MINERALES",null,0,{"$f":"SUM(E3419:E3432)","v":0},"Payé","à rendre"]
[null,null,"BIÈRE",null,0,null,0,{"$f":"G3420-F3419","v":0}]
[null,null,"CAFE / THE",null,0]
[null,null,"VIN AU VERRE",null,0]
[null,null,"BOUTEILLE VIN BLANC",null,0]
[null,null,"BOUTEILLE VIN ROUGE",null,0]
[null,null,"COUPE CHAMPAGNE",null,0]
[null,null,"BOUTEILLE CHAMPAGNE",null,0]
[null,null,"COUPE CLAIRETTE",null,0]
[null,null,"BOUTEILLE CLAIRETTE",null,0]
[null,null,"SANDWICHES",null,0]
[null,null,"GÂTEAUX",null,0]
[null,null,"SAUCISSE SUR ARDOISE ",null,0]
[null,null,"ASSIETTE FROIDE / CRUDITES",null,0]
[null,246,"MINERALES",null,0,{"$f":"SUM(E3433:E3446)","v":0},"Payé","à rendre"]
[null,null,"BIÈRE",null,0,null,0,{"$f":"G3434-F3433","v":0}]
[null,null,"CAFE / THE",null,0]
[null,null,"VIN AU VERRE",null,0]
[null,null,"BOUTEILLE VIN BLANC",null,0]
[null,null,"BOUTEILLE VIN ROUGE",null,0]
[null,null,"COUPE CHAMPAGNE",null,0]
[null,null,"BOUTEILLE CHAMPAGNE",null,{"$f":"VLOOKUP(C3440,Fichier,3,0)*D3440","v":0}]
[null,null,"COUPE CLAIRETTE",null,0]
[null,null,"BOUTEILLE CLAIRETTE",null,0]
[null,null,"SANDWICHES",null,0]
[null,null,"GÂTEAUX",null,0]
[null,null,"SAUCISSE SUR ARDOISE ",null,0]
[null,null,"ASSIETTE FROIDE / CRUDITES",null,0]
[null,247,"MINERALES",null,0,{"$f":"SUM(E3447:E3460)","v":0},"Payé","à rendre"]
[null,null,"BIÈRE",null,0,null,0,{"$f":"G3448-F3447","v":0}]
[null,null,"CAFE / THE",null,0]
[null,null,"VIN AU VERRE",null,0]
[null,null,"BOUTEILLE VIN BLANC",null,0]
[null,null,"BOUTEILLE VIN ROUGE",null,0]
[null,null,"COUPE CHAMPAGNE",null,0]
[null,null,"BOUTEILLE CHAMPAGNE",null,0]
[null,null,"COUPE CLAIRETTE",null,0]
[null,null,"BOUTEILLE CLAIRETTE",null,0]
[null,null,"SANDWICHES",null,0]
[null,null,"GÂTEAUX",null,0]
[null,null,"SAUCISSE SUR ARDOISE ",null,0]
[null,null,"ASSIETTE FROIDE / CRUDITES",null,0]
[null,248,"MINERALES",null,0,{"$f":"SUM(E3461:E3474)","v":0},"Payé","à rendre"]
[null,null,"BIÈRE",null,0,null,0,{"$f":"G3462-F3461","v":0}]
[null,null,"CAFE / THE",null,0]
[null,null,"VIN AU VERRE",null,0]
[null,null,"BOUTEILLE VIN BLANC",null,0]
[null,null,"BOUTEILLE VIN ROUGE",null,0]
[null,null,"COUPE CHAMPAGNE",null,0]
[null,null,"BOUTEILLE CHAMPAGNE",null,0]
[null,null,"COUPE CLAIRETTE",null,0]
[null,null,"BOUTEILLE CLAIRETTE",null,0]
[null,null,"SANDWICHES",null,0]
[null,null,"GÂTEAUX",null,0]
[null,null,"SAUCISSE SUR ARDOISE ",null,0]
[null,null,"ASSIETTE FROIDE / CRUDITES",null,0]
[null,249,"MINERALES",null,0,{"$f":"SUM(E3475:E3488)","v":0},"Payé","à rendre"]
[null,null,"BIÈRE",null,0,null,0,{"$f":"G3476-F3475","v":0}]
[null,null,"CAFE / THE",null,0]
[null,null,"VIN AU VERRE",null,0]
[null,null,"BOUTEILLE VIN BLANC",null,0]
[null,null,"BOUTEILLE VIN ROUGE",null,0]
[null,null,"COUPE CHAMPAGNE",null,0]
[null,null,"BOUTEILLE CHAMPAGNE",null,0]
[null,null,"COUPE CLAIRETTE",null,0]
[null,null,"BOUTEILLE CLAIRETTE",null,0]
[null,null,"SANDWICHES",null,0]
[null,null,"GÂTEAUX",null,0]
[null,null,"SAUCISSE SUR ARDOISE ",null,0]
[null,null,"ASSIETTE FROIDE / CRUDITES",null,0]
[null,250,"MINERALES",null,0,{"$f":"SUM(E3489:E3502)","v":0},"Payé","à rendre"]
[null,null,"BIÈRE",null,0,null,0,{"$f":"G3490-F3489","v":0}]
[null,null,"CAFE / THE",null,0]
[null,null,"VIN AU VERRE",null,0]
[null,null,"BOUTEILLE VIN BLANC",null,0]
[null,null,"BOUTEILLE VIN ROUGE",null,0]
[null,null,"COUPE CHAMPAGNE",null,0]
[null,null,"BOUTEILLE CHAMPAGNE",null,0]
[null,null,"COUPE CLAIRETTE",null,0]
[null,null,"BOUTEILLE CLAIRETTE",null,0]
[null,null,"SANDWICHES",null,0]
[null,null,"GÂTEAUX",null,0]
[null,null,"SAUCISSE SUR ARDOISE ",null,0]
[null,null,"ASSIETTE FROIDE / CRUDITES",null,0]
[null,251,"MINERALES",null,0,{"$f":"SUM(E3503:E3516)","v":0},"Payé","à rendre"]
[null,null,"BIÈRE",null,0,null,0,{"$f":"G3504-F3503","v":0}]
[null,null,"CAFE / THE",null,0]
[null,null,"VIN AU VERRE",null,0]
[null,null,"BOUTEILLE VIN BLANC",null,0]
[null,null,"BOUTEILLE VIN ROUGE",null,0]
[null,null,"COUPE CHAMPAGNE",null,{"$f":"VLOOKUP(C3509,Fichier,3,0)*D3509","v":0}]
[null,null,"BOUTEILLE CHAMPAGNE",null,0]
[null,null,"COUPE CLAIRETTE",null,0]
[null,null,"BOUTEILLE CLAIRETTE",null,0]
[null,null,"SANDWICHES",null,0]
[null,null,"GÂTEAUX",null,0]
[null,null,"SAUCISSE SUR ARDOISE ",null,0]
[null,null,"ASSIETTE FROIDE / CRUDITES",null,0]
[null,252,"MINERALES",null,0,{"$f":"SUM(E3517:E3530)","v":0},"Payé","à rendre"]
[null,null,"BIÈRE",null,0,null,0,{"$f":"G3518-F3517","v":0}]
[null,null,"CAFE / THE",null,0]
[null,null,"VIN AU VERRE",null,0]
[null,null,"BOUTEILLE VIN BLANC",null,0]
[null,null,"BOUTEILLE VIN ROUGE",null,0]
[null,null,"COUPE CHAMPAGNE",null,0]
[null,null,"BOUTEILLE CHAMPAGNE",null,0]
[null,null,"COUPE CLAIRETTE",null,0]
[null,null,"BOUTEILLE CLAIRETTE",null,0]
[null,null,"SANDWICHES",null,0]
[null,null,"GÂTEAUX",null,0]
[null,null,"SAUCISSE SUR ARDOISE ",null,0]
[null,null,"ASSIETTE FROIDE / CRUDITES",null,0]
[null,253,"MINERALES",null,0,{"$f":"SUM(E3531:E3544)","v":0},"Payé","à rendre"]
[null,null,"BIÈRE",null,0,null,0,{"$f":"G3532-F3531","v":0}]
[null,null,"CAFE / THE",null,0]
[null,null,"VIN AU VERRE",null,0]
[null,null,"BOUTEILLE VIN BLANC",null,0]
[null,null,"BOUTEILLE VIN ROUGE",null,0]
[null,null,"COUPE CHAMPAGNE",null,0]
[null,null,"BOUTEILLE CHAMPAGNE",null,0]
[null,null,"COUPE CLAIRETTE",null,0]
[null,null,"BOUTEILLE CLAIRETTE",null,0]
[null,null,"SANDWICHES",null,0]
[null,null,"GÂTEAUX",null,0]
[null,null,"SAUCISSE SUR ARDOISE ",null,0]
[null,null,"ASSIETTE FROIDE / CRUDITES",null,0]
[null,254,"MINERALES",null,0,{"$f":"SUM(E3545:E3558)","v":0},"Payé","à rendre"]
[null,null,"BIÈRE",null,0,null,0,{"$f":"G3546-F3545","v":0}]
[null,null,"CAFE / THE",null,0]
[null,null,"VIN AU VERRE",null,0]
[null,null,"BOUTEILLE VIN BLANC",null,0]
[null,null,"BOUTEILLE VIN ROUGE",null,0]
[null,null,"COUPE CHAMPAGNE",null,0]
[null,null,"BOUTEILLE CHAMPAGNE",null,0]
[null,null,"COUPE CLAIRETTE",null,0]
[null,null,"BOUTEILLE CLAIRETTE",null,0]
[null,null,"SANDWICHES",null,0]
[null,null,"GÂTEAUX",null,0]
[null,null,"SAUCISSE SUR ARDOISE ",null,0]
[null,null,"ASSIETTE FROIDE / CRUDITES",null,0]
[null,255,"MINERALES",null,0,{"$f":"SUM(E3559:E3572)","v":0},"Payé","à rendre"]
[null,null,"BIÈRE",null,0,null,0,{"$f":"G3560-F3559","v":0}]
[null,null,"CAFE / THE",null,0]
[null,null,"VIN AU VERRE",null,0]
[null,null,"BOUTEILLE VIN BLANC",null,0]
[null,null,"BOUTEILLE VIN ROUGE",null,0]
[null,null,"COUPE CHAMPAGNE",null,0]
[null,null,"BOUTEILLE CHAMPAGNE",null,0]
[null,null,"COUPE CLAIRETTE",null,0]
[null,null,"BOUTEILLE CLAIRETTE",null,0]
[null,null,"SANDWICHES",null,0]
[null,null,"GÂTEAUX",null,0]
[null,null,"SAUCISSE SUR ARDOISE ",null,0]
[null,null,"ASSIETTE FROIDE / CRUDITES",null,0]
[null,256,"MINERALES",null,0,{"$f":"SUM(E3573:E3586)","v":0},"Payé","à rendre"]
[null,null,"BIÈRE",null,0,null,0,{"$f":"G3574-F3573","v":0}]
[null,null,"CAFE / THE",null,0]
[null,null,"VIN AU VERRE",null,0]
[null,null,"BOUTEILLE VIN BLANC",null,0]
[null,null,"BOUTEILLE VIN ROUGE",null,{"$f":"VLOOKUP(C3578,Fichier,3,0)*D3578","v":0}]
[null,null,"COUPE CHAMPAGNE",null,0]
[null,null,"BOUTEILLE CHAMPAGNE",null,0]
[null,null,"COUPE CLAIRETTE",null,0]
[null,null,"BOUTEILLE CLAIRETTE",null,0]
[null,null,"SANDWICHES",null,0]
[null,null,"GÂTEAUX",null,0]
[null,null,"SAUCISSE SUR ARDOISE ",null,0]
[null,null,"ASSIETTE FROIDE / CRUDITES",null,{"$f":"VLOOKUP(C3586,Fichier,3,0)*D3586","v":0}]
[]
[]
[]
[null,null,"MINERALES :",{"$f":"SUMIF($C$3:$C$3585,\"*MINERALES*\",$E$3:$E$3585)","v":0}]
[null,null,"BIÈRE :",{"$f":"SUMIF($C$3:$C$3585,\"*BIÈRE*\",$E$3:$E$3585)","v":0}]
[null,null,"CAFE / THE :",{"$f":"SUMIF($C$3:$C$3585,\"*CAFE / THE*\",$E$3:$E$3585)","v":0}]
[null,null,"VIN AU VERRE :",{"$f":"SUMIF($C$3:$C$3585,\"*VIN AU VERRE*\",$E$3:$E$3585)","v":0}]
[null,null,"BOUTEILLE VIN BLANC :",{"$f":"SUMIF($C$3:$C$3585,\"*BOUTEILLE VIN BLANC*\",$E$3:$E$3585)","v":0}]
[null,null,"BOUTEILLE VIN ROUGE :",{"$f":"SUMIF($C$3:$C$3585,\"*BOUTEILLE VIN ROUGE*\",$E$3:$E$3585)","v":0}]
[null,null,"COUPE CHAMPAGNE :",{"$f":"SUMIF($C$3:$C$3585,\"*COUPE CHAMPAGNE*\",$E$3:$E$3585)","v":0}]
[null,null,"BOUTEILLE CHAMPAGNE :",{"$f":"SUMIF($C$3:$C$3585,\"*BOUTEILLE CHAMPAGNE*\",$E$3:$E$3585)","v":0}]
[null,null,"COUPE CLAIRETTE :",{"$f":"SUMIF($C$3:$C$3585,\"*COUPE CLAIRETTE*\",$E$3:$E$3585)","v":0}]
[null,null,"BOUTEILLE CLAIRETTE :",{"$f":"SUMIF($C$3:$C$3585,\"*BOUTEILLE CLAIRETTE*\",$E$3:$E$3585)","v":0}]
[null,null,"SANDWICHES :",{"$f":"SUMIF($C$3:$C$3585,\"*SANDWICHES*\",$E$3:$E$3585)","v":0}]
[null,null,"GÂTEAUX :",{"$f":"SUMIF($C$3:$C$3585,\"*GÂTEAUX*\",$E$3:$E$3585)","v":0}]
[null,null,"SAUCISSE SUR ARDOISE :",{"$f":"SUMIF($C$3:$C$3585,\"*SAUCISSE SUR ARDOISE *\",$E$3:$E$3585)","v":0}]
[null,null,"ASSIETTE FROIDE / CRUDITES :",{"$f":"SUMIF($C$3:$C$3585,\"*ASSIETTE FROIDE / CRUDITES*\",$E$3:$E$3585)","v":0}]
[null,null,"Total",{"$f":"SUM(D3590:D3602)","v":0},null,{"$f":"SUM(F3:F3585)","v":0}]

{"sheet":",","index":2,"n_rows":19,"n_cols":12,"rows_kept":19,"cut":false,"hidden":false,"merged":[[1,5,1,7],[1,1,1,3],[1,9,1,11],[18,6,18,7]]}
[]
[null,{"$f":"PROPER(TEXT('C1 - Vendredi 10 juin 2016'!C1,\"jjjj j mmmm aaaa\")) &\" - Caisse 1\"","v":"Vendredi 10 Juin 2016 - Caisse 1"},null,null,null,{"$f":"PROPER(TEXT('C1 - Samedi 11 juin 2016'!C1,\"jjjj j mmmm aaaa\")) &\" - Caisse 1\"","v":"Samedi 11 Juin 2016 - Caisse 1"},null,null,null,"Prix juin 2016"]
[null,"MINERALES",{"$f":"SUMIF('C1 - Vendredi 10 juin 2016'!$C$3:$C$3585,\"MINERALES\",'C1 - Vendredi 10 juin 2016'!$D$3:$D$3585)","v":0},{"$f":"SUMIF('C1 - Vendredi 10 juin 2016'!$C$3:$C$3585,\"MINERALES\",'C1 - Vendredi 10 juin 2016'!$E$3:$E$3585)","v":0},null,"MINERALES",{"$f":"SUMIF('C1 - Samedi 11 juin 2016'!$C$3:$C$3585,\"MINERALES\",'C1 - Samedi 11 juin 2016'!$D$3:$D$3585)","v":0},{"$f":"SUMIF('C1 - Samedi 11 juin 2016'!$C$3:$C$3585,\"MINERALES\",'C1 - Samedi 11 juin 2016'!$E$3:$E$3585)","v":0},null,"MINERALES",null,3]
[null,"BIÈRE",{"$f":"SUMIF('C1 - Vendredi 10 juin 2016'!$C$3:$C$3585,\"BIÈRE\",'C1 - Vendredi 10 juin 2016'!$D$3:$D$3585)","v":0},{"$f":"SUMIF('C1 - Vendredi 10 juin 2016'!$C$3:$C$3585,\"BIÈRE\",'C1 - Vendredi 10 juin 2016'!$E$3:$E$3585)","v":0},null,"BIÈRE",{"$f":"SUMIF('C1 - Samedi 11 juin 2016'!$C$3:$C$3585,\"BIÈRE\",'C1 - Samedi 11 juin 2016'!$D$3:$D$3585)","v":0},{"$f":"SUMIF('C1 - Samedi 11 juin 2016'!$C$3:$C$3585,\"BIÈRE\",'C1 - Samedi 11 juin 2016'!$E$3:$E$3585)","v":0},null,"BIÈRE",null,3.5]
[null,"CAFE / THE",{"$f":"SUMIF('C1 - Vendredi 10 juin 2016'!$C$3:$C$3585,\"CAFE / THE\",'C1 - Vendredi 10 juin 2016'!$D$3:$D$3585)","v":0},{"$f":"SUMIF('C1 - Vendredi 10 juin 2016'!$C$3:$C$3585,\"CAFE / THE\",'C1 - Vendredi 10 juin 2016'!$E$3:$E$3585)","v":0},null,"CAFE / THE",{"$f":"SUMIF('C1 - Samedi 11 juin 2016'!$C$3:$C$3585,\"CAFE / THE\",'C1 - Samedi 11 juin 2016'!$D$3:$D$3585)","v":0},{"$f":"SUMIF('C1 - Samedi 11 juin 2016'!$C$3:$C$3585,\"CAFE / THE\",'C1 - Samedi 11 juin 2016'!$E$3:$E$3585)","v":0},null,"CAFE / THE",null,3]
[null,"VIN AU VERRE",{"$f":"SUMIF('C1 - Vendredi 10 juin 2016'!$C$3:$C$3585,\"VIN AU VERRE\",'C1 - Vendredi 10 juin 2016'!$D$3:$D$3585)","v":0},{"$f":"SUMIF('C1 - Vendredi 10 juin 2016'!$C$3:$C$3585,\"VIN AU VERRE\",'C1 - Vendredi 10 juin 2016'!$E$3:$E$3585)","v":0},null,"VIN AU VERRE",{"$f":"SUMIF('C1 - Samedi 11 juin 2016'!$C$3:$C$3585,\"VIN AU VERRE\",'C1 - Samedi 11 juin 2016'!$D$3:$D$3585)","v":0},{"$f":"SUMIF('C1 - Samedi 11 juin 2016'!$C$3:$C$3585,\"VIN AU VERRE\",'C1 - Samedi 11 juin 2016'!$E$3:$E$3585)","v":0},null,"VIN AU VERRE",null,4]
[null,"BOUTEILLE VIN BLANC",{"$f":"SUMIF('C1 - Vendredi 10 juin 2016'!$C$3:$C$3585,\"BOUTEILLE VIN BLANC\",'C1 - Vendredi 10 juin 2016'!$D$3:$D$3585)","v":0},{"$f":"SUMIF('C1 - Vendredi 10 juin 2016'!$C$3:$C$3585,\"BOUTEILLE VIN BLANC\",'C1 - Vendredi 10 juin 2016'!$E$3:$E$3585)","v":0},null,"BOUTEILLE VIN BLANC",{"$f":"SUMIF('C1 - Samedi 11 juin 2016'!$C$3:$C$3585,\"BOUTEILLE VIN BLANC\",'C1 - Samedi 11 juin 2016'!$D$3:$D$3585)","v":0},{"$f":"SUMIF('C1 - Samedi 11 juin 2016'!$C$3:$C$3585,\"BOUTEILLE VIN BLANC\",'C1 - Samedi 11 juin 2016'!$E$3:$E$3585)","v":0},null,"BOUTEILLE VIN BLANC",null,25]
[null,"BOUTEILLE VIN ROUGE",{"$f":"SUMIF('C1 - Vendredi 10 juin 2016'!$C$3:$C$3585,\"BOUTEILLE VIN ROUGE\",'C1 - Vendredi 10 juin 2016'!$D$3:$D$3585)","v":0},{"$f":"SUMIF('C1 - Vendredi 10 juin 2016'!$C$3:$C$3585,\"BOUTEILLE VIN ROUGE\",'C1 - Vendredi 10 juin 2016'!$E$3:$E$3585)","v":0},null,"BOUTEILLE VIN ROUGE",{"$f":"SUMIF('C1 - Samedi 11 juin 2016'!$C$3:$C$3585,\"BOUTEILLE VIN ROUGE\",'C1 - Samedi 11 juin 2016'!$D$3:$D$3585)","v":0},{"$f":"SUMIF('C1 - Samedi 11 juin 2016'!$C$3:$C$3585,\"BOUTEILLE VIN ROUGE\",'C1 - Samedi 11 juin 2016'!$E$3:$E$3585)","v":0},null,"BOUTEILLE VIN ROUGE",null,27]
[null,"COUPE CHAMPAGNE",{"$f":"SUMIF('C1 - Vendredi 10 juin 2016'!$C$3:$C$3585,\"COUPE CHAMPAGNE\",'C1 - Vendredi 10 juin 2016'!$D$3:$D$3585)","v":0},{"$f":"SUMIF('C1 - Vendredi 10 juin 2016'!$C$3:$C$3585,\"COUPE CHAMPAGNE\",'C1 - Vendredi 10 juin 2016'!$E$3:$E$3585)","v":0},null,"COUPE CHAMPAGNE",{"$f":"SUMIF('C1 - Samedi 11 juin 2016'!$C$3:$C$3585,\"COUPE CHAMPAGNE\",'C1 - Samedi 11 juin 2016'!$D$3:$D$3585)","v":0},{"$f":"SUMIF('C1 - Samedi 11 juin 2016'!$C$3:$C$3585,\"COUPE CHAMPAGNE\",'C1 - Samedi 11 juin 2016'!$E$3:$E$3585)","v":0},null,"COUPE CHAMPAGNE",null,9]
[null,"BOUTEILLE CHAMPAGNE",{"$f":"SUMIF('C1 - Vendredi 10 juin 2016'!$C$3:$C$3585,\"BOUTEILLE CHAMPAGNE\",'C1 - Vendredi 10 juin 2016'!$D$3:$D$3585)","v":0},{"$f":"SUMIF('C1 - Vendredi 10 juin 2016'!$C$3:$C$3585,\"BOUTEILLE CHAMPAGNE\",'C1 - Vendredi 10 juin 2016'!$E$3:$E$3585)","v":0},null,"BOUTEILLE CHAMPAGNE",{"$f":"SUMIF('C1 - Samedi 11 juin 2016'!$C$3:$C$3585,\"BOUTEILLE CHAMPAGNE\",'C1 - Samedi 11 juin 2016'!$D$3:$D$3585)","v":0},{"$f":"SUMIF('C1 - Samedi 11 juin 2016'!$C$3:$C$3585,\"BOUTEILLE CHAMPAGNE\",'C1 - Samedi 11 juin 2016'!$E$3:$E$3585)","v":0},null,"BOUTEILLE CHAMPAGNE",null,63]
[null,"COUPE CLAIRETTE",{"$f":"SUMIF('C1 - Vendredi 10 juin 2016'!$C$3:$C$3585,\"COUPE CLAIRETTE\",'C1 - Vendredi 10 juin 2016'!$D$3:$D$3585)","v":0},{"$f":"SUMIF('C1 - Vendredi 10 juin 2016'!$C$3:$C$3585,\"COUPE CLAIRETTE\",'C1 - Vendredi 10 juin 2016'!$E$3:$E$3585)","v":0},null,"COUPE CLAIRETTE",{"$f":"SUMIF('C1 - Samedi 11 juin 2016'!$C$3:$C$3585,\"COUPE CLAIRETTE\",'C1 - Samedi 11 juin 2016'!$D$3:$D$3585)","v":0},{"$f":"SUMIF('C1 - Samedi 11 juin 2016'!$C$3:$C$3585,\"COUPE CLAIRETTE\",'C1 - Samedi 11 juin 2016'!$E$3:$E$3585)","v":0},null,"COUPE CLAIRETTE",null,4.5]
[null,"BOUTEILLE CLAIRETTE",{"$f":"SUMIF('C1 - Vendredi 10 juin 2016'!$C$3:$C$3585,\"BOUTEILLE CLAIRETTE\",'C1 - Vendredi 10 juin 2016'!$D$3:$D$3585)","v":0},{"$f":"SUMIF('C1 - Vendredi 10 juin 2016'!$C$3:$C$3585,\"BOUTEILLE CLAIRETTE\",'C1 - Vendredi 10 juin 2016'!$E$3:$E$3585)","v":0},null,"BOUTEILLE CLAIRETTE",{"$f":"SUMIF('C1 - Samedi 11 juin 2016'!$C$3:$C$3585,\"BOUTEILLE CLAIRETTE\",'C1 - Samedi 11 juin 2016'!$D$3:$D$3585)","v":0},{"$f":"SUMIF('C1 - Samedi 11 juin 2016'!$C$3:$C$3585,\"BOUTEILLE CLAIRETTE\",'C1 - Samedi 11 juin 2016'!$E$3:$E$3585)","v":0},null,"BOUTEILLE CLAIRETTE",null,28]
[null,"SANDWICHES",{"$f":"SUMIF('C1 - Vendredi 10 juin 2016'!$C$3:$C$3585,\"SANDWICHES\",'C1 - Vendredi 10 juin 2016'!$D$3:$D$3585)","v":0},{"$f":"SUMIF('C1 - Vendredi 10 juin 2016'!$C$3:$C$3585,\"SANDWICHES\",'C1 - Vendredi 10 juin 2016'!$E$3:$E$3585)","v":0},null,"SANDWICHES",{"$f":"SUMIF('C1 - Samedi 11 juin 2016'!$C$3:$C$3585,\"SANDWICHES\",'C1 - Samedi 11 juin 2016'!$D$3:$D$3585)","v":0},{"$f":"SUMIF('C1 - Samedi 11 juin 2016'!$C$3:$C$3585,\"SANDWICHES\",'C1 - Samedi 11 juin 2016'!$E$3:$E$3585)","v":0},null,"SANDWICHES",null,3.5]
[null,"GÂTEAUX",{"$f":"SUMIF('C1 - Vendredi 10 juin 2016'!$C$3:$C$3585,\"GÂTEAUX\",'C1 - Vendredi 10 juin 2016'!$D$3:$D$3585)","v":0},{"$f":"SUMIF('C1 - Vendredi 10 juin 2016'!$C$3:$C$3585,\"GÂTEAUX\",'C1 - Vendredi 10 juin 2016'!$E$3:$E$3585)","v":0},null,"GÂTEAUX",{"$f":"SUMIF('C1 - Samedi 11 juin 2016'!$C$3:$C$3585,\"GÂTEAUX\",'C1 - Samedi 11 juin 2016'!$D$3:$D$3585)","v":0},{"$f":"SUMIF('C1 - Samedi 11 juin 2016'!$C$3:$C$3585,\"GÂTEAUX\",'C1 - Samedi 11 juin 2016'!$E$3:$E$3585)","v":0},null,"GÂTEAUX",null,2]
[null,"SAUCISSE SUR ARDOISE ",{"$f":"SUMIF('C1 - Vendredi 10 juin 2016'!$C$3:$C$3585,\"SAUCISSE SUR ARDOISE \",'C1 - Vendredi 10 juin 2016'!$D$3:$D$3585)","v":0},{"$f":"SUMIF('C1 - Vendredi 10 juin 2016'!$C$3:$C$3585,\"SAUCISSE SUR ARDOISE \",'C1 - Vendredi 10 juin 2016'!$E$3:$E$3585)","v":0},null,"SAUCISSE SUR ARDOISE ",{"$f":"SUMIF('C1 - Samedi 11 juin 2016'!$C$3:$C$3585,\"SAUCISSE SUR ARDOISE \",'C1 - Samedi 11 juin 2016'!$D$3:$D$3585)","v":0},{"$f":"SUMIF('C1 - Samedi 11 juin 2016'!$C$3:$C$3585,\"SAUCISSE SUR ARDOISE \",'C1 - Samedi 11 juin 2016'!$E$3:$E$3585)","v":0},null,"SAUCISSE SUR ARDOISE ",null,10]
[null,"ASSIETTE FROIDE / CRUDITES",{"$f":"SUMIF('C1 - Vendredi 10 juin 2016'!$C$3:$C$3585,\"ASSIETTE FROIDE / CRUDITES\",'C1 - Vendredi 10 juin 2016'!$D$3:$D$3585)","v":0},{"$f":"SUMIF('C1 - Vendredi 10 juin 2016'!$C$3:$C$3585,\"ASSIETTE FROIDE / CRUDITES \",'C1 - Vendredi 10 juin 2016'!$E$3:$E$3585)","v":0},null,"ASSIETTE FROIDE / CRUDITES",{"$f":"SUMIF('C1 - Samedi 11 juin 2016'!$C$3:$C$3585,\"ASSIETTE FROIDE / CRUDITES\",'C1 - Samedi 11 juin 2016'!$D$3:$D$3585)","v":0},{"$f":"SUMIF('C1 - Samedi 11 juin 2016'!$C$3:$C$3585,\"ASSIETTE FROIDE / CRUDITES \",'C1 - Samedi 11 juin 2016'!$E$3:$E$3585)","v":0},null,"ASSIETTE FROIDE / CRUDITES",null,12]
[null,"TOTAUX",{"$f":"SUM(C3:C16)","v":0},{"$f":"SUM(D3:D15)","v":0},null,"TOTAUX",{"$f":"SUM(G3:G16)","v":0},{"$f":"SUM(H3:H15)","v":0}]
[]
[null,null,null,null,null,"TOTAL CAISSE 1 & CAISSE 2 :",{"$f":"D17+H17","v":0}]